Workbook

Sheet Resultatinnlegging
A1: Bedriftsskyting 2018 RESULTATINNLEGGING
A2: Skytter nr. | B2: Lag | C2: Etternavn | D2: Fornavn | E2: Klasse | F2: S1 | G2: S2 | H2: S3 | I2: S4 | J2: S5 | K2: S6 | L2: S7 | M2: S8 | N2: S9 | O2: S10 | P2: Antall serier
A3: 45 | B3: Benteler Bil | C3: Gravdahl | D3: Rune | E3: B | F3: 0 | G3: 0 | H3: 0 | I3: 36 | J3: 0 | K3: 0 | L3: 0 | M3: 0 | P3: =COUNT(F3:O3) -> 8 | Q3: =F3 -> 0 | R3: 0 | S3: 0 | T3: 36 | U3: 0 | V3: 0 | W3: 0 | X3: 0 | Y3: 0 | Z3: 0 | AA3: =LARGE(Q3:Z3,1)+LARGE(Q3:Z3,2)+LARGE(Q3:Z3,3)+LARGE(Q3:Z3,4)+LARGE(Q3:Z3,5)/100+LARGE(Q3:Z3,6)/10000+LARGE(Q3:Z3,7)/1000000+LARGE(Q3:Z3,8)/100000000+LARGE(Q3:Z3,9)/10000000000+LARGE(Q3:Z3,10)/1000000000000 -> 36
A4: 50 | B4: Benteler Bil | C4: Strande | D4: Trine G. | E4: C | F4: 0 | G4: 0 | H4: 0 | I4: 0 | J4: 0 | K4: 0 | L4: 0 | M4: 0 | P4: =COUNT(F4:O4) -> 8 | Q4: 0 | R4: 0 | S4: 0 | T4: 0 | U4: 0 | V4: 0 | W4: 0 | X4: 0 | Y4: 0 | Z4: 0 | AA4: =LARGE(Q4:Z4,1)+LARGE(Q4:Z4,2)+LARGE(Q4:Z4,3)+LARGE(Q4:Z4,4)+LARGE(Q4:Z4,5)/100+LARGE(Q4:Z4,6)/10000+LARGE(Q4:Z4,7)/1000000+LARGE(Q4:Z4,8)/100000000+LARGE(Q4:Z4,9)/10000000000+LARGE(Q4:Z4,10)/1000000000000 -> 0
A5: 56 | B5: Benteler Bil | C5: Fosslien | D5: Ketil | E5: C | F5: 0 | G5: 0 | H5: 0 | I5: 0 | J5: 0 | K5: 0 | L5: 0 | M5: 0 | P5: =COUNT(F5:O5) -> 8 | Q5: 0 | R5: 0 | S5: 0 | T5: 0 | U5: 0 | V5: 0 | W5: 0 | X5: 0 | Y5: 0 | Z5: 0 | AA5: =LARGE(Q5:Z5,1)+LARGE(Q5:Z5,2)+LARGE(Q5:Z5,3)+LARGE(Q5:Z5,4)+LARGE(Q5:Z5,5)/100+LARGE(Q5:Z5,6)/10000+LARGE(Q5:Z5,7)/1000000+LARGE(Q5:Z5,8)/100000000+LARGE(Q5:Z5,9)/10000000000+LARGE(Q5:Z5,10)/1000000000000 -> 0
A6: 57 | B6: Benteler Bil | C6: Wold | D6: Roy Arne | E6: A | F6: 0 | G6: 0 | H6: 0 | I6: 0 | J6: 0 | K6: 0 | L6: 0 | M6: 0 | P6: =COUNT(F6:O6) -> 8 | Q6: 0 | R6: 0 | S6: 0 | T6: 0 | U6: 0 | V6: 0 | W6: 0 | X6: 0 | Y6: 0 | Z6: 0 | AA6: =LARGE(Q6:Z6,1)+LARGE(Q6:Z6,2)+LARGE(Q6:Z6,3)+LARGE(Q6:Z6,4)+LARGE(Q6:Z6,5)/100+LARGE(Q6:Z6,6)/10000+LARGE(Q6:Z6,7)/1000000+LARGE(Q6:Z6,8)/100000000+LARGE(Q6:Z6,9)/10000000000+LARGE(Q6:Z6,10)/1000000000000 -> 0
A7: 67 | B7: Benteler Bil | C7: Tåsås | D7: Trond | E7: C | F7: 0 | G7: 0 | H7: 0 | I7: 0 | J7: 0 | K7: 0 | L7: 0 | M7: 0 | P7: =COUNT(F7:O7) -> 8 | Q7: 0 | R7: 0 | S7: 0 | T7: 0 | U7: 0 | V7: 0 | W7: 0 | X7: 0 | Y7: 0 | Z7: 0 | AA7: =LARGE(Q7:Z7,1)+LARGE(Q7:Z7,2)+LARGE(Q7:Z7,3)+LARGE(Q7:Z7,4)+LARGE(Q7:Z7,5)/100+LARGE(Q7:Z7,6)/10000+LARGE(Q7:Z7,7)/1000000+LARGE(Q7:Z7,8)/100000000+LARGE(Q7:Z7,9)/10000000000+LARGE(Q7:Z7,10)/1000000000000 -> 0
P8: =COUNT(F8:O8) -> 0 | Q8: =F8 -> 0 | R8: =G8 -> 0 | S8: =H8 -> 0 | T8: =I8 -> 0 | U8: =J8 -> 0 | V8: =K8 -> 0 | W8: =L8 -> 0 | X8: =M8 -> 0 | Y8: =N8 -> 0 | Z8: =O8 -> 0 | AA8: =LARGE(Q8:Z8,1)+LARGE(Q8:Z8,2)+LARGE(Q8:Z8,3)+LARGE(Q8:Z8,4)+LARGE(Q8:Z8,5)/100+LARGE(Q8:Z8,6)/10000+LARGE(Q8:Z8,7)/1000000+LARGE(Q8:Z8,8)/100000000+LARGE(Q8:Z8,9)/10000000000+LARGE(Q8:Z8,10)/1000000000000 -> 0
P9: 0 | Q9: 0 | R9: 0 | S9: 0 | T9: 0 | U9: 0 | V9: 0 | W9: 0 | X9: 0 | Y9: 0 | Z9: 0 | AA9: 0
P10: 0 | Q10: 0 | R10: 0 | S10: 0 | T10: 0 | U10: 0 | V10: 0 | W10: 0 | X10: 0 | Y10: 0 | Z10: 0 | AA10: 0
A11: 95 | B11: Eltera Bil | C11: Dæhlen | D11: Simen | E11: D | F11: 0 | G11: 0 | H11: 0 | I11: 0 | J11: 0 | K11: 0 | L11: 0 | M11: 0 | P11: =COUNT(F11:O11) -> 8 | Q11: =F11 -> 0 | R11: 0 | S11: 0 | T11: 0 | U11: 0 | V11: 0 | W11: 0 | X11: 0 | Y11: 0 | Z11: 0 | AA11: =LARGE(Q11:Z11,1)+LARGE(Q11:Z11,2)+LARGE(Q11:Z11,3)+LARGE(Q11:Z11,4)+LARGE(Q11:Z11,5)/100+LARGE(Q11:Z11,6)/10000+LARGE(Q11:Z11,7)/1000000+LARGE(Q11:Z11,8)/100000000+LARGE(Q11:Z11,9)/10000000000+LARGE(Q11:Z11,10)/1000000000000 -> 0
A12: 91 | B12: Eltera Bil | C12: Sørum | D12: Ståle | E12: B | F12: 0 | G12: 0 | H12: 0 | I12: 0 | J12: 0 | K12: 0 | L12: 0 | M12: 0 | P12: =COUNT(F12:O12) -> 8 | Q12: 0 | R12: 0 | S12: 0 | T12: 0 | U12: 0 | V12: 0 | W12: 0 | X12: 0 | Y12: 0 | Z12: 0 | AA12: =LARGE(Q12:Z12,1)+LARGE(Q12:Z12,2)+LARGE(Q12:Z12,3)+LARGE(Q12:Z12,4)+LARGE(Q12:Z12,5)/100+LARGE(Q12:Z12,6)/10000+LARGE(Q12:Z12,7)/1000000+LARGE(Q12:Z12,8)/100000000+LARGE(Q12:Z12,9)/10000000000+LARGE(Q12:Z12,10)/1000000000000 -> 0
A13: 92 | B13: Eltera Bil | C13: Helli | D13: Roy Arne | E13: A | F13: 0 | G13: 0 | H13: 0 | I13: 0 | J13: 0 | K13: 0 | L13: 0 | M13: 0 | P13: =COUNT(F13:O13) -> 8 | Q13: 0 | R13: 0 | S13: 0 | T13: 0 | U13: 0 | V13: 0 | W13: 0 | X13: 0 | Y13: 0 | Z13: 0 | AA13: =LARGE(Q13:Z13,1)+LARGE(Q13:Z13,2)+LARGE(Q13:Z13,3)+LARGE(Q13:Z13,4)+LARGE(Q13:Z13,5)/100+LARGE(Q13:Z13,6)/10000+LARGE(Q13:Z13,7)/1000000+LARGE(Q13:Z13,8)/100000000+LARGE(Q13:Z13,9)/10000000000+LARGE(Q13:Z13,10)/1000000000000 -> 0
A14: 93 | B14: Eltera Bil | C14: Grasdalsmoen | D14: Pål | E14: D | F14: 0 | G14: 0 | H14: 0 | I14: 0 | J14: 0 | K14: 0 | L14: 0 | M14: 0 | P14: =COUNT(F14:O14) -> 8 | Q14: 0 | R14: 0 | S14: 0 | T14: 0 | U14: 0 | V14: 0 | W14: 0 | X14: 0 | Y14: 0 | Z14: 0 | AA14: =LARGE(Q14:Z14,1)+LARGE(Q14:Z14,2)+LARGE(Q14:Z14,3)+LARGE(Q14:Z14,4)+LARGE(Q14:Z14,5)/100+LARGE(Q14:Z14,6)/10000+LARGE(Q14:Z14,7)/1000000+LARGE(Q14:Z14,8)/100000000+LARGE(Q14:Z14,9)/10000000000+LARGE(Q14:Z14,10)/1000000000000 -> 0
A15: 94 | B15: Eltera Bil | C15: Nordsveen | D15: Sigurd | E15: C | F15: 0 | G15: 0 | H15: 0 | I15: 0 | J15: 0 | K15: 0 | L15: 0 | M15: 0 | P15: =COUNT(F15:O15) -> 8 | Q15: 0 | R15: 0 | S15: 0 | T15: 0 | U15: 0 | V15: 0 | W15: 0 | X15: 0 | Y15: 0 | Z15: 0 | AA15: =LARGE(Q15:Z15,1)+LARGE(Q15:Z15,2)+LARGE(Q15:Z15,3)+LARGE(Q15:Z15,4)+LARGE(Q15:Z15,5)/100+LARGE(Q15:Z15,6)/10000+LARGE(Q15:Z15,7)/1000000+LARGE(Q15:Z15,8)/100000000+LARGE(Q15:Z15,9)/10000000000+LARGE(Q15:Z15,10)/1000000000000 -> 0
P16: =COUNT(F16:O16) -> 0 | Q16: =F16 -> 0 | R16: =G16 -> 0 | S16: =H16 -> 0 | T16: =I16 -> 0 | U16: =J16 -> 0 | V16: =K16 -> 0 | W16: =L16 -> 0 | X16: =M16 -> 0 | Y16: =N16 -> 0 | Z16: =O16 -> 0 | AA16: =LARGE(Q16:Z16,1)+LARGE(Q16:Z16,2)+LARGE(Q16:Z16,3)+LARGE(Q16:Z16,4)+LARGE(Q16:Z16,5)/100+LARGE(Q16:Z16,6)/10000+LARGE(Q16:Z16,7)/1000000+LARGE(Q16:Z16,8)/100000000+LARGE(Q16:Z16,9)/10000000000+LARGE(Q16:Z16,10)/1000000000000 -> 0
P17: 0 | Q17: 0 | R17: 0 | S17: 0 | T17: 0 | U17: 0 | V17: 0 | W17: 0 | X17: 0 | Y17: 0 | Z17: 0 | AA17: 0
P18: 0 | Q18: 0 | R18: 0 | S18: 0 | T18: 0 | U18: 0 | V18: 0 | W18: 0 | X18: 0 | Y18: 0 | Z18: 0 | AA18: 0
A19: 9 | B19: Hunton BIL | C19: Holthe | D19: Svein Ivar | E19: A | F19: 0 | G19: 0 | H19: 0 | I19: 0 | J19: 0 | K19: 0 | L19: 0 | M19: 0 | P19: =COUNT(F19:O19) -> 8 | Q19: =F19 -> 0 | R19: 0 | S19: 0 | T19: 0 | U19: 0 | V19: 0 | W19: 0 | X19: 0 | Y19: 0 | Z19: 0 | AA19: =LARGE(Q19:Z19,1)+LARGE(Q19:Z19,2)+LARGE(Q19:Z19,3)+LARGE(Q19:Z19,4)+LARGE(Q19:Z19,5)/100+LARGE(Q19:Z19,6)/10000+LARGE(Q19:Z19,7)/1000000+LARGE(Q19:Z19,8)/100000000+LARGE(Q19:Z19,9)/10000000000+LARGE(Q19:Z19,10)/1000000000000 -> 0
A20: 10 | B20: Hunton BIL | C20: Skogli | D20: Jon | E20: D | F20: 0 | G20: 0 | H20: 0 | I20: 0 | J20: 0 | K20: 0 | L20: 0 | M20: 0 | P20: 8 | Q20: 0 | R20: 0 | S20: 0 | T20: 0 | U20: 0 | V20: 0 | W20: 0 | X20: 0 | Y20: 0 | Z20: 0 | AA20: 0
A21: 11 | B21: Hunton BIL | C21: Nybakke | D21: Terje | E21: D | F21: 0 | G21: 0 | H21: 0 | I21: 0 | J21: 0 | K21: 0 | L21: 0 | M21: 0 | P21: 8 | Q21: 0 | R21: 0 | S21: 0 | T21: 0 | U21: 0 | V21: 0 | W21: 0 | X21: 0 | Y21: 0 | Z21: 0 | AA21: 0
A22: 12 | B22: Hunton BIL | C22: Furuseth | D22: Øystein | E22: C | F22: 0 | G22: 0 | H22: 0 | I22: 0 | J22: 0 | K22: 0 | L22: 0 | M22: 0 | P22: 8 | Q22: 0 | R22: 0 | S22: 0 | T22: 0 | U22: 0 | V22: 0 | W22: 0 | X22: 0 | Y22: 0 | Z22: 0 | AA22: 0
A23: 13 | B23: Hunton BIL | C23: Solhaug | D23: Stian | E23: B | F23: 0 | G23: 0 | H23: 0 | I23: 0 | J23: 0 | K23: 0 | L23: 0 | M23: 0 | P23: 8 | Q23: 0 | R23: 0 | S23: 0 | T23: 0 | U23: 0 | V23: 0 | W23: 0 | X23: 0 | Y23: 0 | Z23: 0 | AA23: 0
A24: 14 | B24: Hunton BIL | C24: Sheldrake | D24: Ian | E24: C | F24: 0 | G24: 0 | H24: 0 | I24: 0 | J24: 0 | K24: 0 | L24: 0 | M24: 0 | P24: 8 | Q24: 0 | R24: 0 | S24: 0 | T24: 0 | U24: 0 | V24: 0 | W24: 0 | X24: 0 | Y24: 0 | Z24: 0 | AA24: 0
P25: =COUNT(F25:O25) -> 0 | Q25: =F25 -> 0 | R25: =G25 -> 0 | S25: =H25 -> 0 | T25: =I25 -> 0 | U25: =J25 -> 0 | V25: =K25 -> 0 | W25: =L25 -> 0 | X25: =M25 -> 0 | Y25: =N25 -> 0 | Z25: =O25 -> 0 | AA25: =LARGE(Q25:Z25,1)+LARGE(Q25:Z25,2)+LARGE(Q25:Z25,3)+LARGE(Q25:Z25,4)+LARGE(Q25:Z25,5)/100+LARGE(Q25:Z25,6)/10000+LARGE(Q25:Z25,7)/1000000+LARGE(Q25:Z25,8)/100000000+LARGE(Q25:Z25,9)/10000000000+LARGE(Q25:Z25,10)/1000000000000 -> 0
P26: 0 | Q26: 0 | R26: 0 | S26: 0 | T26: 0 | U26: 0 | V26: 0 | W26: 0 | X26: 0 | Y26: 0 | Z26: 0 | AA26: 0
P27: 0 | Q27: 0 | R27: 0 | S27: 0 | T27: 0 | U27: 0 | V27: 0 | W27: 0 | X27: 0 | Y27: 0 | Z27: 0 | AA27: 0
A28: 61 | B28: Hydal Bil | C28: Holthe | D28: Tom Atle | E28: A | F28: 0 | G28: 0 | H28: 0 | I28: 0 | J28: 0 | K28: 0 | L28: 0 | M28: 0 | P28: =COUNT(F28:O28) -> 8 | Q28: =F28 -> 0 | R28: 0 | S28: 0 | T28: 0 | U28: 0 | V28: 0 | W28: 0 | X28: 0 | Y28: 0 | Z28: 0 | AA28: =LARGE(Q28:Z28,1)+LARGE(Q28:Z28,2)+LARGE(Q28:Z28,3)+LARGE(Q28:Z28,4)+LARGE(Q28:Z28,5)/100+LARGE(Q28:Z28,6)/10000+LARGE(Q28:Z28,7)/1000000+LARGE(Q28:Z28,8)/100000000+LARGE(Q28:Z28,9)/10000000000+LARGE(Q28:Z28,10)/1000000000000 -> 0
A29: 49 | B29: Hydal Bil | C29: Bergsveen | D29: Frank | E29: B | F29: 40 | G29: 0 | H29: 30 | I29: 27 | J29: 39 | K29: 34 | L29: 35 | M29: 0 | P29: =COUNT(F29:O29) -> 8 | Q29: 40 | R29: 0 | S29: 30 | T29: 27 | U29: 39 | V29: 34 | W29: 35 | X29: 0 | Y29: 0 | Z29: 0 | AA29: =LARGE(Q29:Z29,1)+LARGE(Q29:Z29,2)+LARGE(Q29:Z29,3)+LARGE(Q29:Z29,4)+LARGE(Q29:Z29,5)/100+LARGE(Q29:Z29,6)/10000+LARGE(Q29:Z29,7)/1000000+LARGE(Q29:Z29,8)/100000000+LARGE(Q29:Z29,9)/10000000000+LARGE(Q29:Z29,10)/1000000000000 -> 148.3027
A30: 82 | B30: Hydal Bil | C30: Bjerke | D30: Lars | E30: B | F30: 31 | G30: 0 | H30: 37 | I30: 39 | J30: 38 | K30: 41 | L30: 37 | M30: 0 | P30: =COUNT(F30:O30) -> 8 | Q30: 31 | R30: 0 | S30: 37 | T30: 39 | U30: 38 | V30: 41 | W30: 37 | X30: 0 | Y30: 0 | Z30: 0 | AA30: =LARGE(Q30:Z30,1)+LARGE(Q30:Z30,2)+LARGE(Q30:Z30,3)+LARGE(Q30:Z30,4)+LARGE(Q30:Z30,5)/100+LARGE(Q30:Z30,6)/10000+LARGE(Q30:Z30,7)/1000000+LARGE(Q30:Z30,8)/100000000+LARGE(Q30:Z30,9)/10000000000+LARGE(Q30:Z30,10)/1000000000000 -> 155.3731
A31: 83 | B31: Hydal Bil | C31: Akre Eng | D31: Erik | E31: C | F31: 0 | G31: 0 | H31: 0 | I31: 0 | J31: 0 | K31: 0 | L31: 0 | M31: 0 | P31: =COUNT(F31:O31) -> 8 | Q31: 0 | R31: 0 | S31: 0 | T31: 0 | U31: 0 | V31: 0 | W31: 0 | X31: 0 | Y31: 0 | Z31: 0 | AA31: =LARGE(Q31:Z31,1)+LARGE(Q31:Z31,2)+LARGE(Q31:Z31,3)+LARGE(Q31:Z31,4)+LARGE(Q31:Z31,5)/100+LARGE(Q31:Z31,6)/10000+LARGE(Q31:Z31,7)/1000000+LARGE(Q31:Z31,8)/100000000+LARGE(Q31:Z31,9)/10000000000+LARGE(Q31:Z31,10)/1000000000000 -> 0
A32: 101 | B32: Hydal Bil | C32: Taraldsrud | D32: Henrik | E32: B | F32: 0 | G32: 0 | H32: 0 | I32: 0 | J32: 0 | K32: 0 | L32: 0 | M32: 0 | P32: =COUNT(F32:O32) -> 8 | Q32: 0 | R32: 0 | S32: 0 | T32: 0 | U32: 0 | V32: 0 | W32: 0 | X32: 0 | Y32: 0 | Z32: 0 | AA32: =LARGE(Q32:Z32,1)+LARGE(Q32:Z32,2)+LARGE(Q32:Z32,3)+LARGE(Q32:Z32,4)+LARGE(Q32:Z32,5)/100+LARGE(Q32:Z32,6)/10000+LARGE(Q32:Z32,7)/1000000+LARGE(Q32:Z32,8)/100000000+LARGE(Q32:Z32,9)/10000000000+LARGE(Q32:Z32,10)/1000000000000 -> 0
P33: =COUNT(F33:O33) -> 0 | Q33: =F33 -> 0 | R33: =G33 -> 0 | S33: =H33 -> 0 | T33: =I33 -> 0 | U33: =J33 -> 0 | V33: =K33 -> 0 | W33: =L33 -> 0 | X33: =M33 -> 0 | Y33: =N33 -> 0 | Z33: =O33 -> 0 | AA33: =LARGE(Q33:Z33,1)+LARGE(Q33:Z33,2)+LARGE(Q33:Z33,3)+LARGE(Q33:Z33,4)+LARGE(Q33:Z33,5)/100+LARGE(Q33:Z33,6)/10000+LARGE(Q33:Z33,7)/1000000+LARGE(Q33:Z33,8)/100000000+LARGE(Q33:Z33,9)/10000000000+LARGE(Q33:Z33,10)/1000000000000 -> 0
P34: 0 | Q34: 0 | R34: 0 | S34: 0 | T34: 0 | U34: 0 | V34: 0 | W34: 0 | X34: 0 | Y34: 0 | Z34: 0 | AA34: 0
P35: 0 | Q35: 0 | R35: 0 | S35: 0 | T35: 0 | U35: 0 | V35: 0 | W35: 0 | X35: 0 | Y35: 0 | Z35: 0 | AA35: 0
A36: 17 | B36: Madshus Bil | C36: Joløkken | D36: Arnfinn | E36: A | F36: 44 | G36: 33 | H36: 44 | I36: 43 | J36: 46 | K36: 44 | L36: 43 | M36: 0 | P36: =COUNT(F36:O36) -> 8 | Q36: =F36 -> 44 | R36: =G36 -> 33 | S36: =H36 -> 44 | T36: =I36 -> 43 | U36: =J36 -> 46 | V36: =K36 -> 44 | W36: =L36 -> 43 | X36: =M36 -> 0 | Y36: =N36 -> 0 | Z36: =O36 -> 0 | AA36: =LARGE(Q36:Z36,1)+LARGE(Q36:Z36,2)+LARGE(Q36:Z36,3)+LARGE(Q36:Z36,4)+LARGE(Q36:Z36,5)/100+LARGE(Q36:Z36,6)/10000+LARGE(Q36:Z36,7)/1000000+LARGE(Q36:Z36,8)/100000000+LARGE(Q36:Z36,9)/10000000000+LARGE(Q36:Z36,10)/1000000000000 -> 178.434333
A37: 18 | B37: Madshus Bil | C37: Hagen | D37: Kjell | E37: B | F37: 37 | G37: 0 | H37: 37 | I37: 40 | J37: 34 | K37: 36 | L37: 36 | M37: 0 | P37: 8 | Q37: 37 | R37: 0 | S37: 37 | T37: 40 | U37: 34 | V37: 36 | W37: 36 | X37: 0 | Y37: 0 | Z37: 0 | AA37: 150.3634
A38: 19 | B38: Madshus Bil | C38: Gundersen | D38: Bjørner | E38: B | F38: 39 | G38: 43 | H38: 0 | I38: 35 | J38: 40 | K38: 0 | L38: 41 | M38: 0 | P38: 8 | Q38: 39 | R38: 43 | S38: 0 | T38: 35 | U38: 40 | V38: 0 | W38: 41 | X38: 0 | Y38: 0 | Z38: 0 | AA38: 163.35
A39: 20 | B39: Madshus Bil | C39: Lomsdalen | D39: Jens Ole | E39: C | F39: 0 | G39: 0 | H39: 0 | I39: 0 | J39: 0 | K39: 0 | L39: 0 | M39: 0 | P39: 8 | Q39: 0 | R39: 0 | S39: 0 | T39: 0 | U39: 0 | V39: 0 | W39: 0 | X39: 0 | Y39: 0 | Z39: 0 | AA39: 0
A40: 22 | B40: Madshus Bil | C40: Kristiansen | D40: Ole Jørgen | E40: C | F40: 28 | G40: 37 | H40: 35 | I40: 32 | J40: 31 | K40: 0 | L40: 38 | M40: 0 | P40: 8 | Q40: 28 | R40: 37 | S40: 35 | T40: 32 | U40: 31 | V40: 0 | W40: 38 | X40: 0 | Y40: 0 | Z40: 0 | AA40: 142.3128
A41: 24 | B41: Madshus Bil | C41: Libakken | D41: Alf J | E41: C | F41: 0 | G41: 0 | H41: 0 | I41: 0 | J41: 0 | K41: 0 | L41: 0 | M41: 0 | P41: 8 | Q41: 0 | R41: 0 | S41: 0 | T41: 0 | U41: 0 | V41: 0 | W41: 0 | X41: 0 | Y41: 0 | Z41: 0 | AA41: 0
A42: 26 | B42: Madshus Bil | C42: Pramli | D42: Kristine | E42: D | F42: 0 | G42: 0 | H42: 0 | I42: 0 | J42: 0 | K42: 0 | L42: 0 | M42: 0 | P42: 8 | Q42: 0 | R42: 0 | S42: 0 | T42: 0 | U42: 0 | V42: 0 | W42: 0 | X42: 0 | Y42: 0 | Z42: 0 | AA42: 0
A43: 85 | B43: Madshus Bil | C43: Engen | D43: Bjørnar | E43: C | F43: 0 | G43: 0 | H43: 0 | I43: 0 | J43: 0 | K43: 0 | L43: 0 | M43: 0 | P43: 8 | Q43: 0 | R43: 0 | S43: 0 | T43: 0 | U43: 0 | V43: 0 | W43: 0 | X43: 0 | Y43: 0 | Z43: 0 | AA43: 0
A44: 58 | B44: Madshus Bil | C44: Amdahl | D44: Gjermund | E44: C | F44: 0 | G44: 0 | H44: 0 | I44: 0 | J44: 0 | K44: 0 | L44: 0 | M44: 0 | P44: 8 | Q44: 0 | R44: 0 | S44: 0 | T44: 0 | U44: 0 | V44: 0 | W44: 0 | X44: 0 | Y44: 0 | Z44: 0 | AA44: 0
A45: 21 | B45: Madshus Bil | C45: Zatta | D45: Stefano | E45: A | F45: 0 | G45: 0 | H45: 46 | I45: 0 | J45: 44 | K45: 40 | L45: 44 | M45: 0 | P45: 8 | Q45: 0 | R45: 0 | S45: 46 | T45: 0 | U45: 44 | V45: 40 | W45: 44 | X45: 0 | Y45: 0 | Z45: 0 | AA45: 174
P46: =COUNT(F46:O46) -> 0 | Q46: =F46 -> 0 | R46: =G46 -> 0 | S46: =H46 -> 0 | T46: =I46 -> 0 | U46: =J46 -> 0 | V46: =K46 -> 0 | W46: =L46 -> 0 | X46: =M46 -> 0 | Y46: =N46 -> 0 | Z46: =O46 -> 0 | AA46: =LARGE(Q46:Z46,1)+LARGE(Q46:Z46,2)+LARGE(Q46:Z46,3)+LARGE(Q46:Z46,4)+LARGE(Q46:Z46,5)/100+LARGE(Q46:Z46,6)/10000+LARGE(Q46:Z46,7)/1000000+LARGE(Q46:Z46,8)/100000000+LARGE(Q46:Z46,9)/10000000000+LARGE(Q46:Z46,10)/1000000000000 -> 0
P47: 0 | Q47: 0 | R47: 0 | S47: 0 | T47: 0 | U47: 0 | V47: 0 | W47: 0 | X47: 0 | Y47: 0 | Z47: 0 | AA47: 0
P48: 0 | Q48: 0 | R48: 0 | S48: 0 | T48: 0 | U48: 0 | V48: 0 | W48: 0 | X48: 0 | Y48: 0 | Z48: 0 | AA48: 0
A49: 86 | B49: Moelven Mjøsbruket Bil | C49: Odlolien | D49: Stian | E49: D | F49: 0 | G49: 0 | H49: 0 | I49: 0 | J49: 0 | K49: 0 | L49: 0 | M49: 0 | P49: =COUNT(F49:O49) -> 8 | Q49: =F49 -> 0 | R49: =G49 -> 0 | S49: =H49 -> 0 | T49: =I49 -> 0 | U49: =J49 -> 0 | V49: =K49 -> 0 | W49: =L49 -> 0 | X49: =M49 -> 0 | Y49: =N49 -> 0 | Z49: =O49 -> 0 | AA49: =LARGE(Q49:Z49,1)+LARGE(Q49:Z49,2)+LARGE(Q49:Z49,3)+LARGE(Q49:Z49,4)+LARGE(Q49:Z49,5)/100+LARGE(Q49:Z49,6)/10000+LARGE(Q49:Z49,7)/1000000+LARGE(Q49:Z49,8)/100000000+LARGE(Q49:Z49,9)/10000000000+LARGE(Q49:Z49,10)/1000000000000 -> 0
A50: 87 | B50: Moelven Mjøsbruket Bil | C50: Melby | D50: Iver | E50: C | F50: 0 | G50: 0 | H50: 0 | I50: 0 | J50: 0 | K50: 0 | L50: 0 | M50: 0 | P50: 8 | Q50: 0 | R50: 0 | S50: 0 | T50: 0 | U50: 0 | V50: 0 | W50: 0 | X50: 0 | Y50: 0 | Z50: 0 | AA50: 0
A51: 88 | B51: Moelven Mjøsbruket Bil | C51: Engh | D51: Terje | E51: B | F51: 0 | G51: 0 | H51: 0 | I51: 0 | J51: 0 | K51: 0 | L51: 0 | M51: 0 | P51: 8 | Q51: 0 | R51: 0 | S51: 0 | T51: 0 | U51: 0 | V51: 0 | W51: 0 | X51: 0 | Y51: 0 | Z51: 0 | AA51: 0
A52: 28 | B52: Moelven Mjøsbruket Bil | C52: Engh | D52: Jesper | E52: D | F52: 0 | G52: 0 | H52: 0 | I52: 0 | J52: 0 | K52: 0 | L52: 0 | M52: 0 | P52: 8 | Q52: 0 | R52: 0 | S52: 0 | T52: 0 | U52: 0 | V52: 0 | W52: 0 | X52: 0 | Y52: 0 | Z52: 0 | AA52: 0
A53: 59 | B53: Moelven Mjøsbruket Bil | C53: Sønsteby | D53: Kjetil | E53: D | F53: 0 | G53: 0 | H53: 0 | I53: 0 | J53: 0 | K53: 0 | L53: 0 | M53: 0 | P53: 8 | Q53: 0 | R53: 0 | S53: 0 | T53: 0 | U53: 0 | V53: 0 | W53: 0 | X53: 0 | Y53: 0 | Z53: 0 | AA53: 0
A54: 72 | B54: Moelven Mjøsbruket Bil | C54: Skar | D54: Frank | E54: D | F54: 0 | G54: 0 | H54: 0 | I54: 0 | J54: 0 | K54: 0 | L54: 0 | M54: 0 | P54: 8 | Q54: 0 | R54: 0 | S54: 0 | T54: 0 | U54: 0 | V54: 0 | W54: 0 | X54: 0 | Y54: 0 | Z54: 0 | AA54: 0
A55: 34 | B55: Moelven Mjøsbruket Bil | C55: Solbakken | D55: John | E55: A | F55: 44 | G55: 0 | H55: 49 | I55: 0 | J55: 0 | K55: 0 | L55: 0 | M55: 0 | P55: 8 | Q55: 44 | R55: 0 | S55: 49 | T55: 0 | U55: 0 | V55: 0 | W55: 0 | X55: 0 | Y55: 0 | Z55: 0 | AA55: 93
A56: 38 | B56: Moelven Mjøsbruket Bil | C56: Brennhaugen | D56: Trond | E56: D | F56: 0 | G56: 0 | H56: 0 | I56: 0 | J56: 0 | K56: 0 | L56: 0 | M56: 0 | P56: 8 | Q56: 0 | R56: 0 | S56: 0 | T56: 0 | U56: 0 | V56: 0 | W56: 0 | X56: 0 | Y56: 0 | Z56: 0 | AA56: 0
A57: 89 | B57: Moelven Mjøsbruket Bil | C57: Sætre | D57: Jon | E57: D | F57: 0 | G57: 0 | H57: 0 | I57: 0 | J57: 0 | K57: 0 | L57: 0 | M57: 0 | P57: 8 | Q57: 0 | R57: 0 | S57: 0 | T57: 0 | U57: 0 | V57: 0 | W57: 0 | X57: 0 | Y57: 0 | Z57: 0 | AA57: 0
A58: 90 | B58: Moelven Mjøsbruket Bil | C58: Brennhagen | D58: Trond | E58: D | F58: 0 | G58: 0 | H58: 0 | I58: 0 | J58: 0 | K58: 0 | L58: 0 | M58: 0 | P58: 8 | Q58: 0 | R58: 0 | S58: 0 | T58: 0 | U58: 0 | V58: 0 | W58: 0 | X58: 0 | Y58: 0 | Z58: 0 | AA58: 0
P59: =COUNT(F59:O59) -> 0 | Q59: =F59 -> 0 | R59: =G59 -> 0 | S59: =H59 -> 0 | T59: =I59 -> 0 | U59: =J59 -> 0 | V59: =K59 -> 0 | W59: =L59 -> 0 | X59: =M59 -> 0 | Y59: =N59 -> 0 | Z59: =O59 -> 0 | AA59: =LARGE(Q59:Z59,1)+LARGE(Q59:Z59,2)+LARGE(Q59:Z59,3)+LARGE(Q59:Z59,4)+LARGE(Q59:Z59,5)/100+LARGE(Q59:Z59,6)/10000+LARGE(Q59:Z59,7)/1000000+LARGE(Q59:Z59,8)/100000000+LARGE(Q59:Z59,9)/10000000000+LARGE(Q59:Z59,10)/1000000000000 -> 0
P60: 0 | Q60: 0 | R60: 0 | S60: 0 | T60: 0 | U60: 0 | V60: 0 | W60: 0 | X60: 0 | Y60: 0 | Z60: 0 | AA60: 0
P61: 0 | Q61: 0 | R61: 0 | S61: 0 | T61: 0 | U61: 0 | V61: 0 | W61: 0 | X61: 0 | Y61: 0 | Z61: 0 | AA61: 0
A62: 29 | B62: Mustad Bil | C62: Hoel | D62: Eirik | E62: D | F62: 25 | G62: 0 | H62: 20 | I62: 0 | J62: 0 | K62: 26 | L62: 0 | M62: 0 | P62: =COUNT(F62:O62) -> 8 | Q62: =F62 -> 25 | R62: 0 | S62: 20 | T62: 0 | U62: 0 | V62: 26 | W62: 0 | X62: 0 | Y62: 0 | Z62: 0 | AA62: =LARGE(Q62:Z62,1)+LARGE(Q62:Z62,2)+LARGE(Q62:Z62,3)+LARGE(Q62:Z62,4)+LARGE(Q62:Z62,5)/100+LARGE(Q62:Z62,6)/10000+LARGE(Q62:Z62,7)/1000000+LARGE(Q62:Z62,8)/100000000+LARGE(Q62:Z62,9)/10000000000+LARGE(Q62:Z62,10)/1000000000000 -> 71
A63: 63 | B63: Mustad Bil | C63: Sætra | D63: Marit | E63: D | F63: 35 | G63: 0 | H63: 0 | I63: 33 | J63: 0 | K63: 35 | L63: 0 | M63: 0 | P63: =COUNT(F63:O63) -> 8 | Q63: 35 | R63: 0 | S63: 0 | T63: 33 | U63: 0 | V63: 35 | W63: 0 | X63: 0 | Y63: 0 | Z63: 0 | AA63: =LARGE(Q63:Z63,1)+LARGE(Q63:Z63,2)+LARGE(Q63:Z63,3)+LARGE(Q63:Z63,4)+LARGE(Q63:Z63,5)/100+LARGE(Q63:Z63,6)/10000+LARGE(Q63:Z63,7)/1000000+LARGE(Q63:Z63,8)/100000000+LARGE(Q63:Z63,9)/10000000000+LARGE(Q63:Z63,10)/1000000000000 -> 103
A64: 16 | B64: Mustad Bil | C64: Svenstad | D64: Steffen | E64: A | F64: 49 | G64: 43 | H64: 46 | I64: 0 | J64: 40 | K64: 45 | L64: 43 | M64: 0 | P64: =COUNT(F64:O64) -> 8 | Q64: 49 | R64: 43 | S64: 46 | T64: 0 | U64: 40 | V64: 45 | W64: 43 | X64: 0 | Y64: 0 | Z64: 0 | AA64: =LARGE(Q64:Z64,1)+LARGE(Q64:Z64,2)+LARGE(Q64:Z64,3)+LARGE(Q64:Z64,4)+LARGE(Q64:Z64,5)/100+LARGE(Q64:Z64,6)/10000+LARGE(Q64:Z64,7)/1000000+LARGE(Q64:Z64,8)/100000000+LARGE(Q64:Z64,9)/10000000000+LARGE(Q64:Z64,10)/1000000000000 -> 183.434
A65: 98 | B65: Mustad Bil | C65: Strande | D65: Mads | E65: D | F65: 0 | G65: 0 | H65: 0 | I65: 0 | J65: 33 | K65: 0 | L65: 0 | M65: 0 | P65: =COUNT(F65:O65) -> 8 | Q65: 0 | R65: 0 | S65: 0 | T65: 0 | U65: 33 | V65: 0 | W65: 0 | X65: 0 | Y65: 0 | Z65: 0 | AA65: =LARGE(Q65:Z65,1)+LARGE(Q65:Z65,2)+LARGE(Q65:Z65,3)+LARGE(Q65:Z65,4)+LARGE(Q65:Z65,5)/100+LARGE(Q65:Z65,6)/10000+LARGE(Q65:Z65,7)/1000000+LARGE(Q65:Z65,8)/100000000+LARGE(Q65:Z65,9)/10000000000+LARGE(Q65:Z65,10)/1000000000000 -> 33
A66: 99 | B66: Mustad Bil | C66: Hauger | D66: Rune | E66: B | F66: 42 | G66: 0 | H66: 0 | I66: 41 | J66: 39 | K66: 44 | L66: 44 | M66: 0 | P66: =COUNT(F66:O66) -> 8 | Q66: 42 | R66: 0 | S66: 0 | T66: 41 | U66: 39 | V66: 44 | W66: 44 | X66: 0 | Y66: 0 | Z66: 0 | AA66: =LARGE(Q66:Z66,1)+LARGE(Q66:Z66,2)+LARGE(Q66:Z66,3)+LARGE(Q66:Z66,4)+LARGE(Q66:Z66,5)/100+LARGE(Q66:Z66,6)/10000+LARGE(Q66:Z66,7)/1000000+LARGE(Q66:Z66,8)/100000000+LARGE(Q66:Z66,9)/10000000000+LARGE(Q66:Z66,10)/1000000000000 -> 171.39
P67: =COUNT(F67:O67) -> 0 | Q67: =F67 -> 0 | R67: =G67 -> 0 | S67: =H67 -> 0 | T67: =I67 -> 0 | U67: =J67 -> 0 | V67: =K67 -> 0 | W67: =L67 -> 0 | X67: =M67 -> 0 | Y67: =N67 -> 0 | Z67: =O67 -> 0 | AA67: =LARGE(Q67:Z67,1)+LARGE(Q67:Z67,2)+LARGE(Q67:Z67,3)+LARGE(Q67:Z67,4)+LARGE(Q67:Z67,5)/100+LARGE(Q67:Z67,6)/10000+LARGE(Q67:Z67,7)/1000000+LARGE(Q67:Z67,8)/100000000+LARGE(Q67:Z67,9)/10000000000+LARGE(Q67:Z67,10)/1000000000000 -> 0
P68: 0 | Q68: 0 | R68: 0 | S68: 0 | T68: 0 | U68: 0 | V68: 0 | W68: 0 | X68: 0 | Y68: 0 | Z68: 0 | AA68: 0
A69: 27 | B69: Nammo BIL | C69: Gravdahl | D69: Gaute | E69: A | F69: 0 | G69: 0 | H69: 0 | I69: 0 | J69: 0 | K69: 0 | L69: 0 | M69: 0 | P69: =COUNT(F69:O69) -> 8 | Q69: =F69 -> 0 | R69: 0 | S69: 0 | T69: 0 | U69: 0 | V69: 0 | W69: 0 | X69: 0 | Y69: 0 | Z69: 0 | AA69: =LARGE(Q69:Z69,1)+LARGE(Q69:Z69,2)+LARGE(Q69:Z69,3)+LARGE(Q69:Z69,4)+LARGE(Q69:Z69,5)/100+LARGE(Q69:Z69,6)/10000+LARGE(Q69:Z69,7)/1000000+LARGE(Q69:Z69,8)/100000000+LARGE(Q69:Z69,9)/10000000000+LARGE(Q69:Z69,10)/1000000000000 -> 0
A70: 31 | B70: Nammo BIL | C70: Beck | D70: Anne Britt | E70: D | F70: 31 | G70: 0 | H70: 0 | I70: 0 | J70: 0 | K70: 0 | L70: 0 | M70: 0 | P70: 8 | Q70: 31 | R70: 0 | S70: 0 | T70: 0 | U70: 0 | V70: 0 | W70: 0 | X70: 0 | Y70: 0 | Z70: 0 | AA70: 31
A71: 32 | B71: Nammo BIL | C71: Deschner | D71: Thomas | E71: D | F71: 0 | G71: 0 | H71: 0 | I71: 0 | J71: 0 | K71: 0 | L71: 0 | M71: 0 | P71: 8 | Q71: 0 | R71: 0 | S71: 0 | T71: 0 | U71: 0 | V71: 0 | W71: 0 | X71: 0 | Y71: 0 | Z71: 0 | AA71: 0
A72: 60 | B72: Nammo BIL | C72: Østeng | D72: Helene | E72: D | F72: 0 | G72: 0 | H72: 0 | I72: 0 | J72: 0 | K72: 0 | L72: 0 | M72: 0 | P72: 8 | Q72: 0 | R72: 0 | S72: 0 | T72: 0 | U72: 0 | V72: 0 | W72: 0 | X72: 0 | Y72: 0 | Z72: 0 | AA72: 0
A73: 15 | B73: Nammo BIL | C73: Bergum | D73: Tor Erland | E73: B | F73: 0 | G73: 0 | H73: 0 | I73: 0 | J73: 0 | K73: 0 | L73: 0 | M73: 0 | P73: 8 | Q73: 0 | R73: 0 | S73: 0 | T73: 0 | U73: 0 | V73: 0 | W73: 0 | X73: 0 | Y73: 0 | Z73: 0 | AA73: 0
A74: 23 | B74: Nammo BIL | C74: Andreassen | D74: Jan | E74: A | F74: 40 | G74: 44 | H74: 0 | I74: 0 | J74: 0 | K74: 0 | L74: 0 | M74: 0 | P74: 8 | Q74: 40 | R74: 44 | S74: 0 | T74: 0 | U74: 0 | V74: 0 | W74: 0 | X74: 0 | Y74: 0 | Z74: 0 | AA74: 84
A75: 68 | B75: Nammo BIL | C75: Alexander | D75: Kvale | E75: D | F75: 0 | G75: 0 | H75: 0 | I75: 0 | J75: 0 | K75: 0 | L75: 0 | M75: 0 | P75: 8 | Q75: 0 | R75: 0 | S75: 0 | T75: 0 | U75: 0 | V75: 0 | W75: 0 | X75: 0 | Y75: 0 | Z75: 0 | AA75: 0
P76: =COUNT(F76:O76) -> 0 | Q76: =F76 -> 0 | R76: =G76 -> 0 | S76: =H76 -> 0 | T76: =I76 -> 0 | U76: =J76 -> 0 | V76: =K76 -> 0 | W76: =L76 -> 0 | X76: =M76 -> 0 | Y76: =N76 -> 0 | Z76: =O76 -> 0 | AA76: =LARGE(Q76:Z76,1)+LARGE(Q76:Z76,2)+LARGE(Q76:Z76,3)+LARGE(Q76:Z76,4)+LARGE(Q76:Z76,5)/100+LARGE(Q76:Z76,6)/10000+LARGE(Q76:Z76,7)/1000000+LARGE(Q76:Z76,8)/100000000+LARGE(Q76:Z76,9)/10000000000+LARGE(Q76:Z76,10)/1000000000000 -> 0
P77: 0 | Q77: 0 | R77: 0 | S77: 0 | T77: 0 | U77: 0 | V77: 0 | W77: 0 | X77: 0 | Y77: 0 | Z77: 0 | AA77: 0
A78: 35 | B78: NLK Fagforbundet Bil | C78: Ridderhaugen | D78: Bjørnar | E78: A | F78: 0 | G78: 0 | H78: 0 | I78: 0 | J78: 0 | K78: 0 | L78: 0 | M78: 0 | P78: =COUNT(F78:O78) -> 8 | Q78: =F78 -> 0 | R78: 0 | S78: 0 | T78: 0 | U78: 0 | V78: 0 | W78: 0 | X78: 0 | Y78: 0 | Z78: 0 | AA78: =LARGE(Q78:Z78,1)+LARGE(Q78:Z78,2)+LARGE(Q78:Z78,3)+LARGE(Q78:Z78,4)+LARGE(Q78:Z78,5)/100+LARGE(Q78:Z78,6)/10000+LARGE(Q78:Z78,7)/1000000+LARGE(Q78:Z78,8)/100000000+LARGE(Q78:Z78,9)/10000000000+LARGE(Q78:Z78,10)/1000000000000 -> 0
A79: 62 | B79: NLK Fagforbundet Bil | C79: Haugland | D79: Sally Jane | E79: A | F79: 0 | G79: 0 | H79: 0 | I79: 0 | J79: 0 | K79: 0 | L79: 0 | M79: 0 | P79: =COUNT(F79:O79) -> 8 | Q79: 0 | R79: 0 | S79: 0 | T79: 0 | U79: 0 | V79: 0 | W79: 0 | X79: 0 | Y79: 0 | Z79: 0 | AA79: =LARGE(Q79:Z79,1)+LARGE(Q79:Z79,2)+LARGE(Q79:Z79,3)+LARGE(Q79:Z79,4)+LARGE(Q79:Z79,5)/100+LARGE(Q79:Z79,6)/10000+LARGE(Q79:Z79,7)/1000000+LARGE(Q79:Z79,8)/100000000+LARGE(Q79:Z79,9)/10000000000+LARGE(Q79:Z79,10)/1000000000000 -> 0
P80: =COUNT(F80:O80) -> 0 | Q80: =F80 -> 0 | R80: =G80 -> 0 | S80: =H80 -> 0 | T80: =I80 -> 0 | U80: =J80 -> 0 | V80: =K80 -> 0 | W80: =L80 -> 0 | X80: =M80 -> 0 | Y80: =N80 -> 0 | Z80: =O80 -> 0 | AA80: =LARGE(Q80:Z80,1)+LARGE(Q80:Z80,2)+LARGE(Q80:Z80,3)+LARGE(Q80:Z80,4)+LARGE(Q80:Z80,5)/100+LARGE(Q80:Z80,6)/10000+LARGE(Q80:Z80,7)/1000000+LARGE(Q80:Z80,8)/100000000+LARGE(Q80:Z80,9)/10000000000+LARGE(Q80:Z80,10)/1000000000000 -> 0
P81: 0 | Q81: 0 | R81: 0 | S81: 0 | T81: 0 | U81: 0 | V81: 0 | W81: 0 | X81: 0 | Y81: 0 | Z81: 0 | AA81: 0
P82: 0 | Q82: 0 | R82: 0 | S82: 0 | T82: 0 | U82: 0 | V82: 0 | W82: 0 | X82: 0 | Y82: 0 | Z82: 0 | AA82: 0
A83: 33 | B83: Opplandske Betong Bil | C83: Bakken | D83: Nils Ingar | E83: C | F83: 0 | G83: 0 | H83: 0 | I83: 0 | J83: 0 | K83: 28 | L83: 0 | M83: 0 | P83: =COUNT(F83:O83) -> 8 | Q83: =F83 -> 0 | R83: =G83 -> 0 | S83: =H83 -> 0 | T83: =I83 -> 0 | U83: =J83 -> 0 | V83: =K83 -> 28 | W83: =L83 -> 0 | X83: =M83 -> 0 | Y83: =N83 -> 0 | Z83: =O83 -> 0 | AA83: =LARGE(Q83:Z83,1)+LARGE(Q83:Z83,2)+LARGE(Q83:Z83,3)+LARGE(Q83:Z83,4)+LARGE(Q83:Z83,5)/100+LARGE(Q83:Z83,6)/10000+LARGE(Q83:Z83,7)/1000000+LARGE(Q83:Z83,8)/100000000+LARGE(Q83:Z83,9)/10000000000+LARGE(Q83:Z83,10)/1000000000000 -> 28
A84: 39 | B84: Opplandske Betong Bil | C84: Bergum | D84: Ivar Terje | E84: B | F84: 44 | G84: 43 | H84: 48 | I84: 47 | J84: 45 | K84: 44 | L84: 45 | M84: 0 | P84: 8 | Q84: 44 | R84: 43 | S84: 48 | T84: 47 | U84: 45 | V84: 44 | W84: 45 | X84: 0 | Y84: 0 | Z84: 0 | AA84: 185.444443
A85: 40 | B85: Opplandske Betong Bil | C85: Rundhaug | D85: Odd Sverre | E85: A | F85: 43 | G85: 46 | H85: 0 | I85: 42 | J85: 47 | K85: 45 | L85: 42 | M85: 0 | P85: 8 | Q85: 43 | R85: 46 | S85: 0 | T85: 42 | U85: 47 | V85: 45 | W85: 42 | X85: 0 | Y85: 0 | Z85: 0 | AA85: 181.4242
A86: 41 | B86: Opplandske Betong Bil | C86: Jensvold | D86: Hans Petter | E86: C | F86: 0 | G86: 0 | H86: 0 | I86: 0 | J86: 0 | K86: 0 | L86: 0 | M86: 0 | P86: 8 | Q86: 0 | R86: 0 | S86: 0 | T86: 0 | U86: 0 | V86: 0 | W86: 0 | X86: 0 | Y86: 0 | Z86: 0 | AA86: 0
A87: 42 | B87: Opplandske Betong Bil | C87: Sveen | D87: John | E87: A | F87: 43 | G87: 45 | H87: 47 | I87: 45 | J87: 0 | K87: 44 | L87: 0 | M87: 0 | P87: 8 | Q87: 43 | R87: 45 | S87: 47 | T87: 45 | U87: 0 | V87: 44 | W87: 0 | X87: 0 | Y87: 0 | Z87: 0 | AA87: 181.43
A88: 43 | B88: Opplandske Betong Bil | C88: Rustestuen | D88: Åge | E88: A | F88: 41 | G88: 38 | H88: 34 | I88: 0 | J88: 40 | K88: 39 | L88: 42 | M88: 0 | P88: 8 | Q88: 41 | R88: 38 | S88: 34 | T88: 0 | U88: 40 | V88: 39 | W88: 42 | X88: 0 | Y88: 0 | Z88: 0 | AA88: 162.3834
A89: 44 | B89: Opplandske Betong Bil | C89: Sveen | D89: Ivar | E89: A | F89: 45 | G89: 42 | H89: 45 | I89: 0 | J89: 46 | K89: 43 | L89: 46 | M89: 0 | P89: 8 | Q89: 45 | R89: 42 | S89: 45 | T89: 0 | U89: 46 | V89: 43 | W89: 46 | X89: 0 | Y89: 0 | Z89: 0 | AA89: 182.4342
A90: 46 | B90: Opplandske Betong Bil | C90: Haug | D90: Alf Julius | E90: D | F90: 17 | G90: 31 | H90: 27 | I90: 18 | J90: 25 | K90: 0 | L90: 0 | M90: 0 | P90: 8 | Q90: 17 | R90: 31 | S90: 27 | T90: 18 | U90: 25 | V90: 0 | W90: 0 | X90: 0 | Y90: 0 | Z90: 0 | AA90: 101.17
A91: 48 | B91: Opplandske Betong Bil | C91: Sveen | D91: Tormod | E91: A | F91: 48 | G91: 40 | H91: 42 | I91: 47 | J91: 46 | K91: 44 | L91: 46 | M91: 0 | P91: 8 | Q91: 48 | R91: 40 | S91: 42 | T91: 47 | U91: 46 | V91: 44 | W91: 46 | X91: 0 | Y91: 0 | Z91: 0 | AA91: 187.44424
A92: 79 | B92: Opplandske Betong Bil | C92: Rustestuen | D92: Hans Arve | E92: B | F92: 30 | G92: 39 | H92: 39 | I92: 40 | J92: 37 | K92: 39 | L92: 0 | M92: 0 | P92: 8 | Q92: 30 | R92: 39 | S92: 39 | T92: 40 | U92: 37 | V92: 39 | W92: 0 | X92: 0 | Y92: 0 | Z92: 0 | AA92: 157.373
A93: 97 | B93: Opplandske Betong Bil | C93: Strømsjordet | D93: Hans Olav | E93: C | F93: 41 | G93: 36 | H93: 39 | I93: 40 | J93: 46 | K93: 37 | L93: 0 | M93: 0 | P93: 8 | Q93: 41 | R93: 36 | S93: 39 | T93: 40 | U93: 46 | V93: 37 | W93: 0 | X93: 0 | Y93: 0 | Z93: 0 | AA93: 166.3736
A94: 102 | B94: Opplandske Betong Bil | C94: Nerli | D94: Emil | E94: D | F94: 0 | G94: 15 | H94: 0 | I94: 0 | J94: 0 | K94: 0 | L94: 0 | M94: 0 | P94: 8 | Q94: 0 | R94: 15 | S94: 0 | T94: 0 | U94: 0 | V94: 0 | W94: 0 | X94: 0 | Y94: 0 | Z94: 0 | AA94: 15
P95: =COUNT(F95:O95) -> 0 | Q95: =F95 -> 0 | R95: =G95 -> 0 | S95: =H95 -> 0 | T95: =I95 -> 0 | U95: =J95 -> 0 | V95: =K95 -> 0 | W95: =L95 -> 0 | X95: =M95 -> 0 | Y95: =N95 -> 0 | Z95: =O95 -> 0 | AA95: =LARGE(Q95:Z95,1)+LARGE(Q95:Z95,2)+LARGE(Q95:Z95,3)+LARGE(Q95:Z95,4)+LARGE(Q95:Z95,5)/100+LARGE(Q95:Z95,6)/10000+LARGE(Q95:Z95,7)/1000000+LARGE(Q95:Z95,8)/100000000+LARGE(Q95:Z95,9)/10000000000+LARGE(Q95:Z95,10)/1000000000000 -> 0
P96: 0 | Q96: 0 | R96: 0 | S96: 0 | T96: 0 | U96: 0 | V96: 0 | W96: 0 | X96: 0 | Y96: 0 | Z96: 0 | AA96: 0
P97: 0 | Q97: 0 | R97: 0 | S97: 0 | T97: 0 | U97: 0 | V97: 0 | W97: 0 | X97: 0 | Y97: 0 | Z97: 0 | AA97: 0
P98: 0 | Q98: 0 | R98: 0 | S98: 0 | T98: 0 | U98: 0 | V98: 0 | W98: 0 | X98: 0 | Y98: 0 | Z98: 0 | AA98: 0
P99: 0 | Q99: 0 | R99: 0 | S99: 0 | T99: 0 | U99: 0 | V99: 0 | W99: 0 | X99: 0 | Y99: 0 | Z99: 0 | AA99: 0
A100: 55 | B100: Skog og Hage Bil | C100: Hermansen | D100: Stian | E100: D | F100: 0 | G100: 0 | H100: 0 | I100: 0 | J100: 0 | K100: 0 | L100: 0 | M100: 0 | P100: =COUNT(F100:O100) -> 8 | Q100: 0 | R100: =G100 -> 0 | S100: 0 | T100: 0 | U100: 0 | V100: 0 | W100: 0 | X100: 0 | Y100: 0 | Z100: 0 | AA100: =LARGE(Q100:Z100,1)+LARGE(Q100:Z100,2)+LARGE(Q100:Z100,3)+LARGE(Q100:Z100,4)+LARGE(Q100:Z100,5)/100+LARGE(Q100:Z100,6)/10000+LARGE(Q100:Z100,7)/1000000+LARGE(Q100:Z100,8)/100000000+LARGE(Q100:Z100,9)/10000000000+LARGE(Q100:Z100,10)/1000000000000 -> 0
P101: =COUNT(F101:O101) -> 0 | Q101: =F101 -> 0 | R101: =G101 -> 0 | S101: =H101 -> 0 | T101: =I101 -> 0 | U101: =J101 -> 0 | V101: =K101 -> 0 | W101: =L101 -> 0 | X101: =M101 -> 0 | Y101: =N101 -> 0 | Z101: =O101 -> 0 | AA101: =LARGE(Q101:Z101,1)+LARGE(Q101:Z101,2)+LARGE(Q101:Z101,3)+LARGE(Q101:Z101,4)+LARGE(Q101:Z101,5)/100+LARGE(Q101:Z101,6)/10000+LARGE(Q101:Z101,7)/1000000+LARGE(Q101:Z101,8)/100000000+LARGE(Q101:Z101,9)/10000000000+LARGE(Q101:Z101,10)/1000000000000 -> 0
P102: 0 | Q102: 0 | R102: 0 | S102: 0 | T102: 0 | U102: 0 | V102: 0 | W102: 0 | X102: 0 | Y102: 0 | Z102: 0 | AA102: 0
A103: 96 | B103: Sykehuset Innlandet | C103: Holmgren | D103: Per | E103: C | F103: 35 | G103: 36 | H103: 39 | I103: 0 | J103: 34 | K103: 32 | L103: 0 | M103: 0 | P103: =COUNT(F103:O103) -> 8 | Q103: =F103 -> 35 | R103: 36 | S103: 39 | T103: 0 | U103: 34 | V103: 32 | W103: 0 | X103: 0 | Y103: 0 | Z103: 0 | AA103: =LARGE(Q103:Z103,1)+LARGE(Q103:Z103,2)+LARGE(Q103:Z103,3)+LARGE(Q103:Z103,4)+LARGE(Q103:Z103,5)/100+LARGE(Q103:Z103,6)/10000+LARGE(Q103:Z103,7)/1000000+LARGE(Q103:Z103,8)/100000000+LARGE(Q103:Z103,9)/10000000000+LARGE(Q103:Z103,10)/1000000000000 -> 144.32
P104: =COUNT(F104:O104) -> 0 | Q104: =F104 -> 0 | R104: =G104 -> 0 | S104: =H104 -> 0 | T104: =I104 -> 0 | U104: =J104 -> 0 | V104: =K104 -> 0 | W104: =L104 -> 0 | X104: =M104 -> 0 | Y104: =N104 -> 0 | Z104: =O104 -> 0 | AA104: =LARGE(Q104:Z104,1)+LARGE(Q104:Z104,2)+LARGE(Q104:Z104,3)+LARGE(Q104:Z104,4)+LARGE(Q104:Z104,5)/100+LARGE(Q104:Z104,6)/10000+LARGE(Q104:Z104,7)/1000000+LARGE(Q104:Z104,8)/100000000+LARGE(Q104:Z104,9)/10000000000+LARGE(Q104:Z104,10)/1000000000000 -> 0
P105: 0 | Q105: 0 | R105: 0 | S105: 0 | T105: 0 | U105: 0 | V105: 0 | W105: 0 | X105: 0 | Y105: 0 | Z105: 0 | AA105: 0
P106: 0 | Q106: 0 | R106: 0 | S106: 0 | T106: 0 | U106: 0 | V106: 0 | W106: 0 | X106: 0 | Y106: 0 | Z106: 0 | AA106: 0
P107: 0 | Q107: 0 | R107: 0 | S107: 0 | T107: 0 | U107: 0 | V107: 0 | W107: 0 | X107: 0 | Y107: 0 | Z107: 0 | AA107: 0
A108: 51 | B108: Veidekke Bil | C108: Sveen | D108: Bjørn | E108: A | F108: 0 | G108: 0 | H108: 0 | I108: 0 | J108: 0 | K108: 0 | L108: 0 | M108: 0 | P108: =COUNT(F108:O108) -> 8 | Q108: =F108 -> 0 | R108: 0 | S108: 0 | T108: 0 | U108: 0 | V108: 0 | W108: 0 | X108: 0 | Y108: 0 | Z108: 0 | AA108: =LARGE(Q108:Z108,1)+LARGE(Q108:Z108,2)+LARGE(Q108:Z108,3)+LARGE(Q108:Z108,4)+LARGE(Q108:Z108,5)/100+LARGE(Q108:Z108,6)/10000+LARGE(Q108:Z108,7)/1000000+LARGE(Q108:Z108,8)/100000000+LARGE(Q108:Z108,9)/10000000000+LARGE(Q108:Z108,10)/1000000000000 -> 0
A109: 52 | B109: Veidekke Bil | C109: Pedersen | D109: Geir | E109: B | F109: 42 | G109: 38 | H109: 43 | I109: 40 | J109: 0 | K109: 42 | L109: 43 | M109: 0 | P109: 8 | Q109: 42 | R109: 38 | S109: 43 | T109: 40 | U109: 0 | V109: 42 | W109: 43 | X109: 0 | Y109: 0 | Z109: 0 | AA109: 170.4038
A110: 53 | B110: Veidekke Bil | C110: Landgraff | D110: Jan Snorre | E110: B | F110: 0 | G110: 0 | H110: 0 | I110: 0 | J110: 0 | K110: 0 | L110: 0 | M110: 0 | P110: 8 | Q110: 0 | R110: 0 | S110: 0 | T110: 0 | U110: 0 | V110: 0 | W110: 0 | X110: 0 | Y110: 0 | Z110: 0 | AA110: 0
A111: 54 | B111: Veidekke Bil | C111: Fjeld | D111: Anders | E111: B | F111: 0 | G111: 0 | H111: 0 | I111: 0 | J111: 0 | K111: 0 | L111: 0 | M111: 0 | P111: 8 | Q111: 0 | R111: 0 | S111: 0 | T111: 0 | U111: 0 | V111: 0 | W111: 0 | X111: 0 | Y111: 0 | Z111: 0 | AA111: 0
A112: 36 | B112: Veidekke Bil | C112: Voldengen | D112: Kai | E112: B | F112: 38 | G112: 42 | H112: 41 | I112: 40 | J112: 40 | K112: 44 | L112: 44 | M112: 0 | P112: 8 | Q112: 38 | R112: 42 | S112: 41 | T112: 40 | U112: 40 | V112: 44 | W112: 44 | X112: 0 | Y112: 0 | Z112: 0 | AA112: 171.404038
A113: 37 | B113: Veidekke Bil | C113: Sletten | D113: Bjørn Atle | E113: B | F113: 42 | G113: 37 | H113: 40 | I113: 44 | J113: 44 | K113: 40 | L113: 37 | M113: 0 | P113: 8 | Q113: 42 | R113: 37 | S113: 40 | T113: 44 | U113: 44 | V113: 40 | W113: 37 | X113: 0 | Y113: 0 | Z113: 0 | AA113: 170.403737
A114: 100 | B114: Veidekke Bil | C114: Liereng | D114: Jo Håvard | E114: A | F114: 0 | G114: 0 | H114: 0 | I114: 0 | J114: 0 | K114: 0 | L114: 0 | M114: 0 | P114: 8 | Q114: 0 | R114: 0 | S114: 0 | T114: 0 | U114: 0 | V114: 0 | W114: 0 | X114: 0 | Y114: 0 | Z114: 0 | AA114: 0
P115: =COUNT(F115:O115) -> 0 | Q115: =F115 -> 0 | R115: =G115 -> 0 | S115: =H115 -> 0 | T115: =I115 -> 0 | U115: =J115 -> 0 | V115: =K115 -> 0 | W115: =L115 -> 0 | X115: =M115 -> 0 | Y115: =N115 -> 0 | Z115: =O115 -> 0 | AA115: =LARGE(Q115:Z115,1)+LARGE(Q115:Z115,2)+LARGE(Q115:Z115,3)+LARGE(Q115:Z115,4)+LARGE(Q115:Z115,5)/100+LARGE(Q115:Z115,6)/10000+LARGE(Q115:Z115,7)/1000000+LARGE(Q115:Z115,8)/100000000+LARGE(Q115:Z115,9)/10000000000+LARGE(Q115:Z115,10)/1000000000000 -> 0
P116: 0 | Q116: 0 | R116: 0 | S116: 0 | T116: 0 | U116: 0 | V116: 0 | W116: 0 | X116: 0 | Y116: 0 | Z116: 0 | AA116: 0
P117: 0 | Q117: 0 | R117: 0 | S117: 0 | T117: 0 | U117: 0 | V117: 0 | W117: 0 | X117: 0 | Y117: 0 | Z117: 0 | AA117: 0
P118: 0 | Q118: 0 | R118: 0 | S118: 0 | T118: 0 | U118: 0 | V118: 0 | W118: 0 | X118: 0 | Y118: 0 | Z118: 0 | AA118: 0
P119: 0 | Q119: 0 | R119: 0 | S119: 0 | T119: 0 | U119: 0 | V119: 0 | W119: 0 | X119: 0 | Y119: 0 | Z119: 0 | AA119: 0
A120: 69 | B120: Øveraasen Bil | C120: Sveen | D120: Magne Olav | E120: B | F120: 40 | G120: 33 | H120: 45 | I120: 42 | J120: 44 | K120: 42 | L120: 39 | M120: 0 | P120: =COUNT(F120:O120) -> 8 | Q120: =F120 -> 40 | R120: =G120 -> 33 | S120: =H120 -> 45 | T120: =I120 -> 42 | U120: =J120 -> 44 | V120: =K120 -> 42 | W120: =L120 -> 39 | X120: =M120 -> 0 | Y120: =N120 -> 0 | Z120: =O120 -> 0 | AA120: =LARGE(Q120:Z120,1)+LARGE(Q120:Z120,2)+LARGE(Q120:Z120,3)+LARGE(Q120:Z120,4)+LARGE(Q120:Z120,5)/100+LARGE(Q120:Z120,6)/10000+LARGE(Q120:Z120,7)/1000000+LARGE(Q120:Z120,8)/100000000+LARGE(Q120:Z120,9)/10000000000+LARGE(Q120:Z120,10)/1000000000000 -> 173.403933
A121: 70 | B121: Øveraasen Bil | C121: Olsen | D121: Kjell Arne | E121: C | F121: 0 | G121: 0 | H121: 0 | I121: 0 | J121: 0 | K121: 0 | L121: 0 | M121: 0 | P121: 8 | Q121: 0 | R121: 0 | S121: 0 | T121: 0 | U121: 0 | V121: 0 | W121: 0 | X121: 0 | Y121: 0 | Z121: 0 | AA121: 0
A122: 71 | B122: Øveraasen Bil | C122: Ringli | D122: Asbjørn | E122: D | F122: 0 | G122: 0 | H122: 0 | I122: 0 | J122: 0 | K122: 0 | L122: 0 | M122: 0 | P122: 8 | Q122: 0 | R122: 0 | S122: 0 | T122: 0 | U122: 0 | V122: 0 | W122: 0 | X122: 0 | Y122: 0 | Z122: 0 | AA122: 0
A123: 73 | B123: Øveraasen Bil | C123: Hansen | D123: Rolf Arne | E123: D | F123: 22 | G123: 31 | H123: 37 | I123: 22 | J123: 33 | K123: 28 | L123: 0 | M123: 0 | P123: 8 | Q123: 22 | R123: 31 | S123: 37 | T123: 22 | U123: 33 | V123: 28 | W123: 0 | X123: 0 | Y123: 0 | Z123: 0 | AA123: 129.2222
A124: 74 | B124: Øveraasen Bil | C124: Engen | D124: Stian | E124: C | F124: 0 | G124: 0 | H124: 0 | I124: 0 | J124: 0 | K124: 0 | L124: 0 | M124: 0 | P124: 8 | Q124: 0 | R124: 0 | S124: 0 | T124: 0 | U124: 0 | V124: 0 | W124: 0 | X124: 0 | Y124: 0 | Z124: 0 | AA124: 0
A125: 75 | B125: Øveraasen Bil | C125: Dalseng | D125: Jøran | E125: D | F125: 24 | G125: 21 | H125: 25 | I125: 17 | J125: 0 | K125: 22 | L125: 26 | M125: 0 | P125: 8 | Q125: 24 | R125: 21 | S125: 25 | T125: 17 | U125: 0 | V125: 22 | W125: 26 | X125: 0 | Y125: 0 | Z125: 0 | AA125: 97.2117
A126: 76 | B126: Øveraasen Bil | C126: Sørbønsveen | D126: Erik | E126: B | F126: 0 | G126: 0 | H126: 0 | I126: 0 | J126: 0 | K126: 0 | L126: 0 | M126: 0 | P126: 8 | Q126: 0 | R126: 0 | S126: 0 | T126: 0 | U126: 0 | V126: 0 | W126: 0 | X126: 0 | Y126: 0 | Z126: 0 | AA126: 0
A127: 77 | B127: Øveraasen Bil | C127: Skåden | D127: Erik | E127: C | F127: 0 | G127: 0 | H127: 0 | I127: 0 | J127: 0 | K127: 0 | L127: 0 | M127: 0 | P127: 8 | Q127: 0 | R127: 0 | S127: 0 | T127: 0 | U127: 0 | V127: 0 | W127: 0 | X127: 0 | Y127: 0 | Z127: 0 | AA127: 0
A128: 78 | B128: Øveraasen Bil | C128: Molvær | D128: Torgeir | E128: D | F128: 0 | G128: 0 | H128: 0 | I128: 0 | J128: 0 | K128: 0 | L128: 0 | M128: 0 | P128: 8 | Q128: 0 | R128: 0 | S128: 0 | T128: 0 | U128: 0 | V128: 0 | W128: 0 | X128: 0 | Y128: 0 | Z128: 0 | AA128: 0
A129: 80 | B129: Øveraasen Bil | C129: Skar | D129: Sindre | E129: D | F129: 0 | G129: 0 | H129: 0 | I129: 0 | J129: 0 | K129: 0 | L129: 0 | M129: 0 | P129: 8 | Q129: 0 | R129: 0 | S129: 0 | T129: 0 | U129: 0 | V129: 0 | W129: 0 | X129: 0 | Y129: 0 | Z129: 0 | AA129: 0
A130: 81 | B130: Øveraasen Bil | C130: Kristiansen | D130: Thor Fredrik | E130: D | F130: 0 | G130: 0 | H130: 0 | I130: 0 | J130: 0 | K130: 0 | L130: 0 | M130: 0 | P130: 8 | Q130: 0 | R130: 0 | S130: 0 | T130: 0 | U130: 0 | V130: 0 | W130: 0 | X130: 0 | Y130: 0 | Z130: 0 | AA130: 0
A131: 1 | P131: 0 | Q131: 0 | R131: 0 | S131: 0 | T131: 0 | U131: 0 | V131: 0 | W131: 0 | X131: 0 | Y131: 0 | Z131: 0 | AA131: 0
A132: 2 | P132: 0 | Q132: 0 | R132: 0 | S132: 0 | T132: 0 | U132: 0 | V132: 0 | W132: 0 | X132: 0 | Y132: 0 | Z132: 0 | AA132: 0
A133: 3 | P133: 0 | Q133: 0 | R133: 0 | S133: 0 | T133: 0 | U133: 0 | V133: 0 | W133: 0 | X133: 0 | Y133: 0 | Z133: 0 | AA133: 0
A134: 4 | P134: 0 | Q134: 0 | R134: 0 | S134: 0 | T134: 0 | U134: 0 | V134: 0 | W134: 0 | X134: 0 | Y134: 0 | Z134: 0 | AA134: 0
A135: 5 | P135: 0 | Q135: 0 | R135: 0 | S135: 0 | T135: 0 | U135: 0 | V135: 0 | W135: 0 | X135: 0 | Y135: 0 | Z135: 0 | AA135: 0
A136: 6 | P136: 0 | Q136: 0 | R136: 0 | S136: 0 | T136: 0 | U136: 0 | V136: 0 | W136: 0 | X136: 0 | Y136: 0 | Z136: 0 | AA136: 0
A137: 7 | P137: 0 | Q137: 0 | R137: 0 | S137: 0 | T137: 0 | U137: 0 | V137: 0 | W137: 0 | X137: 0 | Y137: 0 | Z137: 0 | AA137: 0
A138: 8 | P138: 0 | Q138: 0 | R138: 0 | S138: 0 | T138: 0 | U138: 0 | V138: 0 | W138: 0 | X138: 0 | Y138: 0 | Z138: 0 | AA138: 0
A139: 25 | P139: 0 | Q139: 0 | R139: 0 | S139: 0 | T139: 0 | U139: 0 | V139: 0 | W139: 0 | X139: 0 | Y139: 0 | Z139: 0 | AA139: 0
A140: 84 | P140: 0 | Q140: 0 | R140: 0 | S140: 0 | T140: 0 | U140: 0 | V140: 0 | W140: 0 | X140: 0 | Y140: 0 | Z140: 0 | AA140: 0
A141: 30 | P141: 0 | Q141: 0 | R141: 0 | S141: 0 | T141: 0 | U141: 0 | V141: 0 | W141: 0 | X141: 0 | Y141: 0 | Z141: 0 | AA141: 0
A142: 47 | P142: 0 | Q142: 0 | R142: 0 | S142: 0 | T142: 0 | U142: 0 | V142: 0 | W142: 0 | X142: 0 | Y142: 0 | Z142: 0 | AA142: 0
A143: 64 | P143: 0 | Q143: 0 | R143: 0 | S143: 0 | T143: 0 | U143: 0 | V143: 0 | W143: 0 | X143: 0 | Y143: 0 | Z143: 0 | AA143: 0
A144: 65 | P144: 0 | Q144: 0 | R144: 0 | S144: 0 | T144: 0 | U144: 0 | V144: 0 | W144: 0 | X144: 0 | Y144: 0 | Z144: 0 | AA144: 0
A145: 66 | P145: 0 | Q145: 0 | R145: 0 | S145: 0 | T145: 0 | U145: 0 | V145: 0 | W145: 0 | X145: 0 | Y145: 0 | Z145: 0 | AA145: 0
A146: 103 | P146: 0 | Q146: 0 | R146: 0 | S146: 0 | T146: 0 | U146: 0 | V146: 0 | W146: 0 | X146: 0 | Y146: 0 | Z146: 0 | AA146: 0
A147: 104 | P147: 0 | Q147: 0 | R147: 0 | S147: 0 | T147: 0 | U147: 0 | V147: 0 | W147: 0 | X147: 0 | Y147: 0 | Z147: 0 | AA147: 0
A148: 105 | P148: 0 | Q148: 0 | R148: 0 | S148: 0 | T148: 0 | U148: 0 | V148: 0 | W148: 0 | X148: 0 | Y148: 0 | Z148: 0 | AA148: 0
A149: 106 | P149: 0 | Q149: 0 | R149: 0 | S149: 0 | T149: 0 | U149: 0 | V149: 0 | W149: 0 | X149: 0 | Y149: 0 | Z149: 0 | AA149: 0
A150: 107 | P150: 0 | Q150: 0 | R150: 0 | S150: 0 | T150: 0 | U150: 0 | V150: 0 | W150: 0 | X150: 0 | Y150: 0 | Z150: 0 | AA150: 0
A151: 108 | P151: 0 | Q151: 0 | R151: 0 | S151: 0 | T151: 0 | U151: 0 | V151: 0 | W151: 0 | X151: 0 | Y151: 0 | Z151: 0 | AA151: 0
A152: 109 | P152: =COUNT(F152:O152) -> 0 | Q152: =F152 -> 0 | R152: =G152 -> 0 | S152: =H152 -> 0 | T152: =I152 -> 0 | U152: =J152 -> 0 | V152: =K152 -> 0 | W152: =L152 -> 0 | X152: =M152 -> 0 | Y152: =N152 -> 0 | Z152: =O152 -> 0 | AA152: =LARGE(Q152:Z152,1)+LARGE(Q152:Z152,2)+LARGE(Q152:Z152,3)+LARGE(Q152:Z152,4)+LARGE(Q152:Z152,5)/100+LARGE(Q152:Z152,6)/10000+LARGE(Q152:Z152,7)/1000000+LARGE(Q152:Z152,8)/100000000+LARGE(Q152:Z152,9)/10000000000+LARGE(Q152:Z152,10)/1000000000000 -> 0
A153: 110 | P153: 0 | Q153: 0 | R153: 0 | S153: 0 | T153: 0 | U153: 0 | V153: 0 | W153: 0 | X153: 0 | Y153: 0 | Z153: 0 | AA153: 0
A154: 111 | P154: 0 | Q154: 0 | R154: 0 | S154: 0 | T154: 0 | U154: 0 | V154: 0 | W154: 0 | X154: 0 | Y154: 0 | Z154: 0 | AA154: 0
A155: 112 | P155: 0 | Q155: 0 | R155: 0 | S155: 0 | T155: 0 | U155: 0 | V155: 0 | W155: 0 | X155: 0 | Y155: 0 | Z155: 0 | AA155: 0
A156: 113 | P156: 0 | Q156: 0 | R156: 0 | S156: 0 | T156: 0 | U156: 0 | V156: 0 | W156: 0 | X156: 0 | Y156: 0 | Z156: 0 | AA156: 0
A157: 114 | P157: 0 | Q157: 0 | R157: 0 | S157: 0 | T157: 0 | U157: 0 | V157: 0 | W157: 0 | X157: 0 | Y157: 0 | Z157: 0 | AA157: 0
A158: 115 | P158: 0 | Q158: 0 | R158: 0 | S158: 0 | T158: 0 | U158: 0 | V158: 0 | W158: 0 | X158: 0 | Y158: 0 | Z158: 0 | AA158: 0
A159: 116 | P159: 0 | Q159: 0 | R159: 0 | S159: 0 | T159: 0 | U159: 0 | V159: 0 | W159: 0 | X159: 0 | Y159: 0 | Z159: 0 | AA159: 0
A160: 117 | P160: 0 | Q160: 0 | R160: 0 | S160: 0 | T160: 0 | U160: 0 | V160: 0 | W160: 0 | X160: 0 | Y160: 0 | Z160: 0 | AA160: 0
A161: 118 | P161: 0 | Q161: 0 | R161: 0 | S161: 0 | T161: 0 | U161: 0 | V161: 0 | W161: 0 | X161: 0 | Y161: 0 | Z161: 0 | AA161: 0
A162: 119 | P162: 0 | Q162: 0 | R162: 0 | S162: 0 | T162: 0 | U162: 0 | V162: 0 | W162: 0 | X162: 0 | Y162: 0 | Z162: 0 | AA162: 0
A163: 120 | P163: 0 | Q163: 0 | R163: 0 | S163: 0 | T163: 0 | U163: 0 | V163: 0 | W163: 0 | X163: 0 | Y163: 0 | Z163: 0 | AA163: 0
A164: 121 | P164: 0 | Q164: 0 | R164: 0 | S164: 0 | T164: 0 | U164: 0 | V164: 0 | W164: 0 | X164: 0 | Y164: 0 | Z164: 0 | AA164: 0
A165: 122 | P165: 0 | Q165: 0 | R165: 0 | S165: 0 | T165: 0 | U165: 0 | V165: 0 | W165: 0 | X165: 0 | Y165: 0 | Z165: 0 | AA165: 0
A166: 123 | P166: 0 | Q166: 0 | R166: 0 | S166: 0 | T166: 0 | U166: 0 | V166: 0 | W166: 0 | X166: 0 | Y166: 0 | Z166: 0 | AA166: 0
A167: 124 | P167: 0 | Q167: 0 | R167: 0 | S167: 0 | T167: 0 | U167: 0 | V167: 0 | W167: 0 | X167: 0 | Y167: 0 | Z167: 0 | AA167: 0
A168: 125 | P168: 0 | Q168: 0 | R168: 0 | S168: 0 | T168: 0 | U168: 0 | V168: 0 | W168: 0 | X168: 0 | Y168: 0 | Z168: 0 | AA168: 0
A169: 126 | P169: 0 | Q169: 0 | R169: 0 | S169: 0 | T169: 0 | U169: 0 | V169: 0 | W169: 0 | X169: 0 | Y169: 0 | Z169: 0 | AA169: 0
A170: 127 | P170: 0 | Q170: 0 | R170: 0 | S170: 0 | T170: 0 | U170: 0 | V170: 0 | W170: 0 | X170: 0 | Y170: 0 | Z170: 0 | AA170: 0
A171: 128 | P171: 0 | Q171: 0 | R171: 0 | S171: 0 | T171: 0 | U171: 0 | V171: 0 | W171: 0 | X171: 0 | Y171: 0 | Z171: 0 | AA171: 0
A172: 129 | P172: 0 | Q172: 0 | R172: 0 | S172: 0 | T172: 0 | U172: 0 | V172: 0 | W172: 0 | X172: 0 | Y172: 0 | Z172: 0 | AA172: 0
A173: 130 | P173: 0 | Q173: 0 | R173: 0 | S173: 0 | T173: 0 | U173: 0 | V173: 0 | W173: 0 | X173: 0 | Y173: 0 | Z173: 0 | AA173: 0
A174: 131 | P174: 0 | Q174: 0 | R174: 0 | S174: 0 | T174: 0 | U174: 0 | V174: 0 | W174: 0 | X174: 0 | Y174: 0 | Z174: 0 | AA174: 0
A175: 132 | P175: 0 | Q175: 0 | R175: 0 | S175: 0 | T175: 0 | U175: 0 | V175: 0 | W175: 0 | X175: 0 | Y175: 0 | Z175: 0 | AA175: 0
A176: 133 | P176: 0 | Q176: 0 | R176: 0 | S176: 0 | T176: 0 | U176: 0 | V176: 0 | W176: 0 | X176: 0 | Y176: 0 | Z176: 0 | AA176: 0
A177: 134 | P177: 0 | Q177: 0 | R177: 0 | S177: 0 | T177: 0 | U177: 0 | V177: 0 | W177: 0 | X177: 0 | Y177: 0 | Z177: 0 | AA177: 0
A178: 135 | P178: 0 | Q178: 0 | R178: 0 | S178: 0 | T178: 0 | U178: 0 | V178: 0 | W178: 0 | X178: 0 | Y178: 0 | Z178: 0 | AA178: 0
A179: 136 | P179: 0 | Q179: 0 | R179: 0 | S179: 0 | T179: 0 | U179: 0 | V179: 0 | W179: 0 | X179: 0 | Y179: 0 | Z179: 0 | AA179: 0
A180: 137 | P180: 0 | Q180: 0 | R180: 0 | S180: 0 | T180: 0 | U180: 0 | V180: 0 | W180: 0 | X180: 0 | Y180: 0 | Z180: 0 | AA180: 0
A181: 138 | P181: 0 | Q181: 0 | R181: 0 | S181: 0 | T181: 0 | U181: 0 | V181: 0 | W181: 0 | X181: 0 | Y181: 0 | Z181: 0 | AA181: 0
A182: 139 | P182: 0 | Q182: 0 | R182: 0 | S182: 0 | T182: 0 | U182: 0 | V182: 0 | W182: 0 | X182: 0 | Y182: 0 | Z182: 0 | AA182: 0
A183: 140 | P183: 0 | Q183: 0 | R183: 0 | S183: 0 | T183: 0 | U183: 0 | V183: 0 | W183: 0 | X183: 0 | Y183: 0 | Z183: 0 | AA183: 0
A184: 141 | P184: =COUNT(F184:O184) -> 0 | Q184: =F184 -> 0 | R184: =G184 -> 0 | S184: =H184 -> 0 | T184: =I184 -> 0 | U184: =J184 -> 0 | V184: =K184 -> 0 | W184: =L184 -> 0 | X184: =M184 -> 0 | Y184: =N184 -> 0 | Z184: =O184 -> 0 | AA184: =LARGE(Q184:Z184,1)+LARGE(Q184:Z184,2)+LARGE(Q184:Z184,3)+LARGE(Q184:Z184,4)+LARGE(Q184:Z184,5)/100+LARGE(Q184:Z184,6)/10000+LARGE(Q184:Z184,7)/1000000+LARGE(Q184:Z184,8)/100000000+LARGE(Q184:Z184,9)/10000000000+LARGE(Q184:Z184,10)/1000000000000 -> 0
A185: 142 | P185: 0 | Q185: 0 | R185: 0 | S185: 0 | T185: 0 | U185: 0 | V185: 0 | W185: 0 | X185: 0 | Y185: 0 | Z185: 0 | AA185: 0
A186: 143 | P186: 0 | Q186: 0 | R186: 0 | S186: 0 | T186: 0 | U186: 0 | V186: 0 | W186: 0 | X186: 0 | Y186: 0 | Z186: 0 | AA186: 0
A187: 144 | P187: 0 | Q187: 0 | R187: 0 | S187: 0 | T187: 0 | U187: 0 | V187: 0 | W187: 0 | X187: 0 | Y187: 0 | Z187: 0 | AA187: 0
A188: 145 | P188: 0 | Q188: 0 | R188: 0 | S188: 0 | T188: 0 | U188: 0 | V188: 0 | W188: 0 | X188: 0 | Y188: 0 | Z188: 0 | AA188: 0
A189: 146 | P189: 0 | Q189: 0 | R189: 0 | S189: 0 | T189: 0 | U189: 0 | V189: 0 | W189: 0 | X189: 0 | Y189: 0 | Z189: 0 | AA189: 0
A190: 147 | P190: 0 | Q190: 0 | R190: 0 | S190: 0 | T190: 0 | U190: 0 | V190: 0 | W190: 0 | X190: 0 | Y190: 0 | Z190: 0 | AA190: 0
A191: 148 | P191: 0 | Q191: 0 | R191: 0 | S191: 0 | T191: 0 | U191: 0 | V191: 0 | W191: 0 | X191: 0 | Y191: 0 | Z191: 0 | AA191: 0
A192: 149 | P192: 0 | Q192: 0 | R192: 0 | S192: 0 | T192: 0 | U192: 0 | V192: 0 | W192: 0 | X192: 0 | Y192: 0 | Z192: 0 | AA192: 0
A193: 150 | P193: 0 | Q193: 0 | R193: 0 | S193: 0 | T193: 0 | U193: 0 | V193: 0 | W193: 0 | X193: 0 | Y193: 0 | Z193: 0 | AA193: 0
P194: 0 | Q194: 0 | R194: 0 | S194: 0 | T194: 0 | U194: 0 | V194: 0 | W194: 0 | X194: 0 | Y194: 0 | Z194: 0 | AA194: 0

Sheet LAGSRESULTATER
A1: LAGRESULTATER 2018
A3: Plassering | B3: Lag | C3: Poeng
A4: 1 | B4: =$DN$26 -> Opplandske Betong BIL | C4: =$DN$27 -> 555.1383533
A5: 2 | B5: =$BA$26 -> Madshus BIL | C5: =$BA$27 -> 505.1211913 | D5: =IF(C5=0,"",IF(C5=C4,"Poenglikhet med laget over, inkl. ikke tellende serier","")) -> 
A6: 3 | B6: =$FA$26 -> Veidekke BIL | C6: =$FA$27 -> 498.1231784 | D6: =IF(C6=0,"",IF(C6=C5,"Poenglikhet med laget over, inkl. ikke tellende serier","")) -> 
A7: 4 | B7: =$CA$26 -> Mustad BIL | C7: =$CA$27 -> 456.0746643
A8: 5 | B8: =$FN$26 -> Øveraasen BIL | C8: =$FN$27 -> 370.0817765
A9: 6 | B9: =$AN$26 -> Hydal BIL | C9: =$AN$27 -> 295.06766
A10: 7 | B10: =$EN$26 -> Sykehuset Innlandet | C10: =$EN$27 -> 144.032
A11: 8 | B11: =$CN$26 -> Nammo BIL | C11: =$CN$27 -> 115
A12: 9 | B12: =$A$26 -> Benteler BIL | C12: =$A$27 -> 36
A13: 10 | B13: =$N$26 -> Eltera BIL | C13: =$N$27 -> 0
A14: 11 | B14: =$AA$26 -> Hunton BIL | C14: =$AA$27 -> 0
A15: 12 | B15: =$BN$26 -> Moelven Mjøsbruket BIL | C15: =$BN$27 -> 0
A16: 13 | B16: =$DA$26 -> NLK Fagforbundet BIL | C16: =$DA$27 -> 0
A17: 14 | B17: =$EA$26 -> Skog og Hage BIL | C17: =$EA$27 -> 0
A18: 15 | C18: =$GN$27 -> 0
A19: 16 | C19: =$IA$27 -> 0
A20: 17 | C20: =$GA$27 -> 0
A21: 18
A22: 19
A26: Benteler BIL | N26: Eltera BIL | AA26: Hunton BIL | AN26: Hydal BIL | BA26: Madshus BIL | BN26: Moelven Mjøsbruket BIL | CA26: Mustad BIL | CN26: Nammo BIL | DA26: NLK Fagforbundet BIL | DN26: Opplandske Betong BIL | EA26: Skog og Hage BIL | EN26: Sykehuset Innlandet | FA26: Veidekke BIL | FN26: Øveraasen BIL
A27: =LARGE(B27:K27,1)+LARGE(B27:K27,2)+LARGE(B27:K27,3)+LARGE(B27:K27,4)+LARGE(B27:K27,5)/1000+LARGE(B27:K27,6)/100000+LARGE(B27:K27,7)/10000000+LARGE(B27:K27,8)/1000000000+LARGE(B27:K27,9)/100000000000+LARGE(B27:K27,10)/10000000000000 -> 36 | B27: =SUM(B28:B30) -> 0 | C27: =SUM(C28:C30) -> 0 | D27: 0 | E27: 36 | F27: 0 | G27: 0 | H27: 0 | I27: 0 | J27: 0 | K27: 0 | N27: =LARGE(O27:X27,1)+LARGE(O27:X27,2)+LARGE(O27:X27,3)+LARGE(O27:X27,4)+LARGE(O27:X27,5)/1000+LARGE(O27:X27,6)/100000+LARGE(O27:X27,7)/10000000+LARGE(O27:X27,8)/1000000000+LARGE(O27:X27,9)/100000000000+LARGE(O27:X27,10)/10000000000000 -> 0 | O27: =SUM(O28:O30) -> 0 | P27: =SUM(P28:P30) -> 0 | Q27: 0 | R27: 0 | S27: 0 | T27: 0 | U27: 0 | V27: 0 | W27: 0 | X27: 0 | AA27: =LARGE(AB27:AK27,1)+LARGE(AB27:AK27,2)+LARGE(AB27:AK27,3)+LARGE(AB27:AK27,4)+LARGE(AB27:AK27,5)/1000+LARGE(AB27:AK27,6)/100000+LARGE(AB27:AK27,7)/10000000+LARGE(AB27:AK27,8)/1000000000+LARGE(AB27:AK27,9)/100000000000+LARGE(AB27:AK27,10)/10000000000000 -> 0 | AB27: =SUM(AB28:AB30) -> 0 | AC27: =SUM(AC28:AC30) -> 0 | AD27: 0 | AE27: 0 | AF27: 0 | AG27: 0 | AH27: 0 | AI27: 0 | AJ27: 0 | AK27: 0 | AN27: =LARGE(AO27:AX27,1)+LARGE(AO27:AX27,2)+LARGE(AO27:AX27,3)+LARGE(AO27:AX27,4)+LARGE(AO27:AX27,5)/1000+LARGE(AO27:AX27,6)/100000+LARGE(AO27:AX27,7)/10000000+LARGE(AO27:AX27,8)/1000000000+LARGE(AO27:AX27,9)/100000000000+LARGE(AO27:AX27,10)/10000000000000 -> 295.06766 | AO27: =SUM(AO28:AO30) -> 71 | AP27: =SUM(AP28:AP30) -> 0 | AQ27: 67 | AR27: 66 | AS27: 77 | AT27: 75 | AU27: 72 | AV27: 0 | AW27: 0 | AX27: 0 | BA27: =LARGE(BB27:BK27,1)+LARGE(BB27:BK27,2)+LARGE(BB27:BK27,3)+LARGE(BB27:BK27,4)+LARGE(BB27:BK27,5)/1000+LARGE(BB27:BK27,6)/100000+LARGE(BB27:BK27,7)/10000000+LARGE(BB27:BK27,8)/1000000000+LARGE(BB27:BK27,9)/100000000000+LARGE(BB27:BK27,10)/10000000000000 -> 505.1211913 | BB27: =SUM(BB28:BB30) -> 120 | BC27: =SUM(BC28:BC30) -> 113 | BD27: 127 | BE27: 118 | BF27: 130 | BG27: 120 | BH27: 128 | BI27: 0 | BJ27: 0 | BK27: 0 | BN27: =LARGE(BO27:BX27,1)+LARGE(BO27:BX27,2)+LARGE(BO27:BX27,3)+LARGE(BO27:BX27,4)+LARGE(BO27:BX27,5)/1000+LARGE(BO27:BX27,6)/100000+LARGE(BO27:BX27,7)/10000000+LARGE(BO27:BX27,8)/1000000000+LARGE(BO27:BX27,9)/100000000000+LARGE(BO27:BX27,10)/10000000000000 -> 0 | BO27: =SUM(BO28:BO30) -> 0 | BP27: =SUM(BP28:BP30) -> 0 | BQ27: 0 | BR27: 0 | BS27: 0 | BT27: 0 | BU27: 0 | BV27: 0 | BW27: 0 | BX27: 0 | CA27: =LARGE(CB27:CK27,1)+LARGE(CB27:CK27,2)+LARGE(CB27:CK27,3)+LARGE(CB27:CK27,4)+LARGE(CB27:CK27,5)/1000+LARGE(CB27:CK27,6)/100000+LARGE(CB27:CK27,7)/10000000+LARGE(CB27:CK27,8)/1000000000+LARGE(CB27:CK27,9)/100000000000+LARGE(CB27:CK27,10)/10000000000000 -> 456.0746643 | CB27: =SUM(CB28:CB30) -> 133 | CC27: =SUM(CC28:CC30) -> 43 | CD27: 66 | CE27: 74 | CF27: 112 | CG27: 124 | CH27: 87 | CI27: 0 | CJ27: 0 | CK27: 0 | CN27: =LARGE(CO27:CX27,1)+LARGE(CO27:CX27,2)+LARGE(CO27:CX27,3)+LARGE(CO27:CX27,4)+LARGE(CO27:CX27,5)/1000+LARGE(CO27:CX27,6)/100000+LARGE(CO27:CX27,7)/10000000+LARGE(CO27:CX27,8)/1000000000+LARGE(CO27:CX27,9)/100000000000+LARGE(CO27:CX27,10)/10000000000000 -> 115 | CO27: =SUM(CO28:CO30) -> 71 | CP27: =SUM(CP28:CP30) -> 44 | CQ27: 0 | CR27: 0 | CS27: 0 | CT27: 0 | CU27: 0 | CV27: 0 | CW27: 0 | CX27: 0 | DA27: =LARGE(DB27:DK27,1)+LARGE(DB27:DK27,2)+LARGE(DB27:DK27,3)+LARGE(DB27:DK27,4)+LARGE(DB27:DK27,5)/1000+LARGE(DB27:DK27,6)/100000+LARGE(DB27:DK27,7)/10000000+LARGE(DB27:DK27,8)/1000000000+LARGE(DB27:DK27,9)/100000000000+LARGE(DB27:DK27,10)/10000000000000 -> 0 | DB27: =SUM(DB28:DB30) -> 0 | DC27: =SUM(DC28:DC30) -> 0 | DD27: 0 | DE27: 0 | DF27: 0 | DG27: 0 | DH27: 0 | DI27: 0 | DJ27: 0 | DK27: 0 | DN27: =LARGE(DO27:DX27,1)+LARGE(DO27:DX27,2)+LARGE(DO27:DX27,3)+LARGE(DO27:DX27,4)+LARGE(DO27:DX27,5)/1000+LARGE(DO27:DX27,6)/100000+LARGE(DO27:DX27,7)/10000000+LARGE(DO27:DX27,8)/1000000000+LARGE(DO27:DX27,9)/100000000000+LARGE(DO27:DX27,10)/10000000000000 -> 555.1383533 | DO27: =SUM(DO28:DO30) -> 137 | DP27: =SUM(DP28:DP30) -> 134 | DQ27: 140 | DR27: 139 | DS27: 139 | DT27: 133 | DU27: 137 | DV27: 0 | DW27: 0 | DX27: 0 | EA27: =LARGE(EB27:EK27,1)+LARGE(EB27:EK27,2)+LARGE(EB27:EK27,3)+LARGE(EB27:EK27,4)+LARGE(EB27:EK27,5)/1000+LARGE(EB27:EK27,6)/100000+LARGE(EB27:EK27,7)/10000000+LARGE(EB27:EK27,8)/1000000000+LARGE(EB27:EK27,9)/100000000000+LARGE(EB27:EK27,10)/10000000000000 -> 0 | EB27: =SUM(EB28:EB30) -> 0 | EC27: =SUM(EC28:EC30) -> 0 | ED27: 0 | EE27: 0 | EF27: 0 | EG27: 0 | EH27: 0 | EI27: 0 | EJ27: 0 | EK27: 0 | EN27: =LARGE(EO27:EX27,1)+LARGE(EO27:EX27,2)+LARGE(EO27:EX27,3)+LARGE(EO27:EX27,4)+LARGE(EO27:EX27,5)/1000+LARGE(EO27:EX27,6)/100000+LARGE(EO27:EX27,7)/10000000+LARGE(EO27:EX27,8)/1000000000+LARGE(EO27:EX27,9)/100000000000+LARGE(EO27:EX27,10)/10000000000000 -> 144.032 | EO27: =SUM(EO28:EO30) -> 35 | EP27: =SUM(EP28:EP30) -> 36 | EQ27: 39 | ER27: 0 | ES27: 34 | ET27: 32 | EU27: 0 | EV27: 0 | EW27: 0 | EX27: 0 | FA27: =LARGE(FB27:FK27,1)+LARGE(FB27:FK27,2)+LARGE(FB27:FK27,3)+LARGE(FB27:FK27,4)+LARGE(FB27:FK27,5)/1000+LARGE(FB27:FK27,6)/100000+LARGE(FB27:FK27,7)/10000000+LARGE(FB27:FK27,8)/1000000000+LARGE(FB27:FK27,9)/100000000000+LARGE(FB27:FK27,10)/10000000000000 -> 498.1231784 | FB27: =SUM(FB28:FB30) -> 122 | FC27: =SUM(FC28:FC30) -> 117 | FD27: 124 | FE27: 124 | FF27: 84 | FG27: 126 | FH27: 124 | FI27: 0 | FJ27: 0 | FK27: 0 | FN27: =LARGE(FO27:FX27,1)+LARGE(FO27:FX27,2)+LARGE(FO27:FX27,3)+LARGE(FO27:FX27,4)+LARGE(FO27:FX27,5)/1000+LARGE(FO27:FX27,6)/100000+LARGE(FO27:FX27,7)/10000000+LARGE(FO27:FX27,8)/1000000000+LARGE(FO27:FX27,9)/100000000000+LARGE(FO27:FX27,10)/10000000000000 -> 370.0817765 | FO27: =SUM(FO28:FO30) -> 86 | FP27: =SUM(FP28:FP30) -> 85 | FQ27: 107 | FR27: 81 | FS27: 77 | FT27: 92 | FU27: 65 | FV27: 0 | FW27: 0 | FX27: 0 | GA27: =LARGE(GB27:GK27,1)+LARGE(GB27:GK27,2)+LARGE(GB27:GK27,3)+LARGE(GB27:GK27,4)+LARGE(GB27:GK27,5)/1000+LARGE(GB27:GK27,6)/100000+LARGE(GB27:GK27,7)/10000000+LARGE(GB27:GK27,8)/1000000000+LARGE(GB27:GK27,9)/100000000000+LARGE(GB27:GK27,10)/10000000000000 -> 0 | GB27: =SUM(GB28:GB30) -> 0 | GC27: =SUM(GC28:GC30) -> 0 | GD27: 0 | GE27: 0 | GF27: 0 | GG27: 0 | GH27: 0 | GI27: 0 | GJ27: 0 | GK27: 0 | GN27: =LARGE(GO27:GX27,1)+LARGE(GO27:GX27,2)+LARGE(GO27:GX27,3)+LARGE(GO27:GX27,4)+LARGE(GO27:GX27,5)/1000+LARGE(GO27:GX27,6)/100000+LARGE(GO27:GX27,7)/10000000+LARGE(GO27:GX27,8)/1000000000+LARGE(GO27:GX27,9)/100000000000+LARGE(GO27:GX27,10)/10000000000000 -> 0 | GO27: =SUM(GO28:GO30) -> 0 | GP27: =SUM(GP28:GP30) -> 0 | GQ27: 0 | GR27: 0 | GS27: 0 | GT27: 0 | GU27: 0 | GV27: 0 | GW27: 0 | GX27: 0 | HA27: =LARGE(HB27:HK27,1)+LARGE(HB27:HK27,2)+LARGE(HB27:HK27,3)+LARGE(HB27:HK27,4)+LARGE(HB27:HK27,5)/1000+LARGE(HB27:HK27,6)/100000+LARGE(HB27:HK27,7)/10000000+LARGE(HB27:HK27,8)/1000000000+LARGE(HB27:HK27,9)/100000000000+LARGE(HB27:HK27,10)/10000000000000 -> 0 | HB27: =SUM(HB28:HB30) -> 0 | HC27: =SUM(HC28:HC30) -> 0 | HD27: 0 | HE27: 0 | HF27: 0 | HG27: 0 | HH27: 0 | HI27: 0 | HJ27: 0 | HK27: 0 | HN27: =LARGE(HO27:HX27,1)+LARGE(HO27:HX27,2)+LARGE(HO27:HX27,3)+LARGE(HO27:HX27,4)+LARGE(HO27:HX27,5)/1000+LARGE(HO27:HX27,6)/100000+LARGE(HO27:HX27,7)/10000000+LARGE(HO27:HX27,8)/1000000000+LARGE(HO27:HX27,9)/100000000000+LARGE(HO27:HX27,10)/10000000000000 -> 0 | HO27: =SUM(HO28:HO30) -> 0 | HP27: =SUM(HP28:HP30) -> 0 | HQ27: 0 | HR27: 0 | HS27: 0 | HT27: 0 | HU27: 0 | HV27: 0 | HW27: 0 | HX27: 0 | IA27: =LARGE(IB27:IK27,1)+LARGE(IB27:IK27,2)+LARGE(IB27:IK27,3)+LARGE(IB27:IK27,4)+LARGE(IB27:IK27,5)/1000+LARGE(IB27:IK27,6)/100000+LARGE(IB27:IK27,7)/10000000+LARGE(IB27:IK27,8)/1000000000+LARGE(IB27:IK27,9)/100000000000+LARGE(IB27:IK27,10)/10000000000000 -> 0 | IB27: =SUM(IB28:IB30) -> 0 | IC27: =SUM(IC28:IC30) -> 0 | ID27: 0 | IE27: 0 | IF27: 0 | IG27: 0 | IH27: 0 | II27: 0 | IJ27: 0 | IK27: 0
B28: =LARGE(B$32:B$186,1) -> 0 | C28: 0 | D28: 0 | E28: 36 | F28: 0 | G28: 0 | H28: 0 | I28: 0 | J28: 0 | K28: 0 | O28: =LARGE(O$32:O$186,1) -> 0 | P28: 0 | Q28: 0 | R28: 0 | S28: 0 | T28: 0 | U28: 0 | V28: 0 | W28: 0 | X28: 0 | AB28: =LARGE(AB$32:AB$186,1) -> 0 | AC28: 0 | AD28: 0 | AE28: 0 | AF28: 0 | AG28: 0 | AH28: 0 | AI28: 0 | AJ28: 0 | AK28: 0 | AO28: =LARGE(AO$32:AO$186,1) -> 40 | AP28: 0 | AQ28: 37 | AR28: 39 | AS28: 39 | AT28: 41 | AU28: 37 | AV28: 0 | AW28: 0 | AX28: 0 | BB28: =LARGE(BB$32:BB$186,1) -> 44 | BC28: 43 | BD28: 46 | BE28: 43 | BF28: 46 | BG28: 44 | BH28: 44 | BI28: 0 | BJ28: 0 | BK28: 0 | BO28: =LARGE(BO$32:BO$186,1) -> 0 | BP28: 0 | BQ28: 0 | BR28: 0 | BS28: 0 | BT28: 0 | BU28: 0 | BV28: 0 | BW28: 0 | BX28: 0 | CB28: =LARGE(CB$32:CB$186,1) -> 49 | CC28: 43 | CD28: 46 | CE28: 41 | CF28: 40 | CG28: 45 | CH28: 44 | CI28: 0 | CJ28: 0 | CK28: 0 | CO28: =LARGE(CO$32:CO$186,1) -> 40 | CP28: 44 | CQ28: 0 | CR28: 0 | CS28: 0 | CT28: 0 | CU28: 0 | CV28: 0 | CW28: 0 | CX28: 0 | DB28: =LARGE(DB$32:DB$186,1) -> 0 | DC28: 0 | DD28: 0 | DE28: 0 | DF28: 0 | DG28: 0 | DH28: 0 | DI28: 0 | DJ28: 0 | DK28: 0 | DO28: =LARGE(DO$32:DO$186,1) -> 48 | DP28: 46 | DQ28: 48 | DR28: 47 | DS28: 47 | DT28: 45 | DU28: 46 | DV28: 0 | DW28: 0 | DX28: 0 | EB28: =LARGE(EB$32:EB$186,1) -> 0 | EC28: 0 | ED28: 0 | EE28: 0 | EF28: 0 | EG28: 0 | EH28: 0 | EI28: 0 | EJ28: 0 | EK28: 0 | EO28: =LARGE(EO$32:EO$186,1) -> 35 | EP28: 36 | EQ28: 39 | ER28: 0 | ES28: 34 | ET28: 32 | EU28: 0 | EV28: 0 | EW28: 0 | EX28: 0 | FB28: =LARGE(FB$32:FB$186,1) -> 42 | FC28: 42 | FD28: 43 | FE28: 44 | FF28: 44 | FG28: 44 | FH28: 44 | FI28: 0 | FJ28: 0 | FK28: 0 | FO28: =LARGE(FO$32:FO$186,1) -> 40 | FP28: 33 | FQ28: 45 | FR28: 42 | FS28: 44 | FT28: 42 | FU28: 39 | FV28: 0 | FW28: 0 | FX28: 0 | GB28: =LARGE(GB$32:GB$186,1) -> 0 | GC28: 0 | GD28: 0 | GE28: 0 | GF28: 0 | GG28: 0 | GH28: 0 | GI28: 0 | GJ28: 0 | GK28: 0 | GO28: =LARGE(GO$32:GO$181,1) -> 0 | GP28: 0 | GQ28: 0 | GR28: 0 | GS28: 0 | GT28: 0 | GU28: 0 | GV28: 0 | GW28: 0 | GX28: 0 | HB28: =LARGE(HB$32:HB$181,1) -> 0 | HC28: 0 | HD28: 0 | HE28: 0 | HF28: 0 | HG28: 0 | HH28: 0 | HI28: 0 | HJ28: 0 | HK28: 0 | HO28: =LARGE(HO$32:HO$181,1) -> 0 | HP28: 0 | HQ28: 0 | HR28: 0 | HS28: 0 | HT28: 0 | HU28: 0 | HV28: 0 | HW28: 0 | HX28: 0 | IB28: =LARGE(IB$32:IB$181,1) -> 0 | IC28: 0 | ID28: 0 | IE28: 0 | IF28: 0 | IG28: 0 | IH28: 0 | II28: 0 | IJ28: 0 | IK28: 0
B29: =LARGE(B$32:B$186,2) -> 0 | C29: 0 | D29: 0 | E29: 0 | F29: 0 | G29: 0 | H29: 0 | I29: 0 | J29: 0 | K29: 0 | O29: =LARGE(O$32:O$186,2) -> 0 | P29: 0 | Q29: 0 | R29: 0 | S29: 0 | T29: 0 | U29: 0 | V29: 0 | W29: 0 | X29: 0 | AB29: =LARGE(AB$32:AB$186,2) -> 0 | AC29: 0 | AD29: 0 | AE29: 0 | AF29: 0 | AG29: 0 | AH29: 0 | AI29: 0 | AJ29: 0 | AK29: 0 | AO29: =LARGE(AO$32:AO$186,2) -> 31 | AP29: 0 | AQ29: 30 | AR29: 27 | AS29: 38 | AT29: 34 | AU29: 35 | AV29: 0 | AW29: 0 | AX29: 0 | BB29: =LARGE(BB$32:BB$186,2) -> 39 | BC29: 37 | BD29: 44 | BE29: 40 | BF29: 44 | BG29: 40 | BH29: 43 | BI29: 0 | BJ29: 0 | BK29: 0 | BO29: =LARGE(BO$32:BO$186,2) -> 0 | BP29: 0 | BQ29: 0 | BR29: 0 | BS29: 0 | BT29: 0 | BU29: 0 | BV29: 0 | BW29: 0 | BX29: 0 | CB29: =LARGE(CB$32:CB$186,2) -> 42 | CC29: 0 | CD29: 20 | CE29: 33 | CF29: 39 | CG29: 44 | CH29: 43 | CI29: 0 | CJ29: 0 | CK29: 0 | CO29: =LARGE(CO$32:CO$186,2) -> 31 | CP29: 0 | CQ29: 0 | CR29: 0 | CS29: 0 | CT29: 0 | CU29: 0 | CV29: 0 | CW29: 0 | CX29: 0 | DB29: =LARGE(DB$32:DB$186,2) -> 0 | DC29: 0 | DD29: 0 | DE29: 0 | DF29: 0 | DG29: 0 | DH29: 0 | DI29: 0 | DJ29: 0 | DK29: 0 | DO29: =LARGE(DO$32:DO$186,2) -> 45 | DP29: 45 | DQ29: 47 | DR29: 47 | DS29: 46 | DT29: 44 | DU29: 46 | DV29: 0 | DW29: 0 | DX29: 0 | EB29: =LARGE(EB$32:EB$186,2) -> 0 | EC29: 0 | ED29: 0 | EE29: 0 | EF29: 0 | EG29: 0 | EH29: 0 | EI29: 0 | EJ29: 0 | EK29: 0 | EO29: =LARGE(EO$32:EO$186,2) -> 0 | EP29: 0 | EQ29: 0 | ER29: 0 | ES29: 0 | ET29: 0 | EU29: 0 | EV29: 0 | EW29: 0 | EX29: 0 | FB29: =LARGE(FB$32:FB$186,2) -> 42 | FC29: 38 | FD29: 41 | FE29: 40 | FF29: 40 | FG29: 42 | FH29: 43 | FI29: 0 | FJ29: 0 | FK29: 0 | FO29: =LARGE(FO$32:FO$186,2) -> 24 | FP29: 31 | FQ29: 37 | FR29: 22 | FS29: 33 | FT29: 28 | FU29: 26 | FV29: 0 | FW29: 0 | FX29: 0 | GB29: =LARGE(GB$32:GB$186,2) -> 0 | GC29: 0 | GD29: 0 | GE29: 0 | GF29: 0 | GG29: 0 | GH29: 0 | GI29: 0 | GJ29: 0 | GK29: 0 | GO29: =LARGE(GO$32:GO$181,2) -> 0 | GP29: 0 | GQ29: 0 | GR29: 0 | GS29: 0 | GT29: 0 | GU29: 0 | GV29: 0 | GW29: 0 | GX29: 0 | HB29: =LARGE(HB$32:HB$181,2) -> 0 | HC29: 0 | HD29: 0 | HE29: 0 | HF29: 0 | HG29: 0 | HH29: 0 | HI29: 0 | HJ29: 0 | HK29: 0 | HO29: =LARGE(HO$32:HO$181,2) -> 0 | HP29: 0 | HQ29: 0 | HR29: 0 | HS29: 0 | HT29: 0 | HU29: 0 | HV29: 0 | HW29: 0 | HX29: 0 | IB29: =LARGE(IB$32:IB$181,2) -> 0 | IC29: 0 | ID29: 0 | IE29: 0 | IF29: 0 | IG29: 0 | IH29: 0 | II29: 0 | IJ29: 0 | IK29: 0
B30: =LARGE(B$32:B$186,3) -> 0 | C30: 0 | D30: 0 | E30: 0 | F30: 0 | G30: 0 | H30: 0 | I30: 0 | J30: 0 | K30: 0 | O30: =LARGE(O$32:O$186,3) -> 0 | P30: 0 | Q30: 0 | R30: 0 | S30: 0 | T30: 0 | U30: 0 | V30: 0 | W30: 0 | X30: 0 | AB30: =LARGE(AB$32:AB$186,3) -> 0 | AC30: 0 | AD30: 0 | AE30: 0 | AF30: 0 | AG30: 0 | AH30: 0 | AI30: 0 | AJ30: 0 | AK30: 0 | AO30: =LARGE(AO$32:AO$186,3) -> 0 | AP30: 0 | AQ30: 0 | AR30: 0 | AS30: 0 | AT30: 0 | AU30: 0 | AV30: 0 | AW30: 0 | AX30: 0 | BB30: =LARGE(BB$32:BB$186,3) -> 37 | BC30: 33 | BD30: 37 | BE30: 35 | BF30: 40 | BG30: 36 | BH30: 41 | BI30: 0 | BJ30: 0 | BK30: 0 | BO30: =LARGE(BO$32:BO$186,3) -> 0 | BP30: 0 | BQ30: 0 | BR30: 0 | BS30: 0 | BT30: 0 | BU30: 0 | BV30: 0 | BW30: 0 | BX30: 0 | CB30: =LARGE(CB$32:CB$186,3) -> 42 | CC30: 0 | CD30: 0 | CE30: 0 | CF30: 33 | CG30: 35 | CH30: 0 | CI30: 0 | CJ30: 0 | CK30: 0 | CO30: =LARGE(CO$32:CO$186,3) -> 0 | CP30: 0 | CQ30: 0 | CR30: 0 | CS30: 0 | CT30: 0 | CU30: 0 | CV30: 0 | CW30: 0 | CX30: 0 | DB30: =LARGE(DB$32:DB$186,3) -> 0 | DC30: 0 | DD30: 0 | DE30: 0 | DF30: 0 | DG30: 0 | DH30: 0 | DI30: 0 | DJ30: 0 | DK30: 0 | DO30: =LARGE(DO$32:DO$186,3) -> 44 | DP30: 43 | DQ30: 45 | DR30: 45 | DS30: 46 | DT30: 44 | DU30: 45 | DV30: 0 | DW30: 0 | DX30: 0 | EB30: =LARGE(EB$32:EB$186,3) -> 0 | EC30: 0 | ED30: 0 | EE30: 0 | EF30: 0 | EG30: 0 | EH30: 0 | EI30: 0 | EJ30: 0 | EK30: 0 | EO30: =LARGE(EO$32:EO$186,3) -> 0 | EP30: 0 | EQ30: 0 | ER30: 0 | ES30: 0 | ET30: 0 | EU30: 0 | EV30: 0 | EW30: 0 | EX30: 0 | FB30: =LARGE(FB$32:FB$186,3) -> 38 | FC30: 37 | FD30: 40 | FE30: 40 | FF30: 0 | FG30: 40 | FH30: 37 | FI30: 0 | FJ30: 0 | FK30: 0 | FO30: =LARGE(FO$32:FO$186,3) -> 22 | FP30: 21 | FQ30: 25 | FR30: 17 | FS30: 0 | FT30: 22 | FU30: 0 | FV30: 0 | FW30: 0 | FX30: 0 | GB30: =LARGE(GB$32:GB$186,3) -> 0 | GC30: 0 | GD30: 0 | GE30: 0 | GF30: 0 | GG30: 0 | GH30: 0 | GI30: 0 | GJ30: 0 | GK30: 0 | GO30: =LARGE(GO$32:GO$181,3) -> 0 | GP30: 0 | GQ30: 0 | GR30: 0 | GS30: 0 | GT30: 0 | GU30: 0 | GV30: 0 | GW30: 0 | GX30: 0 | HB30: =LARGE(HB$32:HB$181,3) -> 0 | HC30: 0 | HD30: 0 | HE30: 0 | HF30: 0 | HG30: 0 | HH30: 0 | HI30: 0 | HJ30: 0 | HK30: 0 | HO30: =LARGE(HO$32:HO$181,3) -> 0 | HP30: 0 | HQ30: 0 | HR30: 0 | HS30: 0 | HT30: 0 | HU30: 0 | HV30: 0 | HW30: 0 | HX30: 0 | IB30: =LARGE(IB$32:IB$181,3) -> 0 | IC30: 0 | ID30: 0 | IE30: 0 | IF30: 0 | IG30: 0 | IH30: 0 | II30: 0 | IJ30: 0 | IK30: 0
B31: =Resultatinnlegging!F2 -> S1 | C31: =Resultatinnlegging!G2 -> S2 | D31: =Resultatinnlegging!H2 -> S3 | E31: =Resultatinnlegging!I2 -> S4 | F31: =Resultatinnlegging!J2 -> S5 | G31: =Resultatinnlegging!K2 -> S6 | H31: =Resultatinnlegging!L2 -> S7 | I31: =Resultatinnlegging!M2 -> S8 | J31: =Resultatinnlegging!N2 -> S9 | K31: =Resultatinnlegging!O2 -> S10 | O31: =B31 -> S1 | P31: =C31 -> S2 | Q31: S3 | R31: S4 | S31: S5 | T31: S6 | U31: S7 | V31: S8 | W31: S9 | X31: S10 | AB31: =O31 -> S1 | AC31: S2 | AD31: S3 | AE31: S4 | AF31: S5 | AG31: S6 | AH31: S7 | AI31: S8 | AJ31: S9 | AK31: S10 | AO31: =AB31 -> S1 | AP31: S2 | AQ31: S3 | AR31: S4 | AS31: S5 | AT31: S6 | AU31: S7 | AV31: S8 | AW31: S9 | AX31: S10 | BB31: =AO31 -> S1 | BC31: S2 | BD31: S3 | BE31: S4 | BF31: S5 | BG31: S6 | BH31: S7 | BI31: S8 | BJ31: S9 | BK31: S10 | BO31: =BB31 -> S1 | BP31: S2 | BQ31: S3 | BR31: S4 | BS31: S5 | BT31: S6 | BU31: S7 | BV31: S8 | BW31: S9 | BX31: S10 | CB31: =BO31 -> S1 | CC31: S2 | CD31: S3 | CE31: S4 | CF31: S5 | CG31: S6 | CH31: S7 | CI31: S8 | CJ31: S9 | CK31: S10 | CO31: =CB31 -> S1 | CP31: S2 | CQ31: S3 | CR31: S4 | CS31: S5 | CT31: S6 | CU31: S7 | CV31: S8 | CW31: S9 | CX31: S10 | DB31: =CO31 -> S1 | DC31: S2 | DD31: S3 | DE31: S4 | DF31: S5 | DG31: S6 | DH31: S7 | DI31: S8 | DJ31: S9 | DK31: S10 | DO31: =DB31 -> S1 | DP31: S2 | DQ31: S3 | DR31: S4 | DS31: S5 | DT31: S6 | DU31: S7 | DV31: S8 | DW31: S9 | DX31: S10 | EB31: =DO31 -> S1 | EC31: S2 | ED31: S3 | EE31: S4 | EF31: S5 | EG31: S6 | EH31: S7 | EI31: S8 | EJ31: S9 | EK31: S10 | EO31: =EB31 -> S1 | EP31: S2 | EQ31: S3 | ER31: S4 | ES31: S5 | ET31: S6 | EU31: S7 | EV31: S8 | EW31: S9 | EX31: S10 | FB31: =EO31 -> S1 | FC31: S2 | FD31: S3 | FE31: S4 | FF31: S5 | FG31: S6 | FH31: S7 | FI31: S8 | FJ31: S9 | FK31: S10 | FO31: =FB31 -> S1 | FP31: S2 | FQ31: S3 | FR31: S4 | FS31: S5 | FT31: S6 | FU31: S7 | FV31: S8 | FW31: S9 | FX31: S10 | GB31: =FO31 -> S1 | GC31: S2 | GD31: S3 | GE31: S4 | GF31: S5 | GG31: S6 | GH31: S7 | GI31: S8 | GJ31: S9 | GK31: S10 | GO31: =GB31 -> S1 | GP31: S2 | GQ31: S3 | GR31: S4 | GS31: S5 | GT31: S6 | GU31: S7 | GV31: S8 | GW31: S9 | GX31: S10 | HB31: =GO31 -> S1 | HC31: S2 | HD31: S3 | HE31: S4 | HF31: S5 | HG31: S6 | HH31: S7 | HI31: S8 | HJ31: S9 | HK31: S10 | HO31: =HB31 -> S1 | HP31: S2 | HQ31: S3 | HR31: S4 | HS31: S5 | HT31: S6 | HU31: S7 | HV31: S8 | HW31: S9 | HX31: S10 | IB31: =HO31 -> S1 | IC31: S2 | ID31: S3 | IE31: S4 | IF31: S5 | IG31: S6 | IH31: S7 | II31: S8 | IJ31: S9 | IK31: S10
B32: =IF(Resultatinnlegging!$B3=LAGSRESULTATER!$A$26,Resultatinnlegging!F3,0) -> 0 | C32: =IF(Resultatinnlegging!$B3=LAGSRESULTATER!$A$26,Resultatinnlegging!G3,0) -> 0 | D32: =IF(Resultatinnlegging!$B3=LAGSRESULTATER!$A$26,Resultatinnlegging!H3,0) -> 0 | E32: =IF(Resultatinnlegging!$B3=LAGSRESULTATER!$A$26,Resultatinnlegging!I3,0) -> 36 | F32: =IF(Resultatinnlegging!$B3=LAGSRESULTATER!$A$26,Resultatinnlegging!J3,0) -> 0 | G32: =IF(Resultatinnlegging!$B3=LAGSRESULTATER!$A$26,Resultatinnlegging!K3,0) -> 0 | H32: =IF(Resultatinnlegging!$B3=LAGSRESULTATER!$A$26,Resultatinnlegging!L3,0) -> 0 | I32: =IF(Resultatinnlegging!$B3=LAGSRESULTATER!$A$26,Resultatinnlegging!M3,0) -> 0 | J32: =IF(Resultatinnlegging!$B3=LAGSRESULTATER!$A$26,Resultatinnlegging!N3,0) -> 0 | K32: =IF(Resultatinnlegging!$B3=LAGSRESULTATER!$A$26,Resultatinnlegging!O3,0) -> 0 | O32: =IF(Resultatinnlegging!$B3=LAGSRESULTATER!$N$26,Resultatinnlegging!F3,0) -> 0 | P32: =IF(Resultatinnlegging!$B3=LAGSRESULTATER!$N$26,Resultatinnlegging!G3,0) -> 0 | Q32: =IF(Resultatinnlegging!$B3=LAGSRESULTATER!$N$26,Resultatinnlegging!H3,0) -> 0 | R32: =IF(Resultatinnlegging!$B3=LAGSRESULTATER!$N$26,Resultatinnlegging!I3,0) -> 0 | S32: =IF(Resultatinnlegging!$B3=LAGSRESULTATER!$N$26,Resultatinnlegging!J3,0) -> 0 | T32: =IF(Resultatinnlegging!$B3=LAGSRESULTATER!$N$26,Resultatinnlegging!K3,0) -> 0 | U32: =IF(Resultatinnlegging!$B3=LAGSRESULTATER!$N$26,Resultatinnlegging!L3,0) -> 0 | V32: =IF(Resultatinnlegging!$B3=LAGSRESULTATER!$N$26,Resultatinnlegging!M3,0) -> 0 | W32: =IF(Resultatinnlegging!$B3=LAGSRESULTATER!$N$26,Resultatinnlegging!N3,0) -> 0 | X32: =IF(Resultatinnlegging!$B3=LAGSRESULTATER!$N$26,Resultatinnlegging!O3,0) -> 0 | AB32: =IF(Resultatinnlegging!$B40=LAGSRESULTATER!$AA$26,Resultatinnlegging!F40,0) -> 0 | AC32: =IF(Resultatinnlegging!$B3=LAGSRESULTATER!$AA$26,Resultatinnlegging!G3,0) -> 0 | AD32: =IF(Resultatinnlegging!$B3=LAGSRESULTATER!$AA$26,Resultatinnlegging!H3,0) -> 0 | AE32: =IF(Resultatinnlegging!$B3=LAGSRESULTATER!$AA$26,Resultatinnlegging!I3,0) -> 0 | AF32: =IF(Resultatinnlegging!$B3=LAGSRESULTATER!$AA$26,Resultatinnlegging!J3,0) -> 0 | AG32: =IF(Resultatinnlegging!$B3=LAGSRESULTATER!$AA$26,Resultatinnlegging!K3,0) -> 0 | AH32: =IF(Resultatinnlegging!$B3=LAGSRESULTATER!$AA$26,Resultatinnlegging!L3,0) -> 0 | AI32: =IF(Resultatinnlegging!$B3=LAGSRESULTATER!$AA$26,Resultatinnlegging!M3,0) -> 0 | AJ32: =IF(Resultatinnlegging!$B3=LAGSRESULTATER!$AA$26,Resultatinnlegging!N3,0) -> 0 | AK32: =IF(Resultatinnlegging!$B3=LAGSRESULTATER!$AA$26,Resultatinnlegging!O3,0) -> 0 | AO32: =IF(Resultatinnlegging!$B31=LAGSRESULTATER!$AN$26,Resultatinnlegging!F31,0) -> 0 | AP32: =IF(Resultatinnlegging!$B3=LAGSRESULTATER!$AN$26,Resultatinnlegging!G3,0) -> 0 | AQ32: =IF(Resultatinnlegging!$B3=LAGSRESULTATER!$AN$26,Resultatinnlegging!H3,0) -> 0 | AR32: =IF(Resultatinnlegging!$B3=LAGSRESULTATER!$AN$26,Resultatinnlegging!I3,0) -> 0 | AS32: =IF(Resultatinnlegging!$B3=LAGSRESULTATER!$AN$26,Resultatinnlegging!J3,0) -> 0 | AT32: =IF(Resultatinnlegging!$B3=LAGSRESULTATER!$AN$26,Resultatinnlegging!K3,0) -> 0 | AU32: =IF(Resultatinnlegging!$B3=LAGSRESULTATER!$AN$26,Resultatinnlegging!L3,0) -> 0 | AV32: =IF(Resultatinnlegging!$B3=LAGSRESULTATER!$AN$26,Resultatinnlegging!M3,0) -> 0 | AW32: =IF(Resultatinnlegging!$B3=LAGSRESULTATER!$AN$26,Resultatinnlegging!N3,0) -> 0 | AX32: =IF(Resultatinnlegging!$B3=LAGSRESULTATER!$AN$26,Resultatinnlegging!O3,0) -> 0 | BB32: =IF(Resultatinnlegging!$B49=LAGSRESULTATER!$BA$26,Resultatinnlegging!F49,0) -> 0 | BC32: =IF(Resultatinnlegging!$B3=LAGSRESULTATER!$BA$26,Resultatinnlegging!G3,0) -> 0 | BD32: =IF(Resultatinnlegging!$B3=LAGSRESULTATER!$BA$26,Resultatinnlegging!H3,0) -> 0 | BE32: =IF(Resultatinnlegging!$B3=LAGSRESULTATER!$BA$26,Resultatinnlegging!I3,0) -> 0 | BF32: =IF(Resultatinnlegging!$B3=LAGSRESULTATER!$BA$26,Resultatinnlegging!J3,0) -> 0 | BG32: =IF(Resultatinnlegging!$B3=LAGSRESULTATER!$BA$26,Resultatinnlegging!K3,0) -> 0 | BH32: =IF(Resultatinnlegging!$B3=LAGSRESULTATER!$BA$26,Resultatinnlegging!L3,0) -> 0 | BI32: =IF(Resultatinnlegging!$B3=LAGSRESULTATER!$BA$26,Resultatinnlegging!M3,0) -> 0 | BJ32: =IF(Resultatinnlegging!$B3=LAGSRESULTATER!$BA$26,Resultatinnlegging!N3,0) -> 0 | BK32: =IF(Resultatinnlegging!$B3=LAGSRESULTATER!$BA$26,Resultatinnlegging!O3,0) -> 0 | BO32: =IF(Resultatinnlegging!$B29=LAGSRESULTATER!$BN$26,Resultatinnlegging!F29,0) -> 0 | BP32: =IF(Resultatinnlegging!$B3=LAGSRESULTATER!$BN$26,Resultatinnlegging!G3,0) -> 0 | BQ32: =IF(Resultatinnlegging!$B3=LAGSRESULTATER!$BN$26,Resultatinnlegging!H3,0) -> 0 | BR32: =IF(Resultatinnlegging!$B3=LAGSRESULTATER!$BN$26,Resultatinnlegging!I3,0) -> 0 | BS32: =IF(Resultatinnlegging!$B3=LAGSRESULTATER!$BN$26,Resultatinnlegging!J3,0) -> 0 | BT32: =IF(Resultatinnlegging!$B3=LAGSRESULTATER!$BN$26,Resultatinnlegging!K3,0) -> 0 | BU32: =IF(Resultatinnlegging!$B3=LAGSRESULTATER!$BN$26,Resultatinnlegging!L3,0) -> 0 | BV32: =IF(Resultatinnlegging!$B3=LAGSRESULTATER!$BN$26,Resultatinnlegging!M3,0) -> 0 | BW32: =IF(Resultatinnlegging!$B3=LAGSRESULTATER!$BN$26,Resultatinnlegging!N3,0) -> 0 | BX32: =IF(Resultatinnlegging!$B3=LAGSRESULTATER!$BN$26,Resultatinnlegging!O3,0) -> 0 | CB32: =IF(Resultatinnlegging!$B66=LAGSRESULTATER!$CA$26,Resultatinnlegging!F66,0) -> 42 | CC32: =IF(Resultatinnlegging!$B3=LAGSRESULTATER!$CA$26,Resultatinnlegging!G3,0) -> 0 | CD32: =IF(Resultatinnlegging!$B3=LAGSRESULTATER!$CA$26,Resultatinnlegging!H3,0) -> 0 | CE32: =IF(Resultatinnlegging!$B3=LAGSRESULTATER!$CA$26,Resultatinnlegging!I3,0) -> 0 | CF32: =IF(Resultatinnlegging!$B3=LAGSRESULTATER!$CA$26,Resultatinnlegging!J3,0) -> 0 | CG32: =IF(Resultatinnlegging!$B3=LAGSRESULTATER!$CA$26,Resultatinnlegging!K3,0) -> 0 | CH32: =IF(Resultatinnlegging!$B3=LAGSRESULTATER!$CA$26,Resultatinnlegging!L3,0) -> 0 | CI32: =IF(Resultatinnlegging!$B3=LAGSRESULTATER!$CA$26,Resultatinnlegging!M3,0) -> 0 | CJ32: =IF(Resultatinnlegging!$B3=LAGSRESULTATER!$CA$26,Resultatinnlegging!N3,0) -> 0 | CK32: =IF(Resultatinnlegging!$B3=LAGSRESULTATER!$CA$26,Resultatinnlegging!O3,0) -> 0 | CO32: =IF(Resultatinnlegging!$B20=LAGSRESULTATER!$CN$26,Resultatinnlegging!F20,0) -> 0 | CP32: =IF(Resultatinnlegging!$B3=LAGSRESULTATER!$CN$26,Resultatinnlegging!G3,0) -> 0 | CQ32: =IF(Resultatinnlegging!$B3=LAGSRESULTATER!$CN$26,Resultatinnlegging!H3,0) -> 0 | CR32: =IF(Resultatinnlegging!$B3=LAGSRESULTATER!$CN$26,Resultatinnlegging!I3,0) -> 0 | CS32: =IF(Resultatinnlegging!$B3=LAGSRESULTATER!$CN$26,Resultatinnlegging!J3,0) -> 0 | CT32: =IF(Resultatinnlegging!$B3=LAGSRESULTATER!$CN$26,Resultatinnlegging!K3,0) -> 0 | CU32: =IF(Resultatinnlegging!$B3=LAGSRESULTATER!$CN$26,Resultatinnlegging!L3,0) -> 0 | CV32: =IF(Resultatinnlegging!$B3=LAGSRESULTATER!$CN$26,Resultatinnlegging!M3,0) -> 0 | CW32: =IF(Resultatinnlegging!$B3=LAGSRESULTATER!$CN$26,Resultatinnlegging!N3,0) -> 0 | CX32: =IF(Resultatinnlegging!$B3=LAGSRESULTATER!$CN$26,Resultatinnlegging!O3,0) -> 0 | DB32: =IF(Resultatinnlegging!$B13=LAGSRESULTATER!$DA$26,Resultatinnlegging!F13,0) -> 0 | DC32: =IF(Resultatinnlegging!$B3=LAGSRESULTATER!$DA$26,Resultatinnlegging!G3,0) -> 0 | DD32: =IF(Resultatinnlegging!$B3=LAGSRESULTATER!$DA$26,Resultatinnlegging!H3,0) -> 0 | DE32: =IF(Resultatinnlegging!$B3=LAGSRESULTATER!$DA$26,Resultatinnlegging!I3,0) -> 0 | DF32: =IF(Resultatinnlegging!$B3=LAGSRESULTATER!$DA$26,Resultatinnlegging!J3,0) -> 0 | DG32: =IF(Resultatinnlegging!$B3=LAGSRESULTATER!$DA$26,Resultatinnlegging!K3,0) -> 0 | DH32: =IF(Resultatinnlegging!$B3=LAGSRESULTATER!$DA$26,Resultatinnlegging!L3,0) -> 0 | DI32: =IF(Resultatinnlegging!$B3=LAGSRESULTATER!$DA$26,Resultatinnlegging!M3,0) -> 0 | DJ32: =IF(Resultatinnlegging!$B3=LAGSRESULTATER!$DA$26,Resultatinnlegging!N3,0) -> 0 | DK32: =IF(Resultatinnlegging!$B3=LAGSRESULTATER!$DA$26,Resultatinnlegging!O3,0) -> 0 | DO32: =IF(Resultatinnlegging!$B3=LAGSRESULTATER!$DN$26,Resultatinnlegging!F3,0) -> 0 | DP32: =IF(Resultatinnlegging!$B3=LAGSRESULTATER!$DN$26,Resultatinnlegging!G3,0) -> 0 | DQ32: =IF(Resultatinnlegging!$B3=LAGSRESULTATER!$DN$26,Resultatinnlegging!H3,0) -> 0 | DR32: =IF(Resultatinnlegging!$B3=LAGSRESULTATER!$DN$26,Resultatinnlegging!I3,0) -> 0 | DS32: =IF(Resultatinnlegging!$B3=LAGSRESULTATER!$DN$26,Resultatinnlegging!J3,0) -> 0 | DT32: =IF(Resultatinnlegging!$B3=LAGSRESULTATER!$DN$26,Resultatinnlegging!K3,0) -> 0 | DU32: =IF(Resultatinnlegging!$B3=LAGSRESULTATER!$DN$26,Resultatinnlegging!L3,0) -> 0 | DV32: =IF(Resultatinnlegging!$B3=LAGSRESULTATER!$DN$26,Resultatinnlegging!M3,0) -> 0 | DW32: =IF(Resultatinnlegging!$B3=LAGSRESULTATER!$DN$26,Resultatinnlegging!N3,0) -> 0 | DX32: =IF(Resultatinnlegging!$B3=LAGSRESULTATER!$DN$26,Resultatinnlegging!O3,0) -> 0 | EB32: =IF(Resultatinnlegging!$B3=LAGSRESULTATER!$EA$26,Resultatinnlegging!F3,0) -> 0 | EC32: =IF(Resultatinnlegging!$B3=LAGSRESULTATER!$EA$26,Resultatinnlegging!G3,0) -> 0 | ED32: =IF(Resultatinnlegging!$B3=LAGSRESULTATER!$EA$26,Resultatinnlegging!H3,0) -> 0 | EE32: =IF(Resultatinnlegging!$B3=LAGSRESULTATER!$EA$26,Resultatinnlegging!I3,0) -> 0 | EF32: =IF(Resultatinnlegging!$B3=LAGSRESULTATER!$EA$26,Resultatinnlegging!J3,0) -> 0 | EG32: =IF(Resultatinnlegging!$B3=LAGSRESULTATER!$EA$26,Resultatinnlegging!K3,0) -> 0 | EH32: =IF(Resultatinnlegging!$B3=LAGSRESULTATER!$EA$26,Resultatinnlegging!L3,0) -> 0 | EI32: =IF(Resultatinnlegging!$B3=LAGSRESULTATER!$EA$26,Resultatinnlegging!M3,0) -> 0 | EJ32: =IF(Resultatinnlegging!$B3=LAGSRESULTATER!$EA$26,Resultatinnlegging!N3,0) -> 0 | EK32: =IF(Resultatinnlegging!$B3=LAGSRESULTATER!$EA$26,Resultatinnlegging!O3,0) -> 0 | EO32: =IF(Resultatinnlegging!$B3=LAGSRESULTATER!$EN$26,Resultatinnlegging!F3,0) -> 0 | EP32: =IF(Resultatinnlegging!$B3=LAGSRESULTATER!$EN$26,Resultatinnlegging!G3,0) -> 0 | EQ32: =IF(Resultatinnlegging!$B3=LAGSRESULTATER!$EN$26,Resultatinnlegging!H3,0) -> 0 | ER32: =IF(Resultatinnlegging!$B3=LAGSRESULTATER!$EN$26,Resultatinnlegging!I3,0) -> 0 | ES32: =IF(Resultatinnlegging!$B3=LAGSRESULTATER!$EN$26,Resultatinnlegging!J3,0) -> 0 | ET32: =IF(Resultatinnlegging!$B3=LAGSRESULTATER!$EN$26,Resultatinnlegging!K3,0) -> 0 | EU32: =IF(Resultatinnlegging!$B3=LAGSRESULTATER!$EN$26,Resultatinnlegging!L3,0) -> 0 | EV32: =IF(Resultatinnlegging!$B3=LAGSRESULTATER!$EN$26,Resultatinnlegging!M3,0) -> 0 | EW32: =IF(Resultatinnlegging!$B3=LAGSRESULTATER!$EN$26,Resultatinnlegging!N3,0) -> 0 | EX32: =IF(Resultatinnlegging!$B3=LAGSRESULTATER!$EN$26,Resultatinnlegging!O3,0) -> 0 | FB32: =IF(Resultatinnlegging!$B3=LAGSRESULTATER!$FA$26,Resultatinnlegging!F3,0) -> 0 | FC32: =IF(Resultatinnlegging!$B3=LAGSRESULTATER!$FA$26,Resultatinnlegging!G3,0) -> 0 | FD32: =IF(Resultatinnlegging!$B3=LAGSRESULTATER!$FA$26,Resultatinnlegging!H3,0) -> 0 | FE32: =IF(Resultatinnlegging!$B3=LAGSRESULTATER!$FA$26,Resultatinnlegging!I3,0) -> 0 | FF32: =IF(Resultatinnlegging!$B3=LAGSRESULTATER!$FA$26,Resultatinnlegging!J3,0) -> 0 | FG32: =IF(Resultatinnlegging!$B3=LAGSRESULTATER!$FA$26,Resultatinnlegging!K3,0) -> 0 | FH32: =IF(Resultatinnlegging!$B3=LAGSRESULTATER!$FA$26,Resultatinnlegging!L3,0) -> 0 | FI32: =IF(Resultatinnlegging!$B3=LAGSRESULTATER!$FA$26,Resultatinnlegging!M3,0) -> 0 | FJ32: =IF(Resultatinnlegging!$B3=LAGSRESULTATER!$FA$26,Resultatinnlegging!N3,0) -> 0 | FK32: =IF(Resultatinnlegging!$B3=LAGSRESULTATER!$FA$26,Resultatinnlegging!O3,0) -> 0 | FO32: =IF(Resultatinnlegging!$B3=LAGSRESULTATER!$FN$26,Resultatinnlegging!F3,0) -> 0 | FP32: =IF(Resultatinnlegging!$B3=LAGSRESULTATER!$FN$26,Resultatinnlegging!G3,0) -> 0 | FQ32: =IF(Resultatinnlegging!$B3=LAGSRESULTATER!$FN$26,Resultatinnlegging!H3,0) -> 0 | FR32: =IF(Resultatinnlegging!$B3=LAGSRESULTATER!$FN$26,Resultatinnlegging!I3,0) -> 0 | FS32: =IF(Resultatinnlegging!$B3=LAGSRESULTATER!$FN$26,Resultatinnlegging!J3,0) -> 0 | FT32: =IF(Resultatinnlegging!$B3=LAGSRESULTATER!$FN$26,Resultatinnlegging!K3,0) -> 0 | FU32: =IF(Resultatinnlegging!$B3=LAGSRESULTATER!$FN$26,Resultatinnlegging!L3,0) -> 0 | FV32: =IF(Resultatinnlegging!$B3=LAGSRESULTATER!$FN$26,Resultatinnlegging!M3,0) -> 0 | FW32: =IF(Resultatinnlegging!$B3=LAGSRESULTATER!$FN$26,Resultatinnlegging!N3,0) -> 0 | FX32: =IF(Resultatinnlegging!$B3=LAGSRESULTATER!$FN$26,Resultatinnlegging!O3,0) -> 0 | GA32: 3 | GB32: =IF(Resultatinnlegging!$B3=LAGSRESULTATER!$GA$26,Resultatinnlegging!F3,0) -> 0 | GC32: =IF(Resultatinnlegging!$B3=LAGSRESULTATER!$GA$26,Resultatinnlegging!G3,0) -> 0 | GD32: =IF(Resultatinnlegging!$B3=LAGSRESULTATER!$GA$26,Resultatinnlegging!H3,0) -> 0 | GE32: =IF(Resultatinnlegging!$B3=LAGSRESULTATER!$GA$26,Resultatinnlegging!I3,0) -> 0 | GF32: =IF(Resultatinnlegging!$B3=LAGSRESULTATER!$GA$26,Resultatinnlegging!J3,0) -> 0 | GG32: =IF(Resultatinnlegging!$B3=LAGSRESULTATER!$GA$26,Resultatinnlegging!K3,0) -> 0 | GH32: =IF(Resultatinnlegging!$B3=LAGSRESULTATER!$GA$26,Resultatinnlegging!L3,0) -> 0 | GI32: =IF(Resultatinnlegging!$B3=LAGSRESULTATER!$GA$26,Resultatinnlegging!M3,0) -> 0 | GJ32: =IF(Resultatinnlegging!$B3=LAGSRESULTATER!$GA$26,Resultatinnlegging!N3,0) -> 0 | GK32: =IF(Resultatinnlegging!$B3=LAGSRESULTATER!$GA$26,Resultatinnlegging!O3,0) -> 0 | GN32: 1 | GO32: =IF(Resultatinnlegging!$B3=LAGSRESULTATER!$GN$26,Resultatinnlegging!F3,0) -> 0 | GP32: =IF(Resultatinnlegging!$B3=LAGSRESULTATER!$GN$26,Resultatinnlegging!G3,0) -> 0 | GQ32: =IF(Resultatinnlegging!$B3=LAGSRESULTATER!$GN$26,Resultatinnlegging!H3,0) -> 0 | GR32: =IF(Resultatinnlegging!$B3=LAGSRESULTATER!$GN$26,Resultatinnlegging!I3,0) -> 0 | GS32: =IF(Resultatinnlegging!$B3=LAGSRESULTATER!$GN$26,Resultatinnlegging!J3,0) -> 0 | GT32: =IF(Resultatinnlegging!$B3=LAGSRESULTATER!$GN$26,Resultatinnlegging!K3,0) -> 0 | GU32: =IF(Resultatinnlegging!$B3=LAGSRESULTATER!$GN$26,Resultatinnlegging!L3,0) -> 0 | GV32: =IF(Resultatinnlegging!$B3=LAGSRESULTATER!$GN$26,Resultatinnlegging!M3,0) -> 0 | GW32: =IF(Resultatinnlegging!$B3=LAGSRESULTATER!$GN$26,Resultatinnlegging!N3,0) -> 0 | GX32: =IF(Resultatinnlegging!$B3=LAGSRESULTATER!$GN$26,Resultatinnlegging!O3,0) -> 0 | HB32: =IF(Resultatinnlegging!$B3=LAGSRESULTATER!$HA$26,Resultatinnlegging!F3,0) -> 0 | HC32: =IF(Resultatinnlegging!$B3=LAGSRESULTATER!$HA$26,Resultatinnlegging!G3,0) -> 0 | HD32: =IF(Resultatinnlegging!$B3=LAGSRESULTATER!$HA$26,Resultatinnlegging!H3,0) -> 0 | HE32: =IF(Resultatinnlegging!$B3=LAGSRESULTATER!$HA$26,Resultatinnlegging!I3,0) -> 0 | HF32: =IF(Resultatinnlegging!$B3=LAGSRESULTATER!$HA$26,Resultatinnlegging!J3,0) -> 0 | HG32: =IF(Resultatinnlegging!$B3=LAGSRESULTATER!$HA$26,Resultatinnlegging!K3,0) -> 0 | HH32: =IF(Resultatinnlegging!$B3=LAGSRESULTATER!$HA$26,Resultatinnlegging!L3,0) -> 0 | HI32: =IF(Resultatinnlegging!$B3=LAGSRESULTATER!$HA$26,Resultatinnlegging!M3,0) -> 0 | HJ32: =IF(Resultatinnlegging!$B3=LAGSRESULTATER!$HA$26,Resultatinnlegging!N3,0) -> 0 | HK32: =IF(Resultatinnlegging!$B3=LAGSRESULTATER!$HA$26,Resultatinnlegging!O3,0) -> 0 | HO32: =IF(Resultatinnlegging!$B3=LAGSRESULTATER!$HN$26,Resultatinnlegging!F3,0) -> 0 | HP32: =IF(Resultatinnlegging!$B3=LAGSRESULTATER!$HN$26,Resultatinnlegging!G3,0) -> 0 | HQ32: =IF(Resultatinnlegging!$B3=LAGSRESULTATER!$HN$26,Resultatinnlegging!H3,0) -> 0 | HR32: =IF(Resultatinnlegging!$B3=LAGSRESULTATER!$HN$26,Resultatinnlegging!I3,0) -> 0 | HS32: =IF(Resultatinnlegging!$B3=LAGSRESULTATER!$HN$26,Resultatinnlegging!J3,0) -> 0 | HT32: =IF(Resultatinnlegging!$B3=LAGSRESULTATER!$HN$26,Resultatinnlegging!K3,0) -> 0 | HU32: =IF(Resultatinnlegging!$B3=LAGSRESULTATER!$HA$26,Resultatinnlegging!L3,0) -> 0 | HV32: =IF(Resultatinnlegging!$B3=LAGSRESULTATER!$HN$26,Resultatinnlegging!M3,0) -> 0 | HW32: =IF(Resultatinnlegging!$B3=LAGSRESULTATER!$HN$26,Resultatinnlegging!N3,0) -> 0 | HX32: =IF(Resultatinnlegging!$B3=LAGSRESULTATER!$HN$26,Resultatinnlegging!O3,0) -> 0 | IB32: =IF(Resultatinnlegging!$B3=LAGSRESULTATER!$IA$26,Resultatinnlegging!F3,0) -> 0 | IC32: =IF(Resultatinnlegging!$B3=LAGSRESULTATER!$IA$26,Resultatinnlegging!G3,0) -> 0 | ID32: =IF(Resultatinnlegging!$B3=LAGSRESULTATER!$IA$26,Resultatinnlegging!H3,0) -> 0 | IE32: =IF(Resultatinnlegging!$B3=LAGSRESULTATER!$IA$26,Resultatinnlegging!I3,0) -> 0 | IF32: =IF(Resultatinnlegging!$B3=LAGSRESULTATER!$IA$26,Resultatinnlegging!J3,0) -> 0 | IG32: =IF(Resultatinnlegging!$B3=LAGSRESULTATER!$IA$26,Resultatinnlegging!K3,0) -> 0 | IH32: =IF(Resultatinnlegging!$B3=LAGSRESULTATER!$IA$26,Resultatinnlegging!L3,0) -> 0 | II32: =IF(Resultatinnlegging!$B3=LAGSRESULTATER!$IA$26,Resultatinnlegging!M3,0) -> 0 | IJ32: =IF(Resultatinnlegging!$B3=LAGSRESULTATER!$IA$26,Resultatinnlegging!N3,0) -> 0 | IK32: =IF(Resultatinnlegging!$B3=LAGSRESULTATER!$IA$26,Resultatinnlegging!O3,0) -> 0
B33: =IF(Resultatinnlegging!$B4=LAGSRESULTATER!$A$26,Resultatinnlegging!F4,0) -> 0 | C33: =IF(Resultatinnlegging!$B4=LAGSRESULTATER!$A$26,Resultatinnlegging!G4,0) -> 0 | D33: =IF(Resultatinnlegging!$B4=LAGSRESULTATER!$A$26,Resultatinnlegging!H4,0) -> 0 | E33: =IF(Resultatinnlegging!$B4=LAGSRESULTATER!$A$26,Resultatinnlegging!I4,0) -> 0 | F33: =IF(Resultatinnlegging!$B4=LAGSRESULTATER!$A$26,Resultatinnlegging!J4,0) -> 0 | G33: =IF(Resultatinnlegging!$B4=LAGSRESULTATER!$A$26,Resultatinnlegging!K4,0) -> 0 | H33: =IF(Resultatinnlegging!$B4=LAGSRESULTATER!$A$26,Resultatinnlegging!L4,0) -> 0 | I33: =IF(Resultatinnlegging!$B4=LAGSRESULTATER!$A$26,Resultatinnlegging!M4,0) -> 0 | J33: =IF(Resultatinnlegging!$B4=LAGSRESULTATER!$A$26,Resultatinnlegging!N4,0) -> 0 | K33: =IF(Resultatinnlegging!$B4=LAGSRESULTATER!$A$26,Resultatinnlegging!O4,0) -> 0 | O33: =IF(Resultatinnlegging!$B4=LAGSRESULTATER!$N$26,Resultatinnlegging!F4,0) -> 0 | P33: =IF(Resultatinnlegging!$B4=LAGSRESULTATER!$N$26,Resultatinnlegging!G4,0) -> 0 | Q33: =IF(Resultatinnlegging!$B4=LAGSRESULTATER!$N$26,Resultatinnlegging!H4,0) -> 0 | R33: =IF(Resultatinnlegging!$B4=LAGSRESULTATER!$N$26,Resultatinnlegging!I4,0) -> 0 | S33: =IF(Resultatinnlegging!$B4=LAGSRESULTATER!$N$26,Resultatinnlegging!J4,0) -> 0 | T33: =IF(Resultatinnlegging!$B4=LAGSRESULTATER!$N$26,Resultatinnlegging!K4,0) -> 0 | U33: =IF(Resultatinnlegging!$B4=LAGSRESULTATER!$N$26,Resultatinnlegging!L4,0) -> 0 | V33: =IF(Resultatinnlegging!$B4=LAGSRESULTATER!$N$26,Resultatinnlegging!M4,0) -> 0 | W33: =IF(Resultatinnlegging!$B4=LAGSRESULTATER!$N$26,Resultatinnlegging!N4,0) -> 0 | X33: =IF(Resultatinnlegging!$B4=LAGSRESULTATER!$N$26,Resultatinnlegging!O4,0) -> 0 | AB33: =IF(Resultatinnlegging!$B41=LAGSRESULTATER!$AA$26,Resultatinnlegging!F41,0) -> 0 | AC33: =IF(Resultatinnlegging!$B4=LAGSRESULTATER!$AA$26,Resultatinnlegging!G4,0) -> 0 | AD33: =IF(Resultatinnlegging!$B4=LAGSRESULTATER!$AA$26,Resultatinnlegging!H4,0) -> 0 | AE33: =IF(Resultatinnlegging!$B4=LAGSRESULTATER!$AA$26,Resultatinnlegging!I4,0) -> 0 | AF33: =IF(Resultatinnlegging!$B4=LAGSRESULTATER!$AA$26,Resultatinnlegging!J4,0) -> 0 | AG33: =IF(Resultatinnlegging!$B4=LAGSRESULTATER!$AA$26,Resultatinnlegging!K4,0) -> 0 | AH33: =IF(Resultatinnlegging!$B4=LAGSRESULTATER!$AA$26,Resultatinnlegging!L4,0) -> 0 | AI33: =IF(Resultatinnlegging!$B4=LAGSRESULTATER!$AA$26,Resultatinnlegging!M4,0) -> 0 | AJ33: =IF(Resultatinnlegging!$B4=LAGSRESULTATER!$AA$26,Resultatinnlegging!N4,0) -> 0 | AK33: =IF(Resultatinnlegging!$B4=LAGSRESULTATER!$AA$26,Resultatinnlegging!O4,0) -> 0 | AO33: =IF(Resultatinnlegging!$B32=LAGSRESULTATER!$AN$26,Resultatinnlegging!F32,0) -> 0 | AP33: =IF(Resultatinnlegging!$B4=LAGSRESULTATER!$AN$26,Resultatinnlegging!G4,0) -> 0 | AQ33: =IF(Resultatinnlegging!$B4=LAGSRESULTATER!$AN$26,Resultatinnlegging!H4,0) -> 0 | AR33: =IF(Resultatinnlegging!$B4=LAGSRESULTATER!$AN$26,Resultatinnlegging!I4,0) -> 0 | AS33: =IF(Resultatinnlegging!$B4=LAGSRESULTATER!$AN$26,Resultatinnlegging!J4,0) -> 0 | AT33: =IF(Resultatinnlegging!$B4=LAGSRESULTATER!$AN$26,Resultatinnlegging!K4,0) -> 0 | AU33: =IF(Resultatinnlegging!$B4=LAGSRESULTATER!$AN$26,Resultatinnlegging!L4,0) -> 0 | AV33: =IF(Resultatinnlegging!$B4=LAGSRESULTATER!$AN$26,Resultatinnlegging!M4,0) -> 0 | AW33: =IF(Resultatinnlegging!$B4=LAGSRESULTATER!$AN$26,Resultatinnlegging!N4,0) -> 0 | AX33: =IF(Resultatinnlegging!$B4=LAGSRESULTATER!$AN$26,Resultatinnlegging!O4,0) -> 0 | BB33: =IF(Resultatinnlegging!$B50=LAGSRESULTATER!$BA$26,Resultatinnlegging!F50,0) -> 0 | BC33: =IF(Resultatinnlegging!$B4=LAGSRESULTATER!$BA$26,Resultatinnlegging!G4,0) -> 0 | BD33: =IF(Resultatinnlegging!$B4=LAGSRESULTATER!$BA$26,Resultatinnlegging!H4,0) -> 0 | BE33: =IF(Resultatinnlegging!$B4=LAGSRESULTATER!$BA$26,Resultatinnlegging!I4,0) -> 0 | BF33: =IF(Resultatinnlegging!$B4=LAGSRESULTATER!$BA$26,Resultatinnlegging!J4,0) -> 0 | BG33: =IF(Resultatinnlegging!$B4=LAGSRESULTATER!$BA$26,Resultatinnlegging!K4,0) -> 0 | BH33: =IF(Resultatinnlegging!$B4=LAGSRESULTATER!$BA$26,Resultatinnlegging!L4,0) -> 0 | BI33: =IF(Resultatinnlegging!$B4=LAGSRESULTATER!$BA$26,Resultatinnlegging!M4,0) -> 0 | BJ33: =IF(Resultatinnlegging!$B4=LAGSRESULTATER!$BA$26,Resultatinnlegging!N4,0) -> 0 | BK33: =IF(Resultatinnlegging!$B4=LAGSRESULTATER!$BA$26,Resultatinnlegging!O4,0) -> 0 | BO33: =IF(Resultatinnlegging!$B30=LAGSRESULTATER!$BN$26,Resultatinnlegging!F30,0) -> 0 | BP33: =IF(Resultatinnlegging!$B4=LAGSRESULTATER!$BN$26,Resultatinnlegging!G4,0) -> 0 | BQ33: =IF(Resultatinnlegging!$B4=LAGSRESULTATER!$BN$26,Resultatinnlegging!H4,0) -> 0 | BR33: =IF(Resultatinnlegging!$B4=LAGSRESULTATER!$BN$26,Resultatinnlegging!I4,0) -> 0 | BS33: =IF(Resultatinnlegging!$B4=LAGSRESULTATER!$BN$26,Resultatinnlegging!J4,0) -> 0 | BT33: =IF(Resultatinnlegging!$B4=LAGSRESULTATER!$BN$26,Resultatinnlegging!K4,0) -> 0 | BU33: =IF(Resultatinnlegging!$B4=LAGSRESULTATER!$BN$26,Resultatinnlegging!L4,0) -> 0 | BV33: =IF(Resultatinnlegging!$B4=LAGSRESULTATER!$BN$26,Resultatinnlegging!M4,0) -> 0 | BW33: =IF(Resultatinnlegging!$B4=LAGSRESULTATER!$BN$26,Resultatinnlegging!N4,0) -> 0 | BX33: =IF(Resultatinnlegging!$B4=LAGSRESULTATER!$BN$26,Resultatinnlegging!O4,0) -> 0 | CB33: =IF(Resultatinnlegging!$B69=LAGSRESULTATER!$CA$26,Resultatinnlegging!F69,0) -> 0 | CC33: =IF(Resultatinnlegging!$B4=LAGSRESULTATER!$CA$26,Resultatinnlegging!G4,0) -> 0 | CD33: =IF(Resultatinnlegging!$B4=LAGSRESULTATER!$CA$26,Resultatinnlegging!H4,0) -> 0 | CE33: =IF(Resultatinnlegging!$B4=LAGSRESULTATER!$CA$26,Resultatinnlegging!I4,0) -> 0 | CF33: =IF(Resultatinnlegging!$B4=LAGSRESULTATER!$CA$26,Resultatinnlegging!J4,0) -> 0 | CG33: =IF(Resultatinnlegging!$B4=LAGSRESULTATER!$CA$26,Resultatinnlegging!K4,0) -> 0 | CH33: =IF(Resultatinnlegging!$B4=LAGSRESULTATER!$CA$26,Resultatinnlegging!L4,0) -> 0 | CI33: =IF(Resultatinnlegging!$B4=LAGSRESULTATER!$CA$26,Resultatinnlegging!M4,0) -> 0 | CJ33: =IF(Resultatinnlegging!$B4=LAGSRESULTATER!$CA$26,Resultatinnlegging!N4,0) -> 0 | CK33: =IF(Resultatinnlegging!$B4=LAGSRESULTATER!$CA$26,Resultatinnlegging!O4,0) -> 0 | CO33: =IF(Resultatinnlegging!$B21=LAGSRESULTATER!$CN$26,Resultatinnlegging!F21,0) -> 0 | CP33: =IF(Resultatinnlegging!$B4=LAGSRESULTATER!$CN$26,Resultatinnlegging!G4,0) -> 0 | CQ33: =IF(Resultatinnlegging!$B4=LAGSRESULTATER!$CN$26,Resultatinnlegging!H4,0) -> 0 | CR33: =IF(Resultatinnlegging!$B4=LAGSRESULTATER!$CN$26,Resultatinnlegging!I4,0) -> 0 | CS33: =IF(Resultatinnlegging!$B4=LAGSRESULTATER!$CN$26,Resultatinnlegging!J4,0) -> 0 | CT33: =IF(Resultatinnlegging!$B4=LAGSRESULTATER!$CN$26,Resultatinnlegging!K4,0) -> 0 | CU33: =IF(Resultatinnlegging!$B4=LAGSRESULTATER!$CN$26,Resultatinnlegging!L4,0) -> 0 | CV33: =IF(Resultatinnlegging!$B4=LAGSRESULTATER!$CN$26,Resultatinnlegging!M4,0) -> 0 | CW33: =IF(Resultatinnlegging!$B4=LAGSRESULTATER!$CN$26,Resultatinnlegging!N4,0) -> 0 | CX33: =IF(Resultatinnlegging!$B4=LAGSRESULTATER!$CN$26,Resultatinnlegging!O4,0) -> 0 | DB33: =IF(Resultatinnlegging!$B14=LAGSRESULTATER!$DA$26,Resultatinnlegging!F14,0) -> 0 | DC33: =IF(Resultatinnlegging!$B4=LAGSRESULTATER!$DA$26,Resultatinnlegging!G4,0) -> 0 | DD33: =IF(Resultatinnlegging!$B4=LAGSRESULTATER!$DA$26,Resultatinnlegging!H4,0) -> 0 | DE33: =IF(Resultatinnlegging!$B4=LAGSRESULTATER!$DA$26,Resultatinnlegging!I4,0) -> 0 | DF33: =IF(Resultatinnlegging!$B4=LAGSRESULTATER!$DA$26,Resultatinnlegging!J4,0) -> 0 | DG33: =IF(Resultatinnlegging!$B4=LAGSRESULTATER!$DA$26,Resultatinnlegging!K4,0) -> 0 | DH33: =IF(Resultatinnlegging!$B4=LAGSRESULTATER!$DA$26,Resultatinnlegging!L4,0) -> 0 | DI33: =IF(Resultatinnlegging!$B4=LAGSRESULTATER!$DA$26,Resultatinnlegging!M4,0) -> 0 | DJ33: =IF(Resultatinnlegging!$B4=LAGSRESULTATER!$DA$26,Resultatinnlegging!N4,0) -> 0 | DK33: =IF(Resultatinnlegging!$B4=LAGSRESULTATER!$DA$26,Resultatinnlegging!O4,0) -> 0 | DO33: =IF(Resultatinnlegging!$B4=LAGSRESULTATER!$DN$26,Resultatinnlegging!F4,0) -> 0 | DP33: =IF(Resultatinnlegging!$B4=LAGSRESULTATER!$DN$26,Resultatinnlegging!G4,0) -> 0 | DQ33: =IF(Resultatinnlegging!$B4=LAGSRESULTATER!$DN$26,Resultatinnlegging!H4,0) -> 0 | DR33: =IF(Resultatinnlegging!$B4=LAGSRESULTATER!$DN$26,Resultatinnlegging!I4,0) -> 0 | DS33: =IF(Resultatinnlegging!$B4=LAGSRESULTATER!$DN$26,Resultatinnlegging!J4,0) -> 0 | DT33: =IF(Resultatinnlegging!$B4=LAGSRESULTATER!$DN$26,Resultatinnlegging!K4,0) -> 0 | DU33: =IF(Resultatinnlegging!$B4=LAGSRESULTATER!$DN$26,Resultatinnlegging!L4,0) -> 0 | DV33: =IF(Resultatinnlegging!$B4=LAGSRESULTATER!$DN$26,Resultatinnlegging!M4,0) -> 0 | DW33: =IF(Resultatinnlegging!$B4=LAGSRESULTATER!$DN$26,Resultatinnlegging!N4,0) -> 0 | DX33: =IF(Resultatinnlegging!$B4=LAGSRESULTATER!$DN$26,Resultatinnlegging!O4,0) -> 0 | EB33: =IF(Resultatinnlegging!$B4=LAGSRESULTATER!$EA$26,Resultatinnlegging!F4,0) -> 0 | EC33: =IF(Resultatinnlegging!$B4=LAGSRESULTATER!$EA$26,Resultatinnlegging!G4,0) -> 0 | ED33: =IF(Resultatinnlegging!$B4=LAGSRESULTATER!$EA$26,Resultatinnlegging!H4,0) -> 0 | EE33: =IF(Resultatinnlegging!$B4=LAGSRESULTATER!$EA$26,Resultatinnlegging!I4,0) -> 0 | EF33: =IF(Resultatinnlegging!$B4=LAGSRESULTATER!$EA$26,Resultatinnlegging!J4,0) -> 0 | EG33: =IF(Resultatinnlegging!$B4=LAGSRESULTATER!$EA$26,Resultatinnlegging!K4,0) -> 0 | EH33: =IF(Resultatinnlegging!$B4=LAGSRESULTATER!$EA$26,Resultatinnlegging!L4,0) -> 0 | EI33: =IF(Resultatinnlegging!$B4=LAGSRESULTATER!$EA$26,Resultatinnlegging!M4,0) -> 0 | EJ33: =IF(Resultatinnlegging!$B4=LAGSRESULTATER!$EA$26,Resultatinnlegging!N4,0) -> 0 | EK33: =IF(Resultatinnlegging!$B4=LAGSRESULTATER!$EA$26,Resultatinnlegging!O4,0) -> 0 | EO33: =IF(Resultatinnlegging!$B4=LAGSRESULTATER!$EN$26,Resultatinnlegging!F4,0) -> 0 | EP33: =IF(Resultatinnlegging!$B4=LAGSRESULTATER!$EN$26,Resultatinnlegging!G4,0) -> 0 | EQ33: =IF(Resultatinnlegging!$B4=LAGSRESULTATER!$EN$26,Resultatinnlegging!H4,0) -> 0 | ER33: =IF(Resultatinnlegging!$B4=LAGSRESULTATER!$EN$26,Resultatinnlegging!I4,0) -> 0 | ES33: =IF(Resultatinnlegging!$B4=LAGSRESULTATER!$EN$26,Resultatinnlegging!J4,0) -> 0 | ET33: =IF(Resultatinnlegging!$B4=LAGSRESULTATER!$EN$26,Resultatinnlegging!K4,0) -> 0 | EU33: =IF(Resultatinnlegging!$B4=LAGSRESULTATER!$EN$26,Resultatinnlegging!L4,0) -> 0 | EV33: =IF(Resultatinnlegging!$B4=LAGSRESULTATER!$EN$26,Resultatinnlegging!M4,0) -> 0 | EW33: =IF(Resultatinnlegging!$B4=LAGSRESULTATER!$EN$26,Resultatinnlegging!N4,0) -> 0 | EX33: =IF(Resultatinnlegging!$B4=LAGSRESULTATER!$EN$26,Resultatinnlegging!O4,0) -> 0 | FB33: =IF(Resultatinnlegging!$B4=LAGSRESULTATER!$FA$26,Resultatinnlegging!F4,0) -> 0 | FC33: =IF(Resultatinnlegging!$B4=LAGSRESULTATER!$FA$26,Resultatinnlegging!G4,0) -> 0 | FD33: =IF(Resultatinnlegging!$B4=LAGSRESULTATER!$FA$26,Resultatinnlegging!H4,0) -> 0 | FE33: =IF(Resultatinnlegging!$B4=LAGSRESULTATER!$FA$26,Resultatinnlegging!I4,0) -> 0 | FF33: =IF(Resultatinnlegging!$B4=LAGSRESULTATER!$FA$26,Resultatinnlegging!J4,0) -> 0 | FG33: =IF(Resultatinnlegging!$B4=LAGSRESULTATER!$FA$26,Resultatinnlegging!K4,0) -> 0 | FH33: =IF(Resultatinnlegging!$B4=LAGSRESULTATER!$FA$26,Resultatinnlegging!L4,0) -> 0 | FI33: =IF(Resultatinnlegging!$B4=LAGSRESULTATER!$FA$26,Resultatinnlegging!M4,0) -> 0 | FJ33: =IF(Resultatinnlegging!$B4=LAGSRESULTATER!$FA$26,Resultatinnlegging!N4,0) -> 0 | FK33: =IF(Resultatinnlegging!$B4=LAGSRESULTATER!$FA$26,Resultatinnlegging!O4,0) -> 0 | FO33: =IF(Resultatinnlegging!$B4=LAGSRESULTATER!$FN$26,Resultatinnlegging!F4,0) -> 0 | FP33: =IF(Resultatinnlegging!$B4=LAGSRESULTATER!$FN$26,Resultatinnlegging!G4,0) -> 0 | FQ33: =IF(Resultatinnlegging!$B4=LAGSRESULTATER!$FN$26,Resultatinnlegging!H4,0) -> 0 | FR33: =IF(Resultatinnlegging!$B4=LAGSRESULTATER!$FN$26,Resultatinnlegging!I4,0) -> 0 | FS33: =IF(Resultatinnlegging!$B4=LAGSRESULTATER!$FN$26,Resultatinnlegging!J4,0) -> 0 | FT33: =IF(Resultatinnlegging!$B4=LAGSRESULTATER!$FN$26,Resultatinnlegging!K4,0) -> 0 | FU33: =IF(Resultatinnlegging!$B4=LAGSRESULTATER!$FN$26,Resultatinnlegging!L4,0) -> 0 | FV33: =IF(Resultatinnlegging!$B4=LAGSRESULTATER!$FN$26,Resultatinnlegging!M4,0) -> 0 | FW33: =IF(Resultatinnlegging!$B4=LAGSRESULTATER!$FN$26,Resultatinnlegging!N4,0) -> 0 | FX33: =IF(Resultatinnlegging!$B4=LAGSRESULTATER!$FN$26,Resultatinnlegging!O4,0) -> 0 | GA33: 4 | GB33: =IF(Resultatinnlegging!$B4=LAGSRESULTATER!$GA$26,Resultatinnlegging!F4,0) -> 0 | GC33: =IF(Resultatinnlegging!$B4=LAGSRESULTATER!$GA$26,Resultatinnlegging!G4,0) -> 0 | GD33: =IF(Resultatinnlegging!$B4=LAGSRESULTATER!$GA$26,Resultatinnlegging!H4,0) -> 0 | GE33: =IF(Resultatinnlegging!$B4=LAGSRESULTATER!$GA$26,Resultatinnlegging!I4,0) -> 0 | GF33: =IF(Resultatinnlegging!$B4=LAGSRESULTATER!$GA$26,Resultatinnlegging!J4,0) -> 0 | GG33: =IF(Resultatinnlegging!$B4=LAGSRESULTATER!$GA$26,Resultatinnlegging!K4,0) -> 0 | GH33: =IF(Resultatinnlegging!$B4=LAGSRESULTATER!$GA$26,Resultatinnlegging!L4,0) -> 0 | GI33: =IF(Resultatinnlegging!$B4=LAGSRESULTATER!$GA$26,Resultatinnlegging!M4,0) -> 0 | GJ33: =IF(Resultatinnlegging!$B4=LAGSRESULTATER!$GA$26,Resultatinnlegging!N4,0) -> 0 | GK33: =IF(Resultatinnlegging!$B4=LAGSRESULTATER!$GA$26,Resultatinnlegging!O4,0) -> 0 | GN33: 2 | GO33: =IF(Resultatinnlegging!$B4=LAGSRESULTATER!$GN$26,Resultatinnlegging!F4,0) -> 0 | GP33: =IF(Resultatinnlegging!$B4=LAGSRESULTATER!$GN$26,Resultatinnlegging!G4,0) -> 0 | GQ33: =IF(Resultatinnlegging!$B4=LAGSRESULTATER!$GN$26,Resultatinnlegging!H4,0) -> 0 | GR33: =IF(Resultatinnlegging!$B4=LAGSRESULTATER!$GN$26,Resultatinnlegging!I4,0) -> 0 | GS33: =IF(Resultatinnlegging!$B4=LAGSRESULTATER!$GN$26,Resultatinnlegging!J4,0) -> 0 | GT33: =IF(Resultatinnlegging!$B4=LAGSRESULTATER!$GN$26,Resultatinnlegging!K4,0) -> 0 | GU33: =IF(Resultatinnlegging!$B4=LAGSRESULTATER!$GN$26,Resultatinnlegging!L4,0) -> 0 | GV33: =IF(Resultatinnlegging!$B4=LAGSRESULTATER!$GN$26,Resultatinnlegging!M4,0) -> 0 | GW33: =IF(Resultatinnlegging!$B4=LAGSRESULTATER!$GN$26,Resultatinnlegging!N4,0) -> 0 | GX33: =IF(Resultatinnlegging!$B4=LAGSRESULTATER!$GN$26,Resultatinnlegging!O4,0) -> 0 | HB33: =IF(Resultatinnlegging!$B4=LAGSRESULTATER!$HA$26,Resultatinnlegging!F4,0) -> 0 | HC33: =IF(Resultatinnlegging!$B4=LAGSRESULTATER!$HA$26,Resultatinnlegging!G4,0) -> 0 | HD33: =IF(Resultatinnlegging!$B4=LAGSRESULTATER!$HA$26,Resultatinnlegging!H4,0) -> 0 | HE33: =IF(Resultatinnlegging!$B4=LAGSRESULTATER!$HA$26,Resultatinnlegging!I4,0) -> 0 | HF33: =IF(Resultatinnlegging!$B4=LAGSRESULTATER!$HA$26,Resultatinnlegging!J4,0) -> 0 | HG33: =IF(Resultatinnlegging!$B4=LAGSRESULTATER!$HA$26,Resultatinnlegging!K4,0) -> 0 | HH33: =IF(Resultatinnlegging!$B4=LAGSRESULTATER!$HA$26,Resultatinnlegging!L4,0) -> 0 | HI33: =IF(Resultatinnlegging!$B4=LAGSRESULTATER!$HA$26,Resultatinnlegging!M4,0) -> 0 | HJ33: =IF(Resultatinnlegging!$B4=LAGSRESULTATER!$HA$26,Resultatinnlegging!N4,0) -> 0 | HK33: =IF(Resultatinnlegging!$B4=LAGSRESULTATER!$HA$26,Resultatinnlegging!O4,0) -> 0 | HO33: =IF(Resultatinnlegging!$B4=LAGSRESULTATER!$HN$26,Resultatinnlegging!F4,0) -> 0 | HP33: =IF(Resultatinnlegging!$B4=LAGSRESULTATER!$HN$26,Resultatinnlegging!G4,0) -> 0 | HQ33: =IF(Resultatinnlegging!$B4=LAGSRESULTATER!$HN$26,Resultatinnlegging!H4,0) -> 0 | HR33: =IF(Resultatinnlegging!$B4=LAGSRESULTATER!$HN$26,Resultatinnlegging!I4,0) -> 0 | HS33: =IF(Resultatinnlegging!$B4=LAGSRESULTATER!$HN$26,Resultatinnlegging!J4,0) -> 0 | HT33: =IF(Resultatinnlegging!$B4=LAGSRESULTATER!$HN$26,Resultatinnlegging!K4,0) -> 0 | HU33: =IF(Resultatinnlegging!$B4=LAGSRESULTATER!$HA$26,Resultatinnlegging!L4,0) -> 0 | HV33: =IF(Resultatinnlegging!$B4=LAGSRESULTATER!$HN$26,Resultatinnlegging!M4,0) -> 0 | HW33: =IF(Resultatinnlegging!$B4=LAGSRESULTATER!$HN$26,Resultatinnlegging!N4,0) -> 0 | HX33: =IF(Resultatinnlegging!$B4=LAGSRESULTATER!$HN$26,Resultatinnlegging!O4,0) -> 0 | IB33: =IF(Resultatinnlegging!$B4=LAGSRESULTATER!$IA$26,Resultatinnlegging!F4,0) -> 0 | IC33: =IF(Resultatinnlegging!$B4=LAGSRESULTATER!$IA$26,Resultatinnlegging!G4,0) -> 0 | ID33: =IF(Resultatinnlegging!$B4=LAGSRESULTATER!$IA$26,Resultatinnlegging!H4,0) -> 0 | IE33: =IF(Resultatinnlegging!$B4=LAGSRESULTATER!$IA$26,Resultatinnlegging!I4,0) -> 0 | IF33: =IF(Resultatinnlegging!$B4=LAGSRESULTATER!$IA$26,Resultatinnlegging!J4,0) -> 0 | IG33: =IF(Resultatinnlegging!$B4=LAGSRESULTATER!$IA$26,Resultatinnlegging!K4,0) -> 0 | IH33: =IF(Resultatinnlegging!$B4=LAGSRESULTATER!$IA$26,Resultatinnlegging!L4,0) -> 0 | II33: =IF(Resultatinnlegging!$B4=LAGSRESULTATER!$IA$26,Resultatinnlegging!M4,0) -> 0 | IJ33: =IF(Resultatinnlegging!$B4=LAGSRESULTATER!$IA$26,Resultatinnlegging!N4,0) -> 0 | IK33: =IF(Resultatinnlegging!$B4=LAGSRESULTATER!$IA$26,Resultatinnlegging!O4,0) -> 0
B34: =IF(Resultatinnlegging!$B5=LAGSRESULTATER!$A$26,Resultatinnlegging!F5,0) -> 0 | C34: =IF(Resultatinnlegging!$B5=LAGSRESULTATER!$A$26,Resultatinnlegging!G5,0) -> 0 | D34: =IF(Resultatinnlegging!$B5=LAGSRESULTATER!$A$26,Resultatinnlegging!H5,0) -> 0 | E34: =IF(Resultatinnlegging!$B5=LAGSRESULTATER!$A$26,Resultatinnlegging!I5,0) -> 0 | F34: =IF(Resultatinnlegging!$B5=LAGSRESULTATER!$A$26,Resultatinnlegging!J5,0) -> 0 | G34: =IF(Resultatinnlegging!$B5=LAGSRESULTATER!$A$26,Resultatinnlegging!K5,0) -> 0 | H34: =IF(Resultatinnlegging!$B5=LAGSRESULTATER!$A$26,Resultatinnlegging!L5,0) -> 0 | I34: =IF(Resultatinnlegging!$B5=LAGSRESULTATER!$A$26,Resultatinnlegging!M5,0) -> 0 | J34: =IF(Resultatinnlegging!$B5=LAGSRESULTATER!$A$26,Resultatinnlegging!N5,0) -> 0 | K34: =IF(Resultatinnlegging!$B5=LAGSRESULTATER!$A$26,Resultatinnlegging!O5,0) -> 0 | O34: =IF(Resultatinnlegging!$B5=LAGSRESULTATER!$N$26,Resultatinnlegging!F5,0) -> 0 | P34: =IF(Resultatinnlegging!$B5=LAGSRESULTATER!$N$26,Resultatinnlegging!G5,0) -> 0 | Q34: =IF(Resultatinnlegging!$B5=LAGSRESULTATER!$N$26,Resultatinnlegging!H5,0) -> 0 | R34: =IF(Resultatinnlegging!$B5=LAGSRESULTATER!$N$26,Resultatinnlegging!I5,0) -> 0 | S34: =IF(Resultatinnlegging!$B5=LAGSRESULTATER!$N$26,Resultatinnlegging!J5,0) -> 0 | T34: =IF(Resultatinnlegging!$B5=LAGSRESULTATER!$N$26,Resultatinnlegging!K5,0) -> 0 | U34: =IF(Resultatinnlegging!$B5=LAGSRESULTATER!$N$26,Resultatinnlegging!L5,0) -> 0 | V34: =IF(Resultatinnlegging!$B5=LAGSRESULTATER!$N$26,Resultatinnlegging!M5,0) -> 0 | W34: =IF(Resultatinnlegging!$B5=LAGSRESULTATER!$N$26,Resultatinnlegging!N5,0) -> 0 | X34: =IF(Resultatinnlegging!$B5=LAGSRESULTATER!$N$26,Resultatinnlegging!O5,0) -> 0 | AB34: =IF(Resultatinnlegging!$B42=LAGSRESULTATER!$AA$26,Resultatinnlegging!F42,0) -> 0 | AC34: =IF(Resultatinnlegging!$B5=LAGSRESULTATER!$AA$26,Resultatinnlegging!G5,0) -> 0 | AD34: =IF(Resultatinnlegging!$B5=LAGSRESULTATER!$AA$26,Resultatinnlegging!H5,0) -> 0 | AE34: =IF(Resultatinnlegging!$B5=LAGSRESULTATER!$AA$26,Resultatinnlegging!I5,0) -> 0 | AF34: =IF(Resultatinnlegging!$B5=LAGSRESULTATER!$AA$26,Resultatinnlegging!J5,0) -> 0 | AG34: =IF(Resultatinnlegging!$B5=LAGSRESULTATER!$AA$26,Resultatinnlegging!K5,0) -> 0 | AH34: =IF(Resultatinnlegging!$B5=LAGSRESULTATER!$AA$26,Resultatinnlegging!L5,0) -> 0 | AI34: =IF(Resultatinnlegging!$B5=LAGSRESULTATER!$AA$26,Resultatinnlegging!M5,0) -> 0 | AJ34: =IF(Resultatinnlegging!$B5=LAGSRESULTATER!$AA$26,Resultatinnlegging!N5,0) -> 0 | AK34: =IF(Resultatinnlegging!$B5=LAGSRESULTATER!$AA$26,Resultatinnlegging!O5,0) -> 0 | AO34: =IF(Resultatinnlegging!$B36=LAGSRESULTATER!$AN$26,Resultatinnlegging!F36,0) -> 0 | AP34: =IF(Resultatinnlegging!$B5=LAGSRESULTATER!$AN$26,Resultatinnlegging!G5,0) -> 0 | AQ34: =IF(Resultatinnlegging!$B5=LAGSRESULTATER!$AN$26,Resultatinnlegging!H5,0) -> 0 | AR34: =IF(Resultatinnlegging!$B5=LAGSRESULTATER!$AN$26,Resultatinnlegging!I5,0) -> 0 | AS34: =IF(Resultatinnlegging!$B5=LAGSRESULTATER!$AN$26,Resultatinnlegging!J5,0) -> 0 | AT34: =IF(Resultatinnlegging!$B5=LAGSRESULTATER!$AN$26,Resultatinnlegging!K5,0) -> 0 | AU34: =IF(Resultatinnlegging!$B5=LAGSRESULTATER!$AN$26,Resultatinnlegging!L5,0) -> 0 | AV34: =IF(Resultatinnlegging!$B5=LAGSRESULTATER!$AN$26,Resultatinnlegging!M5,0) -> 0 | AW34: =IF(Resultatinnlegging!$B5=LAGSRESULTATER!$AN$26,Resultatinnlegging!N5,0) -> 0 | AX34: =IF(Resultatinnlegging!$B5=LAGSRESULTATER!$AN$26,Resultatinnlegging!O5,0) -> 0 | BB34: =IF(Resultatinnlegging!$B51=LAGSRESULTATER!$BA$26,Resultatinnlegging!F51,0) -> 0 | BC34: =IF(Resultatinnlegging!$B5=LAGSRESULTATER!$BA$26,Resultatinnlegging!G5,0) -> 0 | BD34: =IF(Resultatinnlegging!$B5=LAGSRESULTATER!$BA$26,Resultatinnlegging!H5,0) -> 0 | BE34: =IF(Resultatinnlegging!$B5=LAGSRESULTATER!$BA$26,Resultatinnlegging!I5,0) -> 0 | BF34: =IF(Resultatinnlegging!$B5=LAGSRESULTATER!$BA$26,Resultatinnlegging!J5,0) -> 0 | BG34: =IF(Resultatinnlegging!$B5=LAGSRESULTATER!$BA$26,Resultatinnlegging!K5,0) -> 0 | BH34: =IF(Resultatinnlegging!$B5=LAGSRESULTATER!$BA$26,Resultatinnlegging!L5,0) -> 0 | BI34: =IF(Resultatinnlegging!$B5=LAGSRESULTATER!$BA$26,Resultatinnlegging!M5,0) -> 0 | BJ34: =IF(Resultatinnlegging!$B5=LAGSRESULTATER!$BA$26,Resultatinnlegging!N5,0) -> 0 | BK34: =IF(Resultatinnlegging!$B5=LAGSRESULTATER!$BA$26,Resultatinnlegging!O5,0) -> 0 | BO34: =IF(Resultatinnlegging!$B31=LAGSRESULTATER!$BN$26,Resultatinnlegging!F31,0) -> 0 | BP34: =IF(Resultatinnlegging!$B5=LAGSRESULTATER!$BN$26,Resultatinnlegging!G5,0) -> 0 | BQ34: =IF(Resultatinnlegging!$B5=LAGSRESULTATER!$BN$26,Resultatinnlegging!H5,0) -> 0 | BR34: =IF(Resultatinnlegging!$B5=LAGSRESULTATER!$BN$26,Resultatinnlegging!I5,0) -> 0 | BS34: =IF(Resultatinnlegging!$B5=LAGSRESULTATER!$BN$26,Resultatinnlegging!J5,0) -> 0 | BT34: =IF(Resultatinnlegging!$B5=LAGSRESULTATER!$BN$26,Resultatinnlegging!K5,0) -> 0 | BU34: =IF(Resultatinnlegging!$B5=LAGSRESULTATER!$BN$26,Resultatinnlegging!L5,0) -> 0 | BV34: =IF(Resultatinnlegging!$B5=LAGSRESULTATER!$BN$26,Resultatinnlegging!M5,0) -> 0 | BW34: =IF(Resultatinnlegging!$B5=LAGSRESULTATER!$BN$26,Resultatinnlegging!N5,0) -> 0 | BX34: =IF(Resultatinnlegging!$B5=LAGSRESULTATER!$BN$26,Resultatinnlegging!O5,0) -> 0 | CB34: =IF(Resultatinnlegging!$B70=LAGSRESULTATER!$CA$26,Resultatinnlegging!F70,0) -> 0 | CC34: =IF(Resultatinnlegging!$B5=LAGSRESULTATER!$CA$26,Resultatinnlegging!G5,0) -> 0 | CD34: =IF(Resultatinnlegging!$B5=LAGSRESULTATER!$CA$26,Resultatinnlegging!H5,0) -> 0 | CE34: =IF(Resultatinnlegging!$B5=LAGSRESULTATER!$CA$26,Resultatinnlegging!I5,0) -> 0 | CF34: =IF(Resultatinnlegging!$B5=LAGSRESULTATER!$CA$26,Resultatinnlegging!J5,0) -> 0 | CG34: =IF(Resultatinnlegging!$B5=LAGSRESULTATER!$CA$26,Resultatinnlegging!K5,0) -> 0 | CH34: =IF(Resultatinnlegging!$B5=LAGSRESULTATER!$CA$26,Resultatinnlegging!L5,0) -> 0 | CI34: =IF(Resultatinnlegging!$B5=LAGSRESULTATER!$CA$26,Resultatinnlegging!M5,0) -> 0 | CJ34: =IF(Resultatinnlegging!$B5=LAGSRESULTATER!$CA$26,Resultatinnlegging!N5,0) -> 0 | CK34: =IF(Resultatinnlegging!$B5=LAGSRESULTATER!$CA$26,Resultatinnlegging!O5,0) -> 0 | CO34: =IF(Resultatinnlegging!$B22=LAGSRESULTATER!$CN$26,Resultatinnlegging!F22,0) -> 0 | CP34: =IF(Resultatinnlegging!$B5=LAGSRESULTATER!$CN$26,Resultatinnlegging!G5,0) -> 0 | CQ34: =IF(Resultatinnlegging!$B5=LAGSRESULTATER!$CN$26,Resultatinnlegging!H5,0) -> 0 | CR34: =IF(Resultatinnlegging!$B5=LAGSRESULTATER!$CN$26,Resultatinnlegging!I5,0) -> 0 | CS34: =IF(Resultatinnlegging!$B5=LAGSRESULTATER!$CN$26,Resultatinnlegging!J5,0) -> 0 | CT34: =IF(Resultatinnlegging!$B5=LAGSRESULTATER!$CN$26,Resultatinnlegging!K5,0) -> 0 | CU34: =IF(Resultatinnlegging!$B5=LAGSRESULTATER!$CN$26,Resultatinnlegging!L5,0) -> 0 | CV34: =IF(Resultatinnlegging!$B5=LAGSRESULTATER!$CN$26,Resultatinnlegging!M5,0) -> 0 | CW34: =IF(Resultatinnlegging!$B5=LAGSRESULTATER!$CN$26,Resultatinnlegging!N5,0) -> 0 | CX34: =IF(Resultatinnlegging!$B5=LAGSRESULTATER!$CN$26,Resultatinnlegging!O5,0) -> 0 | DB34: =IF(Resultatinnlegging!$B15=LAGSRESULTATER!$DA$26,Resultatinnlegging!F15,0) -> 0 | DC34: =IF(Resultatinnlegging!$B5=LAGSRESULTATER!$DA$26,Resultatinnlegging!G5,0) -> 0 | DD34: =IF(Resultatinnlegging!$B5=LAGSRESULTATER!$DA$26,Resultatinnlegging!H5,0) -> 0 | DE34: =IF(Resultatinnlegging!$B5=LAGSRESULTATER!$DA$26,Resultatinnlegging!I5,0) -> 0 | DF34: =IF(Resultatinnlegging!$B5=LAGSRESULTATER!$DA$26,Resultatinnlegging!J5,0) -> 0 | DG34: =IF(Resultatinnlegging!$B5=LAGSRESULTATER!$DA$26,Resultatinnlegging!K5,0) -> 0 | DH34: =IF(Resultatinnlegging!$B5=LAGSRESULTATER!$DA$26,Resultatinnlegging!L5,0) -> 0 | DI34: =IF(Resultatinnlegging!$B5=LAGSRESULTATER!$DA$26,Resultatinnlegging!M5,0) -> 0 | DJ34: =IF(Resultatinnlegging!$B5=LAGSRESULTATER!$DA$26,Resultatinnlegging!N5,0) -> 0 | DK34: =IF(Resultatinnlegging!$B5=LAGSRESULTATER!$DA$26,Resultatinnlegging!O5,0) -> 0 | DO34: =IF(Resultatinnlegging!$B5=LAGSRESULTATER!$DN$26,Resultatinnlegging!F5,0) -> 0 | DP34: =IF(Resultatinnlegging!$B5=LAGSRESULTATER!$DN$26,Resultatinnlegging!G5,0) -> 0 | DQ34: =IF(Resultatinnlegging!$B5=LAGSRESULTATER!$DN$26,Resultatinnlegging!H5,0) -> 0 | DR34: =IF(Resultatinnlegging!$B5=LAGSRESULTATER!$DN$26,Resultatinnlegging!I5,0) -> 0 | DS34: =IF(Resultatinnlegging!$B5=LAGSRESULTATER!$DN$26,Resultatinnlegging!J5,0) -> 0 | DT34: =IF(Resultatinnlegging!$B5=LAGSRESULTATER!$DN$26,Resultatinnlegging!K5,0) -> 0 | DU34: =IF(Resultatinnlegging!$B5=LAGSRESULTATER!$DN$26,Resultatinnlegging!L5,0) -> 0 | DV34: =IF(Resultatinnlegging!$B5=LAGSRESULTATER!$DN$26,Resultatinnlegging!M5,0) -> 0 | DW34: =IF(Resultatinnlegging!$B5=LAGSRESULTATER!$DN$26,Resultatinnlegging!N5,0) -> 0 | DX34: =IF(Resultatinnlegging!$B5=LAGSRESULTATER!$DN$26,Resultatinnlegging!O5,0) -> 0 | EB34: =IF(Resultatinnlegging!$B5=LAGSRESULTATER!$EA$26,Resultatinnlegging!F5,0) -> 0 | EC34: =IF(Resultatinnlegging!$B5=LAGSRESULTATER!$EA$26,Resultatinnlegging!G5,0) -> 0 | ED34: =IF(Resultatinnlegging!$B5=LAGSRESULTATER!$EA$26,Resultatinnlegging!H5,0) -> 0 | EE34: =IF(Resultatinnlegging!$B5=LAGSRESULTATER!$EA$26,Resultatinnlegging!I5,0) -> 0 | EF34: =IF(Resultatinnlegging!$B5=LAGSRESULTATER!$EA$26,Resultatinnlegging!J5,0) -> 0 | EG34: =IF(Resultatinnlegging!$B5=LAGSRESULTATER!$EA$26,Resultatinnlegging!K5,0) -> 0 | EH34: =IF(Resultatinnlegging!$B5=LAGSRESULTATER!$EA$26,Resultatinnlegging!L5,0) -> 0 | EI34: =IF(Resultatinnlegging!$B5=LAGSRESULTATER!$EA$26,Resultatinnlegging!M5,0) -> 0 | EJ34: =IF(Resultatinnlegging!$B5=LAGSRESULTATER!$EA$26,Resultatinnlegging!N5,0) -> 0 | EK34: =IF(Resultatinnlegging!$B5=LAGSRESULTATER!$EA$26,Resultatinnlegging!O5,0) -> 0 | EO34: =IF(Resultatinnlegging!$B5=LAGSRESULTATER!$EN$26,Resultatinnlegging!F5,0) -> 0 | EP34: =IF(Resultatinnlegging!$B5=LAGSRESULTATER!$EN$26,Resultatinnlegging!G5,0) -> 0 | EQ34: =IF(Resultatinnlegging!$B5=LAGSRESULTATER!$EN$26,Resultatinnlegging!H5,0) -> 0 | ER34: =IF(Resultatinnlegging!$B5=LAGSRESULTATER!$EN$26,Resultatinnlegging!I5,0) -> 0 | ES34: =IF(Resultatinnlegging!$B5=LAGSRESULTATER!$EN$26,Resultatinnlegging!J5,0) -> 0 | ET34: =IF(Resultatinnlegging!$B5=LAGSRESULTATER!$EN$26,Resultatinnlegging!K5,0) -> 0 | EU34: =IF(Resultatinnlegging!$B5=LAGSRESULTATER!$EN$26,Resultatinnlegging!L5,0) -> 0 | EV34: =IF(Resultatinnlegging!$B5=LAGSRESULTATER!$EN$26,Resultatinnlegging!M5,0) -> 0 | EW34: =IF(Resultatinnlegging!$B5=LAGSRESULTATER!$EN$26,Resultatinnlegging!N5,0) -> 0 | EX34: =IF(Resultatinnlegging!$B5=LAGSRESULTATER!$EN$26,Resultatinnlegging!O5,0) -> 0 | FB34: =IF(Resultatinnlegging!$B5=LAGSRESULTATER!$FA$26,Resultatinnlegging!F5,0) -> 0 | FC34: =IF(Resultatinnlegging!$B5=LAGSRESULTATER!$FA$26,Resultatinnlegging!G5,0) -> 0 | FD34: =IF(Resultatinnlegging!$B5=LAGSRESULTATER!$FA$26,Resultatinnlegging!H5,0) -> 0 | FE34: =IF(Resultatinnlegging!$B5=LAGSRESULTATER!$FA$26,Resultatinnlegging!I5,0) -> 0 | FF34: =IF(Resultatinnlegging!$B5=LAGSRESULTATER!$FA$26,Resultatinnlegging!J5,0) -> 0 | FG34: =IF(Resultatinnlegging!$B5=LAGSRESULTATER!$FA$26,Resultatinnlegging!K5,0) -> 0 | FH34: =IF(Resultatinnlegging!$B5=LAGSRESULTATER!$FA$26,Resultatinnlegging!L5,0) -> 0 | FI34: =IF(Resultatinnlegging!$B5=LAGSRESULTATER!$FA$26,Resultatinnlegging!M5,0) -> 0 | FJ34: =IF(Resultatinnlegging!$B5=LAGSRESULTATER!$FA$26,Resultatinnlegging!N5,0) -> 0 | FK34: =IF(Resultatinnlegging!$B5=LAGSRESULTATER!$FA$26,Resultatinnlegging!O5,0) -> 0 | FO34: =IF(Resultatinnlegging!$B5=LAGSRESULTATER!$FN$26,Resultatinnlegging!F5,0) -> 0 | FP34: =IF(Resultatinnlegging!$B5=LAGSRESULTATER!$FN$26,Resultatinnlegging!G5,0) -> 0 | FQ34: =IF(Resultatinnlegging!$B5=LAGSRESULTATER!$FN$26,Resultatinnlegging!H5,0) -> 0 | FR34: =IF(Resultatinnlegging!$B5=LAGSRESULTATER!$FN$26,Resultatinnlegging!I5,0) -> 0 | FS34: =IF(Resultatinnlegging!$B5=LAGSRESULTATER!$FN$26,Resultatinnlegging!J5,0) -> 0 | FT34: =IF(Resultatinnlegging!$B5=LAGSRESULTATER!$FN$26,Resultatinnlegging!K5,0) -> 0 | FU34: =IF(Resultatinnlegging!$B5=LAGSRESULTATER!$FN$26,Resultatinnlegging!L5,0) -> 0 | FV34: =IF(Resultatinnlegging!$B5=LAGSRESULTATER!$FN$26,Resultatinnlegging!M5,0) -> 0 | FW34: =IF(Resultatinnlegging!$B5=LAGSRESULTATER!$FN$26,Resultatinnlegging!N5,0) -> 0 | FX34: =IF(Resultatinnlegging!$B5=LAGSRESULTATER!$FN$26,Resultatinnlegging!O5,0) -> 0 | GA34: 5 | GB34: =IF(Resultatinnlegging!$B5=LAGSRESULTATER!$GA$26,Resultatinnlegging!F5,0) -> 0 | GC34: =IF(Resultatinnlegging!$B5=LAGSRESULTATER!$GA$26,Resultatinnlegging!G5,0) -> 0 | GD34: =IF(Resultatinnlegging!$B5=LAGSRESULTATER!$GA$26,Resultatinnlegging!H5,0) -> 0 | GE34: =IF(Resultatinnlegging!$B5=LAGSRESULTATER!$GA$26,Resultatinnlegging!I5,0) -> 0 | GF34: =IF(Resultatinnlegging!$B5=LAGSRESULTATER!$GA$26,Resultatinnlegging!J5,0) -> 0 | GG34: =IF(Resultatinnlegging!$B5=LAGSRESULTATER!$GA$26,Resultatinnlegging!K5,0) -> 0 | GH34: =IF(Resultatinnlegging!$B5=LAGSRESULTATER!$GA$26,Resultatinnlegging!L5,0) -> 0 | GI34: =IF(Resultatinnlegging!$B5=LAGSRESULTATER!$GA$26,Resultatinnlegging!M5,0) -> 0 | GJ34: =IF(Resultatinnlegging!$B5=LAGSRESULTATER!$GA$26,Resultatinnlegging!N5,0) -> 0 | GK34: =IF(Resultatinnlegging!$B5=LAGSRESULTATER!$GA$26,Resultatinnlegging!O5,0) -> 0 | GN34: 3 | GO34: =IF(Resultatinnlegging!$B5=LAGSRESULTATER!$GN$26,Resultatinnlegging!F5,0) -> 0 | GP34: =IF(Resultatinnlegging!$B5=LAGSRESULTATER!$GN$26,Resultatinnlegging!G5,0) -> 0 | GQ34: =IF(Resultatinnlegging!$B5=LAGSRESULTATER!$GN$26,Resultatinnlegging!H5,0) -> 0 | GR34: =IF(Resultatinnlegging!$B5=LAGSRESULTATER!$GN$26,Resultatinnlegging!I5,0) -> 0 | GS34: =IF(Resultatinnlegging!$B5=LAGSRESULTATER!$GN$26,Resultatinnlegging!J5,0) -> 0 | GT34: =IF(Resultatinnlegging!$B5=LAGSRESULTATER!$GN$26,Resultatinnlegging!K5,0) -> 0 | GU34: =IF(Resultatinnlegging!$B5=LAGSRESULTATER!$GN$26,Resultatinnlegging!L5,0) -> 0 | GV34: =IF(Resultatinnlegging!$B5=LAGSRESULTATER!$GN$26,Resultatinnlegging!M5,0) -> 0 | GW34: =IF(Resultatinnlegging!$B5=LAGSRESULTATER!$GN$26,Resultatinnlegging!N5,0) -> 0 | GX34: =IF(Resultatinnlegging!$B5=LAGSRESULTATER!$GN$26,Resultatinnlegging!O5,0) -> 0 | HB34: =IF(Resultatinnlegging!$B5=LAGSRESULTATER!$HA$26,Resultatinnlegging!F5,0) -> 0 | HC34: =IF(Resultatinnlegging!$B5=LAGSRESULTATER!$HA$26,Resultatinnlegging!G5,0) -> 0 | HD34: =IF(Resultatinnlegging!$B5=LAGSRESULTATER!$HA$26,Resultatinnlegging!H5,0) -> 0 | HE34: =IF(Resultatinnlegging!$B5=LAGSRESULTATER!$HA$26,Resultatinnlegging!I5,0) -> 0 | HF34: =IF(Resultatinnlegging!$B5=LAGSRESULTATER!$HA$26,Resultatinnlegging!J5,0) -> 0 | HG34: =IF(Resultatinnlegging!$B5=LAGSRESULTATER!$HA$26,Resultatinnlegging!K5,0) -> 0 | HH34: =IF(Resultatinnlegging!$B5=LAGSRESULTATER!$HA$26,Resultatinnlegging!L5,0) -> 0 | HI34: =IF(Resultatinnlegging!$B5=LAGSRESULTATER!$HA$26,Resultatinnlegging!M5,0) -> 0 | HJ34: =IF(Resultatinnlegging!$B5=LAGSRESULTATER!$HA$26,Resultatinnlegging!N5,0) -> 0 | HK34: =IF(Resultatinnlegging!$B5=LAGSRESULTATER!$HA$26,Resultatinnlegging!O5,0) -> 0 | HO34: =IF(Resultatinnlegging!$B5=LAGSRESULTATER!$HN$26,Resultatinnlegging!F5,0) -> 0 | HP34: =IF(Resultatinnlegging!$B5=LAGSRESULTATER!$HN$26,Resultatinnlegging!G5,0) -> 0 | HQ34: =IF(Resultatinnlegging!$B5=LAGSRESULTATER!$HN$26,Resultatinnlegging!H5,0) -> 0 | HR34: =IF(Resultatinnlegging!$B5=LAGSRESULTATER!$HN$26,Resultatinnlegging!I5,0) -> 0 | HS34: =IF(Resultatinnlegging!$B5=LAGSRESULTATER!$HN$26,Resultatinnlegging!J5,0) -> 0 | HT34: =IF(Resultatinnlegging!$B5=LAGSRESULTATER!$HN$26,Resultatinnlegging!K5,0) -> 0 | HU34: =IF(Resultatinnlegging!$B5=LAGSRESULTATER!$HA$26,Resultatinnlegging!L5,0) -> 0 | HV34: =IF(Resultatinnlegging!$B5=LAGSRESULTATER!$HN$26,Resultatinnlegging!M5,0) -> 0 | HW34: =IF(Resultatinnlegging!$B5=LAGSRESULTATER!$HN$26,Resultatinnlegging!N5,0) -> 0 | HX34: =IF(Resultatinnlegging!$B5=LAGSRESULTATER!$HN$26,Resultatinnlegging!O5,0) -> 0 | IB34: =IF(Resultatinnlegging!$B5=LAGSRESULTATER!$IA$26,Resultatinnlegging!F5,0) -> 0 | IC34: =IF(Resultatinnlegging!$B5=LAGSRESULTATER!$IA$26,Resultatinnlegging!G5,0) -> 0 | ID34: =IF(Resultatinnlegging!$B5=LAGSRESULTATER!$IA$26,Resultatinnlegging!H5,0) -> 0 | IE34: =IF(Resultatinnlegging!$B5=LAGSRESULTATER!$IA$26,Resultatinnlegging!I5,0) -> 0 | IF34: =IF(Resultatinnlegging!$B5=LAGSRESULTATER!$IA$26,Resultatinnlegging!J5,0) -> 0 | IG34: =IF(Resultatinnlegging!$B5=LAGSRESULTATER!$IA$26,Resultatinnlegging!K5,0) -> 0 | IH34: =IF(Resultatinnlegging!$B5=LAGSRESULTATER!$IA$26,Resultatinnlegging!L5,0) -> 0 | II34: =IF(Resultatinnlegging!$B5=LAGSRESULTATER!$IA$26,Resultatinnlegging!M5,0) -> 0 | IJ34: =IF(Resultatinnlegging!$B5=LAGSRESULTATER!$IA$26,Resultatinnlegging!N5,0) -> 0 | IK34: =IF(Resultatinnlegging!$B5=LAGSRESULTATER!$IA$26,Resultatinnlegging!O5,0) -> 0
B35: =IF(Resultatinnlegging!$B6=LAGSRESULTATER!$A$26,Resultatinnlegging!F6,0) -> 0 | C35: =IF(Resultatinnlegging!$B6=LAGSRESULTATER!$A$26,Resultatinnlegging!G6,0) -> 0 | D35: =IF(Resultatinnlegging!$B6=LAGSRESULTATER!$A$26,Resultatinnlegging!H6,0) -> 0 | E35: =IF(Resultatinnlegging!$B6=LAGSRESULTATER!$A$26,Resultatinnlegging!I6,0) -> 0 | F35: =IF(Resultatinnlegging!$B6=LAGSRESULTATER!$A$26,Resultatinnlegging!J6,0) -> 0 | G35: =IF(Resultatinnlegging!$B6=LAGSRESULTATER!$A$26,Resultatinnlegging!K6,0) -> 0 | H35: =IF(Resultatinnlegging!$B6=LAGSRESULTATER!$A$26,Resultatinnlegging!L6,0) -> 0 | I35: =IF(Resultatinnlegging!$B6=LAGSRESULTATER!$A$26,Resultatinnlegging!M6,0) -> 0 | J35: =IF(Resultatinnlegging!$B6=LAGSRESULTATER!$A$26,Resultatinnlegging!N6,0) -> 0 | K35: =IF(Resultatinnlegging!$B6=LAGSRESULTATER!$A$26,Resultatinnlegging!O6,0) -> 0 | O35: =IF(Resultatinnlegging!$B6=LAGSRESULTATER!$N$26,Resultatinnlegging!F6,0) -> 0 | P35: =IF(Resultatinnlegging!$B6=LAGSRESULTATER!$N$26,Resultatinnlegging!G6,0) -> 0 | Q35: =IF(Resultatinnlegging!$B6=LAGSRESULTATER!$N$26,Resultatinnlegging!H6,0) -> 0 | R35: =IF(Resultatinnlegging!$B6=LAGSRESULTATER!$N$26,Resultatinnlegging!I6,0) -> 0 | S35: =IF(Resultatinnlegging!$B6=LAGSRESULTATER!$N$26,Resultatinnlegging!J6,0) -> 0 | T35: =IF(Resultatinnlegging!$B6=LAGSRESULTATER!$N$26,Resultatinnlegging!K6,0) -> 0 | U35: =IF(Resultatinnlegging!$B6=LAGSRESULTATER!$N$26,Resultatinnlegging!L6,0) -> 0 | V35: =IF(Resultatinnlegging!$B6=LAGSRESULTATER!$N$26,Resultatinnlegging!M6,0) -> 0 | W35: =IF(Resultatinnlegging!$B6=LAGSRESULTATER!$N$26,Resultatinnlegging!N6,0) -> 0 | X35: =IF(Resultatinnlegging!$B6=LAGSRESULTATER!$N$26,Resultatinnlegging!O6,0) -> 0 | AB35: =IF(Resultatinnlegging!$B43=LAGSRESULTATER!$AA$26,Resultatinnlegging!F43,0) -> 0 | AC35: =IF(Resultatinnlegging!$B6=LAGSRESULTATER!$AA$26,Resultatinnlegging!G6,0) -> 0 | AD35: =IF(Resultatinnlegging!$B6=LAGSRESULTATER!$AA$26,Resultatinnlegging!H6,0) -> 0 | AE35: =IF(Resultatinnlegging!$B6=LAGSRESULTATER!$AA$26,Resultatinnlegging!I6,0) -> 0 | AF35: =IF(Resultatinnlegging!$B6=LAGSRESULTATER!$AA$26,Resultatinnlegging!J6,0) -> 0 | AG35: =IF(Resultatinnlegging!$B6=LAGSRESULTATER!$AA$26,Resultatinnlegging!K6,0) -> 0 | AH35: =IF(Resultatinnlegging!$B6=LAGSRESULTATER!$AA$26,Resultatinnlegging!L6,0) -> 0 | AI35: =IF(Resultatinnlegging!$B6=LAGSRESULTATER!$AA$26,Resultatinnlegging!M6,0) -> 0 | AJ35: =IF(Resultatinnlegging!$B6=LAGSRESULTATER!$AA$26,Resultatinnlegging!N6,0) -> 0 | AK35: =IF(Resultatinnlegging!$B6=LAGSRESULTATER!$AA$26,Resultatinnlegging!O6,0) -> 0 | AO35: =IF(Resultatinnlegging!$B37=LAGSRESULTATER!$AN$26,Resultatinnlegging!F37,0) -> 0 | AP35: =IF(Resultatinnlegging!$B6=LAGSRESULTATER!$AN$26,Resultatinnlegging!G6,0) -> 0 | AQ35: =IF(Resultatinnlegging!$B6=LAGSRESULTATER!$AN$26,Resultatinnlegging!H6,0) -> 0 | AR35: =IF(Resultatinnlegging!$B6=LAGSRESULTATER!$AN$26,Resultatinnlegging!I6,0) -> 0 | AS35: =IF(Resultatinnlegging!$B6=LAGSRESULTATER!$AN$26,Resultatinnlegging!J6,0) -> 0 | AT35: =IF(Resultatinnlegging!$B6=LAGSRESULTATER!$AN$26,Resultatinnlegging!K6,0) -> 0 | AU35: =IF(Resultatinnlegging!$B6=LAGSRESULTATER!$AN$26,Resultatinnlegging!L6,0) -> 0 | AV35: =IF(Resultatinnlegging!$B6=LAGSRESULTATER!$AN$26,Resultatinnlegging!M6,0) -> 0 | AW35: =IF(Resultatinnlegging!$B6=LAGSRESULTATER!$AN$26,Resultatinnlegging!N6,0) -> 0 | AX35: =IF(Resultatinnlegging!$B6=LAGSRESULTATER!$AN$26,Resultatinnlegging!O6,0) -> 0 | BB35: =IF(Resultatinnlegging!$B52=LAGSRESULTATER!$BA$26,Resultatinnlegging!F52,0) -> 0 | BC35: =IF(Resultatinnlegging!$B6=LAGSRESULTATER!$BA$26,Resultatinnlegging!G6,0) -> 0 | BD35: =IF(Resultatinnlegging!$B6=LAGSRESULTATER!$BA$26,Resultatinnlegging!H6,0) -> 0 | BE35: =IF(Resultatinnlegging!$B6=LAGSRESULTATER!$BA$26,Resultatinnlegging!I6,0) -> 0 | BF35: =IF(Resultatinnlegging!$B6=LAGSRESULTATER!$BA$26,Resultatinnlegging!J6,0) -> 0 | BG35: =IF(Resultatinnlegging!$B6=LAGSRESULTATER!$BA$26,Resultatinnlegging!K6,0) -> 0 | BH35: =IF(Resultatinnlegging!$B6=LAGSRESULTATER!$BA$26,Resultatinnlegging!L6,0) -> 0 | BI35: =IF(Resultatinnlegging!$B6=LAGSRESULTATER!$BA$26,Resultatinnlegging!M6,0) -> 0 | BJ35: =IF(Resultatinnlegging!$B6=LAGSRESULTATER!$BA$26,Resultatinnlegging!N6,0) -> 0 | BK35: =IF(Resultatinnlegging!$B6=LAGSRESULTATER!$BA$26,Resultatinnlegging!O6,0) -> 0 | BO35: =IF(Resultatinnlegging!$B32=LAGSRESULTATER!$BN$26,Resultatinnlegging!F32,0) -> 0 | BP35: =IF(Resultatinnlegging!$B6=LAGSRESULTATER!$BN$26,Resultatinnlegging!G6,0) -> 0 | BQ35: =IF(Resultatinnlegging!$B6=LAGSRESULTATER!$BN$26,Resultatinnlegging!H6,0) -> 0 | BR35: =IF(Resultatinnlegging!$B6=LAGSRESULTATER!$BN$26,Resultatinnlegging!I6,0) -> 0 | BS35: =IF(Resultatinnlegging!$B6=LAGSRESULTATER!$BN$26,Resultatinnlegging!J6,0) -> 0 | BT35: =IF(Resultatinnlegging!$B6=LAGSRESULTATER!$BN$26,Resultatinnlegging!K6,0) -> 0 | BU35: =IF(Resultatinnlegging!$B6=LAGSRESULTATER!$BN$26,Resultatinnlegging!L6,0) -> 0 | BV35: =IF(Resultatinnlegging!$B6=LAGSRESULTATER!$BN$26,Resultatinnlegging!M6,0) -> 0 | BW35: =IF(Resultatinnlegging!$B6=LAGSRESULTATER!$BN$26,Resultatinnlegging!N6,0) -> 0 | BX35: =IF(Resultatinnlegging!$B6=LAGSRESULTATER!$BN$26,Resultatinnlegging!O6,0) -> 0 | CB35: =IF(Resultatinnlegging!$B71=LAGSRESULTATER!$CA$26,Resultatinnlegging!F71,0) -> 0 | CC35: =IF(Resultatinnlegging!$B6=LAGSRESULTATER!$CA$26,Resultatinnlegging!G6,0) -> 0 | CD35: =IF(Resultatinnlegging!$B6=LAGSRESULTATER!$CA$26,Resultatinnlegging!H6,0) -> 0 | CE35: =IF(Resultatinnlegging!$B6=LAGSRESULTATER!$CA$26,Resultatinnlegging!I6,0) -> 0 | CF35: =IF(Resultatinnlegging!$B6=LAGSRESULTATER!$CA$26,Resultatinnlegging!J6,0) -> 0 | CG35: =IF(Resultatinnlegging!$B6=LAGSRESULTATER!$CA$26,Resultatinnlegging!K6,0) -> 0 | CH35: =IF(Resultatinnlegging!$B6=LAGSRESULTATER!$CA$26,Resultatinnlegging!L6,0) -> 0 | CI35: =IF(Resultatinnlegging!$B6=LAGSRESULTATER!$CA$26,Resultatinnlegging!M6,0) -> 0 | CJ35: =IF(Resultatinnlegging!$B6=LAGSRESULTATER!$CA$26,Resultatinnlegging!N6,0) -> 0 | CK35: =IF(Resultatinnlegging!$B6=LAGSRESULTATER!$CA$26,Resultatinnlegging!O6,0) -> 0 | CO35: =IF(Resultatinnlegging!$B23=LAGSRESULTATER!$CN$26,Resultatinnlegging!F23,0) -> 0 | CP35: =IF(Resultatinnlegging!$B6=LAGSRESULTATER!$CN$26,Resultatinnlegging!G6,0) -> 0 | CQ35: =IF(Resultatinnlegging!$B6=LAGSRESULTATER!$CN$26,Resultatinnlegging!H6,0) -> 0 | CR35: =IF(Resultatinnlegging!$B6=LAGSRESULTATER!$CN$26,Resultatinnlegging!I6,0) -> 0 | CS35: =IF(Resultatinnlegging!$B6=LAGSRESULTATER!$CN$26,Resultatinnlegging!J6,0) -> 0 | CT35: =IF(Resultatinnlegging!$B6=LAGSRESULTATER!$CN$26,Resultatinnlegging!K6,0) -> 0 | CU35: =IF(Resultatinnlegging!$B6=LAGSRESULTATER!$CN$26,Resultatinnlegging!L6,0) -> 0 | CV35: =IF(Resultatinnlegging!$B6=LAGSRESULTATER!$CN$26,Resultatinnlegging!M6,0) -> 0 | CW35: =IF(Resultatinnlegging!$B6=LAGSRESULTATER!$CN$26,Resultatinnlegging!N6,0) -> 0 | CX35: =IF(Resultatinnlegging!$B6=LAGSRESULTATER!$CN$26,Resultatinnlegging!O6,0) -> 0 | DB35: =IF(Resultatinnlegging!$B19=LAGSRESULTATER!$DA$26,Resultatinnlegging!F19,0) -> 0 | DC35: =IF(Resultatinnlegging!$B6=LAGSRESULTATER!$DA$26,Resultatinnlegging!G6,0) -> 0 | DD35: =IF(Resultatinnlegging!$B6=LAGSRESULTATER!$DA$26,Resultatinnlegging!H6,0) -> 0 | DE35: =IF(Resultatinnlegging!$B6=LAGSRESULTATER!$DA$26,Resultatinnlegging!I6,0) -> 0 | DF35: =IF(Resultatinnlegging!$B6=LAGSRESULTATER!$DA$26,Resultatinnlegging!J6,0) -> 0 | DG35: =IF(Resultatinnlegging!$B6=LAGSRESULTATER!$DA$26,Resultatinnlegging!K6,0) -> 0 | DH35: =IF(Resultatinnlegging!$B6=LAGSRESULTATER!$DA$26,Resultatinnlegging!L6,0) -> 0 | DI35: =IF(Resultatinnlegging!$B6=LAGSRESULTATER!$DA$26,Resultatinnlegging!M6,0) -> 0 | DJ35: =IF(Resultatinnlegging!$B6=LAGSRESULTATER!$DA$26,Resultatinnlegging!N6,0) -> 0 | DK35: =IF(Resultatinnlegging!$B6=LAGSRESULTATER!$DA$26,Resultatinnlegging!O6,0) -> 0 | DO35: =IF(Resultatinnlegging!$B6=LAGSRESULTATER!$DN$26,Resultatinnlegging!F6,0) -> 0 | DP35: =IF(Resultatinnlegging!$B6=LAGSRESULTATER!$DN$26,Resultatinnlegging!G6,0) -> 0 | DQ35: =IF(Resultatinnlegging!$B6=LAGSRESULTATER!$DN$26,Resultatinnlegging!H6,0) -> 0 | DR35: =IF(Resultatinnlegging!$B6=LAGSRESULTATER!$DN$26,Resultatinnlegging!I6,0) -> 0 | DS35: =IF(Resultatinnlegging!$B6=LAGSRESULTATER!$DN$26,Resultatinnlegging!J6,0) -> 0 | DT35: =IF(Resultatinnlegging!$B6=LAGSRESULTATER!$DN$26,Resultatinnlegging!K6,0) -> 0 | DU35: =IF(Resultatinnlegging!$B6=LAGSRESULTATER!$DN$26,Resultatinnlegging!L6,0) -> 0 | DV35: =IF(Resultatinnlegging!$B6=LAGSRESULTATER!$DN$26,Resultatinnlegging!M6,0) -> 0 | DW35: =IF(Resultatinnlegging!$B6=LAGSRESULTATER!$DN$26,Resultatinnlegging!N6,0) -> 0 | DX35: =IF(Resultatinnlegging!$B6=LAGSRESULTATER!$DN$26,Resultatinnlegging!O6,0) -> 0 | EB35: =IF(Resultatinnlegging!$B6=LAGSRESULTATER!$EA$26,Resultatinnlegging!F6,0) -> 0 | EC35: =IF(Resultatinnlegging!$B6=LAGSRESULTATER!$EA$26,Resultatinnlegging!G6,0) -> 0 | ED35: =IF(Resultatinnlegging!$B6=LAGSRESULTATER!$EA$26,Resultatinnlegging!H6,0) -> 0 | EE35: =IF(Resultatinnlegging!$B6=LAGSRESULTATER!$EA$26,Resultatinnlegging!I6,0) -> 0 | EF35: =IF(Resultatinnlegging!$B6=LAGSRESULTATER!$EA$26,Resultatinnlegging!J6,0) -> 0 | EG35: =IF(Resultatinnlegging!$B6=LAGSRESULTATER!$EA$26,Resultatinnlegging!K6,0) -> 0 | EH35: =IF(Resultatinnlegging!$B6=LAGSRESULTATER!$EA$26,Resultatinnlegging!L6,0) -> 0 | EI35: =IF(Resultatinnlegging!$B6=LAGSRESULTATER!$EA$26,Resultatinnlegging!M6,0) -> 0 | EJ35: =IF(Resultatinnlegging!$B6=LAGSRESULTATER!$EA$26,Resultatinnlegging!N6,0) -> 0 | EK35: =IF(Resultatinnlegging!$B6=LAGSRESULTATER!$EA$26,Resultatinnlegging!O6,0) -> 0 | EO35: =IF(Resultatinnlegging!$B6=LAGSRESULTATER!$EN$26,Resultatinnlegging!F6,0) -> 0 | EP35: =IF(Resultatinnlegging!$B6=LAGSRESULTATER!$EN$26,Resultatinnlegging!G6,0) -> 0 | EQ35: =IF(Resultatinnlegging!$B6=LAGSRESULTATER!$EN$26,Resultatinnlegging!H6,0) -> 0 | ER35: =IF(Resultatinnlegging!$B6=LAGSRESULTATER!$EN$26,Resultatinnlegging!I6,0) -> 0 | ES35: =IF(Resultatinnlegging!$B6=LAGSRESULTATER!$EN$26,Resultatinnlegging!J6,0) -> 0 | ET35: =IF(Resultatinnlegging!$B6=LAGSRESULTATER!$EN$26,Resultatinnlegging!K6,0) -> 0 | EU35: =IF(Resultatinnlegging!$B6=LAGSRESULTATER!$EN$26,Resultatinnlegging!L6,0) -> 0 | EV35: =IF(Resultatinnlegging!$B6=LAGSRESULTATER!$EN$26,Resultatinnlegging!M6,0) -> 0 | EW35: =IF(Resultatinnlegging!$B6=LAGSRESULTATER!$EN$26,Resultatinnlegging!N6,0) -> 0 | EX35: =IF(Resultatinnlegging!$B6=LAGSRESULTATER!$EN$26,Resultatinnlegging!O6,0) -> 0 | FB35: =IF(Resultatinnlegging!$B6=LAGSRESULTATER!$FA$26,Resultatinnlegging!F6,0) -> 0 | FC35: =IF(Resultatinnlegging!$B6=LAGSRESULTATER!$FA$26,Resultatinnlegging!G6,0) -> 0 | FD35: =IF(Resultatinnlegging!$B6=LAGSRESULTATER!$FA$26,Resultatinnlegging!H6,0) -> 0 | FE35: =IF(Resultatinnlegging!$B6=LAGSRESULTATER!$FA$26,Resultatinnlegging!I6,0) -> 0 | FF35: =IF(Resultatinnlegging!$B6=LAGSRESULTATER!$FA$26,Resultatinnlegging!J6,0) -> 0 | FG35: =IF(Resultatinnlegging!$B6=LAGSRESULTATER!$FA$26,Resultatinnlegging!K6,0) -> 0 | FH35: =IF(Resultatinnlegging!$B6=LAGSRESULTATER!$FA$26,Resultatinnlegging!L6,0) -> 0 | FI35: =IF(Resultatinnlegging!$B6=LAGSRESULTATER!$FA$26,Resultatinnlegging!M6,0) -> 0 | FJ35: =IF(Resultatinnlegging!$B6=LAGSRESULTATER!$FA$26,Resultatinnlegging!N6,0) -> 0 | FK35: =IF(Resultatinnlegging!$B6=LAGSRESULTATER!$FA$26,Resultatinnlegging!O6,0) -> 0 | FO35: =IF(Resultatinnlegging!$B6=LAGSRESULTATER!$FN$26,Resultatinnlegging!F6,0) -> 0 | FP35: =IF(Resultatinnlegging!$B6=LAGSRESULTATER!$FN$26,Resultatinnlegging!G6,0) -> 0 | FQ35: =IF(Resultatinnlegging!$B6=LAGSRESULTATER!$FN$26,Resultatinnlegging!H6,0) -> 0 | FR35: =IF(Resultatinnlegging!$B6=LAGSRESULTATER!$FN$26,Resultatinnlegging!I6,0) -> 0 | FS35: =IF(Resultatinnlegging!$B6=LAGSRESULTATER!$FN$26,Resultatinnlegging!J6,0) -> 0 | FT35: =IF(Resultatinnlegging!$B6=LAGSRESULTATER!$FN$26,Resultatinnlegging!K6,0) -> 0 | FU35: =IF(Resultatinnlegging!$B6=LAGSRESULTATER!$FN$26,Resultatinnlegging!L6,0) -> 0 | FV35: =IF(Resultatinnlegging!$B6=LAGSRESULTATER!$FN$26,Resultatinnlegging!M6,0) -> 0 | FW35: =IF(Resultatinnlegging!$B6=LAGSRESULTATER!$FN$26,Resultatinnlegging!N6,0) -> 0 | FX35: =IF(Resultatinnlegging!$B6=LAGSRESULTATER!$FN$26,Resultatinnlegging!O6,0) -> 0 | GA35: 6 | GB35: =IF(Resultatinnlegging!$B6=LAGSRESULTATER!$GA$26,Resultatinnlegging!F6,0) -> 0 | GC35: =IF(Resultatinnlegging!$B6=LAGSRESULTATER!$GA$26,Resultatinnlegging!G6,0) -> 0 | GD35: =IF(Resultatinnlegging!$B6=LAGSRESULTATER!$GA$26,Resultatinnlegging!H6,0) -> 0 | GE35: =IF(Resultatinnlegging!$B6=LAGSRESULTATER!$GA$26,Resultatinnlegging!I6,0) -> 0 | GF35: =IF(Resultatinnlegging!$B6=LAGSRESULTATER!$GA$26,Resultatinnlegging!J6,0) -> 0 | GG35: =IF(Resultatinnlegging!$B6=LAGSRESULTATER!$GA$26,Resultatinnlegging!K6,0) -> 0 | GH35: =IF(Resultatinnlegging!$B6=LAGSRESULTATER!$GA$26,Resultatinnlegging!L6,0) -> 0 | GI35: =IF(Resultatinnlegging!$B6=LAGSRESULTATER!$GA$26,Resultatinnlegging!M6,0) -> 0 | GJ35: =IF(Resultatinnlegging!$B6=LAGSRESULTATER!$GA$26,Resultatinnlegging!N6,0) -> 0 | GK35: =IF(Resultatinnlegging!$B6=LAGSRESULTATER!$GA$26,Resultatinnlegging!O6,0) -> 0 | GN35: 4 | GO35: =IF(Resultatinnlegging!$B6=LAGSRESULTATER!$GN$26,Resultatinnlegging!F6,0) -> 0 | GP35: =IF(Resultatinnlegging!$B6=LAGSRESULTATER!$GN$26,Resultatinnlegging!G6,0) -> 0 | GQ35: =IF(Resultatinnlegging!$B6=LAGSRESULTATER!$GN$26,Resultatinnlegging!H6,0) -> 0 | GR35: =IF(Resultatinnlegging!$B6=LAGSRESULTATER!$GN$26,Resultatinnlegging!I6,0) -> 0 | GS35: =IF(Resultatinnlegging!$B6=LAGSRESULTATER!$GN$26,Resultatinnlegging!J6,0) -> 0 | GT35: =IF(Resultatinnlegging!$B6=LAGSRESULTATER!$GN$26,Resultatinnlegging!K6,0) -> 0 | GU35: =IF(Resultatinnlegging!$B6=LAGSRESULTATER!$GN$26,Resultatinnlegging!L6,0) -> 0 | GV35: =IF(Resultatinnlegging!$B6=LAGSRESULTATER!$GN$26,Resultatinnlegging!M6,0) -> 0 | GW35: =IF(Resultatinnlegging!$B6=LAGSRESULTATER!$GN$26,Resultatinnlegging!N6,0) -> 0 | GX35: =IF(Resultatinnlegging!$B6=LAGSRESULTATER!$GN$26,Resultatinnlegging!O6,0) -> 0 | HB35: =IF(Resultatinnlegging!$B6=LAGSRESULTATER!$HA$26,Resultatinnlegging!F6,0) -> 0 | HC35: =IF(Resultatinnlegging!$B6=LAGSRESULTATER!$HA$26,Resultatinnlegging!G6,0) -> 0 | HD35: =IF(Resultatinnlegging!$B6=LAGSRESULTATER!$HA$26,Resultatinnlegging!H6,0) -> 0 | HE35: =IF(Resultatinnlegging!$B6=LAGSRESULTATER!$HA$26,Resultatinnlegging!I6,0) -> 0 | HF35: =IF(Resultatinnlegging!$B6=LAGSRESULTATER!$HA$26,Resultatinnlegging!J6,0) -> 0 | HG35: =IF(Resultatinnlegging!$B6=LAGSRESULTATER!$HA$26,Resultatinnlegging!K6,0) -> 0 | HH35: =IF(Resultatinnlegging!$B6=LAGSRESULTATER!$HA$26,Resultatinnlegging!L6,0) -> 0 | HI35: =IF(Resultatinnlegging!$B6=LAGSRESULTATER!$HA$26,Resultatinnlegging!M6,0) -> 0 | HJ35: =IF(Resultatinnlegging!$B6=LAGSRESULTATER!$HA$26,Resultatinnlegging!N6,0) -> 0 | HK35: =IF(Resultatinnlegging!$B6=LAGSRESULTATER!$HA$26,Resultatinnlegging!O6,0) -> 0 | HO35: =IF(Resultatinnlegging!$B6=LAGSRESULTATER!$HN$26,Resultatinnlegging!F6,0) -> 0 | HP35: =IF(Resultatinnlegging!$B6=LAGSRESULTATER!$HN$26,Resultatinnlegging!G6,0) -> 0 | HQ35: =IF(Resultatinnlegging!$B6=LAGSRESULTATER!$HN$26,Resultatinnlegging!H6,0) -> 0 | HR35: =IF(Resultatinnlegging!$B6=LAGSRESULTATER!$HN$26,Resultatinnlegging!I6,0) -> 0 | HS35: =IF(Resultatinnlegging!$B6=LAGSRESULTATER!$HN$26,Resultatinnlegging!J6,0) -> 0 | HT35: =IF(Resultatinnlegging!$B6=LAGSRESULTATER!$HN$26,Resultatinnlegging!K6,0) -> 0 | HU35: =IF(Resultatinnlegging!$B6=LAGSRESULTATER!$HA$26,Resultatinnlegging!L6,0) -> 0 | HV35: =IF(Resultatinnlegging!$B6=LAGSRESULTATER!$HN$26,Resultatinnlegging!M6,0) -> 0 | HW35: =IF(Resultatinnlegging!$B6=LAGSRESULTATER!$HN$26,Resultatinnlegging!N6,0) -> 0 | HX35: =IF(Resultatinnlegging!$B6=LAGSRESULTATER!$HN$26,Resultatinnlegging!O6,0) -> 0 | IB35: =IF(Resultatinnlegging!$B6=LAGSRESULTATER!$IA$26,Resultatinnlegging!F6,0) -> 0 | IC35: =IF(Resultatinnlegging!$B6=LAGSRESULTATER!$IA$26,Resultatinnlegging!G6,0) -> 0 | ID35: =IF(Resultatinnlegging!$B6=LAGSRESULTATER!$IA$26,Resultatinnlegging!H6,0) -> 0 | IE35: =IF(Resultatinnlegging!$B6=LAGSRESULTATER!$IA$26,Resultatinnlegging!I6,0) -> 0 | IF35: =IF(Resultatinnlegging!$B6=LAGSRESULTATER!$IA$26,Resultatinnlegging!J6,0) -> 0 | IG35: =IF(Resultatinnlegging!$B6=LAGSRESULTATER!$IA$26,Resultatinnlegging!K6,0) -> 0 | IH35: =IF(Resultatinnlegging!$B6=LAGSRESULTATER!$IA$26,Resultatinnlegging!L6,0) -> 0 | II35: =IF(Resultatinnlegging!$B6=LAGSRESULTATER!$IA$26,Resultatinnlegging!M6,0) -> 0 | IJ35: =IF(Resultatinnlegging!$B6=LAGSRESULTATER!$IA$26,Resultatinnlegging!N6,0) -> 0 | IK35: =IF(Resultatinnlegging!$B6=LAGSRESULTATER!$IA$26,Resultatinnlegging!O6,0) -> 0
B36: =IF(Resultatinnlegging!$B7=LAGSRESULTATER!$A$26,Resultatinnlegging!F7,0) -> 0 | C36: =IF(Resultatinnlegging!$B7=LAGSRESULTATER!$A$26,Resultatinnlegging!G7,0) -> 0 | D36: =IF(Resultatinnlegging!$B7=LAGSRESULTATER!$A$26,Resultatinnlegging!H7,0) -> 0 | E36: =IF(Resultatinnlegging!$B7=LAGSRESULTATER!$A$26,Resultatinnlegging!I7,0) -> 0 | F36: =IF(Resultatinnlegging!$B7=LAGSRESULTATER!$A$26,Resultatinnlegging!J7,0) -> 0 | G36: =IF(Resultatinnlegging!$B7=LAGSRESULTATER!$A$26,Resultatinnlegging!K7,0) -> 0 | H36: =IF(Resultatinnlegging!$B7=LAGSRESULTATER!$A$26,Resultatinnlegging!L7,0) -> 0 | I36: =IF(Resultatinnlegging!$B7=LAGSRESULTATER!$A$26,Resultatinnlegging!M7,0) -> 0 | J36: =IF(Resultatinnlegging!$B7=LAGSRESULTATER!$A$26,Resultatinnlegging!N7,0) -> 0 | K36: =IF(Resultatinnlegging!$B7=LAGSRESULTATER!$A$26,Resultatinnlegging!O7,0) -> 0 | O36: =IF(Resultatinnlegging!$B7=LAGSRESULTATER!$N$26,Resultatinnlegging!F7,0) -> 0 | P36: =IF(Resultatinnlegging!$B7=LAGSRESULTATER!$N$26,Resultatinnlegging!G7,0) -> 0 | Q36: =IF(Resultatinnlegging!$B7=LAGSRESULTATER!$N$26,Resultatinnlegging!H7,0) -> 0 | R36: =IF(Resultatinnlegging!$B7=LAGSRESULTATER!$N$26,Resultatinnlegging!I7,0) -> 0 | S36: =IF(Resultatinnlegging!$B7=LAGSRESULTATER!$N$26,Resultatinnlegging!J7,0) -> 0 | T36: =IF(Resultatinnlegging!$B7=LAGSRESULTATER!$N$26,Resultatinnlegging!K7,0) -> 0 | U36: =IF(Resultatinnlegging!$B7=LAGSRESULTATER!$N$26,Resultatinnlegging!L7,0) -> 0 | V36: =IF(Resultatinnlegging!$B7=LAGSRESULTATER!$N$26,Resultatinnlegging!M7,0) -> 0 | W36: =IF(Resultatinnlegging!$B7=LAGSRESULTATER!$N$26,Resultatinnlegging!N7,0) -> 0 | X36: =IF(Resultatinnlegging!$B7=LAGSRESULTATER!$N$26,Resultatinnlegging!O7,0) -> 0 | AB36: =IF(Resultatinnlegging!$B44=LAGSRESULTATER!$AA$26,Resultatinnlegging!F44,0) -> 0 | AC36: =IF(Resultatinnlegging!$B7=LAGSRESULTATER!$AA$26,Resultatinnlegging!G7,0) -> 0 | AD36: =IF(Resultatinnlegging!$B7=LAGSRESULTATER!$AA$26,Resultatinnlegging!H7,0) -> 0 | AE36: =IF(Resultatinnlegging!$B7=LAGSRESULTATER!$AA$26,Resultatinnlegging!I7,0) -> 0 | AF36: =IF(Resultatinnlegging!$B7=LAGSRESULTATER!$AA$26,Resultatinnlegging!J7,0) -> 0 | AG36: =IF(Resultatinnlegging!$B7=LAGSRESULTATER!$AA$26,Resultatinnlegging!K7,0) -> 0 | AH36: =IF(Resultatinnlegging!$B7=LAGSRESULTATER!$AA$26,Resultatinnlegging!L7,0) -> 0 | AI36: =IF(Resultatinnlegging!$B7=LAGSRESULTATER!$AA$26,Resultatinnlegging!M7,0) -> 0 | AJ36: =IF(Resultatinnlegging!$B7=LAGSRESULTATER!$AA$26,Resultatinnlegging!N7,0) -> 0 | AK36: =IF(Resultatinnlegging!$B7=LAGSRESULTATER!$AA$26,Resultatinnlegging!O7,0) -> 0 | AO36: =IF(Resultatinnlegging!$B38=LAGSRESULTATER!$AN$26,Resultatinnlegging!F38,0) -> 0 | AP36: =IF(Resultatinnlegging!$B7=LAGSRESULTATER!$AN$26,Resultatinnlegging!G7,0) -> 0 | AQ36: =IF(Resultatinnlegging!$B7=LAGSRESULTATER!$AN$26,Resultatinnlegging!H7,0) -> 0 | AR36: =IF(Resultatinnlegging!$B7=LAGSRESULTATER!$AN$26,Resultatinnlegging!I7,0) -> 0 | AS36: =IF(Resultatinnlegging!$B7=LAGSRESULTATER!$AN$26,Resultatinnlegging!J7,0) -> 0 | AT36: =IF(Resultatinnlegging!$B7=LAGSRESULTATER!$AN$26,Resultatinnlegging!K7,0) -> 0 | AU36: =IF(Resultatinnlegging!$B7=LAGSRESULTATER!$AN$26,Resultatinnlegging!L7,0) -> 0 | AV36: =IF(Resultatinnlegging!$B7=LAGSRESULTATER!$AN$26,Resultatinnlegging!M7,0) -> 0 | AW36: =IF(Resultatinnlegging!$B7=LAGSRESULTATER!$AN$26,Resultatinnlegging!N7,0) -> 0 | AX36: =IF(Resultatinnlegging!$B7=LAGSRESULTATER!$AN$26,Resultatinnlegging!O7,0) -> 0 | BB36: =IF(Resultatinnlegging!$B53=LAGSRESULTATER!$BA$26,Resultatinnlegging!F53,0) -> 0 | BC36: =IF(Resultatinnlegging!$B7=LAGSRESULTATER!$BA$26,Resultatinnlegging!G7,0) -> 0 | BD36: =IF(Resultatinnlegging!$B7=LAGSRESULTATER!$BA$26,Resultatinnlegging!H7,0) -> 0 | BE36: =IF(Resultatinnlegging!$B7=LAGSRESULTATER!$BA$26,Resultatinnlegging!I7,0) -> 0 | BF36: =IF(Resultatinnlegging!$B7=LAGSRESULTATER!$BA$26,Resultatinnlegging!J7,0) -> 0 | BG36: =IF(Resultatinnlegging!$B7=LAGSRESULTATER!$BA$26,Resultatinnlegging!K7,0) -> 0 | BH36: =IF(Resultatinnlegging!$B7=LAGSRESULTATER!$BA$26,Resultatinnlegging!L7,0) -> 0 | BI36: =IF(Resultatinnlegging!$B7=LAGSRESULTATER!$BA$26,Resultatinnlegging!M7,0) -> 0 | BJ36: =IF(Resultatinnlegging!$B7=LAGSRESULTATER!$BA$26,Resultatinnlegging!N7,0) -> 0 | BK36: =IF(Resultatinnlegging!$B7=LAGSRESULTATER!$BA$26,Resultatinnlegging!O7,0) -> 0 | BO36: =IF(Resultatinnlegging!$B36=LAGSRESULTATER!$BN$26,Resultatinnlegging!F36,0) -> 0 | BP36: =IF(Resultatinnlegging!$B7=LAGSRESULTATER!$BN$26,Resultatinnlegging!G7,0) -> 0 | BQ36: =IF(Resultatinnlegging!$B7=LAGSRESULTATER!$BN$26,Resultatinnlegging!H7,0) -> 0 | BR36: =IF(Resultatinnlegging!$B7=LAGSRESULTATER!$BN$26,Resultatinnlegging!I7,0) -> 0 | BS36: =IF(Resultatinnlegging!$B7=LAGSRESULTATER!$BN$26,Resultatinnlegging!J7,0) -> 0 | BT36: =IF(Resultatinnlegging!$B7=LAGSRESULTATER!$BN$26,Resultatinnlegging!K7,0) -> 0 | BU36: =IF(Resultatinnlegging!$B7=LAGSRESULTATER!$BN$26,Resultatinnlegging!L7,0) -> 0 | BV36: =IF(Resultatinnlegging!$B7=LAGSRESULTATER!$BN$26,Resultatinnlegging!M7,0) -> 0 | BW36: =IF(Resultatinnlegging!$B7=LAGSRESULTATER!$BN$26,Resultatinnlegging!N7,0) -> 0 | BX36: =IF(Resultatinnlegging!$B7=LAGSRESULTATER!$BN$26,Resultatinnlegging!O7,0) -> 0 | CB36: =IF(Resultatinnlegging!$B72=LAGSRESULTATER!$CA$26,Resultatinnlegging!F72,0) -> 0 | CC36: =IF(Resultatinnlegging!$B7=LAGSRESULTATER!$CA$26,Resultatinnlegging!G7,0) -> 0 | CD36: =IF(Resultatinnlegging!$B7=LAGSRESULTATER!$CA$26,Resultatinnlegging!H7,0) -> 0 | CE36: =IF(Resultatinnlegging!$B7=LAGSRESULTATER!$CA$26,Resultatinnlegging!I7,0) -> 0 | CF36: =IF(Resultatinnlegging!$B7=LAGSRESULTATER!$CA$26,Resultatinnlegging!J7,0) -> 0 | CG36: =IF(Resultatinnlegging!$B7=LAGSRESULTATER!$CA$26,Resultatinnlegging!K7,0) -> 0 | CH36: =IF(Resultatinnlegging!$B7=LAGSRESULTATER!$CA$26,Resultatinnlegging!L7,0) -> 0 | CI36: =IF(Resultatinnlegging!$B7=LAGSRESULTATER!$CA$26,Resultatinnlegging!M7,0) -> 0 | CJ36: =IF(Resultatinnlegging!$B7=LAGSRESULTATER!$CA$26,Resultatinnlegging!N7,0) -> 0 | CK36: =IF(Resultatinnlegging!$B7=LAGSRESULTATER!$CA$26,Resultatinnlegging!O7,0) -> 0 | CO36: =IF(Resultatinnlegging!$B24=LAGSRESULTATER!$CN$26,Resultatinnlegging!F24,0) -> 0 | CP36: =IF(Resultatinnlegging!$B7=LAGSRESULTATER!$CN$26,Resultatinnlegging!G7,0) -> 0 | CQ36: =IF(Resultatinnlegging!$B7=LAGSRESULTATER!$CN$26,Resultatinnlegging!H7,0) -> 0 | CR36: =IF(Resultatinnlegging!$B7=LAGSRESULTATER!$CN$26,Resultatinnlegging!I7,0) -> 0 | CS36: =IF(Resultatinnlegging!$B7=LAGSRESULTATER!$CN$26,Resultatinnlegging!J7,0) -> 0 | CT36: =IF(Resultatinnlegging!$B7=LAGSRESULTATER!$CN$26,Resultatinnlegging!K7,0) -> 0 | CU36: =IF(Resultatinnlegging!$B7=LAGSRESULTATER!$CN$26,Resultatinnlegging!L7,0) -> 0 | CV36: =IF(Resultatinnlegging!$B7=LAGSRESULTATER!$CN$26,Resultatinnlegging!M7,0) -> 0 | CW36: =IF(Resultatinnlegging!$B7=LAGSRESULTATER!$CN$26,Resultatinnlegging!N7,0) -> 0 | CX36: =IF(Resultatinnlegging!$B7=LAGSRESULTATER!$CN$26,Resultatinnlegging!O7,0) -> 0 | DB36: =IF(Resultatinnlegging!$B20=LAGSRESULTATER!$DA$26,Resultatinnlegging!F20,0) -> 0 | DC36: =IF(Resultatinnlegging!$B7=LAGSRESULTATER!$DA$26,Resultatinnlegging!G7,0) -> 0 | DD36: =IF(Resultatinnlegging!$B7=LAGSRESULTATER!$DA$26,Resultatinnlegging!H7,0) -> 0 | DE36: =IF(Resultatinnlegging!$B7=LAGSRESULTATER!$DA$26,Resultatinnlegging!I7,0) -> 0 | DF36: =IF(Resultatinnlegging!$B7=LAGSRESULTATER!$DA$26,Resultatinnlegging!J7,0) -> 0 | DG36: =IF(Resultatinnlegging!$B7=LAGSRESULTATER!$DA$26,Resultatinnlegging!K7,0) -> 0 | DH36: =IF(Resultatinnlegging!$B7=LAGSRESULTATER!$DA$26,Resultatinnlegging!L7,0) -> 0 | DI36: =IF(Resultatinnlegging!$B7=LAGSRESULTATER!$DA$26,Resultatinnlegging!M7,0) -> 0 | DJ36: =IF(Resultatinnlegging!$B7=LAGSRESULTATER!$DA$26,Resultatinnlegging!N7,0) -> 0 | DK36: =IF(Resultatinnlegging!$B7=LAGSRESULTATER!$DA$26,Resultatinnlegging!O7,0) -> 0 | DO36: =IF(Resultatinnlegging!$B7=LAGSRESULTATER!$DN$26,Resultatinnlegging!F7,0) -> 0 | DP36: =IF(Resultatinnlegging!$B7=LAGSRESULTATER!$DN$26,Resultatinnlegging!G7,0) -> 0 | DQ36: =IF(Resultatinnlegging!$B7=LAGSRESULTATER!$DN$26,Resultatinnlegging!H7,0) -> 0 | DR36: =IF(Resultatinnlegging!$B7=LAGSRESULTATER!$DN$26,Resultatinnlegging!I7,0) -> 0 | DS36: =IF(Resultatinnlegging!$B7=LAGSRESULTATER!$DN$26,Resultatinnlegging!J7,0) -> 0 | DT36: =IF(Resultatinnlegging!$B7=LAGSRESULTATER!$DN$26,Resultatinnlegging!K7,0) -> 0 | DU36: =IF(Resultatinnlegging!$B7=LAGSRESULTATER!$DN$26,Resultatinnlegging!L7,0) -> 0 | DV36: =IF(Resultatinnlegging!$B7=LAGSRESULTATER!$DN$26,Resultatinnlegging!M7,0) -> 0 | DW36: =IF(Resultatinnlegging!$B7=LAGSRESULTATER!$DN$26,Resultatinnlegging!N7,0) -> 0 | DX36: =IF(Resultatinnlegging!$B7=LAGSRESULTATER!$DN$26,Resultatinnlegging!O7,0) -> 0 | EB36: =IF(Resultatinnlegging!$B7=LAGSRESULTATER!$EA$26,Resultatinnlegging!F7,0) -> 0 | EC36: =IF(Resultatinnlegging!$B7=LAGSRESULTATER!$EA$26,Resultatinnlegging!G7,0) -> 0 | ED36: =IF(Resultatinnlegging!$B7=LAGSRESULTATER!$EA$26,Resultatinnlegging!H7,0) -> 0 | EE36: =IF(Resultatinnlegging!$B7=LAGSRESULTATER!$EA$26,Resultatinnlegging!I7,0) -> 0 | EF36: =IF(Resultatinnlegging!$B7=LAGSRESULTATER!$EA$26,Resultatinnlegging!J7,0) -> 0 | EG36: =IF(Resultatinnlegging!$B7=LAGSRESULTATER!$EA$26,Resultatinnlegging!K7,0) -> 0 | EH36: =IF(Resultatinnlegging!$B7=LAGSRESULTATER!$EA$26,Resultatinnlegging!L7,0) -> 0 | EI36: =IF(Resultatinnlegging!$B7=LAGSRESULTATER!$EA$26,Resultatinnlegging!M7,0) -> 0 | EJ36: =IF(Resultatinnlegging!$B7=LAGSRESULTATER!$EA$26,Resultatinnlegging!N7,0) -> 0 | EK36: =IF(Resultatinnlegging!$B7=LAGSRESULTATER!$EA$26,Resultatinnlegging!O7,0) -> 0 | EO36: =IF(Resultatinnlegging!$B7=LAGSRESULTATER!$EN$26,Resultatinnlegging!F7,0) -> 0 | EP36: =IF(Resultatinnlegging!$B7=LAGSRESULTATER!$EN$26,Resultatinnlegging!G7,0) -> 0 | EQ36: =IF(Resultatinnlegging!$B7=LAGSRESULTATER!$EN$26,Resultatinnlegging!H7,0) -> 0 | ER36: =IF(Resultatinnlegging!$B7=LAGSRESULTATER!$EN$26,Resultatinnlegging!I7,0) -> 0 | ES36: =IF(Resultatinnlegging!$B7=LAGSRESULTATER!$EN$26,Resultatinnlegging!J7,0) -> 0 | ET36: =IF(Resultatinnlegging!$B7=LAGSRESULTATER!$EN$26,Resultatinnlegging!K7,0) -> 0 | EU36: =IF(Resultatinnlegging!$B7=LAGSRESULTATER!$EN$26,Resultatinnlegging!L7,0) -> 0 | EV36: =IF(Resultatinnlegging!$B7=LAGSRESULTATER!$EN$26,Resultatinnlegging!M7,0) -> 0 | EW36: =IF(Resultatinnlegging!$B7=LAGSRESULTATER!$EN$26,Resultatinnlegging!N7,0) -> 0 | EX36: =IF(Resultatinnlegging!$B7=LAGSRESULTATER!$EN$26,Resultatinnlegging!O7,0) -> 0 | FB36: =IF(Resultatinnlegging!$B7=LAGSRESULTATER!$FA$26,Resultatinnlegging!F7,0) -> 0 | FC36: =IF(Resultatinnlegging!$B7=LAGSRESULTATER!$FA$26,Resultatinnlegging!G7,0) -> 0 | FD36: =IF(Resultatinnlegging!$B7=LAGSRESULTATER!$FA$26,Resultatinnlegging!H7,0) -> 0 | FE36: =IF(Resultatinnlegging!$B7=LAGSRESULTATER!$FA$26,Resultatinnlegging!I7,0) -> 0 | FF36: =IF(Resultatinnlegging!$B7=LAGSRESULTATER!$FA$26,Resultatinnlegging!J7,0) -> 0 | FG36: =IF(Resultatinnlegging!$B7=LAGSRESULTATER!$FA$26,Resultatinnlegging!K7,0) -> 0 | FH36: =IF(Resultatinnlegging!$B7=LAGSRESULTATER!$FA$26,Resultatinnlegging!L7,0) -> 0 | FI36: =IF(Resultatinnlegging!$B7=LAGSRESULTATER!$FA$26,Resultatinnlegging!M7,0) -> 0 | FJ36: =IF(Resultatinnlegging!$B7=LAGSRESULTATER!$FA$26,Resultatinnlegging!N7,0) -> 0 | FK36: =IF(Resultatinnlegging!$B7=LAGSRESULTATER!$FA$26,Resultatinnlegging!O7,0) -> 0 | FO36: =IF(Resultatinnlegging!$B7=LAGSRESULTATER!$FN$26,Resultatinnlegging!F7,0) -> 0 | FP36: =IF(Resultatinnlegging!$B7=LAGSRESULTATER!$FN$26,Resultatinnlegging!G7,0) -> 0 | FQ36: =IF(Resultatinnlegging!$B7=LAGSRESULTATER!$FN$26,Resultatinnlegging!H7,0) -> 0 | FR36: =IF(Resultatinnlegging!$B7=LAGSRESULTATER!$FN$26,Resultatinnlegging!I7,0) -> 0 | FS36: =IF(Resultatinnlegging!$B7=LAGSRESULTATER!$FN$26,Resultatinnlegging!J7,0) -> 0 | FT36: =IF(Resultatinnlegging!$B7=LAGSRESULTATER!$FN$26,Resultatinnlegging!K7,0) -> 0 | FU36: =IF(Resultatinnlegging!$B7=LAGSRESULTATER!$FN$26,Resultatinnlegging!L7,0) -> 0 | FV36: =IF(Resultatinnlegging!$B7=LAGSRESULTATER!$FN$26,Resultatinnlegging!M7,0) -> 0 | FW36: =IF(Resultatinnlegging!$B7=LAGSRESULTATER!$FN$26,Resultatinnlegging!N7,0) -> 0 | FX36: =IF(Resultatinnlegging!$B7=LAGSRESULTATER!$FN$26,Resultatinnlegging!O7,0) -> 0 | GA36: 7 | GB36: =IF(Resultatinnlegging!$B7=LAGSRESULTATER!$GA$26,Resultatinnlegging!F7,0) -> 0 | GC36: =IF(Resultatinnlegging!$B7=LAGSRESULTATER!$GA$26,Resultatinnlegging!G7,0) -> 0 | GD36: =IF(Resultatinnlegging!$B7=LAGSRESULTATER!$GA$26,Resultatinnlegging!H7,0) -> 0 | GE36: =IF(Resultatinnlegging!$B7=LAGSRESULTATER!$GA$26,Resultatinnlegging!I7,0) -> 0 | GF36: =IF(Resultatinnlegging!$B7=LAGSRESULTATER!$GA$26,Resultatinnlegging!J7,0) -> 0 | GG36: =IF(Resultatinnlegging!$B7=LAGSRESULTATER!$GA$26,Resultatinnlegging!K7,0) -> 0 | GH36: =IF(Resultatinnlegging!$B7=LAGSRESULTATER!$GA$26,Resultatinnlegging!L7,0) -> 0 | GI36: =IF(Resultatinnlegging!$B7=LAGSRESULTATER!$GA$26,Resultatinnlegging!M7,0) -> 0 | GJ36: =IF(Resultatinnlegging!$B7=LAGSRESULTATER!$GA$26,Resultatinnlegging!N7,0) -> 0 | GK36: =IF(Resultatinnlegging!$B7=LAGSRESULTATER!$GA$26,Resultatinnlegging!O7,0) -> 0 | GN36: 5 | GO36: =IF(Resultatinnlegging!$B7=LAGSRESULTATER!$GN$26,Resultatinnlegging!F7,0) -> 0 | GP36: =IF(Resultatinnlegging!$B7=LAGSRESULTATER!$GN$26,Resultatinnlegging!G7,0) -> 0 | GQ36: =IF(Resultatinnlegging!$B7=LAGSRESULTATER!$GN$26,Resultatinnlegging!H7,0) -> 0 | GR36: =IF(Resultatinnlegging!$B7=LAGSRESULTATER!$GN$26,Resultatinnlegging!I7,0) -> 0 | GS36: =IF(Resultatinnlegging!$B7=LAGSRESULTATER!$GN$26,Resultatinnlegging!J7,0) -> 0 | GT36: =IF(Resultatinnlegging!$B7=LAGSRESULTATER!$GN$26,Resultatinnlegging!K7,0) -> 0 | GU36: =IF(Resultatinnlegging!$B7=LAGSRESULTATER!$GN$26,Resultatinnlegging!L7,0) -> 0 | GV36: =IF(Resultatinnlegging!$B7=LAGSRESULTATER!$GN$26,Resultatinnlegging!M7,0) -> 0 | GW36: =IF(Resultatinnlegging!$B7=LAGSRESULTATER!$GN$26,Resultatinnlegging!N7,0) -> 0 | GX36: =IF(Resultatinnlegging!$B7=LAGSRESULTATER!$GN$26,Resultatinnlegging!O7,0) -> 0 | HB36: =IF(Resultatinnlegging!$B7=LAGSRESULTATER!$HA$26,Resultatinnlegging!F7,0) -> 0 | HC36: =IF(Resultatinnlegging!$B7=LAGSRESULTATER!$HA$26,Resultatinnlegging!G7,0) -> 0 | HD36: =IF(Resultatinnlegging!$B7=LAGSRESULTATER!$HA$26,Resultatinnlegging!H7,0) -> 0 | HE36: =IF(Resultatinnlegging!$B7=LAGSRESULTATER!$HA$26,Resultatinnlegging!I7,0) -> 0 | HF36: =IF(Resultatinnlegging!$B7=LAGSRESULTATER!$HA$26,Resultatinnlegging!J7,0) -> 0 | HG36: =IF(Resultatinnlegging!$B7=LAGSRESULTATER!$HA$26,Resultatinnlegging!K7,0) -> 0 | HH36: =IF(Resultatinnlegging!$B7=LAGSRESULTATER!$HA$26,Resultatinnlegging!L7,0) -> 0 | HI36: =IF(Resultatinnlegging!$B7=LAGSRESULTATER!$HA$26,Resultatinnlegging!M7,0) -> 0 | HJ36: =IF(Resultatinnlegging!$B7=LAGSRESULTATER!$HA$26,Resultatinnlegging!N7,0) -> 0 | HK36: =IF(Resultatinnlegging!$B7=LAGSRESULTATER!$HA$26,Resultatinnlegging!O7,0) -> 0 | HO36: =IF(Resultatinnlegging!$B7=LAGSRESULTATER!$HN$26,Resultatinnlegging!F7,0) -> 0 | HP36: =IF(Resultatinnlegging!$B7=LAGSRESULTATER!$HN$26,Resultatinnlegging!G7,0) -> 0 | HQ36: =IF(Resultatinnlegging!$B7=LAGSRESULTATER!$HN$26,Resultatinnlegging!H7,0) -> 0 | HR36: =IF(Resultatinnlegging!$B7=LAGSRESULTATER!$HN$26,Resultatinnlegging!I7,0) -> 0 | HS36: =IF(Resultatinnlegging!$B7=LAGSRESULTATER!$HN$26,Resultatinnlegging!J7,0) -> 0 | HT36: =IF(Resultatinnlegging!$B7=LAGSRESULTATER!$HN$26,Resultatinnlegging!K7,0) -> 0 | HU36: =IF(Resultatinnlegging!$B7=LAGSRESULTATER!$HA$26,Resultatinnlegging!L7,0) -> 0 | HV36: =IF(Resultatinnlegging!$B7=LAGSRESULTATER!$HN$26,Resultatinnlegging!M7,0) -> 0 | HW36: =IF(Resultatinnlegging!$B7=LAGSRESULTATER!$HN$26,Resultatinnlegging!N7,0) -> 0 | HX36: =IF(Resultatinnlegging!$B7=LAGSRESULTATER!$HN$26,Resultatinnlegging!O7,0) -> 0 | IB36: =IF(Resultatinnlegging!$B7=LAGSRESULTATER!$IA$26,Resultatinnlegging!F7,0) -> 0 | IC36: =IF(Resultatinnlegging!$B7=LAGSRESULTATER!$IA$26,Resultatinnlegging!G7,0) -> 0 | ID36: =IF(Resultatinnlegging!$B7=LAGSRESULTATER!$IA$26,Resultatinnlegging!H7,0) -> 0 | IE36: =IF(Resultatinnlegging!$B7=LAGSRESULTATER!$IA$26,Resultatinnlegging!I7,0) -> 0 | IF36: =IF(Resultatinnlegging!$B7=LAGSRESULTATER!$IA$26,Resultatinnlegging!J7,0) -> 0 | IG36: =IF(Resultatinnlegging!$B7=LAGSRESULTATER!$IA$26,Resultatinnlegging!K7,0) -> 0 | IH36: =IF(Resultatinnlegging!$B7=LAGSRESULTATER!$IA$26,Resultatinnlegging!L7,0) -> 0 | II36: =IF(Resultatinnlegging!$B7=LAGSRESULTATER!$IA$26,Resultatinnlegging!M7,0) -> 0 | IJ36: =IF(Resultatinnlegging!$B7=LAGSRESULTATER!$IA$26,Resultatinnlegging!N7,0) -> 0 | IK36: =IF(Resultatinnlegging!$B7=LAGSRESULTATER!$IA$26,Resultatinnlegging!O7,0) -> 0
B37: =IF(Resultatinnlegging!$B11=LAGSRESULTATER!$A$26,Resultatinnlegging!F11,0) -> 0 | C37: =IF(Resultatinnlegging!$B11=LAGSRESULTATER!$A$26,Resultatinnlegging!G11,0) -> 0 | D37: =IF(Resultatinnlegging!$B11=LAGSRESULTATER!$A$26,Resultatinnlegging!H11,0) -> 0 | E37: =IF(Resultatinnlegging!$B11=LAGSRESULTATER!$A$26,Resultatinnlegging!I11,0) -> 0 | F37: =IF(Resultatinnlegging!$B11=LAGSRESULTATER!$A$26,Resultatinnlegging!J11,0) -> 0 | G37: =IF(Resultatinnlegging!$B11=LAGSRESULTATER!$A$26,Resultatinnlegging!K11,0) -> 0 | H37: =IF(Resultatinnlegging!$B11=LAGSRESULTATER!$A$26,Resultatinnlegging!L11,0) -> 0 | I37: =IF(Resultatinnlegging!$B11=LAGSRESULTATER!$A$26,Resultatinnlegging!M11,0) -> 0 | J37: =IF(Resultatinnlegging!$B11=LAGSRESULTATER!$A$26,Resultatinnlegging!N11,0) -> 0 | K37: =IF(Resultatinnlegging!$B11=LAGSRESULTATER!$A$26,Resultatinnlegging!O11,0) -> 0 | O37: =IF(Resultatinnlegging!$B11=LAGSRESULTATER!$N$26,Resultatinnlegging!F11,0) -> 0 | P37: =IF(Resultatinnlegging!$B11=LAGSRESULTATER!$N$26,Resultatinnlegging!G11,0) -> 0 | Q37: =IF(Resultatinnlegging!$B11=LAGSRESULTATER!$N$26,Resultatinnlegging!H11,0) -> 0 | R37: =IF(Resultatinnlegging!$B11=LAGSRESULTATER!$N$26,Resultatinnlegging!I11,0) -> 0 | S37: =IF(Resultatinnlegging!$B11=LAGSRESULTATER!$N$26,Resultatinnlegging!J11,0) -> 0 | T37: =IF(Resultatinnlegging!$B11=LAGSRESULTATER!$N$26,Resultatinnlegging!K11,0) -> 0 | U37: =IF(Resultatinnlegging!$B11=LAGSRESULTATER!$N$26,Resultatinnlegging!L11,0) -> 0 | V37: =IF(Resultatinnlegging!$B11=LAGSRESULTATER!$N$26,Resultatinnlegging!M11,0) -> 0 | W37: =IF(Resultatinnlegging!$B11=LAGSRESULTATER!$N$26,Resultatinnlegging!N11,0) -> 0 | X37: =IF(Resultatinnlegging!$B11=LAGSRESULTATER!$N$26,Resultatinnlegging!O11,0) -> 0 | AB37: =IF(Resultatinnlegging!$B56=LAGSRESULTATER!$AA$26,Resultatinnlegging!F56,0) -> 0 | AC37: =IF(Resultatinnlegging!$B11=LAGSRESULTATER!$AA$26,Resultatinnlegging!G11,0) -> 0 | AD37: =IF(Resultatinnlegging!$B11=LAGSRESULTATER!$AA$26,Resultatinnlegging!H11,0) -> 0 | AE37: =IF(Resultatinnlegging!$B11=LAGSRESULTATER!$AA$26,Resultatinnlegging!I11,0) -> 0 | AF37: =IF(Resultatinnlegging!$B11=LAGSRESULTATER!$AA$26,Resultatinnlegging!J11,0) -> 0 | AG37: =IF(Resultatinnlegging!$B11=LAGSRESULTATER!$AA$26,Resultatinnlegging!K11,0) -> 0 | AH37: =IF(Resultatinnlegging!$B11=LAGSRESULTATER!$AA$26,Resultatinnlegging!L11,0) -> 0 | AI37: =IF(Resultatinnlegging!$B11=LAGSRESULTATER!$AA$26,Resultatinnlegging!M11,0) -> 0 | AJ37: =IF(Resultatinnlegging!$B11=LAGSRESULTATER!$AA$26,Resultatinnlegging!N11,0) -> 0 | AK37: =IF(Resultatinnlegging!$B11=LAGSRESULTATER!$AA$26,Resultatinnlegging!O11,0) -> 0 | AO37: =IF(Resultatinnlegging!$B15=LAGSRESULTATER!$AN$26,Resultatinnlegging!F15,0) -> 0 | AP37: =IF(Resultatinnlegging!$B11=LAGSRESULTATER!$AN$26,Resultatinnlegging!G11,0) -> 0 | AQ37: =IF(Resultatinnlegging!$B11=LAGSRESULTATER!$AN$26,Resultatinnlegging!H11,0) -> 0 | AR37: =IF(Resultatinnlegging!$B11=LAGSRESULTATER!$AN$26,Resultatinnlegging!I11,0) -> 0 | AS37: =IF(Resultatinnlegging!$B11=LAGSRESULTATER!$AN$26,Resultatinnlegging!J11,0) -> 0 | AT37: =IF(Resultatinnlegging!$B11=LAGSRESULTATER!$AN$26,Resultatinnlegging!K11,0) -> 0 | AU37: =IF(Resultatinnlegging!$B11=LAGSRESULTATER!$AN$26,Resultatinnlegging!L11,0) -> 0 | AV37: =IF(Resultatinnlegging!$B11=LAGSRESULTATER!$AN$26,Resultatinnlegging!M11,0) -> 0 | AW37: =IF(Resultatinnlegging!$B11=LAGSRESULTATER!$AN$26,Resultatinnlegging!N11,0) -> 0 | AX37: =IF(Resultatinnlegging!$B11=LAGSRESULTATER!$AN$26,Resultatinnlegging!O11,0) -> 0 | BB37: =IF(Resultatinnlegging!$B19=LAGSRESULTATER!$BA$26,Resultatinnlegging!F19,0) -> 0 | BC37: =IF(Resultatinnlegging!$B11=LAGSRESULTATER!$BA$26,Resultatinnlegging!G11,0) -> 0 | BD37: =IF(Resultatinnlegging!$B11=LAGSRESULTATER!$BA$26,Resultatinnlegging!H11,0) -> 0 | BE37: =IF(Resultatinnlegging!$B11=LAGSRESULTATER!$BA$26,Resultatinnlegging!I11,0) -> 0 | BF37: =IF(Resultatinnlegging!$B11=LAGSRESULTATER!$BA$26,Resultatinnlegging!J11,0) -> 0 | BG37: =IF(Resultatinnlegging!$B11=LAGSRESULTATER!$BA$26,Resultatinnlegging!K11,0) -> 0 | BH37: =IF(Resultatinnlegging!$B11=LAGSRESULTATER!$BA$26,Resultatinnlegging!L11,0) -> 0 | BI37: =IF(Resultatinnlegging!$B11=LAGSRESULTATER!$BA$26,Resultatinnlegging!M11,0) -> 0 | BJ37: =IF(Resultatinnlegging!$B11=LAGSRESULTATER!$BA$26,Resultatinnlegging!N11,0) -> 0 | BK37: =IF(Resultatinnlegging!$B11=LAGSRESULTATER!$BA$26,Resultatinnlegging!O11,0) -> 0 | BO37: =IF(Resultatinnlegging!$B3=LAGSRESULTATER!$BN$26,Resultatinnlegging!F3,0) -> 0 | BP37: =IF(Resultatinnlegging!$B11=LAGSRESULTATER!$BN$26,Resultatinnlegging!G11,0) -> 0 | BQ37: =IF(Resultatinnlegging!$B11=LAGSRESULTATER!$BN$26,Resultatinnlegging!H11,0) -> 0 | BR37: =IF(Resultatinnlegging!$B11=LAGSRESULTATER!$BN$26,Resultatinnlegging!I11,0) -> 0 | BS37: =IF(Resultatinnlegging!$B11=LAGSRESULTATER!$BN$26,Resultatinnlegging!J11,0) -> 0 | BT37: =IF(Resultatinnlegging!$B11=LAGSRESULTATER!$BN$26,Resultatinnlegging!K11,0) -> 0 | BU37: =IF(Resultatinnlegging!$B11=LAGSRESULTATER!$BN$26,Resultatinnlegging!L11,0) -> 0 | BV37: =IF(Resultatinnlegging!$B11=LAGSRESULTATER!$BN$26,Resultatinnlegging!M11,0) -> 0 | BW37: =IF(Resultatinnlegging!$B11=LAGSRESULTATER!$BN$26,Resultatinnlegging!N11,0) -> 0 | BX37: =IF(Resultatinnlegging!$B11=LAGSRESULTATER!$BN$26,Resultatinnlegging!O11,0) -> 0 | CB37: =IF(Resultatinnlegging!$B21=LAGSRESULTATER!$CA$26,Resultatinnlegging!F21,0) -> 0 | CC37: =IF(Resultatinnlegging!$B11=LAGSRESULTATER!$CA$26,Resultatinnlegging!G11,0) -> 0 | CD37: =IF(Resultatinnlegging!$B11=LAGSRESULTATER!$CA$26,Resultatinnlegging!H11,0) -> 0 | CE37: =IF(Resultatinnlegging!$B11=LAGSRESULTATER!$CA$26,Resultatinnlegging!I11,0) -> 0 | CF37: =IF(Resultatinnlegging!$B11=LAGSRESULTATER!$CA$26,Resultatinnlegging!J11,0) -> 0 | CG37: =IF(Resultatinnlegging!$B11=LAGSRESULTATER!$CA$26,Resultatinnlegging!K11,0) -> 0 | CH37: =IF(Resultatinnlegging!$B11=LAGSRESULTATER!$CA$26,Resultatinnlegging!L11,0) -> 0 | CI37: =IF(Resultatinnlegging!$B11=LAGSRESULTATER!$CA$26,Resultatinnlegging!M11,0) -> 0 | CJ37: =IF(Resultatinnlegging!$B11=LAGSRESULTATER!$CA$26,Resultatinnlegging!N11,0) -> 0 | CK37: =IF(Resultatinnlegging!$B11=LAGSRESULTATER!$CA$26,Resultatinnlegging!O11,0) -> 0 | CO37: =IF(Resultatinnlegging!$B28=LAGSRESULTATER!$CN$26,Resultatinnlegging!F28,0) -> 0 | CP37: =IF(Resultatinnlegging!$B11=LAGSRESULTATER!$CN$26,Resultatinnlegging!G11,0) -> 0 | CQ37: =IF(Resultatinnlegging!$B11=LAGSRESULTATER!$CN$26,Resultatinnlegging!H11,0) -> 0 | CR37: =IF(Resultatinnlegging!$B11=LAGSRESULTATER!$CN$26,Resultatinnlegging!I11,0) -> 0 | CS37: =IF(Resultatinnlegging!$B11=LAGSRESULTATER!$CN$26,Resultatinnlegging!J11,0) -> 0 | CT37: =IF(Resultatinnlegging!$B11=LAGSRESULTATER!$CN$26,Resultatinnlegging!K11,0) -> 0 | CU37: =IF(Resultatinnlegging!$B11=LAGSRESULTATER!$CN$26,Resultatinnlegging!L11,0) -> 0 | CV37: =IF(Resultatinnlegging!$B11=LAGSRESULTATER!$CN$26,Resultatinnlegging!M11,0) -> 0 | CW37: =IF(Resultatinnlegging!$B11=LAGSRESULTATER!$CN$26,Resultatinnlegging!N11,0) -> 0 | CX37: =IF(Resultatinnlegging!$B11=LAGSRESULTATER!$CN$26,Resultatinnlegging!O11,0) -> 0 | DB37: =IF(Resultatinnlegging!$B3=LAGSRESULTATER!$DA$26,Resultatinnlegging!F3,0) -> 0 | DC37: =IF(Resultatinnlegging!$B11=LAGSRESULTATER!$DA$26,Resultatinnlegging!G11,0) -> 0 | DD37: =IF(Resultatinnlegging!$B11=LAGSRESULTATER!$DA$26,Resultatinnlegging!H11,0) -> 0 | DE37: =IF(Resultatinnlegging!$B11=LAGSRESULTATER!$DA$26,Resultatinnlegging!I11,0) -> 0 | DF37: =IF(Resultatinnlegging!$B11=LAGSRESULTATER!$DA$26,Resultatinnlegging!J11,0) -> 0 | DG37: =IF(Resultatinnlegging!$B11=LAGSRESULTATER!$DA$26,Resultatinnlegging!K11,0) -> 0 | DH37: =IF(Resultatinnlegging!$B11=LAGSRESULTATER!$DA$26,Resultatinnlegging!L11,0) -> 0 | DI37: =IF(Resultatinnlegging!$B11=LAGSRESULTATER!$DA$26,Resultatinnlegging!M11,0) -> 0 | DJ37: =IF(Resultatinnlegging!$B11=LAGSRESULTATER!$DA$26,Resultatinnlegging!N11,0) -> 0 | DK37: =IF(Resultatinnlegging!$B11=LAGSRESULTATER!$DA$26,Resultatinnlegging!O11,0) -> 0 | DO37: =IF(Resultatinnlegging!$B11=LAGSRESULTATER!$DN$26,Resultatinnlegging!F11,0) -> 0 | DP37: =IF(Resultatinnlegging!$B11=LAGSRESULTATER!$DN$26,Resultatinnlegging!G11,0) -> 0 | DQ37: =IF(Resultatinnlegging!$B11=LAGSRESULTATER!$DN$26,Resultatinnlegging!H11,0) -> 0 | DR37: =IF(Resultatinnlegging!$B11=LAGSRESULTATER!$DN$26,Resultatinnlegging!I11,0) -> 0 | DS37: =IF(Resultatinnlegging!$B11=LAGSRESULTATER!$DN$26,Resultatinnlegging!J11,0) -> 0 | DT37: =IF(Resultatinnlegging!$B11=LAGSRESULTATER!$DN$26,Resultatinnlegging!K11,0) -> 0 | DU37: =IF(Resultatinnlegging!$B11=LAGSRESULTATER!$DN$26,Resultatinnlegging!L11,0) -> 0 | DV37: =IF(Resultatinnlegging!$B11=LAGSRESULTATER!$DN$26,Resultatinnlegging!M11,0) -> 0 | DW37: =IF(Resultatinnlegging!$B11=LAGSRESULTATER!$DN$26,Resultatinnlegging!N11,0) -> 0 | DX37: =IF(Resultatinnlegging!$B11=LAGSRESULTATER!$DN$26,Resultatinnlegging!O11,0) -> 0 | EB37: =IF(Resultatinnlegging!$B11=LAGSRESULTATER!$EA$26,Resultatinnlegging!F11,0) -> 0 | EC37: =IF(Resultatinnlegging!$B11=LAGSRESULTATER!$EA$26,Resultatinnlegging!G11,0) -> 0 | ED37: =IF(Resultatinnlegging!$B11=LAGSRESULTATER!$EA$26,Resultatinnlegging!H11,0) -> 0 | EE37: =IF(Resultatinnlegging!$B11=LAGSRESULTATER!$EA$26,Resultatinnlegging!I11,0) -> 0 | EF37: =IF(Resultatinnlegging!$B11=LAGSRESULTATER!$EA$26,Resultatinnlegging!J11,0) -> 0 | EG37: =IF(Resultatinnlegging!$B11=LAGSRESULTATER!$EA$26,Resultatinnlegging!K11,0) -> 0 | EH37: =IF(Resultatinnlegging!$B11=LAGSRESULTATER!$EA$26,Resultatinnlegging!L11,0) -> 0 | EI37: =IF(Resultatinnlegging!$B11=LAGSRESULTATER!$EA$26,Resultatinnlegging!M11,0) -> 0 | EJ37: =IF(Resultatinnlegging!$B11=LAGSRESULTATER!$EA$26,Resultatinnlegging!N11,0) -> 0 | EK37: =IF(Resultatinnlegging!$B11=LAGSRESULTATER!$EA$26,Resultatinnlegging!O11,0) -> 0 | EO37: =IF(Resultatinnlegging!$B11=LAGSRESULTATER!$EN$26,Resultatinnlegging!F11,0) -> 0 | EP37: =IF(Resultatinnlegging!$B11=LAGSRESULTATER!$EN$26,Resultatinnlegging!G11,0) -> 0 | EQ37: =IF(Resultatinnlegging!$B11=LAGSRESULTATER!$EN$26,Resultatinnlegging!H11,0) -> 0 | ER37: =IF(Resultatinnlegging!$B11=LAGSRESULTATER!$EN$26,Resultatinnlegging!I11,0) -> 0 | ES37: =IF(Resultatinnlegging!$B11=LAGSRESULTATER!$EN$26,Resultatinnlegging!J11,0) -> 0 | ET37: =IF(Resultatinnlegging!$B11=LAGSRESULTATER!$EN$26,Resultatinnlegging!K11,0) -> 0 | EU37: =IF(Resultatinnlegging!$B11=LAGSRESULTATER!$EN$26,Resultatinnlegging!L11,0) -> 0 | EV37: =IF(Resultatinnlegging!$B11=LAGSRESULTATER!$EN$26,Resultatinnlegging!M11,0) -> 0 | EW37: =IF(Resultatinnlegging!$B11=LAGSRESULTATER!$EN$26,Resultatinnlegging!N11,0) -> 0 | EX37: =IF(Resultatinnlegging!$B11=LAGSRESULTATER!$EN$26,Resultatinnlegging!O11,0) -> 0 | FB37: =IF(Resultatinnlegging!$B11=LAGSRESULTATER!$FA$26,Resultatinnlegging!F11,0) -> 0 | FC37: =IF(Resultatinnlegging!$B11=LAGSRESULTATER!$FA$26,Resultatinnlegging!G11,0) -> 0 | FD37: =IF(Resultatinnlegging!$B11=LAGSRESULTATER!$FA$26,Resultatinnlegging!H11,0) -> 0 | FE37: =IF(Resultatinnlegging!$B11=LAGSRESULTATER!$FA$26,Resultatinnlegging!I11,0) -> 0 | FF37: =IF(Resultatinnlegging!$B11=LAGSRESULTATER!$FA$26,Resultatinnlegging!J11,0) -> 0 | FG37: =IF(Resultatinnlegging!$B11=LAGSRESULTATER!$FA$26,Resultatinnlegging!K11,0) -> 0 | FH37: =IF(Resultatinnlegging!$B11=LAGSRESULTATER!$FA$26,Resultatinnlegging!L11,0) -> 0 | FI37: =IF(Resultatinnlegging!$B11=LAGSRESULTATER!$FA$26,Resultatinnlegging!M11,0) -> 0 | FJ37: =IF(Resultatinnlegging!$B11=LAGSRESULTATER!$FA$26,Resultatinnlegging!N11,0) -> 0 | FK37: =IF(Resultatinnlegging!$B11=LAGSRESULTATER!$FA$26,Resultatinnlegging!O11,0) -> 0 | FO37: =IF(Resultatinnlegging!$B11=LAGSRESULTATER!$FN$26,Resultatinnlegging!F11,0) -> 0 | FP37: =IF(Resultatinnlegging!$B11=LAGSRESULTATER!$FN$26,Resultatinnlegging!G11,0) -> 0 | FQ37: =IF(Resultatinnlegging!$B11=LAGSRESULTATER!$FN$26,Resultatinnlegging!H11,0) -> 0 | FR37: =IF(Resultatinnlegging!$B11=LAGSRESULTATER!$FN$26,Resultatinnlegging!I11,0) -> 0 | FS37: =IF(Resultatinnlegging!$B11=LAGSRESULTATER!$FN$26,Resultatinnlegging!J11,0) -> 0 | FT37: =IF(Resultatinnlegging!$B11=LAGSRESULTATER!$FN$26,Resultatinnlegging!K11,0) -> 0 | FU37: =IF(Resultatinnlegging!$B11=LAGSRESULTATER!$FN$26,Resultatinnlegging!L11,0) -> 0 | FV37: =IF(Resultatinnlegging!$B11=LAGSRESULTATER!$FN$26,Resultatinnlegging!M11,0) -> 0 | FW37: =IF(Resultatinnlegging!$B11=LAGSRESULTATER!$FN$26,Resultatinnlegging!N11,0) -> 0 | FX37: =IF(Resultatinnlegging!$B11=LAGSRESULTATER!$FN$26,Resultatinnlegging!O11,0) -> 0 | GA37: 8 | GB37: =IF(Resultatinnlegging!$B11=LAGSRESULTATER!$GA$26,Resultatinnlegging!F11,0) -> 0 | GC37: =IF(Resultatinnlegging!$B11=LAGSRESULTATER!$GA$26,Resultatinnlegging!G11,0) -> 0 | GD37: =IF(Resultatinnlegging!$B11=LAGSRESULTATER!$GA$26,Resultatinnlegging!H11,0) -> 0 | GE37: =IF(Resultatinnlegging!$B11=LAGSRESULTATER!$GA$26,Resultatinnlegging!I11,0) -> 0 | GF37: =IF(Resultatinnlegging!$B11=LAGSRESULTATER!$GA$26,Resultatinnlegging!J11,0) -> 0 | GG37: =IF(Resultatinnlegging!$B11=LAGSRESULTATER!$GA$26,Resultatinnlegging!K11,0) -> 0 | GH37: =IF(Resultatinnlegging!$B11=LAGSRESULTATER!$GA$26,Resultatinnlegging!L11,0) -> 0 | GI37: =IF(Resultatinnlegging!$B11=LAGSRESULTATER!$GA$26,Resultatinnlegging!M11,0) -> 0 | GJ37: =IF(Resultatinnlegging!$B11=LAGSRESULTATER!$GA$26,Resultatinnlegging!N11,0) -> 0 | GK37: =IF(Resultatinnlegging!$B11=LAGSRESULTATER!$GA$26,Resultatinnlegging!O11,0) -> 0 | GN37: 6 | GO37: =IF(Resultatinnlegging!$B11=LAGSRESULTATER!$GN$26,Resultatinnlegging!F11,0) -> 0 | GP37: =IF(Resultatinnlegging!$B11=LAGSRESULTATER!$GN$26,Resultatinnlegging!G11,0) -> 0 | GQ37: =IF(Resultatinnlegging!$B11=LAGSRESULTATER!$GN$26,Resultatinnlegging!H11,0) -> 0 | GR37: =IF(Resultatinnlegging!$B11=LAGSRESULTATER!$GN$26,Resultatinnlegging!I11,0) -> 0 | GS37: =IF(Resultatinnlegging!$B11=LAGSRESULTATER!$GN$26,Resultatinnlegging!J11,0) -> 0 | GT37: =IF(Resultatinnlegging!$B11=LAGSRESULTATER!$GN$26,Resultatinnlegging!K11,0) -> 0 | GU37: =IF(Resultatinnlegging!$B11=LAGSRESULTATER!$GN$26,Resultatinnlegging!L11,0) -> 0 | GV37: =IF(Resultatinnlegging!$B11=LAGSRESULTATER!$GN$26,Resultatinnlegging!M11,0) -> 0 | GW37: =IF(Resultatinnlegging!$B11=LAGSRESULTATER!$GN$26,Resultatinnlegging!N11,0) -> 0 | GX37: =IF(Resultatinnlegging!$B11=LAGSRESULTATER!$GN$26,Resultatinnlegging!O11,0) -> 0 | HB37: =IF(Resultatinnlegging!$B11=LAGSRESULTATER!$HA$26,Resultatinnlegging!F11,0) -> 0 | HC37: =IF(Resultatinnlegging!$B11=LAGSRESULTATER!$HA$26,Resultatinnlegging!G11,0) -> 0 | HD37: =IF(Resultatinnlegging!$B11=LAGSRESULTATER!$HA$26,Resultatinnlegging!H11,0) -> 0 | HE37: =IF(Resultatinnlegging!$B11=LAGSRESULTATER!$HA$26,Resultatinnlegging!I11,0) -> 0 | HF37: =IF(Resultatinnlegging!$B11=LAGSRESULTATER!$HA$26,Resultatinnlegging!J11,0) -> 0 | HG37: =IF(Resultatinnlegging!$B11=LAGSRESULTATER!$HA$26,Resultatinnlegging!K11,0) -> 0 | HH37: =IF(Resultatinnlegging!$B11=LAGSRESULTATER!$HA$26,Resultatinnlegging!L11,0) -> 0 | HI37: =IF(Resultatinnlegging!$B11=LAGSRESULTATER!$HA$26,Resultatinnlegging!M11,0) -> 0 | HJ37: =IF(Resultatinnlegging!$B11=LAGSRESULTATER!$HA$26,Resultatinnlegging!N11,0) -> 0 | HK37: =IF(Resultatinnlegging!$B11=LAGSRESULTATER!$HA$26,Resultatinnlegging!O11,0) -> 0 | HO37: =IF(Resultatinnlegging!$B11=LAGSRESULTATER!$HN$26,Resultatinnlegging!F11,0) -> 0 | HP37: =IF(Resultatinnlegging!$B11=LAGSRESULTATER!$HN$26,Resultatinnlegging!G11,0) -> 0 | HQ37: =IF(Resultatinnlegging!$B11=LAGSRESULTATER!$HN$26,Resultatinnlegging!H11,0) -> 0 | HR37: =IF(Resultatinnlegging!$B11=LAGSRESULTATER!$HN$26,Resultatinnlegging!I11,0) -> 0 | HS37: =IF(Resultatinnlegging!$B11=LAGSRESULTATER!$HN$26,Resultatinnlegging!J11,0) -> 0 | HT37: =IF(Resultatinnlegging!$B11=LAGSRESULTATER!$HN$26,Resultatinnlegging!K11,0) -> 0 | HU37: =IF(Resultatinnlegging!$B11=LAGSRESULTATER!$HA$26,Resultatinnlegging!L11,0) -> 0 | HV37: =IF(Resultatinnlegging!$B11=LAGSRESULTATER!$HN$26,Resultatinnlegging!M11,0) -> 0 | HW37: =IF(Resultatinnlegging!$B11=LAGSRESULTATER!$HN$26,Resultatinnlegging!N11,0) -> 0 | HX37: =IF(Resultatinnlegging!$B11=LAGSRESULTATER!$HN$26,Resultatinnlegging!O11,0) -> 0 | IB37: =IF(Resultatinnlegging!$B11=LAGSRESULTATER!$IA$26,Resultatinnlegging!F11,0) -> 0 | IC37: =IF(Resultatinnlegging!$B11=LAGSRESULTATER!$IA$26,Resultatinnlegging!G11,0) -> 0 | ID37: =IF(Resultatinnlegging!$B11=LAGSRESULTATER!$IA$26,Resultatinnlegging!H11,0) -> 0 | IE37: =IF(Resultatinnlegging!$B11=LAGSRESULTATER!$IA$26,Resultatinnlegging!I11,0) -> 0 | IF37: =IF(Resultatinnlegging!$B11=LAGSRESULTATER!$IA$26,Resultatinnlegging!J11,0) -> 0 | IG37: =IF(Resultatinnlegging!$B11=LAGSRESULTATER!$IA$26,Resultatinnlegging!K11,0) -> 0 | IH37: =IF(Resultatinnlegging!$B11=LAGSRESULTATER!$IA$26,Resultatinnlegging!L11,0) -> 0 | II37: =IF(Resultatinnlegging!$B11=LAGSRESULTATER!$IA$26,Resultatinnlegging!M11,0) -> 0 | IJ37: =IF(Resultatinnlegging!$B11=LAGSRESULTATER!$IA$26,Resultatinnlegging!N11,0) -> 0 | IK37: =IF(Resultatinnlegging!$B11=LAGSRESULTATER!$IA$26,Resultatinnlegging!O11,0) -> 0
B38: =IF(Resultatinnlegging!$B12=LAGSRESULTATER!$A$26,Resultatinnlegging!F12,0) -> 0 | C38: =IF(Resultatinnlegging!$B12=LAGSRESULTATER!$A$26,Resultatinnlegging!G12,0) -> 0 | D38: =IF(Resultatinnlegging!$B12=LAGSRESULTATER!$A$26,Resultatinnlegging!H12,0) -> 0 | E38: =IF(Resultatinnlegging!$B12=LAGSRESULTATER!$A$26,Resultatinnlegging!I12,0) -> 0 | F38: =IF(Resultatinnlegging!$B12=LAGSRESULTATER!$A$26,Resultatinnlegging!J12,0) -> 0 | G38: =IF(Resultatinnlegging!$B12=LAGSRESULTATER!$A$26,Resultatinnlegging!K12,0) -> 0 | H38: =IF(Resultatinnlegging!$B12=LAGSRESULTATER!$A$26,Resultatinnlegging!L12,0) -> 0 | I38: =IF(Resultatinnlegging!$B12=LAGSRESULTATER!$A$26,Resultatinnlegging!M12,0) -> 0 | J38: =IF(Resultatinnlegging!$B12=LAGSRESULTATER!$A$26,Resultatinnlegging!N12,0) -> 0 | K38: =IF(Resultatinnlegging!$B12=LAGSRESULTATER!$A$26,Resultatinnlegging!O12,0) -> 0 | O38: =IF(Resultatinnlegging!$B12=LAGSRESULTATER!$N$26,Resultatinnlegging!F12,0) -> 0 | P38: =IF(Resultatinnlegging!$B12=LAGSRESULTATER!$N$26,Resultatinnlegging!G12,0) -> 0 | Q38: =IF(Resultatinnlegging!$B12=LAGSRESULTATER!$N$26,Resultatinnlegging!H12,0) -> 0 | R38: =IF(Resultatinnlegging!$B12=LAGSRESULTATER!$N$26,Resultatinnlegging!I12,0) -> 0 | S38: =IF(Resultatinnlegging!$B12=LAGSRESULTATER!$N$26,Resultatinnlegging!J12,0) -> 0 | T38: =IF(Resultatinnlegging!$B12=LAGSRESULTATER!$N$26,Resultatinnlegging!K12,0) -> 0 | U38: =IF(Resultatinnlegging!$B12=LAGSRESULTATER!$N$26,Resultatinnlegging!L12,0) -> 0 | V38: =IF(Resultatinnlegging!$B12=LAGSRESULTATER!$N$26,Resultatinnlegging!M12,0) -> 0 | W38: =IF(Resultatinnlegging!$B12=LAGSRESULTATER!$N$26,Resultatinnlegging!N12,0) -> 0 | X38: =IF(Resultatinnlegging!$B12=LAGSRESULTATER!$N$26,Resultatinnlegging!O12,0) -> 0 | AB38: =IF(Resultatinnlegging!$B3=LAGSRESULTATER!$AA$26,Resultatinnlegging!F3,0) -> 0 | AC38: =IF(Resultatinnlegging!$B12=LAGSRESULTATER!$AA$26,Resultatinnlegging!G12,0) -> 0 | AD38: =IF(Resultatinnlegging!$B12=LAGSRESULTATER!$AA$26,Resultatinnlegging!H12,0) -> 0 | AE38: =IF(Resultatinnlegging!$B12=LAGSRESULTATER!$AA$26,Resultatinnlegging!I12,0) -> 0 | AF38: =IF(Resultatinnlegging!$B12=LAGSRESULTATER!$AA$26,Resultatinnlegging!J12,0) -> 0 | AG38: =IF(Resultatinnlegging!$B12=LAGSRESULTATER!$AA$26,Resultatinnlegging!K12,0) -> 0 | AH38: =IF(Resultatinnlegging!$B12=LAGSRESULTATER!$AA$26,Resultatinnlegging!L12,0) -> 0 | AI38: =IF(Resultatinnlegging!$B12=LAGSRESULTATER!$AA$26,Resultatinnlegging!M12,0) -> 0 | AJ38: =IF(Resultatinnlegging!$B12=LAGSRESULTATER!$AA$26,Resultatinnlegging!N12,0) -> 0 | AK38: =IF(Resultatinnlegging!$B12=LAGSRESULTATER!$AA$26,Resultatinnlegging!O12,0) -> 0 | AO38: =IF(Resultatinnlegging!$B24=LAGSRESULTATER!$AN$26,Resultatinnlegging!F24,0) -> 0 | AP38: =IF(Resultatinnlegging!$B12=LAGSRESULTATER!$AN$26,Resultatinnlegging!G12,0) -> 0 | AQ38: =IF(Resultatinnlegging!$B12=LAGSRESULTATER!$AN$26,Resultatinnlegging!H12,0) -> 0 | AR38: =IF(Resultatinnlegging!$B12=LAGSRESULTATER!$AN$26,Resultatinnlegging!I12,0) -> 0 | AS38: =IF(Resultatinnlegging!$B12=LAGSRESULTATER!$AN$26,Resultatinnlegging!J12,0) -> 0 | AT38: =IF(Resultatinnlegging!$B12=LAGSRESULTATER!$AN$26,Resultatinnlegging!K12,0) -> 0 | AU38: =IF(Resultatinnlegging!$B12=LAGSRESULTATER!$AN$26,Resultatinnlegging!L12,0) -> 0 | AV38: =IF(Resultatinnlegging!$B12=LAGSRESULTATER!$AN$26,Resultatinnlegging!M12,0) -> 0 | AW38: =IF(Resultatinnlegging!$B12=LAGSRESULTATER!$AN$26,Resultatinnlegging!N12,0) -> 0 | AX38: =IF(Resultatinnlegging!$B12=LAGSRESULTATER!$AN$26,Resultatinnlegging!O12,0) -> 0 | BB38: =IF(Resultatinnlegging!$B55=LAGSRESULTATER!$BA$26,Resultatinnlegging!F55,0) -> 0 | BC38: =IF(Resultatinnlegging!$B12=LAGSRESULTATER!$BA$26,Resultatinnlegging!G12,0) -> 0 | BD38: =IF(Resultatinnlegging!$B12=LAGSRESULTATER!$BA$26,Resultatinnlegging!H12,0) -> 0 | BE38: =IF(Resultatinnlegging!$B12=LAGSRESULTATER!$BA$26,Resultatinnlegging!I12,0) -> 0 | BF38: =IF(Resultatinnlegging!$B12=LAGSRESULTATER!$BA$26,Resultatinnlegging!J12,0) -> 0 | BG38: =IF(Resultatinnlegging!$B12=LAGSRESULTATER!$BA$26,Resultatinnlegging!K12,0) -> 0 | BH38: =IF(Resultatinnlegging!$B12=LAGSRESULTATER!$BA$26,Resultatinnlegging!L12,0) -> 0 | BI38: =IF(Resultatinnlegging!$B12=LAGSRESULTATER!$BA$26,Resultatinnlegging!M12,0) -> 0 | BJ38: =IF(Resultatinnlegging!$B12=LAGSRESULTATER!$BA$26,Resultatinnlegging!N12,0) -> 0 | BK38: =IF(Resultatinnlegging!$B12=LAGSRESULTATER!$BA$26,Resultatinnlegging!O12,0) -> 0 | BO38: =IF(Resultatinnlegging!$B11=LAGSRESULTATER!$BN$26,Resultatinnlegging!F11,0) -> 0 | BP38: =IF(Resultatinnlegging!$B12=LAGSRESULTATER!$BN$26,Resultatinnlegging!G12,0) -> 0 | BQ38: =IF(Resultatinnlegging!$B12=LAGSRESULTATER!$BN$26,Resultatinnlegging!H12,0) -> 0 | BR38: =IF(Resultatinnlegging!$B12=LAGSRESULTATER!$BN$26,Resultatinnlegging!I12,0) -> 0 | BS38: =IF(Resultatinnlegging!$B12=LAGSRESULTATER!$BN$26,Resultatinnlegging!J12,0) -> 0 | BT38: =IF(Resultatinnlegging!$B12=LAGSRESULTATER!$BN$26,Resultatinnlegging!K12,0) -> 0 | BU38: =IF(Resultatinnlegging!$B12=LAGSRESULTATER!$BN$26,Resultatinnlegging!L12,0) -> 0 | BV38: =IF(Resultatinnlegging!$B12=LAGSRESULTATER!$BN$26,Resultatinnlegging!M12,0) -> 0 | BW38: =IF(Resultatinnlegging!$B12=LAGSRESULTATER!$BN$26,Resultatinnlegging!N12,0) -> 0 | BX38: =IF(Resultatinnlegging!$B12=LAGSRESULTATER!$BN$26,Resultatinnlegging!O12,0) -> 0 | CB38: =IF(Resultatinnlegging!$B42=LAGSRESULTATER!$CA$26,Resultatinnlegging!F42,0) -> 0 | CC38: =IF(Resultatinnlegging!$B12=LAGSRESULTATER!$CA$26,Resultatinnlegging!G12,0) -> 0 | CD38: =IF(Resultatinnlegging!$B12=LAGSRESULTATER!$CA$26,Resultatinnlegging!H12,0) -> 0 | CE38: =IF(Resultatinnlegging!$B12=LAGSRESULTATER!$CA$26,Resultatinnlegging!I12,0) -> 0 | CF38: =IF(Resultatinnlegging!$B12=LAGSRESULTATER!$CA$26,Resultatinnlegging!J12,0) -> 0 | CG38: =IF(Resultatinnlegging!$B12=LAGSRESULTATER!$CA$26,Resultatinnlegging!K12,0) -> 0 | CH38: =IF(Resultatinnlegging!$B12=LAGSRESULTATER!$CA$26,Resultatinnlegging!L12,0) -> 0 | CI38: =IF(Resultatinnlegging!$B12=LAGSRESULTATER!$CA$26,Resultatinnlegging!M12,0) -> 0 | CJ38: =IF(Resultatinnlegging!$B12=LAGSRESULTATER!$CA$26,Resultatinnlegging!N12,0) -> 0 | CK38: =IF(Resultatinnlegging!$B12=LAGSRESULTATER!$CA$26,Resultatinnlegging!O12,0) -> 0 | CO38: =IF(Resultatinnlegging!$B3=LAGSRESULTATER!$CN$26,Resultatinnlegging!F3,0) -> 0 | CP38: =IF(Resultatinnlegging!$B12=LAGSRESULTATER!$CN$26,Resultatinnlegging!G12,0) -> 0 | CQ38: =IF(Resultatinnlegging!$B12=LAGSRESULTATER!$CN$26,Resultatinnlegging!H12,0) -> 0 | CR38: =IF(Resultatinnlegging!$B12=LAGSRESULTATER!$CN$26,Resultatinnlegging!I12,0) -> 0 | CS38: =IF(Resultatinnlegging!$B12=LAGSRESULTATER!$CN$26,Resultatinnlegging!J12,0) -> 0 | CT38: =IF(Resultatinnlegging!$B12=LAGSRESULTATER!$CN$26,Resultatinnlegging!K12,0) -> 0 | CU38: =IF(Resultatinnlegging!$B12=LAGSRESULTATER!$CN$26,Resultatinnlegging!L12,0) -> 0 | CV38: =IF(Resultatinnlegging!$B12=LAGSRESULTATER!$CN$26,Resultatinnlegging!M12,0) -> 0 | CW38: =IF(Resultatinnlegging!$B12=LAGSRESULTATER!$CN$26,Resultatinnlegging!N12,0) -> 0 | CX38: =IF(Resultatinnlegging!$B12=LAGSRESULTATER!$CN$26,Resultatinnlegging!O12,0) -> 0 | DB38: =IF(Resultatinnlegging!$B11=LAGSRESULTATER!$DA$26,Resultatinnlegging!F11,0) -> 0 | DC38: =IF(Resultatinnlegging!$B12=LAGSRESULTATER!$DA$26,Resultatinnlegging!G12,0) -> 0 | DD38: =IF(Resultatinnlegging!$B12=LAGSRESULTATER!$DA$26,Resultatinnlegging!H12,0) -> 0 | DE38: =IF(Resultatinnlegging!$B12=LAGSRESULTATER!$DA$26,Resultatinnlegging!I12,0) -> 0 | DF38: =IF(Resultatinnlegging!$B12=LAGSRESULTATER!$DA$26,Resultatinnlegging!J12,0) -> 0 | DG38: =IF(Resultatinnlegging!$B12=LAGSRESULTATER!$DA$26,Resultatinnlegging!K12,0) -> 0 | DH38: =IF(Resultatinnlegging!$B12=LAGSRESULTATER!$DA$26,Resultatinnlegging!L12,0) -> 0 | DI38: =IF(Resultatinnlegging!$B12=LAGSRESULTATER!$DA$26,Resultatinnlegging!M12,0) -> 0 | DJ38: =IF(Resultatinnlegging!$B12=LAGSRESULTATER!$DA$26,Resultatinnlegging!N12,0) -> 0 | DK38: =IF(Resultatinnlegging!$B12=LAGSRESULTATER!$DA$26,Resultatinnlegging!O12,0) -> 0 | DO38: =IF(Resultatinnlegging!$B12=LAGSRESULTATER!$DN$26,Resultatinnlegging!F12,0) -> 0 | DP38: =IF(Resultatinnlegging!$B12=LAGSRESULTATER!$DN$26,Resultatinnlegging!G12,0) -> 0 | DQ38: =IF(Resultatinnlegging!$B12=LAGSRESULTATER!$DN$26,Resultatinnlegging!H12,0) -> 0 | DR38: =IF(Resultatinnlegging!$B12=LAGSRESULTATER!$DN$26,Resultatinnlegging!I12,0) -> 0 | DS38: =IF(Resultatinnlegging!$B12=LAGSRESULTATER!$DN$26,Resultatinnlegging!J12,0) -> 0 | DT38: =IF(Resultatinnlegging!$B12=LAGSRESULTATER!$DN$26,Resultatinnlegging!K12,0) -> 0 | DU38: =IF(Resultatinnlegging!$B12=LAGSRESULTATER!$DN$26,Resultatinnlegging!L12,0) -> 0 | DV38: =IF(Resultatinnlegging!$B12=LAGSRESULTATER!$DN$26,Resultatinnlegging!M12,0) -> 0 | DW38: =IF(Resultatinnlegging!$B12=LAGSRESULTATER!$DN$26,Resultatinnlegging!N12,0) -> 0 | DX38: =IF(Resultatinnlegging!$B12=LAGSRESULTATER!$DN$26,Resultatinnlegging!O12,0) -> 0 | EB38: =IF(Resultatinnlegging!$B12=LAGSRESULTATER!$EA$26,Resultatinnlegging!F12,0) -> 0 | EC38: =IF(Resultatinnlegging!$B12=LAGSRESULTATER!$EA$26,Resultatinnlegging!G12,0) -> 0 | ED38: =IF(Resultatinnlegging!$B12=LAGSRESULTATER!$EA$26,Resultatinnlegging!H12,0) -> 0 | EE38: =IF(Resultatinnlegging!$B12=LAGSRESULTATER!$EA$26,Resultatinnlegging!I12,0) -> 0 | EF38: =IF(Resultatinnlegging!$B12=LAGSRESULTATER!$EA$26,Resultatinnlegging!J12,0) -> 0 | EG38: =IF(Resultatinnlegging!$B12=LAGSRESULTATER!$EA$26,Resultatinnlegging!K12,0) -> 0 | EH38: =IF(Resultatinnlegging!$B12=LAGSRESULTATER!$EA$26,Resultatinnlegging!L12,0) -> 0 | EI38: =IF(Resultatinnlegging!$B12=LAGSRESULTATER!$EA$26,Resultatinnlegging!M12,0) -> 0 | EJ38: =IF(Resultatinnlegging!$B12=LAGSRESULTATER!$EA$26,Resultatinnlegging!N12,0) -> 0 | EK38: =IF(Resultatinnlegging!$B12=LAGSRESULTATER!$EA$26,Resultatinnlegging!O12,0) -> 0 | EO38: =IF(Resultatinnlegging!$B12=LAGSRESULTATER!$EN$26,Resultatinnlegging!F12,0) -> 0 | EP38: =IF(Resultatinnlegging!$B12=LAGSRESULTATER!$EN$26,Resultatinnlegging!G12,0) -> 0 | EQ38: =IF(Resultatinnlegging!$B12=LAGSRESULTATER!$EN$26,Resultatinnlegging!H12,0) -> 0 | ER38: =IF(Resultatinnlegging!$B12=LAGSRESULTATER!$EN$26,Resultatinnlegging!I12,0) -> 0 | ES38: =IF(Resultatinnlegging!$B12=LAGSRESULTATER!$EN$26,Resultatinnlegging!J12,0) -> 0 | ET38: =IF(Resultatinnlegging!$B12=LAGSRESULTATER!$EN$26,Resultatinnlegging!K12,0) -> 0 | EU38: =IF(Resultatinnlegging!$B12=LAGSRESULTATER!$EN$26,Resultatinnlegging!L12,0) -> 0 | EV38: =IF(Resultatinnlegging!$B12=LAGSRESULTATER!$EN$26,Resultatinnlegging!M12,0) -> 0 | EW38: =IF(Resultatinnlegging!$B12=LAGSRESULTATER!$EN$26,Resultatinnlegging!N12,0) -> 0 | EX38: =IF(Resultatinnlegging!$B12=LAGSRESULTATER!$EN$26,Resultatinnlegging!O12,0) -> 0 | FB38: =IF(Resultatinnlegging!$B12=LAGSRESULTATER!$FA$26,Resultatinnlegging!F12,0) -> 0 | FC38: =IF(Resultatinnlegging!$B12=LAGSRESULTATER!$FA$26,Resultatinnlegging!G12,0) -> 0 | FD38: =IF(Resultatinnlegging!$B12=LAGSRESULTATER!$FA$26,Resultatinnlegging!H12,0) -> 0 | FE38: =IF(Resultatinnlegging!$B12=LAGSRESULTATER!$FA$26,Resultatinnlegging!I12,0) -> 0 | FF38: =IF(Resultatinnlegging!$B12=LAGSRESULTATER!$FA$26,Resultatinnlegging!J12,0) -> 0 | FG38: =IF(Resultatinnlegging!$B12=LAGSRESULTATER!$FA$26,Resultatinnlegging!K12,0) -> 0 | FH38: =IF(Resultatinnlegging!$B12=LAGSRESULTATER!$FA$26,Resultatinnlegging!L12,0) -> 0 | FI38: =IF(Resultatinnlegging!$B12=LAGSRESULTATER!$FA$26,Resultatinnlegging!M12,0) -> 0 | FJ38: =IF(Resultatinnlegging!$B12=LAGSRESULTATER!$FA$26,Resultatinnlegging!N12,0) -> 0 | FK38: =IF(Resultatinnlegging!$B12=LAGSRESULTATER!$FA$26,Resultatinnlegging!O12,0) -> 0 | FO38: =IF(Resultatinnlegging!$B12=LAGSRESULTATER!$FN$26,Resultatinnlegging!F12,0) -> 0 | FP38: =IF(Resultatinnlegging!$B12=LAGSRESULTATER!$FN$26,Resultatinnlegging!G12,0) -> 0 | FQ38: =IF(Resultatinnlegging!$B12=LAGSRESULTATER!$FN$26,Resultatinnlegging!H12,0) -> 0 | FR38: =IF(Resultatinnlegging!$B12=LAGSRESULTATER!$FN$26,Resultatinnlegging!I12,0) -> 0 | FS38: =IF(Resultatinnlegging!$B12=LAGSRESULTATER!$FN$26,Resultatinnlegging!J12,0) -> 0 | FT38: =IF(Resultatinnlegging!$B12=LAGSRESULTATER!$FN$26,Resultatinnlegging!K12,0) -> 0 | FU38: =IF(Resultatinnlegging!$B12=LAGSRESULTATER!$FN$26,Resultatinnlegging!L12,0) -> 0 | FV38: =IF(Resultatinnlegging!$B12=LAGSRESULTATER!$FN$26,Resultatinnlegging!M12,0) -> 0 | FW38: =IF(Resultatinnlegging!$B12=LAGSRESULTATER!$FN$26,Resultatinnlegging!N12,0) -> 0 | FX38: =IF(Resultatinnlegging!$B12=LAGSRESULTATER!$FN$26,Resultatinnlegging!O12,0) -> 0 | GA38: 9 | GB38: =IF(Resultatinnlegging!$B12=LAGSRESULTATER!$GA$26,Resultatinnlegging!F12,0) -> 0 | GC38: =IF(Resultatinnlegging!$B12=LAGSRESULTATER!$GA$26,Resultatinnlegging!G12,0) -> 0 | GD38: =IF(Resultatinnlegging!$B12=LAGSRESULTATER!$GA$26,Resultatinnlegging!H12,0) -> 0 | GE38: =IF(Resultatinnlegging!$B12=LAGSRESULTATER!$GA$26,Resultatinnlegging!I12,0) -> 0 | GF38: =IF(Resultatinnlegging!$B12=LAGSRESULTATER!$GA$26,Resultatinnlegging!J12,0) -> 0 | GG38: =IF(Resultatinnlegging!$B12=LAGSRESULTATER!$GA$26,Resultatinnlegging!K12,0) -> 0 | GH38: =IF(Resultatinnlegging!$B12=LAGSRESULTATER!$GA$26,Resultatinnlegging!L12,0) -> 0 | GI38: =IF(Resultatinnlegging!$B12=LAGSRESULTATER!$GA$26,Resultatinnlegging!M12,0) -> 0 | GJ38: =IF(Resultatinnlegging!$B12=LAGSRESULTATER!$GA$26,Resultatinnlegging!N12,0) -> 0 | GK38: =IF(Resultatinnlegging!$B12=LAGSRESULTATER!$GA$26,Resultatinnlegging!O12,0) -> 0 | GN38: 7 | GO38: =IF(Resultatinnlegging!$B12=LAGSRESULTATER!$GN$26,Resultatinnlegging!F12,0) -> 0 | GP38: =IF(Resultatinnlegging!$B12=LAGSRESULTATER!$GN$26,Resultatinnlegging!G12,0) -> 0 | GQ38: =IF(Resultatinnlegging!$B12=LAGSRESULTATER!$GN$26,Resultatinnlegging!H12,0) -> 0 | GR38: =IF(Resultatinnlegging!$B12=LAGSRESULTATER!$GN$26,Resultatinnlegging!I12,0) -> 0 | GS38: =IF(Resultatinnlegging!$B12=LAGSRESULTATER!$GN$26,Resultatinnlegging!J12,0) -> 0 | GT38: =IF(Resultatinnlegging!$B12=LAGSRESULTATER!$GN$26,Resultatinnlegging!K12,0) -> 0 | GU38: =IF(Resultatinnlegging!$B12=LAGSRESULTATER!$GN$26,Resultatinnlegging!L12,0) -> 0 | GV38: =IF(Resultatinnlegging!$B12=LAGSRESULTATER!$GN$26,Resultatinnlegging!M12,0) -> 0 | GW38: =IF(Resultatinnlegging!$B12=LAGSRESULTATER!$GN$26,Resultatinnlegging!N12,0) -> 0 | GX38: =IF(Resultatinnlegging!$B12=LAGSRESULTATER!$GN$26,Resultatinnlegging!O12,0) -> 0 | HB38: =IF(Resultatinnlegging!$B12=LAGSRESULTATER!$HA$26,Resultatinnlegging!F12,0) -> 0 | HC38: =IF(Resultatinnlegging!$B12=LAGSRESULTATER!$HA$26,Resultatinnlegging!G12,0) -> 0 | HD38: =IF(Resultatinnlegging!$B12=LAGSRESULTATER!$HA$26,Resultatinnlegging!H12,0) -> 0 | HE38: =IF(Resultatinnlegging!$B12=LAGSRESULTATER!$HA$26,Resultatinnlegging!I12,0) -> 0 | HF38: =IF(Resultatinnlegging!$B12=LAGSRESULTATER!$HA$26,Resultatinnlegging!J12,0) -> 0 | HG38: =IF(Resultatinnlegging!$B12=LAGSRESULTATER!$HA$26,Resultatinnlegging!K12,0) -> 0 | HH38: =IF(Resultatinnlegging!$B12=LAGSRESULTATER!$HA$26,Resultatinnlegging!L12,0) -> 0 | HI38: =IF(Resultatinnlegging!$B12=LAGSRESULTATER!$HA$26,Resultatinnlegging!M12,0) -> 0 | HJ38: =IF(Resultatinnlegging!$B12=LAGSRESULTATER!$HA$26,Resultatinnlegging!N12,0) -> 0 | HK38: =IF(Resultatinnlegging!$B12=LAGSRESULTATER!$HA$26,Resultatinnlegging!O12,0) -> 0 | HO38: =IF(Resultatinnlegging!$B12=LAGSRESULTATER!$HN$26,Resultatinnlegging!F12,0) -> 0 | HP38: =IF(Resultatinnlegging!$B12=LAGSRESULTATER!$HN$26,Resultatinnlegging!G12,0) -> 0 | HQ38: =IF(Resultatinnlegging!$B12=LAGSRESULTATER!$HN$26,Resultatinnlegging!H12,0) -> 0 | HR38: =IF(Resultatinnlegging!$B12=LAGSRESULTATER!$HN$26,Resultatinnlegging!I12,0) -> 0 | HS38: =IF(Resultatinnlegging!$B12=LAGSRESULTATER!$HN$26,Resultatinnlegging!J12,0) -> 0 | HT38: =IF(Resultatinnlegging!$B12=LAGSRESULTATER!$HN$26,Resultatinnlegging!K12,0) -> 0 | HU38: =IF(Resultatinnlegging!$B12=LAGSRESULTATER!$HA$26,Resultatinnlegging!L12,0) -> 0 | HV38: =IF(Resultatinnlegging!$B12=LAGSRESULTATER!$HN$26,Resultatinnlegging!M12,0) -> 0 | HW38: =IF(Resultatinnlegging!$B12=LAGSRESULTATER!$HN$26,Resultatinnlegging!N12,0) -> 0 | HX38: =IF(Resultatinnlegging!$B12=LAGSRESULTATER!$HN$26,Resultatinnlegging!O12,0) -> 0 | IB38: =IF(Resultatinnlegging!$B12=LAGSRESULTATER!$IA$26,Resultatinnlegging!F12,0) -> 0 | IC38: =IF(Resultatinnlegging!$B12=LAGSRESULTATER!$IA$26,Resultatinnlegging!G12,0) -> 0 | ID38: =IF(Resultatinnlegging!$B12=LAGSRESULTATER!$IA$26,Resultatinnlegging!H12,0) -> 0 | IE38: =IF(Resultatinnlegging!$B12=LAGSRESULTATER!$IA$26,Resultatinnlegging!I12,0) -> 0 | IF38: =IF(Resultatinnlegging!$B12=LAGSRESULTATER!$IA$26,Resultatinnlegging!J12,0) -> 0 | IG38: =IF(Resultatinnlegging!$B12=LAGSRESULTATER!$IA$26,Resultatinnlegging!K12,0) -> 0 | IH38: =IF(Resultatinnlegging!$B12=LAGSRESULTATER!$IA$26,Resultatinnlegging!L12,0) -> 0 | II38: =IF(Resultatinnlegging!$B12=LAGSRESULTATER!$IA$26,Resultatinnlegging!M12,0) -> 0 | IJ38: =IF(Resultatinnlegging!$B12=LAGSRESULTATER!$IA$26,Resultatinnlegging!N12,0) -> 0 | IK38: =IF(Resultatinnlegging!$B12=LAGSRESULTATER!$IA$26,Resultatinnlegging!O12,0) -> 0
B39: =IF(Resultatinnlegging!$B13=LAGSRESULTATER!$A$26,Resultatinnlegging!F13,0) -> 0 | C39: =IF(Resultatinnlegging!$B13=LAGSRESULTATER!$A$26,Resultatinnlegging!G13,0) -> 0 | D39: =IF(Resultatinnlegging!$B13=LAGSRESULTATER!$A$26,Resultatinnlegging!H13,0) -> 0 | E39: =IF(Resultatinnlegging!$B13=LAGSRESULTATER!$A$26,Resultatinnlegging!I13,0) -> 0 | F39: =IF(Resultatinnlegging!$B13=LAGSRESULTATER!$A$26,Resultatinnlegging!J13,0) -> 0 | G39: =IF(Resultatinnlegging!$B13=LAGSRESULTATER!$A$26,Resultatinnlegging!K13,0) -> 0 | H39: =IF(Resultatinnlegging!$B13=LAGSRESULTATER!$A$26,Resultatinnlegging!L13,0) -> 0 | I39: =IF(Resultatinnlegging!$B13=LAGSRESULTATER!$A$26,Resultatinnlegging!M13,0) -> 0 | J39: =IF(Resultatinnlegging!$B13=LAGSRESULTATER!$A$26,Resultatinnlegging!N13,0) -> 0 | K39: =IF(Resultatinnlegging!$B13=LAGSRESULTATER!$A$26,Resultatinnlegging!O13,0) -> 0 | O39: =IF(Resultatinnlegging!$B13=LAGSRESULTATER!$N$26,Resultatinnlegging!F13,0) -> 0 | P39: =IF(Resultatinnlegging!$B13=LAGSRESULTATER!$N$26,Resultatinnlegging!G13,0) -> 0 | Q39: =IF(Resultatinnlegging!$B13=LAGSRESULTATER!$N$26,Resultatinnlegging!H13,0) -> 0 | R39: =IF(Resultatinnlegging!$B13=LAGSRESULTATER!$N$26,Resultatinnlegging!I13,0) -> 0 | S39: =IF(Resultatinnlegging!$B13=LAGSRESULTATER!$N$26,Resultatinnlegging!J13,0) -> 0 | T39: =IF(Resultatinnlegging!$B13=LAGSRESULTATER!$N$26,Resultatinnlegging!K13,0) -> 0 | U39: =IF(Resultatinnlegging!$B13=LAGSRESULTATER!$N$26,Resultatinnlegging!L13,0) -> 0 | V39: =IF(Resultatinnlegging!$B13=LAGSRESULTATER!$N$26,Resultatinnlegging!M13,0) -> 0 | W39: =IF(Resultatinnlegging!$B13=LAGSRESULTATER!$N$26,Resultatinnlegging!N13,0) -> 0 | X39: =IF(Resultatinnlegging!$B13=LAGSRESULTATER!$N$26,Resultatinnlegging!O13,0) -> 0 | AB39: =IF(Resultatinnlegging!$B11=LAGSRESULTATER!$AA$26,Resultatinnlegging!F11,0) -> 0 | AC39: =IF(Resultatinnlegging!$B13=LAGSRESULTATER!$AA$26,Resultatinnlegging!G13,0) -> 0 | AD39: =IF(Resultatinnlegging!$B13=LAGSRESULTATER!$AA$26,Resultatinnlegging!H13,0) -> 0 | AE39: =IF(Resultatinnlegging!$B13=LAGSRESULTATER!$AA$26,Resultatinnlegging!I13,0) -> 0 | AF39: =IF(Resultatinnlegging!$B13=LAGSRESULTATER!$AA$26,Resultatinnlegging!J13,0) -> 0 | AG39: =IF(Resultatinnlegging!$B13=LAGSRESULTATER!$AA$26,Resultatinnlegging!K13,0) -> 0 | AH39: =IF(Resultatinnlegging!$B13=LAGSRESULTATER!$AA$26,Resultatinnlegging!L13,0) -> 0 | AI39: =IF(Resultatinnlegging!$B13=LAGSRESULTATER!$AA$26,Resultatinnlegging!M13,0) -> 0 | AJ39: =IF(Resultatinnlegging!$B13=LAGSRESULTATER!$AA$26,Resultatinnlegging!N13,0) -> 0 | AK39: =IF(Resultatinnlegging!$B13=LAGSRESULTATER!$AA$26,Resultatinnlegging!O13,0) -> 0 | AO39: =IF(Resultatinnlegging!$B62=LAGSRESULTATER!$AN$26,Resultatinnlegging!F62,0) -> 0 | AP39: =IF(Resultatinnlegging!$B13=LAGSRESULTATER!$AN$26,Resultatinnlegging!G13,0) -> 0 | AQ39: =IF(Resultatinnlegging!$B13=LAGSRESULTATER!$AN$26,Resultatinnlegging!H13,0) -> 0 | AR39: =IF(Resultatinnlegging!$B13=LAGSRESULTATER!$AN$26,Resultatinnlegging!I13,0) -> 0 | AS39: =IF(Resultatinnlegging!$B13=LAGSRESULTATER!$AN$26,Resultatinnlegging!J13,0) -> 0 | AT39: =IF(Resultatinnlegging!$B13=LAGSRESULTATER!$AN$26,Resultatinnlegging!K13,0) -> 0 | AU39: =IF(Resultatinnlegging!$B13=LAGSRESULTATER!$AN$26,Resultatinnlegging!L13,0) -> 0 | AV39: =IF(Resultatinnlegging!$B13=LAGSRESULTATER!$AN$26,Resultatinnlegging!M13,0) -> 0 | AW39: =IF(Resultatinnlegging!$B13=LAGSRESULTATER!$AN$26,Resultatinnlegging!N13,0) -> 0 | AX39: =IF(Resultatinnlegging!$B13=LAGSRESULTATER!$AN$26,Resultatinnlegging!O13,0) -> 0 | BB39: =IF(Resultatinnlegging!$B78=LAGSRESULTATER!$BA$26,Resultatinnlegging!F78,0) -> 0 | BC39: =IF(Resultatinnlegging!$B13=LAGSRESULTATER!$BA$26,Resultatinnlegging!G13,0) -> 0 | BD39: =IF(Resultatinnlegging!$B13=LAGSRESULTATER!$BA$26,Resultatinnlegging!H13,0) -> 0 | BE39: =IF(Resultatinnlegging!$B13=LAGSRESULTATER!$BA$26,Resultatinnlegging!I13,0) -> 0 | BF39: =IF(Resultatinnlegging!$B13=LAGSRESULTATER!$BA$26,Resultatinnlegging!J13,0) -> 0 | BG39: =IF(Resultatinnlegging!$B13=LAGSRESULTATER!$BA$26,Resultatinnlegging!K13,0) -> 0 | BH39: =IF(Resultatinnlegging!$B13=LAGSRESULTATER!$BA$26,Resultatinnlegging!L13,0) -> 0 | BI39: =IF(Resultatinnlegging!$B13=LAGSRESULTATER!$BA$26,Resultatinnlegging!M13,0) -> 0 | BJ39: =IF(Resultatinnlegging!$B13=LAGSRESULTATER!$BA$26,Resultatinnlegging!N13,0) -> 0 | BK39: =IF(Resultatinnlegging!$B13=LAGSRESULTATER!$BA$26,Resultatinnlegging!O13,0) -> 0 | BO39: =IF(Resultatinnlegging!$B12=LAGSRESULTATER!$BN$26,Resultatinnlegging!F12,0) -> 0 | BP39: =IF(Resultatinnlegging!$B13=LAGSRESULTATER!$BN$26,Resultatinnlegging!G13,0) -> 0 | BQ39: =IF(Resultatinnlegging!$B13=LAGSRESULTATER!$BN$26,Resultatinnlegging!H13,0) -> 0 | BR39: =IF(Resultatinnlegging!$B13=LAGSRESULTATER!$BN$26,Resultatinnlegging!I13,0) -> 0 | BS39: =IF(Resultatinnlegging!$B13=LAGSRESULTATER!$BN$26,Resultatinnlegging!J13,0) -> 0 | BT39: =IF(Resultatinnlegging!$B13=LAGSRESULTATER!$BN$26,Resultatinnlegging!K13,0) -> 0 | BU39: =IF(Resultatinnlegging!$B13=LAGSRESULTATER!$BN$26,Resultatinnlegging!L13,0) -> 0 | BV39: =IF(Resultatinnlegging!$B13=LAGSRESULTATER!$BN$26,Resultatinnlegging!M13,0) -> 0 | BW39: =IF(Resultatinnlegging!$B13=LAGSRESULTATER!$BN$26,Resultatinnlegging!N13,0) -> 0 | BX39: =IF(Resultatinnlegging!$B13=LAGSRESULTATER!$BN$26,Resultatinnlegging!O13,0) -> 0 | CB39: =IF(Resultatinnlegging!$B12=LAGSRESULTATER!$CA$26,Resultatinnlegging!F12,0) -> 0 | CC39: =IF(Resultatinnlegging!$B13=LAGSRESULTATER!$CA$26,Resultatinnlegging!G13,0) -> 0 | CD39: =IF(Resultatinnlegging!$B13=LAGSRESULTATER!$CA$26,Resultatinnlegging!H13,0) -> 0 | CE39: =IF(Resultatinnlegging!$B13=LAGSRESULTATER!$CA$26,Resultatinnlegging!I13,0) -> 0 | CF39: =IF(Resultatinnlegging!$B13=LAGSRESULTATER!$CA$26,Resultatinnlegging!J13,0) -> 0 | CG39: =IF(Resultatinnlegging!$B13=LAGSRESULTATER!$CA$26,Resultatinnlegging!K13,0) -> 0 | CH39: =IF(Resultatinnlegging!$B13=LAGSRESULTATER!$CA$26,Resultatinnlegging!L13,0) -> 0 | CI39: =IF(Resultatinnlegging!$B13=LAGSRESULTATER!$CA$26,Resultatinnlegging!M13,0) -> 0 | CJ39: =IF(Resultatinnlegging!$B13=LAGSRESULTATER!$CA$26,Resultatinnlegging!N13,0) -> 0 | CK39: =IF(Resultatinnlegging!$B13=LAGSRESULTATER!$CA$26,Resultatinnlegging!O13,0) -> 0 | CO39: =IF(Resultatinnlegging!$B11=LAGSRESULTATER!$CN$26,Resultatinnlegging!F11,0) -> 0 | CP39: =IF(Resultatinnlegging!$B13=LAGSRESULTATER!$CN$26,Resultatinnlegging!G13,0) -> 0 | CQ39: =IF(Resultatinnlegging!$B13=LAGSRESULTATER!$CN$26,Resultatinnlegging!H13,0) -> 0 | CR39: =IF(Resultatinnlegging!$B13=LAGSRESULTATER!$CN$26,Resultatinnlegging!I13,0) -> 0 | CS39: =IF(Resultatinnlegging!$B13=LAGSRESULTATER!$CN$26,Resultatinnlegging!J13,0) -> 0 | CT39: =IF(Resultatinnlegging!$B13=LAGSRESULTATER!$CN$26,Resultatinnlegging!K13,0) -> 0 | CU39: =IF(Resultatinnlegging!$B13=LAGSRESULTATER!$CN$26,Resultatinnlegging!L13,0) -> 0 | CV39: =IF(Resultatinnlegging!$B13=LAGSRESULTATER!$CN$26,Resultatinnlegging!M13,0) -> 0 | CW39: =IF(Resultatinnlegging!$B13=LAGSRESULTATER!$CN$26,Resultatinnlegging!N13,0) -> 0 | CX39: =IF(Resultatinnlegging!$B13=LAGSRESULTATER!$CN$26,Resultatinnlegging!O13,0) -> 0 | DB39: =IF(Resultatinnlegging!$B12=LAGSRESULTATER!$DA$26,Resultatinnlegging!F12,0) -> 0 | DC39: =IF(Resultatinnlegging!$B13=LAGSRESULTATER!$DA$26,Resultatinnlegging!G13,0) -> 0 | DD39: =IF(Resultatinnlegging!$B13=LAGSRESULTATER!$DA$26,Resultatinnlegging!H13,0) -> 0 | DE39: =IF(Resultatinnlegging!$B13=LAGSRESULTATER!$DA$26,Resultatinnlegging!I13,0) -> 0 | DF39: =IF(Resultatinnlegging!$B13=LAGSRESULTATER!$DA$26,Resultatinnlegging!J13,0) -> 0 | DG39: =IF(Resultatinnlegging!$B13=LAGSRESULTATER!$DA$26,Resultatinnlegging!K13,0) -> 0 | DH39: =IF(Resultatinnlegging!$B13=LAGSRESULTATER!$DA$26,Resultatinnlegging!L13,0) -> 0 | DI39: =IF(Resultatinnlegging!$B13=LAGSRESULTATER!$DA$26,Resultatinnlegging!M13,0) -> 0 | DJ39: =IF(Resultatinnlegging!$B13=LAGSRESULTATER!$DA$26,Resultatinnlegging!N13,0) -> 0 | DK39: =IF(Resultatinnlegging!$B13=LAGSRESULTATER!$DA$26,Resultatinnlegging!O13,0) -> 0 | DO39: =IF(Resultatinnlegging!$B13=LAGSRESULTATER!$DN$26,Resultatinnlegging!F13,0) -> 0 | DP39: =IF(Resultatinnlegging!$B13=LAGSRESULTATER!$DN$26,Resultatinnlegging!G13,0) -> 0 | DQ39: =IF(Resultatinnlegging!$B13=LAGSRESULTATER!$DN$26,Resultatinnlegging!H13,0) -> 0 | DR39: =IF(Resultatinnlegging!$B13=LAGSRESULTATER!$DN$26,Resultatinnlegging!I13,0) -> 0 | DS39: =IF(Resultatinnlegging!$B13=LAGSRESULTATER!$DN$26,Resultatinnlegging!J13,0) -> 0 | DT39: =IF(Resultatinnlegging!$B13=LAGSRESULTATER!$DN$26,Resultatinnlegging!K13,0) -> 0 | DU39: =IF(Resultatinnlegging!$B13=LAGSRESULTATER!$DN$26,Resultatinnlegging!L13,0) -> 0 | DV39: =IF(Resultatinnlegging!$B13=LAGSRESULTATER!$DN$26,Resultatinnlegging!M13,0) -> 0 | DW39: =IF(Resultatinnlegging!$B13=LAGSRESULTATER!$DN$26,Resultatinnlegging!N13,0) -> 0 | DX39: =IF(Resultatinnlegging!$B13=LAGSRESULTATER!$DN$26,Resultatinnlegging!O13,0) -> 0 | EB39: =IF(Resultatinnlegging!$B13=LAGSRESULTATER!$EA$26,Resultatinnlegging!F13,0) -> 0 | EC39: =IF(Resultatinnlegging!$B13=LAGSRESULTATER!$EA$26,Resultatinnlegging!G13,0) -> 0 | ED39: =IF(Resultatinnlegging!$B13=LAGSRESULTATER!$EA$26,Resultatinnlegging!H13,0) -> 0 | EE39: =IF(Resultatinnlegging!$B13=LAGSRESULTATER!$EA$26,Resultatinnlegging!I13,0) -> 0 | EF39: =IF(Resultatinnlegging!$B13=LAGSRESULTATER!$EA$26,Resultatinnlegging!J13,0) -> 0 | EG39: =IF(Resultatinnlegging!$B13=LAGSRESULTATER!$EA$26,Resultatinnlegging!K13,0) -> 0 | EH39: =IF(Resultatinnlegging!$B13=LAGSRESULTATER!$EA$26,Resultatinnlegging!L13,0) -> 0 | EI39: =IF(Resultatinnlegging!$B13=LAGSRESULTATER!$EA$26,Resultatinnlegging!M13,0) -> 0 | EJ39: =IF(Resultatinnlegging!$B13=LAGSRESULTATER!$EA$26,Resultatinnlegging!N13,0) -> 0 | EK39: =IF(Resultatinnlegging!$B13=LAGSRESULTATER!$EA$26,Resultatinnlegging!O13,0) -> 0 | EO39: =IF(Resultatinnlegging!$B13=LAGSRESULTATER!$EN$26,Resultatinnlegging!F13,0) -> 0 | EP39: =IF(Resultatinnlegging!$B13=LAGSRESULTATER!$EN$26,Resultatinnlegging!G13,0) -> 0 | EQ39: =IF(Resultatinnlegging!$B13=LAGSRESULTATER!$EN$26,Resultatinnlegging!H13,0) -> 0 | ER39: =IF(Resultatinnlegging!$B13=LAGSRESULTATER!$EN$26,Resultatinnlegging!I13,0) -> 0 | ES39: =IF(Resultatinnlegging!$B13=LAGSRESULTATER!$EN$26,Resultatinnlegging!J13,0) -> 0 | ET39: =IF(Resultatinnlegging!$B13=LAGSRESULTATER!$EN$26,Resultatinnlegging!K13,0) -> 0 | EU39: =IF(Resultatinnlegging!$B13=LAGSRESULTATER!$EN$26,Resultatinnlegging!L13,0) -> 0 | EV39: =IF(Resultatinnlegging!$B13=LAGSRESULTATER!$EN$26,Resultatinnlegging!M13,0) -> 0 | EW39: =IF(Resultatinnlegging!$B13=LAGSRESULTATER!$EN$26,Resultatinnlegging!N13,0) -> 0 | EX39: =IF(Resultatinnlegging!$B13=LAGSRESULTATER!$EN$26,Resultatinnlegging!O13,0) -> 0 | FB39: =IF(Resultatinnlegging!$B13=LAGSRESULTATER!$FA$26,Resultatinnlegging!F13,0) -> 0 | FC39: =IF(Resultatinnlegging!$B13=LAGSRESULTATER!$FA$26,Resultatinnlegging!G13,0) -> 0 | FD39: =IF(Resultatinnlegging!$B13=LAGSRESULTATER!$FA$26,Resultatinnlegging!H13,0) -> 0 | FE39: =IF(Resultatinnlegging!$B13=LAGSRESULTATER!$FA$26,Resultatinnlegging!I13,0) -> 0 | FF39: =IF(Resultatinnlegging!$B13=LAGSRESULTATER!$FA$26,Resultatinnlegging!J13,0) -> 0 | FG39: =IF(Resultatinnlegging!$B13=LAGSRESULTATER!$FA$26,Resultatinnlegging!K13,0) -> 0 | FH39: =IF(Resultatinnlegging!$B13=LAGSRESULTATER!$FA$26,Resultatinnlegging!L13,0) -> 0 | FI39: =IF(Resultatinnlegging!$B13=LAGSRESULTATER!$FA$26,Resultatinnlegging!M13,0) -> 0 | FJ39: =IF(Resultatinnlegging!$B13=LAGSRESULTATER!$FA$26,Resultatinnlegging!N13,0) -> 0 | FK39: =IF(Resultatinnlegging!$B13=LAGSRESULTATER!$FA$26,Resultatinnlegging!O13,0) -> 0 | FO39: =IF(Resultatinnlegging!$B13=LAGSRESULTATER!$FN$26,Resultatinnlegging!F13,0) -> 0 | FP39: =IF(Resultatinnlegging!$B13=LAGSRESULTATER!$FN$26,Resultatinnlegging!G13,0) -> 0 | FQ39: =IF(Resultatinnlegging!$B13=LAGSRESULTATER!$FN$26,Resultatinnlegging!H13,0) -> 0 | FR39: =IF(Resultatinnlegging!$B13=LAGSRESULTATER!$FN$26,Resultatinnlegging!I13,0) -> 0 | FS39: =IF(Resultatinnlegging!$B13=LAGSRESULTATER!$FN$26,Resultatinnlegging!J13,0) -> 0 | FT39: =IF(Resultatinnlegging!$B13=LAGSRESULTATER!$FN$26,Resultatinnlegging!K13,0) -> 0 | FU39: =IF(Resultatinnlegging!$B13=LAGSRESULTATER!$FN$26,Resultatinnlegging!L13,0) -> 0 | FV39: =IF(Resultatinnlegging!$B13=LAGSRESULTATER!$FN$26,Resultatinnlegging!M13,0) -> 0 | FW39: =IF(Resultatinnlegging!$B13=LAGSRESULTATER!$FN$26,Resultatinnlegging!N13,0) -> 0 | FX39: =IF(Resultatinnlegging!$B13=LAGSRESULTATER!$FN$26,Resultatinnlegging!O13,0) -> 0 | GA39: 10 | GB39: =IF(Resultatinnlegging!$B13=LAGSRESULTATER!$GA$26,Resultatinnlegging!F13,0) -> 0 | GC39: =IF(Resultatinnlegging!$B13=LAGSRESULTATER!$GA$26,Resultatinnlegging!G13,0) -> 0 | GD39: =IF(Resultatinnlegging!$B13=LAGSRESULTATER!$GA$26,Resultatinnlegging!H13,0) -> 0 | GE39: =IF(Resultatinnlegging!$B13=LAGSRESULTATER!$GA$26,Resultatinnlegging!I13,0) -> 0 | GF39: =IF(Resultatinnlegging!$B13=LAGSRESULTATER!$GA$26,Resultatinnlegging!J13,0) -> 0 | GG39: =IF(Resultatinnlegging!$B13=LAGSRESULTATER!$GA$26,Resultatinnlegging!K13,0) -> 0 | GH39: =IF(Resultatinnlegging!$B13=LAGSRESULTATER!$GA$26,Resultatinnlegging!L13,0) -> 0 | GI39: =IF(Resultatinnlegging!$B13=LAGSRESULTATER!$GA$26,Resultatinnlegging!M13,0) -> 0 | GJ39: =IF(Resultatinnlegging!$B13=LAGSRESULTATER!$GA$26,Resultatinnlegging!N13,0) -> 0 | GK39: =IF(Resultatinnlegging!$B13=LAGSRESULTATER!$GA$26,Resultatinnlegging!O13,0) -> 0 | GN39: 8 | GO39: =IF(Resultatinnlegging!$B13=LAGSRESULTATER!$GN$26,Resultatinnlegging!F13,0) -> 0 | GP39: =IF(Resultatinnlegging!$B13=LAGSRESULTATER!$GN$26,Resultatinnlegging!G13,0) -> 0 | GQ39: =IF(Resultatinnlegging!$B13=LAGSRESULTATER!$GN$26,Resultatinnlegging!H13,0) -> 0 | GR39: =IF(Resultatinnlegging!$B13=LAGSRESULTATER!$GN$26,Resultatinnlegging!I13,0) -> 0 | GS39: =IF(Resultatinnlegging!$B13=LAGSRESULTATER!$GN$26,Resultatinnlegging!J13,0) -> 0 | GT39: =IF(Resultatinnlegging!$B13=LAGSRESULTATER!$GN$26,Resultatinnlegging!K13,0) -> 0 | GU39: =IF(Resultatinnlegging!$B13=LAGSRESULTATER!$GN$26,Resultatinnlegging!L13,0) -> 0 | GV39: =IF(Resultatinnlegging!$B13=LAGSRESULTATER!$GN$26,Resultatinnlegging!M13,0) -> 0 | GW39: =IF(Resultatinnlegging!$B13=LAGSRESULTATER!$GN$26,Resultatinnlegging!N13,0) -> 0 | GX39: =IF(Resultatinnlegging!$B13=LAGSRESULTATER!$GN$26,Resultatinnlegging!O13,0) -> 0 | HB39: =IF(Resultatinnlegging!$B13=LAGSRESULTATER!$HA$26,Resultatinnlegging!F13,0) -> 0 | HC39: =IF(Resultatinnlegging!$B13=LAGSRESULTATER!$HA$26,Resultatinnlegging!G13,0) -> 0 | HD39: =IF(Resultatinnlegging!$B13=LAGSRESULTATER!$HA$26,Resultatinnlegging!H13,0) -> 0 | HE39: =IF(Resultatinnlegging!$B13=LAGSRESULTATER!$HA$26,Resultatinnlegging!I13,0) -> 0 | HF39: =IF(Resultatinnlegging!$B13=LAGSRESULTATER!$HA$26,Resultatinnlegging!J13,0) -> 0 | HG39: =IF(Resultatinnlegging!$B13=LAGSRESULTATER!$HA$26,Resultatinnlegging!K13,0) -> 0 | HH39: =IF(Resultatinnlegging!$B13=LAGSRESULTATER!$HA$26,Resultatinnlegging!L13,0) -> 0 | HI39: =IF(Resultatinnlegging!$B13=LAGSRESULTATER!$HA$26,Resultatinnlegging!M13,0) -> 0 | HJ39: =IF(Resultatinnlegging!$B13=LAGSRESULTATER!$HA$26,Resultatinnlegging!N13,0) -> 0 | HK39: =IF(Resultatinnlegging!$B13=LAGSRESULTATER!$HA$26,Resultatinnlegging!O13,0) -> 0 | HO39: =IF(Resultatinnlegging!$B13=LAGSRESULTATER!$HN$26,Resultatinnlegging!F13,0) -> 0 | HP39: =IF(Resultatinnlegging!$B13=LAGSRESULTATER!$HN$26,Resultatinnlegging!G13,0) -> 0 | HQ39: =IF(Resultatinnlegging!$B13=LAGSRESULTATER!$HN$26,Resultatinnlegging!H13,0) -> 0 | HR39: =IF(Resultatinnlegging!$B13=LAGSRESULTATER!$HN$26,Resultatinnlegging!I13,0) -> 0 | HS39: =IF(Resultatinnlegging!$B13=LAGSRESULTATER!$HN$26,Resultatinnlegging!J13,0) -> 0 | HT39: =IF(Resultatinnlegging!$B13=LAGSRESULTATER!$HN$26,Resultatinnlegging!K13,0) -> 0 | HU39: =IF(Resultatinnlegging!$B13=LAGSRESULTATER!$HA$26,Resultatinnlegging!L13,0) -> 0 | HV39: =IF(Resultatinnlegging!$B13=LAGSRESULTATER!$HN$26,Resultatinnlegging!M13,0) -> 0 | HW39: =IF(Resultatinnlegging!$B13=LAGSRESULTATER!$HN$26,Resultatinnlegging!N13,0) -> 0 | HX39: =IF(Resultatinnlegging!$B13=LAGSRESULTATER!$HN$26,Resultatinnlegging!O13,0) -> 0 | IB39: =IF(Resultatinnlegging!$B13=LAGSRESULTATER!$IA$26,Resultatinnlegging!F13,0) -> 0 | IC39: =IF(Resultatinnlegging!$B13=LAGSRESULTATER!$IA$26,Resultatinnlegging!G13,0) -> 0 | ID39: =IF(Resultatinnlegging!$B13=LAGSRESULTATER!$IA$26,Resultatinnlegging!H13,0) -> 0 | IE39: =IF(Resultatinnlegging!$B13=LAGSRESULTATER!$IA$26,Resultatinnlegging!I13,0) -> 0 | IF39: =IF(Resultatinnlegging!$B13=LAGSRESULTATER!$IA$26,Resultatinnlegging!J13,0) -> 0 | IG39: =IF(Resultatinnlegging!$B13=LAGSRESULTATER!$IA$26,Resultatinnlegging!K13,0) -> 0 | IH39: =IF(Resultatinnlegging!$B13=LAGSRESULTATER!$IA$26,Resultatinnlegging!L13,0) -> 0 | II39: =IF(Resultatinnlegging!$B13=LAGSRESULTATER!$IA$26,Resultatinnlegging!M13,0) -> 0 | IJ39: =IF(Resultatinnlegging!$B13=LAGSRESULTATER!$IA$26,Resultatinnlegging!N13,0) -> 0 | IK39: =IF(Resultatinnlegging!$B13=LAGSRESULTATER!$IA$26,Resultatinnlegging!O13,0) -> 0
B40: =IF(Resultatinnlegging!$B14=LAGSRESULTATER!$A$26,Resultatinnlegging!F14,0) -> 0 | C40: =IF(Resultatinnlegging!$B14=LAGSRESULTATER!$A$26,Resultatinnlegging!G14,0) -> 0 | D40: =IF(Resultatinnlegging!$B14=LAGSRESULTATER!$A$26,Resultatinnlegging!H14,0) -> 0 | E40: =IF(Resultatinnlegging!$B14=LAGSRESULTATER!$A$26,Resultatinnlegging!I14,0) -> 0 | F40: =IF(Resultatinnlegging!$B14=LAGSRESULTATER!$A$26,Resultatinnlegging!J14,0) -> 0 | G40: =IF(Resultatinnlegging!$B14=LAGSRESULTATER!$A$26,Resultatinnlegging!K14,0) -> 0 | H40: =IF(Resultatinnlegging!$B14=LAGSRESULTATER!$A$26,Resultatinnlegging!L14,0) -> 0 | I40: =IF(Resultatinnlegging!$B14=LAGSRESULTATER!$A$26,Resultatinnlegging!M14,0) -> 0 | J40: =IF(Resultatinnlegging!$B14=LAGSRESULTATER!$A$26,Resultatinnlegging!N14,0) -> 0 | K40: =IF(Resultatinnlegging!$B14=LAGSRESULTATER!$A$26,Resultatinnlegging!O14,0) -> 0 | O40: =IF(Resultatinnlegging!$B14=LAGSRESULTATER!$N$26,Resultatinnlegging!F14,0) -> 0 | P40: =IF(Resultatinnlegging!$B14=LAGSRESULTATER!$N$26,Resultatinnlegging!G14,0) -> 0 | Q40: =IF(Resultatinnlegging!$B14=LAGSRESULTATER!$N$26,Resultatinnlegging!H14,0) -> 0 | R40: =IF(Resultatinnlegging!$B14=LAGSRESULTATER!$N$26,Resultatinnlegging!I14,0) -> 0 | S40: =IF(Resultatinnlegging!$B14=LAGSRESULTATER!$N$26,Resultatinnlegging!J14,0) -> 0 | T40: =IF(Resultatinnlegging!$B14=LAGSRESULTATER!$N$26,Resultatinnlegging!K14,0) -> 0 | U40: =IF(Resultatinnlegging!$B14=LAGSRESULTATER!$N$26,Resultatinnlegging!L14,0) -> 0 | V40: =IF(Resultatinnlegging!$B14=LAGSRESULTATER!$N$26,Resultatinnlegging!M14,0) -> 0 | W40: =IF(Resultatinnlegging!$B14=LAGSRESULTATER!$N$26,Resultatinnlegging!N14,0) -> 0 | X40: =IF(Resultatinnlegging!$B14=LAGSRESULTATER!$N$26,Resultatinnlegging!O14,0) -> 0 | AB40: =IF(Resultatinnlegging!$B12=LAGSRESULTATER!$AA$26,Resultatinnlegging!F12,0) -> 0 | AC40: =IF(Resultatinnlegging!$B14=LAGSRESULTATER!$AA$26,Resultatinnlegging!G14,0) -> 0 | AD40: =IF(Resultatinnlegging!$B14=LAGSRESULTATER!$AA$26,Resultatinnlegging!H14,0) -> 0 | AE40: =IF(Resultatinnlegging!$B14=LAGSRESULTATER!$AA$26,Resultatinnlegging!I14,0) -> 0 | AF40: =IF(Resultatinnlegging!$B14=LAGSRESULTATER!$AA$26,Resultatinnlegging!J14,0) -> 0 | AG40: =IF(Resultatinnlegging!$B14=LAGSRESULTATER!$AA$26,Resultatinnlegging!K14,0) -> 0 | AH40: =IF(Resultatinnlegging!$B14=LAGSRESULTATER!$AA$26,Resultatinnlegging!L14,0) -> 0 | AI40: =IF(Resultatinnlegging!$B14=LAGSRESULTATER!$AA$26,Resultatinnlegging!M14,0) -> 0 | AJ40: =IF(Resultatinnlegging!$B14=LAGSRESULTATER!$AA$26,Resultatinnlegging!N14,0) -> 0 | AK40: =IF(Resultatinnlegging!$B14=LAGSRESULTATER!$AA$26,Resultatinnlegging!O14,0) -> 0 | AO40: =IF(Resultatinnlegging!$B3=LAGSRESULTATER!$AN$26,Resultatinnlegging!F3,0) -> 0 | AP40: =IF(Resultatinnlegging!$B14=LAGSRESULTATER!$AN$26,Resultatinnlegging!G14,0) -> 0 | AQ40: =IF(Resultatinnlegging!$B14=LAGSRESULTATER!$AN$26,Resultatinnlegging!H14,0) -> 0 | AR40: =IF(Resultatinnlegging!$B14=LAGSRESULTATER!$AN$26,Resultatinnlegging!I14,0) -> 0 | AS40: =IF(Resultatinnlegging!$B14=LAGSRESULTATER!$AN$26,Resultatinnlegging!J14,0) -> 0 | AT40: =IF(Resultatinnlegging!$B14=LAGSRESULTATER!$AN$26,Resultatinnlegging!K14,0) -> 0 | AU40: =IF(Resultatinnlegging!$B14=LAGSRESULTATER!$AN$26,Resultatinnlegging!L14,0) -> 0 | AV40: =IF(Resultatinnlegging!$B14=LAGSRESULTATER!$AN$26,Resultatinnlegging!M14,0) -> 0 | AW40: =IF(Resultatinnlegging!$B14=LAGSRESULTATER!$AN$26,Resultatinnlegging!N14,0) -> 0 | AX40: =IF(Resultatinnlegging!$B14=LAGSRESULTATER!$AN$26,Resultatinnlegging!O14,0) -> 0 | BB40: =IF(Resultatinnlegging!$B3=LAGSRESULTATER!$BA$26,Resultatinnlegging!F3,0) -> 0 | BC40: =IF(Resultatinnlegging!$B14=LAGSRESULTATER!$BA$26,Resultatinnlegging!G14,0) -> 0 | BD40: =IF(Resultatinnlegging!$B14=LAGSRESULTATER!$BA$26,Resultatinnlegging!H14,0) -> 0 | BE40: =IF(Resultatinnlegging!$B14=LAGSRESULTATER!$BA$26,Resultatinnlegging!I14,0) -> 0 | BF40: =IF(Resultatinnlegging!$B14=LAGSRESULTATER!$BA$26,Resultatinnlegging!J14,0) -> 0 | BG40: =IF(Resultatinnlegging!$B14=LAGSRESULTATER!$BA$26,Resultatinnlegging!K14,0) -> 0 | BH40: =IF(Resultatinnlegging!$B14=LAGSRESULTATER!$BA$26,Resultatinnlegging!L14,0) -> 0 | BI40: =IF(Resultatinnlegging!$B14=LAGSRESULTATER!$BA$26,Resultatinnlegging!M14,0) -> 0 | BJ40: =IF(Resultatinnlegging!$B14=LAGSRESULTATER!$BA$26,Resultatinnlegging!N14,0) -> 0 | BK40: =IF(Resultatinnlegging!$B14=LAGSRESULTATER!$BA$26,Resultatinnlegging!O14,0) -> 0 | BO40: =IF(Resultatinnlegging!$B13=LAGSRESULTATER!$BN$26,Resultatinnlegging!F13,0) -> 0 | BP40: =IF(Resultatinnlegging!$B14=LAGSRESULTATER!$BN$26,Resultatinnlegging!G14,0) -> 0 | BQ40: =IF(Resultatinnlegging!$B14=LAGSRESULTATER!$BN$26,Resultatinnlegging!H14,0) -> 0 | BR40: =IF(Resultatinnlegging!$B14=LAGSRESULTATER!$BN$26,Resultatinnlegging!I14,0) -> 0 | BS40: =IF(Resultatinnlegging!$B14=LAGSRESULTATER!$BN$26,Resultatinnlegging!J14,0) -> 0 | BT40: =IF(Resultatinnlegging!$B14=LAGSRESULTATER!$BN$26,Resultatinnlegging!K14,0) -> 0 | BU40: =IF(Resultatinnlegging!$B14=LAGSRESULTATER!$BN$26,Resultatinnlegging!L14,0) -> 0 | BV40: =IF(Resultatinnlegging!$B14=LAGSRESULTATER!$BN$26,Resultatinnlegging!M14,0) -> 0 | BW40: =IF(Resultatinnlegging!$B14=LAGSRESULTATER!$BN$26,Resultatinnlegging!N14,0) -> 0 | BX40: =IF(Resultatinnlegging!$B14=LAGSRESULTATER!$BN$26,Resultatinnlegging!O14,0) -> 0 | CB40: =IF(Resultatinnlegging!$B3=LAGSRESULTATER!$CA$26,Resultatinnlegging!F3,0) -> 0 | CC40: =IF(Resultatinnlegging!$B14=LAGSRESULTATER!$CA$26,Resultatinnlegging!G14,0) -> 0 | CD40: =IF(Resultatinnlegging!$B14=LAGSRESULTATER!$CA$26,Resultatinnlegging!H14,0) -> 0 | CE40: =IF(Resultatinnlegging!$B14=LAGSRESULTATER!$CA$26,Resultatinnlegging!I14,0) -> 0 | CF40: =IF(Resultatinnlegging!$B14=LAGSRESULTATER!$CA$26,Resultatinnlegging!J14,0) -> 0 | CG40: =IF(Resultatinnlegging!$B14=LAGSRESULTATER!$CA$26,Resultatinnlegging!K14,0) -> 0 | CH40: =IF(Resultatinnlegging!$B14=LAGSRESULTATER!$CA$26,Resultatinnlegging!L14,0) -> 0 | CI40: =IF(Resultatinnlegging!$B14=LAGSRESULTATER!$CA$26,Resultatinnlegging!M14,0) -> 0 | CJ40: =IF(Resultatinnlegging!$B14=LAGSRESULTATER!$CA$26,Resultatinnlegging!N14,0) -> 0 | CK40: =IF(Resultatinnlegging!$B14=LAGSRESULTATER!$CA$26,Resultatinnlegging!O14,0) -> 0 | CO40: =IF(Resultatinnlegging!$B12=LAGSRESULTATER!$CN$26,Resultatinnlegging!F12,0) -> 0 | CP40: =IF(Resultatinnlegging!$B14=LAGSRESULTATER!$CN$26,Resultatinnlegging!G14,0) -> 0 | CQ40: =IF(Resultatinnlegging!$B14=LAGSRESULTATER!$CN$26,Resultatinnlegging!H14,0) -> 0 | CR40: =IF(Resultatinnlegging!$B14=LAGSRESULTATER!$CN$26,Resultatinnlegging!I14,0) -> 0 | CS40: =IF(Resultatinnlegging!$B14=LAGSRESULTATER!$CN$26,Resultatinnlegging!J14,0) -> 0 | CT40: =IF(Resultatinnlegging!$B14=LAGSRESULTATER!$CN$26,Resultatinnlegging!K14,0) -> 0 | CU40: =IF(Resultatinnlegging!$B14=LAGSRESULTATER!$CN$26,Resultatinnlegging!L14,0) -> 0 | CV40: =IF(Resultatinnlegging!$B14=LAGSRESULTATER!$CN$26,Resultatinnlegging!M14,0) -> 0 | CW40: =IF(Resultatinnlegging!$B14=LAGSRESULTATER!$CN$26,Resultatinnlegging!N14,0) -> 0 | CX40: =IF(Resultatinnlegging!$B14=LAGSRESULTATER!$CN$26,Resultatinnlegging!O14,0) -> 0 | DB40: =IF(Resultatinnlegging!$B14=LAGSRESULTATER!$DA$26,Resultatinnlegging!F14,0) -> 0 | DC40: =IF(Resultatinnlegging!$B14=LAGSRESULTATER!$DA$26,Resultatinnlegging!G14,0) -> 0 | DD40: =IF(Resultatinnlegging!$B14=LAGSRESULTATER!$DA$26,Resultatinnlegging!H14,0) -> 0 | DE40: =IF(Resultatinnlegging!$B14=LAGSRESULTATER!$DA$26,Resultatinnlegging!I14,0) -> 0 | DF40: =IF(Resultatinnlegging!$B14=LAGSRESULTATER!$DA$26,Resultatinnlegging!J14,0) -> 0 | DG40: =IF(Resultatinnlegging!$B14=LAGSRESULTATER!$DA$26,Resultatinnlegging!K14,0) -> 0 | DH40: =IF(Resultatinnlegging!$B14=LAGSRESULTATER!$DA$26,Resultatinnlegging!L14,0) -> 0 | DI40: =IF(Resultatinnlegging!$B14=LAGSRESULTATER!$DA$26,Resultatinnlegging!M14,0) -> 0 | DJ40: =IF(Resultatinnlegging!$B14=LAGSRESULTATER!$DA$26,Resultatinnlegging!N14,0) -> 0 | DK40: =IF(Resultatinnlegging!$B14=LAGSRESULTATER!$DA$26,Resultatinnlegging!O14,0) -> 0 | DO40: =IF(Resultatinnlegging!$B14=LAGSRESULTATER!$DN$26,Resultatinnlegging!F14,0) -> 0 | DP40: =IF(Resultatinnlegging!$B14=LAGSRESULTATER!$DN$26,Resultatinnlegging!G14,0) -> 0 | DQ40: =IF(Resultatinnlegging!$B14=LAGSRESULTATER!$DN$26,Resultatinnlegging!H14,0) -> 0 | DR40: =IF(Resultatinnlegging!$B14=LAGSRESULTATER!$DN$26,Resultatinnlegging!I14,0) -> 0 | DS40: =IF(Resultatinnlegging!$B14=LAGSRESULTATER!$DN$26,Resultatinnlegging!J14,0) -> 0 | DT40: =IF(Resultatinnlegging!$B14=LAGSRESULTATER!$DN$26,Resultatinnlegging!K14,0) -> 0 | DU40: =IF(Resultatinnlegging!$B14=LAGSRESULTATER!$DN$26,Resultatinnlegging!L14,0) -> 0 | DV40: =IF(Resultatinnlegging!$B14=LAGSRESULTATER!$DN$26,Resultatinnlegging!M14,0) -> 0 | DW40: =IF(Resultatinnlegging!$B14=LAGSRESULTATER!$DN$26,Resultatinnlegging!N14,0) -> 0 | DX40: =IF(Resultatinnlegging!$B14=LAGSRESULTATER!$DN$26,Resultatinnlegging!O14,0) -> 0 | EB40: =IF(Resultatinnlegging!$B14=LAGSRESULTATER!$EA$26,Resultatinnlegging!F14,0) -> 0 | EC40: =IF(Resultatinnlegging!$B14=LAGSRESULTATER!$EA$26,Resultatinnlegging!G14,0) -> 0 | ED40: =IF(Resultatinnlegging!$B14=LAGSRESULTATER!$EA$26,Resultatinnlegging!H14,0) -> 0 | EE40: =IF(Resultatinnlegging!$B14=LAGSRESULTATER!$EA$26,Resultatinnlegging!I14,0) -> 0 | EF40: =IF(Resultatinnlegging!$B14=LAGSRESULTATER!$EA$26,Resultatinnlegging!J14,0) -> 0 | EG40: =IF(Resultatinnlegging!$B14=LAGSRESULTATER!$EA$26,Resultatinnlegging!K14,0) -> 0 | EH40: =IF(Resultatinnlegging!$B14=LAGSRESULTATER!$EA$26,Resultatinnlegging!L14,0) -> 0 | EI40: =IF(Resultatinnlegging!$B14=LAGSRESULTATER!$EA$26,Resultatinnlegging!M14,0) -> 0 | EJ40: =IF(Resultatinnlegging!$B14=LAGSRESULTATER!$EA$26,Resultatinnlegging!N14,0) -> 0 | EK40: =IF(Resultatinnlegging!$B14=LAGSRESULTATER!$EA$26,Resultatinnlegging!O14,0) -> 0 | EO40: =IF(Resultatinnlegging!$B14=LAGSRESULTATER!$EN$26,Resultatinnlegging!F14,0) -> 0 | EP40: =IF(Resultatinnlegging!$B14=LAGSRESULTATER!$EN$26,Resultatinnlegging!G14,0) -> 0 | EQ40: =IF(Resultatinnlegging!$B14=LAGSRESULTATER!$EN$26,Resultatinnlegging!H14,0) -> 0 | ER40: =IF(Resultatinnlegging!$B14=LAGSRESULTATER!$EN$26,Resultatinnlegging!I14,0) -> 0 | ES40: =IF(Resultatinnlegging!$B14=LAGSRESULTATER!$EN$26,Resultatinnlegging!J14,0) -> 0 | ET40: =IF(Resultatinnlegging!$B14=LAGSRESULTATER!$EN$26,Resultatinnlegging!K14,0) -> 0 | EU40: =IF(Resultatinnlegging!$B14=LAGSRESULTATER!$EN$26,Resultatinnlegging!L14,0) -> 0 | EV40: =IF(Resultatinnlegging!$B14=LAGSRESULTATER!$EN$26,Resultatinnlegging!M14,0) -> 0 | EW40: =IF(Resultatinnlegging!$B14=LAGSRESULTATER!$EN$26,Resultatinnlegging!N14,0) -> 0 | EX40: =IF(Resultatinnlegging!$B14=LAGSRESULTATER!$EN$26,Resultatinnlegging!O14,0) -> 0 | FB40: =IF(Resultatinnlegging!$B14=LAGSRESULTATER!$FA$26,Resultatinnlegging!F14,0) -> 0 | FC40: =IF(Resultatinnlegging!$B14=LAGSRESULTATER!$FA$26,Resultatinnlegging!G14,0) -> 0 | FD40: =IF(Resultatinnlegging!$B14=LAGSRESULTATER!$FA$26,Resultatinnlegging!H14,0) -> 0 | FE40: =IF(Resultatinnlegging!$B14=LAGSRESULTATER!$FA$26,Resultatinnlegging!I14,0) -> 0 | FF40: =IF(Resultatinnlegging!$B14=LAGSRESULTATER!$FA$26,Resultatinnlegging!J14,0) -> 0 | FG40: =IF(Resultatinnlegging!$B14=LAGSRESULTATER!$FA$26,Resultatinnlegging!K14,0) -> 0 | FH40: =IF(Resultatinnlegging!$B14=LAGSRESULTATER!$FA$26,Resultatinnlegging!L14,0) -> 0 | FI40: =IF(Resultatinnlegging!$B14=LAGSRESULTATER!$FA$26,Resultatinnlegging!M14,0) -> 0 | FJ40: =IF(Resultatinnlegging!$B14=LAGSRESULTATER!$FA$26,Resultatinnlegging!N14,0) -> 0 | FK40: =IF(Resultatinnlegging!$B14=LAGSRESULTATER!$FA$26,Resultatinnlegging!O14,0) -> 0 | FO40: =IF(Resultatinnlegging!$B14=LAGSRESULTATER!$FN$26,Resultatinnlegging!F14,0) -> 0 | FP40: =IF(Resultatinnlegging!$B14=LAGSRESULTATER!$FN$26,Resultatinnlegging!G14,0) -> 0 | FQ40: =IF(Resultatinnlegging!$B14=LAGSRESULTATER!$FN$26,Resultatinnlegging!H14,0) -> 0 | FR40: =IF(Resultatinnlegging!$B14=LAGSRESULTATER!$FN$26,Resultatinnlegging!I14,0) -> 0 | FS40: =IF(Resultatinnlegging!$B14=LAGSRESULTATER!$FN$26,Resultatinnlegging!J14,0) -> 0 | FT40: =IF(Resultatinnlegging!$B14=LAGSRESULTATER!$FN$26,Resultatinnlegging!K14,0) -> 0 | FU40: =IF(Resultatinnlegging!$B14=LAGSRESULTATER!$FN$26,Resultatinnlegging!L14,0) -> 0 | FV40: =IF(Resultatinnlegging!$B14=LAGSRESULTATER!$FN$26,Resultatinnlegging!M14,0) -> 0 | FW40: =IF(Resultatinnlegging!$B14=LAGSRESULTATER!$FN$26,Resultatinnlegging!N14,0) -> 0 | FX40: =IF(Resultatinnlegging!$B14=LAGSRESULTATER!$FN$26,Resultatinnlegging!O14,0) -> 0 | GA40: 11 | GB40: =IF(Resultatinnlegging!$B14=LAGSRESULTATER!$GA$26,Resultatinnlegging!F14,0) -> 0 | GC40: =IF(Resultatinnlegging!$B14=LAGSRESULTATER!$GA$26,Resultatinnlegging!G14,0) -> 0 | GD40: =IF(Resultatinnlegging!$B14=LAGSRESULTATER!$GA$26,Resultatinnlegging!H14,0) -> 0 | GE40: =IF(Resultatinnlegging!$B14=LAGSRESULTATER!$GA$26,Resultatinnlegging!I14,0) -> 0 | GF40: =IF(Resultatinnlegging!$B14=LAGSRESULTATER!$GA$26,Resultatinnlegging!J14,0) -> 0 | GG40: =IF(Resultatinnlegging!$B14=LAGSRESULTATER!$GA$26,Resultatinnlegging!K14,0) -> 0 | GH40: =IF(Resultatinnlegging!$B14=LAGSRESULTATER!$GA$26,Resultatinnlegging!L14,0) -> 0 | GI40: =IF(Resultatinnlegging!$B14=LAGSRESULTATER!$GA$26,Resultatinnlegging!M14,0) -> 0 | GJ40: =IF(Resultatinnlegging!$B14=LAGSRESULTATER!$GA$26,Resultatinnlegging!N14,0) -> 0 | GK40: =IF(Resultatinnlegging!$B14=LAGSRESULTATER!$GA$26,Resultatinnlegging!O14,0) -> 0 | GN40: 9 | GO40: =IF(Resultatinnlegging!$B14=LAGSRESULTATER!$GN$26,Resultatinnlegging!F14,0) -> 0 | GP40: =IF(Resultatinnlegging!$B14=LAGSRESULTATER!$GN$26,Resultatinnlegging!G14,0) -> 0 | GQ40: =IF(Resultatinnlegging!$B14=LAGSRESULTATER!$GN$26,Resultatinnlegging!H14,0) -> 0 | GR40: =IF(Resultatinnlegging!$B14=LAGSRESULTATER!$GN$26,Resultatinnlegging!I14,0) -> 0 | GS40: =IF(Resultatinnlegging!$B14=LAGSRESULTATER!$GN$26,Resultatinnlegging!J14,0) -> 0 | GT40: =IF(Resultatinnlegging!$B14=LAGSRESULTATER!$GN$26,Resultatinnlegging!K14,0) -> 0 | GU40: =IF(Resultatinnlegging!$B14=LAGSRESULTATER!$GN$26,Resultatinnlegging!L14,0) -> 0 | GV40: =IF(Resultatinnlegging!$B14=LAGSRESULTATER!$GN$26,Resultatinnlegging!M14,0) -> 0 | GW40: =IF(Resultatinnlegging!$B14=LAGSRESULTATER!$GN$26,Resultatinnlegging!N14,0) -> 0 | GX40: =IF(Resultatinnlegging!$B14=LAGSRESULTATER!$GN$26,Resultatinnlegging!O14,0) -> 0 | HB40: =IF(Resultatinnlegging!$B14=LAGSRESULTATER!$HA$26,Resultatinnlegging!F14,0) -> 0 | HC40: =IF(Resultatinnlegging!$B14=LAGSRESULTATER!$HA$26,Resultatinnlegging!G14,0) -> 0 | HD40: =IF(Resultatinnlegging!$B14=LAGSRESULTATER!$HA$26,Resultatinnlegging!H14,0) -> 0 | HE40: =IF(Resultatinnlegging!$B14=LAGSRESULTATER!$HA$26,Resultatinnlegging!I14,0) -> 0 | HF40: =IF(Resultatinnlegging!$B14=LAGSRESULTATER!$HA$26,Resultatinnlegging!J14,0) -> 0 | HG40: =IF(Resultatinnlegging!$B14=LAGSRESULTATER!$HA$26,Resultatinnlegging!K14,0) -> 0 | HH40: =IF(Resultatinnlegging!$B14=LAGSRESULTATER!$HA$26,Resultatinnlegging!L14,0) -> 0 | HI40: =IF(Resultatinnlegging!$B14=LAGSRESULTATER!$HA$26,Resultatinnlegging!M14,0) -> 0 | HJ40: =IF(Resultatinnlegging!$B14=LAGSRESULTATER!$HA$26,Resultatinnlegging!N14,0) -> 0 | HK40: =IF(Resultatinnlegging!$B14=LAGSRESULTATER!$HA$26,Resultatinnlegging!O14,0) -> 0 | HO40: =IF(Resultatinnlegging!$B14=LAGSRESULTATER!$HN$26,Resultatinnlegging!F14,0) -> 0 | HP40: =IF(Resultatinnlegging!$B14=LAGSRESULTATER!$HN$26,Resultatinnlegging!G14,0) -> 0 | HQ40: =IF(Resultatinnlegging!$B14=LAGSRESULTATER!$HN$26,Resultatinnlegging!H14,0) -> 0 | HR40: =IF(Resultatinnlegging!$B14=LAGSRESULTATER!$HN$26,Resultatinnlegging!I14,0) -> 0 | HS40: =IF(Resultatinnlegging!$B14=LAGSRESULTATER!$HN$26,Resultatinnlegging!J14,0) -> 0 | HT40: =IF(Resultatinnlegging!$B14=LAGSRESULTATER!$HN$26,Resultatinnlegging!K14,0) -> 0 | HU40: =IF(Resultatinnlegging!$B14=LAGSRESULTATER!$HA$26,Resultatinnlegging!L14,0) -> 0 | HV40: =IF(Resultatinnlegging!$B14=LAGSRESULTATER!$HN$26,Resultatinnlegging!M14,0) -> 0 | HW40: =IF(Resultatinnlegging!$B14=LAGSRESULTATER!$HN$26,Resultatinnlegging!N14,0) -> 0 | HX40: =IF(Resultatinnlegging!$B14=LAGSRESULTATER!$HN$26,Resultatinnlegging!O14,0) -> 0 | IB40: =IF(Resultatinnlegging!$B14=LAGSRESULTATER!$IA$26,Resultatinnlegging!F14,0) -> 0 | IC40: =IF(Resultatinnlegging!$B14=LAGSRESULTATER!$IA$26,Resultatinnlegging!G14,0) -> 0 | ID40: =IF(Resultatinnlegging!$B14=LAGSRESULTATER!$IA$26,Resultatinnlegging!H14,0) -> 0 | IE40: =IF(Resultatinnlegging!$B14=LAGSRESULTATER!$IA$26,Resultatinnlegging!I14,0) -> 0 | IF40: =IF(Resultatinnlegging!$B14=LAGSRESULTATER!$IA$26,Resultatinnlegging!J14,0) -> 0 | IG40: =IF(Resultatinnlegging!$B14=LAGSRESULTATER!$IA$26,Resultatinnlegging!K14,0) -> 0 | IH40: =IF(Resultatinnlegging!$B14=LAGSRESULTATER!$IA$26,Resultatinnlegging!L14,0) -> 0 | II40: =IF(Resultatinnlegging!$B14=LAGSRESULTATER!$IA$26,Resultatinnlegging!M14,0) -> 0 | IJ40: =IF(Resultatinnlegging!$B14=LAGSRESULTATER!$IA$26,Resultatinnlegging!N14,0) -> 0 | IK40: =IF(Resultatinnlegging!$B14=LAGSRESULTATER!$IA$26,Resultatinnlegging!O14,0) -> 0
B41: =IF(Resultatinnlegging!$B15=LAGSRESULTATER!$A$26,Resultatinnlegging!F15,0) -> 0 | C41: =IF(Resultatinnlegging!$B15=LAGSRESULTATER!$A$26,Resultatinnlegging!G15,0) -> 0 | D41: =IF(Resultatinnlegging!$B15=LAGSRESULTATER!$A$26,Resultatinnlegging!H15,0) -> 0 | E41: =IF(Resultatinnlegging!$B15=LAGSRESULTATER!$A$26,Resultatinnlegging!I15,0) -> 0 | F41: =IF(Resultatinnlegging!$B15=LAGSRESULTATER!$A$26,Resultatinnlegging!J15,0) -> 0 | G41: =IF(Resultatinnlegging!$B15=LAGSRESULTATER!$A$26,Resultatinnlegging!K15,0) -> 0 | H41: =IF(Resultatinnlegging!$B15=LAGSRESULTATER!$A$26,Resultatinnlegging!L15,0) -> 0 | I41: =IF(Resultatinnlegging!$B15=LAGSRESULTATER!$A$26,Resultatinnlegging!M15,0) -> 0 | J41: =IF(Resultatinnlegging!$B15=LAGSRESULTATER!$A$26,Resultatinnlegging!N15,0) -> 0 | K41: =IF(Resultatinnlegging!$B15=LAGSRESULTATER!$A$26,Resultatinnlegging!O15,0) -> 0 | O41: =IF(Resultatinnlegging!$B15=LAGSRESULTATER!$N$26,Resultatinnlegging!F15,0) -> 0 | P41: =IF(Resultatinnlegging!$B15=LAGSRESULTATER!$N$26,Resultatinnlegging!G15,0) -> 0 | Q41: =IF(Resultatinnlegging!$B15=LAGSRESULTATER!$N$26,Resultatinnlegging!H15,0) -> 0 | R41: =IF(Resultatinnlegging!$B15=LAGSRESULTATER!$N$26,Resultatinnlegging!I15,0) -> 0 | S41: =IF(Resultatinnlegging!$B15=LAGSRESULTATER!$N$26,Resultatinnlegging!J15,0) -> 0 | T41: =IF(Resultatinnlegging!$B15=LAGSRESULTATER!$N$26,Resultatinnlegging!K15,0) -> 0 | U41: =IF(Resultatinnlegging!$B15=LAGSRESULTATER!$N$26,Resultatinnlegging!L15,0) -> 0 | V41: =IF(Resultatinnlegging!$B15=LAGSRESULTATER!$N$26,Resultatinnlegging!M15,0) -> 0 | W41: =IF(Resultatinnlegging!$B15=LAGSRESULTATER!$N$26,Resultatinnlegging!N15,0) -> 0 | X41: =IF(Resultatinnlegging!$B15=LAGSRESULTATER!$N$26,Resultatinnlegging!O15,0) -> 0 | AB41: =IF(Resultatinnlegging!$B13=LAGSRESULTATER!$AA$26,Resultatinnlegging!F13,0) -> 0 | AC41: =IF(Resultatinnlegging!$B15=LAGSRESULTATER!$AA$26,Resultatinnlegging!G15,0) -> 0 | AD41: =IF(Resultatinnlegging!$B15=LAGSRESULTATER!$AA$26,Resultatinnlegging!H15,0) -> 0 | AE41: =IF(Resultatinnlegging!$B15=LAGSRESULTATER!$AA$26,Resultatinnlegging!I15,0) -> 0 | AF41: =IF(Resultatinnlegging!$B15=LAGSRESULTATER!$AA$26,Resultatinnlegging!J15,0) -> 0 | AG41: =IF(Resultatinnlegging!$B15=LAGSRESULTATER!$AA$26,Resultatinnlegging!K15,0) -> 0 | AH41: =IF(Resultatinnlegging!$B15=LAGSRESULTATER!$AA$26,Resultatinnlegging!L15,0) -> 0 | AI41: =IF(Resultatinnlegging!$B15=LAGSRESULTATER!$AA$26,Resultatinnlegging!M15,0) -> 0 | AJ41: =IF(Resultatinnlegging!$B15=LAGSRESULTATER!$AA$26,Resultatinnlegging!N15,0) -> 0 | AK41: =IF(Resultatinnlegging!$B15=LAGSRESULTATER!$AA$26,Resultatinnlegging!O15,0) -> 0 | AO41: =IF(Resultatinnlegging!$B11=LAGSRESULTATER!$AN$26,Resultatinnlegging!F11,0) -> 0 | AP41: =IF(Resultatinnlegging!$B15=LAGSRESULTATER!$AN$26,Resultatinnlegging!G15,0) -> 0 | AQ41: =IF(Resultatinnlegging!$B15=LAGSRESULTATER!$AN$26,Resultatinnlegging!H15,0) -> 0 | AR41: =IF(Resultatinnlegging!$B15=LAGSRESULTATER!$AN$26,Resultatinnlegging!I15,0) -> 0 | AS41: =IF(Resultatinnlegging!$B15=LAGSRESULTATER!$AN$26,Resultatinnlegging!J15,0) -> 0 | AT41: =IF(Resultatinnlegging!$B15=LAGSRESULTATER!$AN$26,Resultatinnlegging!K15,0) -> 0 | AU41: =IF(Resultatinnlegging!$B15=LAGSRESULTATER!$AN$26,Resultatinnlegging!L15,0) -> 0 | AV41: =IF(Resultatinnlegging!$B15=LAGSRESULTATER!$AN$26,Resultatinnlegging!M15,0) -> 0 | AW41: =IF(Resultatinnlegging!$B15=LAGSRESULTATER!$AN$26,Resultatinnlegging!N15,0) -> 0 | AX41: =IF(Resultatinnlegging!$B15=LAGSRESULTATER!$AN$26,Resultatinnlegging!O15,0) -> 0 | BB41: =IF(Resultatinnlegging!$B11=LAGSRESULTATER!$BA$26,Resultatinnlegging!F11,0) -> 0 | BC41: =IF(Resultatinnlegging!$B15=LAGSRESULTATER!$BA$26,Resultatinnlegging!G15,0) -> 0 | BD41: =IF(Resultatinnlegging!$B15=LAGSRESULTATER!$BA$26,Resultatinnlegging!H15,0) -> 0 | BE41: =IF(Resultatinnlegging!$B15=LAGSRESULTATER!$BA$26,Resultatinnlegging!I15,0) -> 0 | BF41: =IF(Resultatinnlegging!$B15=LAGSRESULTATER!$BA$26,Resultatinnlegging!J15,0) -> 0 | BG41: =IF(Resultatinnlegging!$B15=LAGSRESULTATER!$BA$26,Resultatinnlegging!K15,0) -> 0 | BH41: =IF(Resultatinnlegging!$B15=LAGSRESULTATER!$BA$26,Resultatinnlegging!L15,0) -> 0 | BI41: =IF(Resultatinnlegging!$B15=LAGSRESULTATER!$BA$26,Resultatinnlegging!M15,0) -> 0 | BJ41: =IF(Resultatinnlegging!$B15=LAGSRESULTATER!$BA$26,Resultatinnlegging!N15,0) -> 0 | BK41: =IF(Resultatinnlegging!$B15=LAGSRESULTATER!$BA$26,Resultatinnlegging!O15,0) -> 0 | BO41: =IF(Resultatinnlegging!$B14=LAGSRESULTATER!$BN$26,Resultatinnlegging!F14,0) -> 0 | BP41: =IF(Resultatinnlegging!$B15=LAGSRESULTATER!$BN$26,Resultatinnlegging!G15,0) -> 0 | BQ41: =IF(Resultatinnlegging!$B15=LAGSRESULTATER!$BN$26,Resultatinnlegging!H15,0) -> 0 | BR41: =IF(Resultatinnlegging!$B15=LAGSRESULTATER!$BN$26,Resultatinnlegging!I15,0) -> 0 | BS41: =IF(Resultatinnlegging!$B15=LAGSRESULTATER!$BN$26,Resultatinnlegging!J15,0) -> 0 | BT41: =IF(Resultatinnlegging!$B15=LAGSRESULTATER!$BN$26,Resultatinnlegging!K15,0) -> 0 | BU41: =IF(Resultatinnlegging!$B15=LAGSRESULTATER!$BN$26,Resultatinnlegging!L15,0) -> 0 | BV41: =IF(Resultatinnlegging!$B15=LAGSRESULTATER!$BN$26,Resultatinnlegging!M15,0) -> 0 | BW41: =IF(Resultatinnlegging!$B15=LAGSRESULTATER!$BN$26,Resultatinnlegging!N15,0) -> 0 | BX41: =IF(Resultatinnlegging!$B15=LAGSRESULTATER!$BN$26,Resultatinnlegging!O15,0) -> 0 | CB41: =IF(Resultatinnlegging!$B11=LAGSRESULTATER!$CA$26,Resultatinnlegging!F11,0) -> 0 | CC41: =IF(Resultatinnlegging!$B15=LAGSRESULTATER!$CA$26,Resultatinnlegging!G15,0) -> 0 | CD41: =IF(Resultatinnlegging!$B15=LAGSRESULTATER!$CA$26,Resultatinnlegging!H15,0) -> 0 | CE41: =IF(Resultatinnlegging!$B15=LAGSRESULTATER!$CA$26,Resultatinnlegging!I15,0) -> 0 | CF41: =IF(Resultatinnlegging!$B15=LAGSRESULTATER!$CA$26,Resultatinnlegging!J15,0) -> 0 | CG41: =IF(Resultatinnlegging!$B15=LAGSRESULTATER!$CA$26,Resultatinnlegging!K15,0) -> 0 | CH41: =IF(Resultatinnlegging!$B15=LAGSRESULTATER!$CA$26,Resultatinnlegging!L15,0) -> 0 | CI41: =IF(Resultatinnlegging!$B15=LAGSRESULTATER!$CA$26,Resultatinnlegging!M15,0) -> 0 | CJ41: =IF(Resultatinnlegging!$B15=LAGSRESULTATER!$CA$26,Resultatinnlegging!N15,0) -> 0 | CK41: =IF(Resultatinnlegging!$B15=LAGSRESULTATER!$CA$26,Resultatinnlegging!O15,0) -> 0 | CO41: =IF(Resultatinnlegging!$B13=LAGSRESULTATER!$CN$26,Resultatinnlegging!F13,0) -> 0 | CP41: =IF(Resultatinnlegging!$B15=LAGSRESULTATER!$CN$26,Resultatinnlegging!G15,0) -> 0 | CQ41: =IF(Resultatinnlegging!$B15=LAGSRESULTATER!$CN$26,Resultatinnlegging!H15,0) -> 0 | CR41: =IF(Resultatinnlegging!$B15=LAGSRESULTATER!$CN$26,Resultatinnlegging!I15,0) -> 0 | CS41: =IF(Resultatinnlegging!$B15=LAGSRESULTATER!$CN$26,Resultatinnlegging!J15,0) -> 0 | CT41: =IF(Resultatinnlegging!$B15=LAGSRESULTATER!$CN$26,Resultatinnlegging!K15,0) -> 0 | CU41: =IF(Resultatinnlegging!$B15=LAGSRESULTATER!$CN$26,Resultatinnlegging!L15,0) -> 0 | CV41: =IF(Resultatinnlegging!$B15=LAGSRESULTATER!$CN$26,Resultatinnlegging!M15,0) -> 0 | CW41: =IF(Resultatinnlegging!$B15=LAGSRESULTATER!$CN$26,Resultatinnlegging!N15,0) -> 0 | CX41: =IF(Resultatinnlegging!$B15=LAGSRESULTATER!$CN$26,Resultatinnlegging!O15,0) -> 0 | DB41: =IF(Resultatinnlegging!$B15=LAGSRESULTATER!$DA$26,Resultatinnlegging!F15,0) -> 0 | DC41: =IF(Resultatinnlegging!$B15=LAGSRESULTATER!$DA$26,Resultatinnlegging!G15,0) -> 0 | DD41: =IF(Resultatinnlegging!$B15=LAGSRESULTATER!$DA$26,Resultatinnlegging!H15,0) -> 0 | DE41: =IF(Resultatinnlegging!$B15=LAGSRESULTATER!$DA$26,Resultatinnlegging!I15,0) -> 0 | DF41: =IF(Resultatinnlegging!$B15=LAGSRESULTATER!$DA$26,Resultatinnlegging!J15,0) -> 0 | DG41: =IF(Resultatinnlegging!$B15=LAGSRESULTATER!$DA$26,Resultatinnlegging!K15,0) -> 0 | DH41: =IF(Resultatinnlegging!$B15=LAGSRESULTATER!$DA$26,Resultatinnlegging!L15,0) -> 0 | DI41: =IF(Resultatinnlegging!$B15=LAGSRESULTATER!$DA$26,Resultatinnlegging!M15,0) -> 0 | DJ41: =IF(Resultatinnlegging!$B15=LAGSRESULTATER!$DA$26,Resultatinnlegging!N15,0) -> 0 | DK41: =IF(Resultatinnlegging!$B15=LAGSRESULTATER!$DA$26,Resultatinnlegging!O15,0) -> 0 | DO41: =IF(Resultatinnlegging!$B15=LAGSRESULTATER!$DN$26,Resultatinnlegging!F15,0) -> 0 | DP41: =IF(Resultatinnlegging!$B15=LAGSRESULTATER!$DN$26,Resultatinnlegging!G15,0) -> 0 | DQ41: =IF(Resultatinnlegging!$B15=LAGSRESULTATER!$DN$26,Resultatinnlegging!H15,0) -> 0 | DR41: =IF(Resultatinnlegging!$B15=LAGSRESULTATER!$DN$26,Resultatinnlegging!I15,0) -> 0 | DS41: =IF(Resultatinnlegging!$B15=LAGSRESULTATER!$DN$26,Resultatinnlegging!J15,0) -> 0 | DT41: =IF(Resultatinnlegging!$B15=LAGSRESULTATER!$DN$26,Resultatinnlegging!K15,0) -> 0 | DU41: =IF(Resultatinnlegging!$B15=LAGSRESULTATER!$DN$26,Resultatinnlegging!L15,0) -> 0 | DV41: =IF(Resultatinnlegging!$B15=LAGSRESULTATER!$DN$26,Resultatinnlegging!M15,0) -> 0 | DW41: =IF(Resultatinnlegging!$B15=LAGSRESULTATER!$DN$26,Resultatinnlegging!N15,0) -> 0 | DX41: =IF(Resultatinnlegging!$B15=LAGSRESULTATER!$DN$26,Resultatinnlegging!O15,0) -> 0 | EB41: =IF(Resultatinnlegging!$B15=LAGSRESULTATER!$EA$26,Resultatinnlegging!F15,0) -> 0 | EC41: =IF(Resultatinnlegging!$B15=LAGSRESULTATER!$EA$26,Resultatinnlegging!G15,0) -> 0 | ED41: =IF(Resultatinnlegging!$B15=LAGSRESULTATER!$EA$26,Resultatinnlegging!H15,0) -> 0 | EE41: =IF(Resultatinnlegging!$B15=LAGSRESULTATER!$EA$26,Resultatinnlegging!I15,0) -> 0 | EF41: =IF(Resultatinnlegging!$B15=LAGSRESULTATER!$EA$26,Resultatinnlegging!J15,0) -> 0 | EG41: =IF(Resultatinnlegging!$B15=LAGSRESULTATER!$EA$26,Resultatinnlegging!K15,0) -> 0 | EH41: =IF(Resultatinnlegging!$B15=LAGSRESULTATER!$EA$26,Resultatinnlegging!L15,0) -> 0 | EI41: =IF(Resultatinnlegging!$B15=LAGSRESULTATER!$EA$26,Resultatinnlegging!M15,0) -> 0 | EJ41: =IF(Resultatinnlegging!$B15=LAGSRESULTATER!$EA$26,Resultatinnlegging!N15,0) -> 0 | EK41: =IF(Resultatinnlegging!$B15=LAGSRESULTATER!$EA$26,Resultatinnlegging!O15,0) -> 0 | EO41: =IF(Resultatinnlegging!$B15=LAGSRESULTATER!$EN$26,Resultatinnlegging!F15,0) -> 0 | EP41: =IF(Resultatinnlegging!$B15=LAGSRESULTATER!$EN$26,Resultatinnlegging!G15,0) -> 0 | EQ41: =IF(Resultatinnlegging!$B15=LAGSRESULTATER!$EN$26,Resultatinnlegging!H15,0) -> 0 | ER41: =IF(Resultatinnlegging!$B15=LAGSRESULTATER!$EN$26,Resultatinnlegging!I15,0) -> 0 | ES41: =IF(Resultatinnlegging!$B15=LAGSRESULTATER!$EN$26,Resultatinnlegging!J15,0) -> 0 | ET41: =IF(Resultatinnlegging!$B15=LAGSRESULTATER!$EN$26,Resultatinnlegging!K15,0) -> 0 | EU41: =IF(Resultatinnlegging!$B15=LAGSRESULTATER!$EN$26,Resultatinnlegging!L15,0) -> 0 | EV41: =IF(Resultatinnlegging!$B15=LAGSRESULTATER!$EN$26,Resultatinnlegging!M15,0) -> 0 | EW41: =IF(Resultatinnlegging!$B15=LAGSRESULTATER!$EN$26,Resultatinnlegging!N15,0) -> 0 | EX41: =IF(Resultatinnlegging!$B15=LAGSRESULTATER!$EN$26,Resultatinnlegging!O15,0) -> 0 | FB41: =IF(Resultatinnlegging!$B15=LAGSRESULTATER!$FA$26,Resultatinnlegging!F15,0) -> 0 | FC41: =IF(Resultatinnlegging!$B15=LAGSRESULTATER!$FA$26,Resultatinnlegging!G15,0) -> 0 | FD41: =IF(Resultatinnlegging!$B15=LAGSRESULTATER!$FA$26,Resultatinnlegging!H15,0) -> 0 | FE41: =IF(Resultatinnlegging!$B15=LAGSRESULTATER!$FA$26,Resultatinnlegging!I15,0) -> 0 | FF41: =IF(Resultatinnlegging!$B15=LAGSRESULTATER!$FA$26,Resultatinnlegging!J15,0) -> 0 | FG41: =IF(Resultatinnlegging!$B15=LAGSRESULTATER!$FA$26,Resultatinnlegging!K15,0) -> 0 | FH41: =IF(Resultatinnlegging!$B15=LAGSRESULTATER!$FA$26,Resultatinnlegging!L15,0) -> 0 | FI41: =IF(Resultatinnlegging!$B15=LAGSRESULTATER!$FA$26,Resultatinnlegging!M15,0) -> 0 | FJ41: =IF(Resultatinnlegging!$B15=LAGSRESULTATER!$FA$26,Resultatinnlegging!N15,0) -> 0 | FK41: =IF(Resultatinnlegging!$B15=LAGSRESULTATER!$FA$26,Resultatinnlegging!O15,0) -> 0 | FO41: =IF(Resultatinnlegging!$B15=LAGSRESULTATER!$FN$26,Resultatinnlegging!F15,0) -> 0 | FP41: =IF(Resultatinnlegging!$B15=LAGSRESULTATER!$FN$26,Resultatinnlegging!G15,0) -> 0 | FQ41: =IF(Resultatinnlegging!$B15=LAGSRESULTATER!$FN$26,Resultatinnlegging!H15,0) -> 0 | FR41: =IF(Resultatinnlegging!$B15=LAGSRESULTATER!$FN$26,Resultatinnlegging!I15,0) -> 0 | FS41: =IF(Resultatinnlegging!$B15=LAGSRESULTATER!$FN$26,Resultatinnlegging!J15,0) -> 0 | FT41: =IF(Resultatinnlegging!$B15=LAGSRESULTATER!$FN$26,Resultatinnlegging!K15,0) -> 0 | FU41: =IF(Resultatinnlegging!$B15=LAGSRESULTATER!$FN$26,Resultatinnlegging!L15,0) -> 0 | FV41: =IF(Resultatinnlegging!$B15=LAGSRESULTATER!$FN$26,Resultatinnlegging!M15,0) -> 0 | FW41: =IF(Resultatinnlegging!$B15=LAGSRESULTATER!$FN$26,Resultatinnlegging!N15,0) -> 0 | FX41: =IF(Resultatinnlegging!$B15=LAGSRESULTATER!$FN$26,Resultatinnlegging!O15,0) -> 0 | GA41: 12 | GB41: =IF(Resultatinnlegging!$B15=LAGSRESULTATER!$GA$26,Resultatinnlegging!F15,0) -> 0 | GC41: =IF(Resultatinnlegging!$B15=LAGSRESULTATER!$GA$26,Resultatinnlegging!G15,0) -> 0 | GD41: =IF(Resultatinnlegging!$B15=LAGSRESULTATER!$GA$26,Resultatinnlegging!H15,0) -> 0 | GE41: =IF(Resultatinnlegging!$B15=LAGSRESULTATER!$GA$26,Resultatinnlegging!I15,0) -> 0 | GF41: =IF(Resultatinnlegging!$B15=LAGSRESULTATER!$GA$26,Resultatinnlegging!J15,0) -> 0 | GG41: =IF(Resultatinnlegging!$B15=LAGSRESULTATER!$GA$26,Resultatinnlegging!K15,0) -> 0 | GH41: =IF(Resultatinnlegging!$B15=LAGSRESULTATER!$GA$26,Resultatinnlegging!L15,0) -> 0 | GI41: =IF(Resultatinnlegging!$B15=LAGSRESULTATER!$GA$26,Resultatinnlegging!M15,0) -> 0 | GJ41: =IF(Resultatinnlegging!$B15=LAGSRESULTATER!$GA$26,Resultatinnlegging!N15,0) -> 0 | GK41: =IF(Resultatinnlegging!$B15=LAGSRESULTATER!$GA$26,Resultatinnlegging!O15,0) -> 0 | GN41: 10 | GO41: =IF(Resultatinnlegging!$B15=LAGSRESULTATER!$GN$26,Resultatinnlegging!F15,0) -> 0 | GP41: =IF(Resultatinnlegging!$B15=LAGSRESULTATER!$GN$26,Resultatinnlegging!G15,0) -> 0 | GQ41: =IF(Resultatinnlegging!$B15=LAGSRESULTATER!$GN$26,Resultatinnlegging!H15,0) -> 0 | GR41: =IF(Resultatinnlegging!$B15=LAGSRESULTATER!$GN$26,Resultatinnlegging!I15,0) -> 0 | GS41: =IF(Resultatinnlegging!$B15=LAGSRESULTATER!$GN$26,Resultatinnlegging!J15,0) -> 0 | GT41: =IF(Resultatinnlegging!$B15=LAGSRESULTATER!$GN$26,Resultatinnlegging!K15,0) -> 0 | GU41: =IF(Resultatinnlegging!$B15=LAGSRESULTATER!$GN$26,Resultatinnlegging!L15,0) -> 0 | GV41: =IF(Resultatinnlegging!$B15=LAGSRESULTATER!$GN$26,Resultatinnlegging!M15,0) -> 0 | GW41: =IF(Resultatinnlegging!$B15=LAGSRESULTATER!$GN$26,Resultatinnlegging!N15,0) -> 0 | GX41: =IF(Resultatinnlegging!$B15=LAGSRESULTATER!$GN$26,Resultatinnlegging!O15,0) -> 0 | HB41: =IF(Resultatinnlegging!$B15=LAGSRESULTATER!$HA$26,Resultatinnlegging!F15,0) -> 0 | HC41: =IF(Resultatinnlegging!$B15=LAGSRESULTATER!$HA$26,Resultatinnlegging!G15,0) -> 0 | HD41: =IF(Resultatinnlegging!$B15=LAGSRESULTATER!$HA$26,Resultatinnlegging!H15,0) -> 0 | HE41: =IF(Resultatinnlegging!$B15=LAGSRESULTATER!$HA$26,Resultatinnlegging!I15,0) -> 0 | HF41: =IF(Resultatinnlegging!$B15=LAGSRESULTATER!$HA$26,Resultatinnlegging!J15,0) -> 0 | HG41: =IF(Resultatinnlegging!$B15=LAGSRESULTATER!$HA$26,Resultatinnlegging!K15,0) -> 0 | HH41: =IF(Resultatinnlegging!$B15=LAGSRESULTATER!$HA$26,Resultatinnlegging!L15,0) -> 0 | HI41: =IF(Resultatinnlegging!$B15=LAGSRESULTATER!$HA$26,Resultatinnlegging!M15,0) -> 0 | HJ41: =IF(Resultatinnlegging!$B15=LAGSRESULTATER!$HA$26,Resultatinnlegging!N15,0) -> 0 | HK41: =IF(Resultatinnlegging!$B15=LAGSRESULTATER!$HA$26,Resultatinnlegging!O15,0) -> 0 | HO41: =IF(Resultatinnlegging!$B15=LAGSRESULTATER!$HN$26,Resultatinnlegging!F15,0) -> 0 | HP41: =IF(Resultatinnlegging!$B15=LAGSRESULTATER!$HN$26,Resultatinnlegging!G15,0) -> 0 | HQ41: =IF(Resultatinnlegging!$B15=LAGSRESULTATER!$HN$26,Resultatinnlegging!H15,0) -> 0 | HR41: =IF(Resultatinnlegging!$B15=LAGSRESULTATER!$HN$26,Resultatinnlegging!I15,0) -> 0 | HS41: =IF(Resultatinnlegging!$B15=LAGSRESULTATER!$HN$26,Resultatinnlegging!J15,0) -> 0 | HT41: =IF(Resultatinnlegging!$B15=LAGSRESULTATER!$HN$26,Resultatinnlegging!K15,0) -> 0 | HU41: =IF(Resultatinnlegging!$B15=LAGSRESULTATER!$HA$26,Resultatinnlegging!L15,0) -> 0 | HV41: =IF(Resultatinnlegging!$B15=LAGSRESULTATER!$HN$26,Resultatinnlegging!M15,0) -> 0 | HW41: =IF(Resultatinnlegging!$B15=LAGSRESULTATER!$HN$26,Resultatinnlegging!N15,0) -> 0 | HX41: =IF(Resultatinnlegging!$B15=LAGSRESULTATER!$HN$26,Resultatinnlegging!O15,0) -> 0 | IB41: =IF(Resultatinnlegging!$B15=LAGSRESULTATER!$IA$26,Resultatinnlegging!F15,0) -> 0 | IC41: =IF(Resultatinnlegging!$B15=LAGSRESULTATER!$IA$26,Resultatinnlegging!G15,0) -> 0 | ID41: =IF(Resultatinnlegging!$B15=LAGSRESULTATER!$IA$26,Resultatinnlegging!H15,0) -> 0 | IE41: =IF(Resultatinnlegging!$B15=LAGSRESULTATER!$IA$26,Resultatinnlegging!I15,0) -> 0 | IF41: =IF(Resultatinnlegging!$B15=LAGSRESULTATER!$IA$26,Resultatinnlegging!J15,0) -> 0 | IG41: =IF(Resultatinnlegging!$B15=LAGSRESULTATER!$IA$26,Resultatinnlegging!K15,0) -> 0 | IH41: =IF(Resultatinnlegging!$B15=LAGSRESULTATER!$IA$26,Resultatinnlegging!L15,0) -> 0 | II41: =IF(Resultatinnlegging!$B15=LAGSRESULTATER!$IA$26,Resultatinnlegging!M15,0) -> 0 | IJ41: =IF(Resultatinnlegging!$B15=LAGSRESULTATER!$IA$26,Resultatinnlegging!N15,0) -> 0 | IK41: =IF(Resultatinnlegging!$B15=LAGSRESULTATER!$IA$26,Resultatinnlegging!O15,0) -> 0
B42: =IF(Resultatinnlegging!$B19=LAGSRESULTATER!$A$26,Resultatinnlegging!F19,0) -> 0 | C42: =IF(Resultatinnlegging!$B19=LAGSRESULTATER!$A$26,Resultatinnlegging!G19,0) -> 0 | D42: =IF(Resultatinnlegging!$B19=LAGSRESULTATER!$A$26,Resultatinnlegging!H19,0) -> 0 | E42: =IF(Resultatinnlegging!$B19=LAGSRESULTATER!$A$26,Resultatinnlegging!I19,0) -> 0 | F42: =IF(Resultatinnlegging!$B19=LAGSRESULTATER!$A$26,Resultatinnlegging!J19,0) -> 0 | G42: =IF(Resultatinnlegging!$B19=LAGSRESULTATER!$A$26,Resultatinnlegging!K19,0) -> 0 | H42: =IF(Resultatinnlegging!$B19=LAGSRESULTATER!$A$26,Resultatinnlegging!L19,0) -> 0 | I42: =IF(Resultatinnlegging!$B19=LAGSRESULTATER!$A$26,Resultatinnlegging!M19,0) -> 0 | J42: =IF(Resultatinnlegging!$B19=LAGSRESULTATER!$A$26,Resultatinnlegging!N19,0) -> 0 | K42: =IF(Resultatinnlegging!$B19=LAGSRESULTATER!$A$26,Resultatinnlegging!O19,0) -> 0 | O42: =IF(Resultatinnlegging!$B19=LAGSRESULTATER!$N$26,Resultatinnlegging!F19,0) -> 0 | P42: =IF(Resultatinnlegging!$B19=LAGSRESULTATER!$N$26,Resultatinnlegging!G19,0) -> 0 | Q42: =IF(Resultatinnlegging!$B19=LAGSRESULTATER!$N$26,Resultatinnlegging!H19,0) -> 0 | R42: =IF(Resultatinnlegging!$B19=LAGSRESULTATER!$N$26,Resultatinnlegging!I19,0) -> 0 | S42: =IF(Resultatinnlegging!$B19=LAGSRESULTATER!$N$26,Resultatinnlegging!J19,0) -> 0 | T42: =IF(Resultatinnlegging!$B19=LAGSRESULTATER!$N$26,Resultatinnlegging!K19,0) -> 0 | U42: =IF(Resultatinnlegging!$B19=LAGSRESULTATER!$N$26,Resultatinnlegging!L19,0) -> 0 | V42: =IF(Resultatinnlegging!$B19=LAGSRESULTATER!$N$26,Resultatinnlegging!M19,0) -> 0 | W42: =IF(Resultatinnlegging!$B19=LAGSRESULTATER!$N$26,Resultatinnlegging!N19,0) -> 0 | X42: =IF(Resultatinnlegging!$B19=LAGSRESULTATER!$N$26,Resultatinnlegging!O19,0) -> 0 | AB42: =IF(Resultatinnlegging!$B14=LAGSRESULTATER!$AA$26,Resultatinnlegging!F14,0) -> 0 | AC42: =IF(Resultatinnlegging!$B19=LAGSRESULTATER!$AA$26,Resultatinnlegging!G19,0) -> 0 | AD42: =IF(Resultatinnlegging!$B19=LAGSRESULTATER!$AA$26,Resultatinnlegging!H19,0) -> 0 | AE42: =IF(Resultatinnlegging!$B19=LAGSRESULTATER!$AA$26,Resultatinnlegging!I19,0) -> 0 | AF42: =IF(Resultatinnlegging!$B19=LAGSRESULTATER!$AA$26,Resultatinnlegging!J19,0) -> 0 | AG42: =IF(Resultatinnlegging!$B19=LAGSRESULTATER!$AA$26,Resultatinnlegging!K19,0) -> 0 | AH42: =IF(Resultatinnlegging!$B19=LAGSRESULTATER!$AA$26,Resultatinnlegging!L19,0) -> 0 | AI42: =IF(Resultatinnlegging!$B19=LAGSRESULTATER!$AA$26,Resultatinnlegging!M19,0) -> 0 | AJ42: =IF(Resultatinnlegging!$B19=LAGSRESULTATER!$AA$26,Resultatinnlegging!N19,0) -> 0 | AK42: =IF(Resultatinnlegging!$B19=LAGSRESULTATER!$AA$26,Resultatinnlegging!O19,0) -> 0 | AO42: =IF(Resultatinnlegging!$B12=LAGSRESULTATER!$AN$26,Resultatinnlegging!F12,0) -> 0 | AP42: =IF(Resultatinnlegging!$B19=LAGSRESULTATER!$AN$26,Resultatinnlegging!G19,0) -> 0 | AQ42: =IF(Resultatinnlegging!$B19=LAGSRESULTATER!$AN$26,Resultatinnlegging!H19,0) -> 0 | AR42: =IF(Resultatinnlegging!$B19=LAGSRESULTATER!$AN$26,Resultatinnlegging!I19,0) -> 0 | AS42: =IF(Resultatinnlegging!$B19=LAGSRESULTATER!$AN$26,Resultatinnlegging!J19,0) -> 0 | AT42: =IF(Resultatinnlegging!$B19=LAGSRESULTATER!$AN$26,Resultatinnlegging!K19,0) -> 0 | AU42: =IF(Resultatinnlegging!$B19=LAGSRESULTATER!$AN$26,Resultatinnlegging!L19,0) -> 0 | AV42: =IF(Resultatinnlegging!$B19=LAGSRESULTATER!$AN$26,Resultatinnlegging!M19,0) -> 0 | AW42: =IF(Resultatinnlegging!$B19=LAGSRESULTATER!$AN$26,Resultatinnlegging!N19,0) -> 0 | AX42: =IF(Resultatinnlegging!$B19=LAGSRESULTATER!$AN$26,Resultatinnlegging!O19,0) -> 0 | BB42: =IF(Resultatinnlegging!$B12=LAGSRESULTATER!$BA$26,Resultatinnlegging!F12,0) -> 0 | BC42: =IF(Resultatinnlegging!$B19=LAGSRESULTATER!$BA$26,Resultatinnlegging!G19,0) -> 0 | BD42: =IF(Resultatinnlegging!$B19=LAGSRESULTATER!$BA$26,Resultatinnlegging!H19,0) -> 0 | BE42: =IF(Resultatinnlegging!$B19=LAGSRESULTATER!$BA$26,Resultatinnlegging!I19,0) -> 0 | BF42: =IF(Resultatinnlegging!$B19=LAGSRESULTATER!$BA$26,Resultatinnlegging!J19,0) -> 0 | BG42: =IF(Resultatinnlegging!$B19=LAGSRESULTATER!$BA$26,Resultatinnlegging!K19,0) -> 0 | BH42: =IF(Resultatinnlegging!$B19=LAGSRESULTATER!$BA$26,Resultatinnlegging!L19,0) -> 0 | BI42: =IF(Resultatinnlegging!$B19=LAGSRESULTATER!$BA$26,Resultatinnlegging!M19,0) -> 0 | BJ42: =IF(Resultatinnlegging!$B19=LAGSRESULTATER!$BA$26,Resultatinnlegging!N19,0) -> 0 | BK42: =IF(Resultatinnlegging!$B19=LAGSRESULTATER!$BA$26,Resultatinnlegging!O19,0) -> 0 | BO42: =IF(Resultatinnlegging!$B15=LAGSRESULTATER!$BN$26,Resultatinnlegging!F15,0) -> 0 | BP42: =IF(Resultatinnlegging!$B19=LAGSRESULTATER!$BN$26,Resultatinnlegging!G19,0) -> 0 | BQ42: =IF(Resultatinnlegging!$B19=LAGSRESULTATER!$BN$26,Resultatinnlegging!H19,0) -> 0 | BR42: =IF(Resultatinnlegging!$B19=LAGSRESULTATER!$BN$26,Resultatinnlegging!I19,0) -> 0 | BS42: =IF(Resultatinnlegging!$B19=LAGSRESULTATER!$BN$26,Resultatinnlegging!J19,0) -> 0 | BT42: =IF(Resultatinnlegging!$B19=LAGSRESULTATER!$BN$26,Resultatinnlegging!K19,0) -> 0 | BU42: =IF(Resultatinnlegging!$B19=LAGSRESULTATER!$BN$26,Resultatinnlegging!L19,0) -> 0 | BV42: =IF(Resultatinnlegging!$B19=LAGSRESULTATER!$BN$26,Resultatinnlegging!M19,0) -> 0 | BW42: =IF(Resultatinnlegging!$B19=LAGSRESULTATER!$BN$26,Resultatinnlegging!N19,0) -> 0 | BX42: =IF(Resultatinnlegging!$B19=LAGSRESULTATER!$BN$26,Resultatinnlegging!O19,0) -> 0 | CB42: =IF(Resultatinnlegging!$B13=LAGSRESULTATER!$CA$26,Resultatinnlegging!F13,0) -> 0 | CC42: =IF(Resultatinnlegging!$B19=LAGSRESULTATER!$CA$26,Resultatinnlegging!G19,0) -> 0 | CD42: =IF(Resultatinnlegging!$B19=LAGSRESULTATER!$CA$26,Resultatinnlegging!H19,0) -> 0 | CE42: =IF(Resultatinnlegging!$B19=LAGSRESULTATER!$CA$26,Resultatinnlegging!I19,0) -> 0 | CF42: =IF(Resultatinnlegging!$B19=LAGSRESULTATER!$CA$26,Resultatinnlegging!J19,0) -> 0 | CG42: =IF(Resultatinnlegging!$B19=LAGSRESULTATER!$CA$26,Resultatinnlegging!K19,0) -> 0 | CH42: =IF(Resultatinnlegging!$B19=LAGSRESULTATER!$CA$26,Resultatinnlegging!L19,0) -> 0 | CI42: =IF(Resultatinnlegging!$B19=LAGSRESULTATER!$CA$26,Resultatinnlegging!M19,0) -> 0 | CJ42: =IF(Resultatinnlegging!$B19=LAGSRESULTATER!$CA$26,Resultatinnlegging!N19,0) -> 0 | CK42: =IF(Resultatinnlegging!$B19=LAGSRESULTATER!$CA$26,Resultatinnlegging!O19,0) -> 0 | CO42: =IF(Resultatinnlegging!$B14=LAGSRESULTATER!$CN$26,Resultatinnlegging!F14,0) -> 0 | CP42: =IF(Resultatinnlegging!$B19=LAGSRESULTATER!$CN$26,Resultatinnlegging!G19,0) -> 0 | CQ42: =IF(Resultatinnlegging!$B19=LAGSRESULTATER!$CN$26,Resultatinnlegging!H19,0) -> 0 | CR42: =IF(Resultatinnlegging!$B19=LAGSRESULTATER!$CN$26,Resultatinnlegging!I19,0) -> 0 | CS42: =IF(Resultatinnlegging!$B19=LAGSRESULTATER!$CN$26,Resultatinnlegging!J19,0) -> 0 | CT42: =IF(Resultatinnlegging!$B19=LAGSRESULTATER!$CN$26,Resultatinnlegging!K19,0) -> 0 | CU42: =IF(Resultatinnlegging!$B19=LAGSRESULTATER!$CN$26,Resultatinnlegging!L19,0) -> 0 | CV42: =IF(Resultatinnlegging!$B19=LAGSRESULTATER!$CN$26,Resultatinnlegging!M19,0) -> 0 | CW42: =IF(Resultatinnlegging!$B19=LAGSRESULTATER!$CN$26,Resultatinnlegging!N19,0) -> 0 | CX42: =IF(Resultatinnlegging!$B19=LAGSRESULTATER!$CN$26,Resultatinnlegging!O19,0) -> 0 | DB42: =IF(Resultatinnlegging!$B19=LAGSRESULTATER!$DA$26,Resultatinnlegging!F19,0) -> 0 | DC42: =IF(Resultatinnlegging!$B19=LAGSRESULTATER!$DA$26,Resultatinnlegging!G19,0) -> 0 | DD42: =IF(Resultatinnlegging!$B19=LAGSRESULTATER!$DA$26,Resultatinnlegging!H19,0) -> 0 | DE42: =IF(Resultatinnlegging!$B19=LAGSRESULTATER!$DA$26,Resultatinnlegging!I19,0) -> 0 | DF42: =IF(Resultatinnlegging!$B19=LAGSRESULTATER!$DA$26,Resultatinnlegging!J19,0) -> 0 | DG42: =IF(Resultatinnlegging!$B19=LAGSRESULTATER!$DA$26,Resultatinnlegging!K19,0) -> 0 | DH42: =IF(Resultatinnlegging!$B19=LAGSRESULTATER!$DA$26,Resultatinnlegging!L19,0) -> 0 | DI42: =IF(Resultatinnlegging!$B19=LAGSRESULTATER!$DA$26,Resultatinnlegging!M19,0) -> 0 | DJ42: =IF(Resultatinnlegging!$B19=LAGSRESULTATER!$DA$26,Resultatinnlegging!N19,0) -> 0 | DK42: =IF(Resultatinnlegging!$B19=LAGSRESULTATER!$DA$26,Resultatinnlegging!O19,0) -> 0 | DO42: =IF(Resultatinnlegging!$B19=LAGSRESULTATER!$DN$26,Resultatinnlegging!F19,0) -> 0 | DP42: =IF(Resultatinnlegging!$B19=LAGSRESULTATER!$DN$26,Resultatinnlegging!G19,0) -> 0 | DQ42: =IF(Resultatinnlegging!$B19=LAGSRESULTATER!$DN$26,Resultatinnlegging!H19,0) -> 0 | DR42: =IF(Resultatinnlegging!$B19=LAGSRESULTATER!$DN$26,Resultatinnlegging!I19,0) -> 0 | DS42: =IF(Resultatinnlegging!$B19=LAGSRESULTATER!$DN$26,Resultatinnlegging!J19,0) -> 0 | DT42: =IF(Resultatinnlegging!$B19=LAGSRESULTATER!$DN$26,Resultatinnlegging!K19,0) -> 0 | DU42: =IF(Resultatinnlegging!$B19=LAGSRESULTATER!$DN$26,Resultatinnlegging!L19,0) -> 0 | DV42: =IF(Resultatinnlegging!$B19=LAGSRESULTATER!$DN$26,Resultatinnlegging!M19,0) -> 0 | DW42: =IF(Resultatinnlegging!$B19=LAGSRESULTATER!$DN$26,Resultatinnlegging!N19,0) -> 0 | DX42: =IF(Resultatinnlegging!$B19=LAGSRESULTATER!$DN$26,Resultatinnlegging!O19,0) -> 0 | EB42: =IF(Resultatinnlegging!$B19=LAGSRESULTATER!$EA$26,Resultatinnlegging!F19,0) -> 0 | EC42: =IF(Resultatinnlegging!$B19=LAGSRESULTATER!$EA$26,Resultatinnlegging!G19,0) -> 0 | ED42: =IF(Resultatinnlegging!$B19=LAGSRESULTATER!$EA$26,Resultatinnlegging!H19,0) -> 0 | EE42: =IF(Resultatinnlegging!$B19=LAGSRESULTATER!$EA$26,Resultatinnlegging!I19,0) -> 0 | EF42: =IF(Resultatinnlegging!$B19=LAGSRESULTATER!$EA$26,Resultatinnlegging!J19,0) -> 0 | EG42: =IF(Resultatinnlegging!$B19=LAGSRESULTATER!$EA$26,Resultatinnlegging!K19,0) -> 0 | EH42: =IF(Resultatinnlegging!$B19=LAGSRESULTATER!$EA$26,Resultatinnlegging!L19,0) -> 0 | EI42: =IF(Resultatinnlegging!$B19=LAGSRESULTATER!$EA$26,Resultatinnlegging!M19,0) -> 0 | EJ42: =IF(Resultatinnlegging!$B19=LAGSRESULTATER!$EA$26,Resultatinnlegging!N19,0) -> 0 | EK42: =IF(Resultatinnlegging!$B19=LAGSRESULTATER!$EA$26,Resultatinnlegging!O19,0) -> 0 | EO42: =IF(Resultatinnlegging!$B19=LAGSRESULTATER!$EN$26,Resultatinnlegging!F19,0) -> 0 | EP42: =IF(Resultatinnlegging!$B19=LAGSRESULTATER!$EN$26,Resultatinnlegging!G19,0) -> 0 | EQ42: =IF(Resultatinnlegging!$B19=LAGSRESULTATER!$EN$26,Resultatinnlegging!H19,0) -> 0 | ER42: =IF(Resultatinnlegging!$B19=LAGSRESULTATER!$EN$26,Resultatinnlegging!I19,0) -> 0 | ES42: =IF(Resultatinnlegging!$B19=LAGSRESULTATER!$EN$26,Resultatinnlegging!J19,0) -> 0 | ET42: =IF(Resultatinnlegging!$B19=LAGSRESULTATER!$EN$26,Resultatinnlegging!K19,0) -> 0 | EU42: =IF(Resultatinnlegging!$B19=LAGSRESULTATER!$EN$26,Resultatinnlegging!L19,0) -> 0 | EV42: =IF(Resultatinnlegging!$B19=LAGSRESULTATER!$EN$26,Resultatinnlegging!M19,0) -> 0 | EW42: =IF(Resultatinnlegging!$B19=LAGSRESULTATER!$EN$26,Resultatinnlegging!N19,0) -> 0 | EX42: =IF(Resultatinnlegging!$B19=LAGSRESULTATER!$EN$26,Resultatinnlegging!O19,0) -> 0 | FB42: =IF(Resultatinnlegging!$B19=LAGSRESULTATER!$FA$26,Resultatinnlegging!F19,0) -> 0 | FC42: =IF(Resultatinnlegging!$B19=LAGSRESULTATER!$FA$26,Resultatinnlegging!G19,0) -> 0 | FD42: =IF(Resultatinnlegging!$B19=LAGSRESULTATER!$FA$26,Resultatinnlegging!H19,0) -> 0 | FE42: =IF(Resultatinnlegging!$B19=LAGSRESULTATER!$FA$26,Resultatinnlegging!I19,0) -> 0 | FF42: =IF(Resultatinnlegging!$B19=LAGSRESULTATER!$FA$26,Resultatinnlegging!J19,0) -> 0 | FG42: =IF(Resultatinnlegging!$B19=LAGSRESULTATER!$FA$26,Resultatinnlegging!K19,0) -> 0 | FH42: =IF(Resultatinnlegging!$B19=LAGSRESULTATER!$FA$26,Resultatinnlegging!L19,0) -> 0 | FI42: =IF(Resultatinnlegging!$B19=LAGSRESULTATER!$FA$26,Resultatinnlegging!M19,0) -> 0 | FJ42: =IF(Resultatinnlegging!$B19=LAGSRESULTATER!$FA$26,Resultatinnlegging!N19,0) -> 0 | FK42: =IF(Resultatinnlegging!$B19=LAGSRESULTATER!$FA$26,Resultatinnlegging!O19,0) -> 0 | FO42: =IF(Resultatinnlegging!$B19=LAGSRESULTATER!$FN$26,Resultatinnlegging!F19,0) -> 0 | FP42: =IF(Resultatinnlegging!$B19=LAGSRESULTATER!$FN$26,Resultatinnlegging!G19,0) -> 0 | FQ42: =IF(Resultatinnlegging!$B19=LAGSRESULTATER!$FN$26,Resultatinnlegging!H19,0) -> 0 | FR42: =IF(Resultatinnlegging!$B19=LAGSRESULTATER!$FN$26,Resultatinnlegging!I19,0) -> 0 | FS42: =IF(Resultatinnlegging!$B19=LAGSRESULTATER!$FN$26,Resultatinnlegging!J19,0) -> 0 | FT42: =IF(Resultatinnlegging!$B19=LAGSRESULTATER!$FN$26,Resultatinnlegging!K19,0) -> 0 | FU42: =IF(Resultatinnlegging!$B19=LAGSRESULTATER!$FN$26,Resultatinnlegging!L19,0) -> 0 | FV42: =IF(Resultatinnlegging!$B19=LAGSRESULTATER!$FN$26,Resultatinnlegging!M19,0) -> 0 | FW42: =IF(Resultatinnlegging!$B19=LAGSRESULTATER!$FN$26,Resultatinnlegging!N19,0) -> 0 | FX42: =IF(Resultatinnlegging!$B19=LAGSRESULTATER!$FN$26,Resultatinnlegging!O19,0) -> 0 | GA42: 13 | GB42: =IF(Resultatinnlegging!$B19=LAGSRESULTATER!$GA$26,Resultatinnlegging!F19,0) -> 0 | GC42: =IF(Resultatinnlegging!$B19=LAGSRESULTATER!$GA$26,Resultatinnlegging!G19,0) -> 0 | GD42: =IF(Resultatinnlegging!$B19=LAGSRESULTATER!$GA$26,Resultatinnlegging!H19,0) -> 0 | GE42: =IF(Resultatinnlegging!$B19=LAGSRESULTATER!$GA$26,Resultatinnlegging!I19,0) -> 0 | GF42: =IF(Resultatinnlegging!$B19=LAGSRESULTATER!$GA$26,Resultatinnlegging!J19,0) -> 0 | GG42: =IF(Resultatinnlegging!$B19=LAGSRESULTATER!$GA$26,Resultatinnlegging!K19,0) -> 0 | GH42: =IF(Resultatinnlegging!$B19=LAGSRESULTATER!$GA$26,Resultatinnlegging!L19,0) -> 0 | GI42: =IF(Resultatinnlegging!$B19=LAGSRESULTATER!$GA$26,Resultatinnlegging!M19,0) -> 0 | GJ42: =IF(Resultatinnlegging!$B19=LAGSRESULTATER!$GA$26,Resultatinnlegging!N19,0) -> 0 | GK42: =IF(Resultatinnlegging!$B19=LAGSRESULTATER!$GA$26,Resultatinnlegging!O19,0) -> 0 | GN42: 11 | GO42: =IF(Resultatinnlegging!$B19=LAGSRESULTATER!$GN$26,Resultatinnlegging!F19,0) -> 0 | GP42: =IF(Resultatinnlegging!$B19=LAGSRESULTATER!$GN$26,Resultatinnlegging!G19,0) -> 0 | GQ42: =IF(Resultatinnlegging!$B19=LAGSRESULTATER!$GN$26,Resultatinnlegging!H19,0) -> 0 | GR42: =IF(Resultatinnlegging!$B19=LAGSRESULTATER!$GN$26,Resultatinnlegging!I19,0) -> 0 | GS42: =IF(Resultatinnlegging!$B19=LAGSRESULTATER!$GN$26,Resultatinnlegging!J19,0) -> 0 | GT42: =IF(Resultatinnlegging!$B19=LAGSRESULTATER!$GN$26,Resultatinnlegging!K19,0) -> 0 | GU42: =IF(Resultatinnlegging!$B19=LAGSRESULTATER!$GN$26,Resultatinnlegging!L19,0) -> 0 | GV42: =IF(Resultatinnlegging!$B19=LAGSRESULTATER!$GN$26,Resultatinnlegging!M19,0) -> 0 | GW42: =IF(Resultatinnlegging!$B19=LAGSRESULTATER!$GN$26,Resultatinnlegging!N19,0) -> 0 | GX42: =IF(Resultatinnlegging!$B19=LAGSRESULTATER!$GN$26,Resultatinnlegging!O19,0) -> 0 | HB42: =IF(Resultatinnlegging!$B19=LAGSRESULTATER!$HA$26,Resultatinnlegging!F19,0) -> 0 | HC42: =IF(Resultatinnlegging!$B19=LAGSRESULTATER!$HA$26,Resultatinnlegging!G19,0) -> 0 | HD42: =IF(Resultatinnlegging!$B19=LAGSRESULTATER!$HA$26,Resultatinnlegging!H19,0) -> 0 | HE42: =IF(Resultatinnlegging!$B19=LAGSRESULTATER!$HA$26,Resultatinnlegging!I19,0) -> 0 | HF42: =IF(Resultatinnlegging!$B19=LAGSRESULTATER!$HA$26,Resultatinnlegging!J19,0) -> 0 | HG42: =IF(Resultatinnlegging!$B19=LAGSRESULTATER!$HA$26,Resultatinnlegging!K19,0) -> 0 | HH42: =IF(Resultatinnlegging!$B19=LAGSRESULTATER!$HA$26,Resultatinnlegging!L19,0) -> 0 | HI42: =IF(Resultatinnlegging!$B19=LAGSRESULTATER!$HA$26,Resultatinnlegging!M19,0) -> 0 | HJ42: =IF(Resultatinnlegging!$B19=LAGSRESULTATER!$HA$26,Resultatinnlegging!N19,0) -> 0 | HK42: =IF(Resultatinnlegging!$B19=LAGSRESULTATER!$HA$26,Resultatinnlegging!O19,0) -> 0 | HO42: =IF(Resultatinnlegging!$B19=LAGSRESULTATER!$HN$26,Resultatinnlegging!F19,0) -> 0 | HP42: =IF(Resultatinnlegging!$B19=LAGSRESULTATER!$HN$26,Resultatinnlegging!G19,0) -> 0 | HQ42: =IF(Resultatinnlegging!$B19=LAGSRESULTATER!$HN$26,Resultatinnlegging!H19,0) -> 0 | HR42: =IF(Resultatinnlegging!$B19=LAGSRESULTATER!$HN$26,Resultatinnlegging!I19,0) -> 0 | HS42: =IF(Resultatinnlegging!$B19=LAGSRESULTATER!$HN$26,Resultatinnlegging!J19,0) -> 0 | HT42: =IF(Resultatinnlegging!$B19=LAGSRESULTATER!$HN$26,Resultatinnlegging!K19,0) -> 0 | HU42: =IF(Resultatinnlegging!$B19=LAGSRESULTATER!$HA$26,Resultatinnlegging!L19,0) -> 0 | HV42: =IF(Resultatinnlegging!$B19=LAGSRESULTATER!$HN$26,Resultatinnlegging!M19,0) -> 0 | HW42: =IF(Resultatinnlegging!$B19=LAGSRESULTATER!$HN$26,Resultatinnlegging!N19,0) -> 0 | HX42: =IF(Resultatinnlegging!$B19=LAGSRESULTATER!$HN$26,Resultatinnlegging!O19,0) -> 0 | IB42: =IF(Resultatinnlegging!$B19=LAGSRESULTATER!$IA$26,Resultatinnlegging!F19,0) -> 0 | IC42: =IF(Resultatinnlegging!$B19=LAGSRESULTATER!$IA$26,Resultatinnlegging!G19,0) -> 0 | ID42: =IF(Resultatinnlegging!$B19=LAGSRESULTATER!$IA$26,Resultatinnlegging!H19,0) -> 0 | IE42: =IF(Resultatinnlegging!$B19=LAGSRESULTATER!$IA$26,Resultatinnlegging!I19,0) -> 0 | IF42: =IF(Resultatinnlegging!$B19=LAGSRESULTATER!$IA$26,Resultatinnlegging!J19,0) -> 0 | IG42: =IF(Resultatinnlegging!$B19=LAGSRESULTATER!$IA$26,Resultatinnlegging!K19,0) -> 0 | IH42: =IF(Resultatinnlegging!$B19=LAGSRESULTATER!$IA$26,Resultatinnlegging!L19,0) -> 0 | II42: =IF(Resultatinnlegging!$B19=LAGSRESULTATER!$IA$26,Resultatinnlegging!M19,0) -> 0 | IJ42: =IF(Resultatinnlegging!$B19=LAGSRESULTATER!$IA$26,Resultatinnlegging!N19,0) -> 0 | IK42: =IF(Resultatinnlegging!$B19=LAGSRESULTATER!$IA$26,Resultatinnlegging!O19,0) -> 0
B43: =IF(Resultatinnlegging!$B20=LAGSRESULTATER!$A$26,Resultatinnlegging!F20,0) -> 0 | C43: =IF(Resultatinnlegging!$B20=LAGSRESULTATER!$A$26,Resultatinnlegging!G20,0) -> 0 | D43: =IF(Resultatinnlegging!$B20=LAGSRESULTATER!$A$26,Resultatinnlegging!H20,0) -> 0 | E43: =IF(Resultatinnlegging!$B20=LAGSRESULTATER!$A$26,Resultatinnlegging!I20,0) -> 0 | F43: =IF(Resultatinnlegging!$B20=LAGSRESULTATER!$A$26,Resultatinnlegging!J20,0) -> 0 | G43: =IF(Resultatinnlegging!$B20=LAGSRESULTATER!$A$26,Resultatinnlegging!K20,0) -> 0 | H43: =IF(Resultatinnlegging!$B20=LAGSRESULTATER!$A$26,Resultatinnlegging!L20,0) -> 0 | I43: =IF(Resultatinnlegging!$B20=LAGSRESULTATER!$A$26,Resultatinnlegging!M20,0) -> 0 | J43: =IF(Resultatinnlegging!$B20=LAGSRESULTATER!$A$26,Resultatinnlegging!N20,0) -> 0 | K43: =IF(Resultatinnlegging!$B20=LAGSRESULTATER!$A$26,Resultatinnlegging!O20,0) -> 0 | O43: =IF(Resultatinnlegging!$B20=LAGSRESULTATER!$N$26,Resultatinnlegging!F20,0) -> 0 | P43: =IF(Resultatinnlegging!$B20=LAGSRESULTATER!$N$26,Resultatinnlegging!G20,0) -> 0 | Q43: =IF(Resultatinnlegging!$B20=LAGSRESULTATER!$N$26,Resultatinnlegging!H20,0) -> 0 | R43: =IF(Resultatinnlegging!$B20=LAGSRESULTATER!$N$26,Resultatinnlegging!I20,0) -> 0 | S43: =IF(Resultatinnlegging!$B20=LAGSRESULTATER!$N$26,Resultatinnlegging!J20,0) -> 0 | T43: =IF(Resultatinnlegging!$B20=LAGSRESULTATER!$N$26,Resultatinnlegging!K20,0) -> 0 | U43: =IF(Resultatinnlegging!$B20=LAGSRESULTATER!$N$26,Resultatinnlegging!L20,0) -> 0 | V43: =IF(Resultatinnlegging!$B20=LAGSRESULTATER!$N$26,Resultatinnlegging!M20,0) -> 0 | W43: =IF(Resultatinnlegging!$B20=LAGSRESULTATER!$N$26,Resultatinnlegging!N20,0) -> 0 | X43: =IF(Resultatinnlegging!$B20=LAGSRESULTATER!$N$26,Resultatinnlegging!O20,0) -> 0 | AB43: =IF(Resultatinnlegging!$B15=LAGSRESULTATER!$AA$26,Resultatinnlegging!F15,0) -> 0 | AC43: =IF(Resultatinnlegging!$B20=LAGSRESULTATER!$AA$26,Resultatinnlegging!G20,0) -> 0 | AD43: =IF(Resultatinnlegging!$B20=LAGSRESULTATER!$AA$26,Resultatinnlegging!H20,0) -> 0 | AE43: =IF(Resultatinnlegging!$B20=LAGSRESULTATER!$AA$26,Resultatinnlegging!I20,0) -> 0 | AF43: =IF(Resultatinnlegging!$B20=LAGSRESULTATER!$AA$26,Resultatinnlegging!J20,0) -> 0 | AG43: =IF(Resultatinnlegging!$B20=LAGSRESULTATER!$AA$26,Resultatinnlegging!K20,0) -> 0 | AH43: =IF(Resultatinnlegging!$B20=LAGSRESULTATER!$AA$26,Resultatinnlegging!L20,0) -> 0 | AI43: =IF(Resultatinnlegging!$B20=LAGSRESULTATER!$AA$26,Resultatinnlegging!M20,0) -> 0 | AJ43: =IF(Resultatinnlegging!$B20=LAGSRESULTATER!$AA$26,Resultatinnlegging!N20,0) -> 0 | AK43: =IF(Resultatinnlegging!$B20=LAGSRESULTATER!$AA$26,Resultatinnlegging!O20,0) -> 0 | AO43: =IF(Resultatinnlegging!$B13=LAGSRESULTATER!$AN$26,Resultatinnlegging!F13,0) -> 0 | AP43: =IF(Resultatinnlegging!$B20=LAGSRESULTATER!$AN$26,Resultatinnlegging!G20,0) -> 0 | AQ43: =IF(Resultatinnlegging!$B20=LAGSRESULTATER!$AN$26,Resultatinnlegging!H20,0) -> 0 | AR43: =IF(Resultatinnlegging!$B20=LAGSRESULTATER!$AN$26,Resultatinnlegging!I20,0) -> 0 | AS43: =IF(Resultatinnlegging!$B20=LAGSRESULTATER!$AN$26,Resultatinnlegging!J20,0) -> 0 | AT43: =IF(Resultatinnlegging!$B20=LAGSRESULTATER!$AN$26,Resultatinnlegging!K20,0) -> 0 | AU43: =IF(Resultatinnlegging!$B20=LAGSRESULTATER!$AN$26,Resultatinnlegging!L20,0) -> 0 | AV43: =IF(Resultatinnlegging!$B20=LAGSRESULTATER!$AN$26,Resultatinnlegging!M20,0) -> 0 | AW43: =IF(Resultatinnlegging!$B20=LAGSRESULTATER!$AN$26,Resultatinnlegging!N20,0) -> 0 | AX43: =IF(Resultatinnlegging!$B20=LAGSRESULTATER!$AN$26,Resultatinnlegging!O20,0) -> 0 | BB43: =IF(Resultatinnlegging!$B13=LAGSRESULTATER!$BA$26,Resultatinnlegging!F13,0) -> 0 | BC43: =IF(Resultatinnlegging!$B20=LAGSRESULTATER!$BA$26,Resultatinnlegging!G20,0) -> 0 | BD43: =IF(Resultatinnlegging!$B20=LAGSRESULTATER!$BA$26,Resultatinnlegging!H20,0) -> 0 | BE43: =IF(Resultatinnlegging!$B20=LAGSRESULTATER!$BA$26,Resultatinnlegging!I20,0) -> 0 | BF43: =IF(Resultatinnlegging!$B20=LAGSRESULTATER!$BA$26,Resultatinnlegging!J20,0) -> 0 | BG43: =IF(Resultatinnlegging!$B20=LAGSRESULTATER!$BA$26,Resultatinnlegging!K20,0) -> 0 | BH43: =IF(Resultatinnlegging!$B20=LAGSRESULTATER!$BA$26,Resultatinnlegging!L20,0) -> 0 | BI43: =IF(Resultatinnlegging!$B20=LAGSRESULTATER!$BA$26,Resultatinnlegging!M20,0) -> 0 | BJ43: =IF(Resultatinnlegging!$B20=LAGSRESULTATER!$BA$26,Resultatinnlegging!N20,0) -> 0 | BK43: =IF(Resultatinnlegging!$B20=LAGSRESULTATER!$BA$26,Resultatinnlegging!O20,0) -> 0 | BO43: =IF(Resultatinnlegging!$B19=LAGSRESULTATER!$BN$26,Resultatinnlegging!F19,0) -> 0 | BP43: =IF(Resultatinnlegging!$B20=LAGSRESULTATER!$BN$26,Resultatinnlegging!G20,0) -> 0 | BQ43: =IF(Resultatinnlegging!$B20=LAGSRESULTATER!$BN$26,Resultatinnlegging!H20,0) -> 0 | BR43: =IF(Resultatinnlegging!$B20=LAGSRESULTATER!$BN$26,Resultatinnlegging!I20,0) -> 0 | BS43: =IF(Resultatinnlegging!$B20=LAGSRESULTATER!$BN$26,Resultatinnlegging!J20,0) -> 0 | BT43: =IF(Resultatinnlegging!$B20=LAGSRESULTATER!$BN$26,Resultatinnlegging!K20,0) -> 0 | BU43: =IF(Resultatinnlegging!$B20=LAGSRESULTATER!$BN$26,Resultatinnlegging!L20,0) -> 0 | BV43: =IF(Resultatinnlegging!$B20=LAGSRESULTATER!$BN$26,Resultatinnlegging!M20,0) -> 0 | BW43: =IF(Resultatinnlegging!$B20=LAGSRESULTATER!$BN$26,Resultatinnlegging!N20,0) -> 0 | BX43: =IF(Resultatinnlegging!$B20=LAGSRESULTATER!$BN$26,Resultatinnlegging!O20,0) -> 0 | CB43: =IF(Resultatinnlegging!$B14=LAGSRESULTATER!$CA$26,Resultatinnlegging!F14,0) -> 0 | CC43: =IF(Resultatinnlegging!$B20=LAGSRESULTATER!$CA$26,Resultatinnlegging!G20,0) -> 0 | CD43: =IF(Resultatinnlegging!$B20=LAGSRESULTATER!$CA$26,Resultatinnlegging!H20,0) -> 0 | CE43: =IF(Resultatinnlegging!$B20=LAGSRESULTATER!$CA$26,Resultatinnlegging!I20,0) -> 0 | CF43: =IF(Resultatinnlegging!$B20=LAGSRESULTATER!$CA$26,Resultatinnlegging!J20,0) -> 0 | CG43: =IF(Resultatinnlegging!$B20=LAGSRESULTATER!$CA$26,Resultatinnlegging!K20,0) -> 0 | CH43: =IF(Resultatinnlegging!$B20=LAGSRESULTATER!$CA$26,Resultatinnlegging!L20,0) -> 0 | CI43: =IF(Resultatinnlegging!$B20=LAGSRESULTATER!$CA$26,Resultatinnlegging!M20,0) -> 0 | CJ43: =IF(Resultatinnlegging!$B20=LAGSRESULTATER!$CA$26,Resultatinnlegging!N20,0) -> 0 | CK43: =IF(Resultatinnlegging!$B20=LAGSRESULTATER!$CA$26,Resultatinnlegging!O20,0) -> 0 | CO43: =IF(Resultatinnlegging!$B15=LAGSRESULTATER!$CN$26,Resultatinnlegging!F15,0) -> 0 | CP43: =IF(Resultatinnlegging!$B20=LAGSRESULTATER!$CN$26,Resultatinnlegging!G20,0) -> 0 | CQ43: =IF(Resultatinnlegging!$B20=LAGSRESULTATER!$CN$26,Resultatinnlegging!H20,0) -> 0 | CR43: =IF(Resultatinnlegging!$B20=LAGSRESULTATER!$CN$26,Resultatinnlegging!I20,0) -> 0 | CS43: =IF(Resultatinnlegging!$B20=LAGSRESULTATER!$CN$26,Resultatinnlegging!J20,0) -> 0 | CT43: =IF(Resultatinnlegging!$B20=LAGSRESULTATER!$CN$26,Resultatinnlegging!K20,0) -> 0 | CU43: =IF(Resultatinnlegging!$B20=LAGSRESULTATER!$CN$26,Resultatinnlegging!L20,0) -> 0 | CV43: =IF(Resultatinnlegging!$B20=LAGSRESULTATER!$CN$26,Resultatinnlegging!M20,0) -> 0 | CW43: =IF(Resultatinnlegging!$B20=LAGSRESULTATER!$CN$26,Resultatinnlegging!N20,0) -> 0 | CX43: =IF(Resultatinnlegging!$B20=LAGSRESULTATER!$CN$26,Resultatinnlegging!O20,0) -> 0 | DB43: =IF(Resultatinnlegging!$B20=LAGSRESULTATER!$DA$26,Resultatinnlegging!F20,0) -> 0 | DC43: =IF(Resultatinnlegging!$B20=LAGSRESULTATER!$DA$26,Resultatinnlegging!G20,0) -> 0 | DD43: =IF(Resultatinnlegging!$B20=LAGSRESULTATER!$DA$26,Resultatinnlegging!H20,0) -> 0 | DE43: =IF(Resultatinnlegging!$B20=LAGSRESULTATER!$DA$26,Resultatinnlegging!I20,0) -> 0 | DF43: =IF(Resultatinnlegging!$B20=LAGSRESULTATER!$DA$26,Resultatinnlegging!J20,0) -> 0 | DG43: =IF(Resultatinnlegging!$B20=LAGSRESULTATER!$DA$26,Resultatinnlegging!K20,0) -> 0 | DH43: =IF(Resultatinnlegging!$B20=LAGSRESULTATER!$DA$26,Resultatinnlegging!L20,0) -> 0 | DI43: =IF(Resultatinnlegging!$B20=LAGSRESULTATER!$DA$26,Resultatinnlegging!M20,0) -> 0 | DJ43: =IF(Resultatinnlegging!$B20=LAGSRESULTATER!$DA$26,Resultatinnlegging!N20,0) -> 0 | DK43: =IF(Resultatinnlegging!$B20=LAGSRESULTATER!$DA$26,Resultatinnlegging!O20,0) -> 0 | DO43: =IF(Resultatinnlegging!$B20=LAGSRESULTATER!$DN$26,Resultatinnlegging!F20,0) -> 0 | DP43: =IF(Resultatinnlegging!$B20=LAGSRESULTATER!$DN$26,Resultatinnlegging!G20,0) -> 0 | DQ43: =IF(Resultatinnlegging!$B20=LAGSRESULTATER!$DN$26,Resultatinnlegging!H20,0) -> 0 | DR43: =IF(Resultatinnlegging!$B20=LAGSRESULTATER!$DN$26,Resultatinnlegging!I20,0) -> 0 | DS43: =IF(Resultatinnlegging!$B20=LAGSRESULTATER!$DN$26,Resultatinnlegging!J20,0) -> 0 | DT43: =IF(Resultatinnlegging!$B20=LAGSRESULTATER!$DN$26,Resultatinnlegging!K20,0) -> 0 | DU43: =IF(Resultatinnlegging!$B20=LAGSRESULTATER!$DN$26,Resultatinnlegging!L20,0) -> 0 | DV43: =IF(Resultatinnlegging!$B20=LAGSRESULTATER!$DN$26,Resultatinnlegging!M20,0) -> 0 | DW43: =IF(Resultatinnlegging!$B20=LAGSRESULTATER!$DN$26,Resultatinnlegging!N20,0) -> 0 | DX43: =IF(Resultatinnlegging!$B20=LAGSRESULTATER!$DN$26,Resultatinnlegging!O20,0) -> 0 | EB43: =IF(Resultatinnlegging!$B20=LAGSRESULTATER!$EA$26,Resultatinnlegging!F20,0) -> 0 | EC43: =IF(Resultatinnlegging!$B20=LAGSRESULTATER!$EA$26,Resultatinnlegging!G20,0) -> 0 | ED43: =IF(Resultatinnlegging!$B20=LAGSRESULTATER!$EA$26,Resultatinnlegging!H20,0) -> 0 | EE43: =IF(Resultatinnlegging!$B20=LAGSRESULTATER!$EA$26,Resultatinnlegging!I20,0) -> 0 | EF43: =IF(Resultatinnlegging!$B20=LAGSRESULTATER!$EA$26,Resultatinnlegging!J20,0) -> 0 | EG43: =IF(Resultatinnlegging!$B20=LAGSRESULTATER!$EA$26,Resultatinnlegging!K20,0) -> 0 | EH43: =IF(Resultatinnlegging!$B20=LAGSRESULTATER!$EA$26,Resultatinnlegging!L20,0) -> 0 | EI43: =IF(Resultatinnlegging!$B20=LAGSRESULTATER!$EA$26,Resultatinnlegging!M20,0) -> 0 | EJ43: =IF(Resultatinnlegging!$B20=LAGSRESULTATER!$EA$26,Resultatinnlegging!N20,0) -> 0 | EK43: =IF(Resultatinnlegging!$B20=LAGSRESULTATER!$EA$26,Resultatinnlegging!O20,0) -> 0 | EO43: =IF(Resultatinnlegging!$B20=LAGSRESULTATER!$EN$26,Resultatinnlegging!F20,0) -> 0 | EP43: =IF(Resultatinnlegging!$B20=LAGSRESULTATER!$EN$26,Resultatinnlegging!G20,0) -> 0 | EQ43: =IF(Resultatinnlegging!$B20=LAGSRESULTATER!$EN$26,Resultatinnlegging!H20,0) -> 0 | ER43: =IF(Resultatinnlegging!$B20=LAGSRESULTATER!$EN$26,Resultatinnlegging!I20,0) -> 0 | ES43: =IF(Resultatinnlegging!$B20=LAGSRESULTATER!$EN$26,Resultatinnlegging!J20,0) -> 0 | ET43: =IF(Resultatinnlegging!$B20=LAGSRESULTATER!$EN$26,Resultatinnlegging!K20,0) -> 0 | EU43: =IF(Resultatinnlegging!$B20=LAGSRESULTATER!$EN$26,Resultatinnlegging!L20,0) -> 0 | EV43: =IF(Resultatinnlegging!$B20=LAGSRESULTATER!$EN$26,Resultatinnlegging!M20,0) -> 0 | EW43: =IF(Resultatinnlegging!$B20=LAGSRESULTATER!$EN$26,Resultatinnlegging!N20,0) -> 0 | EX43: =IF(Resultatinnlegging!$B20=LAGSRESULTATER!$EN$26,Resultatinnlegging!O20,0) -> 0 | FB43: =IF(Resultatinnlegging!$B20=LAGSRESULTATER!$FA$26,Resultatinnlegging!F20,0) -> 0 | FC43: =IF(Resultatinnlegging!$B20=LAGSRESULTATER!$FA$26,Resultatinnlegging!G20,0) -> 0 | FD43: =IF(Resultatinnlegging!$B20=LAGSRESULTATER!$FA$26,Resultatinnlegging!H20,0) -> 0 | FE43: =IF(Resultatinnlegging!$B20=LAGSRESULTATER!$FA$26,Resultatinnlegging!I20,0) -> 0 | FF43: =IF(Resultatinnlegging!$B20=LAGSRESULTATER!$FA$26,Resultatinnlegging!J20,0) -> 0 | FG43: =IF(Resultatinnlegging!$B20=LAGSRESULTATER!$FA$26,Resultatinnlegging!K20,0) -> 0 | FH43: =IF(Resultatinnlegging!$B20=LAGSRESULTATER!$FA$26,Resultatinnlegging!L20,0) -> 0 | FI43: =IF(Resultatinnlegging!$B20=LAGSRESULTATER!$FA$26,Resultatinnlegging!M20,0) -> 0 | FJ43: =IF(Resultatinnlegging!$B20=LAGSRESULTATER!$FA$26,Resultatinnlegging!N20,0) -> 0 | FK43: =IF(Resultatinnlegging!$B20=LAGSRESULTATER!$FA$26,Resultatinnlegging!O20,0) -> 0 | FO43: =IF(Resultatinnlegging!$B20=LAGSRESULTATER!$FN$26,Resultatinnlegging!F20,0) -> 0 | FP43: =IF(Resultatinnlegging!$B20=LAGSRESULTATER!$FN$26,Resultatinnlegging!G20,0) -> 0 | FQ43: =IF(Resultatinnlegging!$B20=LAGSRESULTATER!$FN$26,Resultatinnlegging!H20,0) -> 0 | FR43: =IF(Resultatinnlegging!$B20=LAGSRESULTATER!$FN$26,Resultatinnlegging!I20,0) -> 0 | FS43: =IF(Resultatinnlegging!$B20=LAGSRESULTATER!$FN$26,Resultatinnlegging!J20,0) -> 0 | FT43: =IF(Resultatinnlegging!$B20=LAGSRESULTATER!$FN$26,Resultatinnlegging!K20,0) -> 0 | FU43: =IF(Resultatinnlegging!$B20=LAGSRESULTATER!$FN$26,Resultatinnlegging!L20,0) -> 0 | FV43: =IF(Resultatinnlegging!$B20=LAGSRESULTATER!$FN$26,Resultatinnlegging!M20,0) -> 0 | FW43: =IF(Resultatinnlegging!$B20=LAGSRESULTATER!$FN$26,Resultatinnlegging!N20,0) -> 0 | FX43: =IF(Resultatinnlegging!$B20=LAGSRESULTATER!$FN$26,Resultatinnlegging!O20,0) -> 0 | GA43: 14 | GB43: =IF(Resultatinnlegging!$B20=LAGSRESULTATER!$GA$26,Resultatinnlegging!F20,0) -> 0 | GC43: =IF(Resultatinnlegging!$B20=LAGSRESULTATER!$GA$26,Resultatinnlegging!G20,0) -> 0 | GD43: =IF(Resultatinnlegging!$B20=LAGSRESULTATER!$GA$26,Resultatinnlegging!H20,0) -> 0 | GE43: =IF(Resultatinnlegging!$B20=LAGSRESULTATER!$GA$26,Resultatinnlegging!I20,0) -> 0 | GF43: =IF(Resultatinnlegging!$B20=LAGSRESULTATER!$GA$26,Resultatinnlegging!J20,0) -> 0 | GG43: =IF(Resultatinnlegging!$B20=LAGSRESULTATER!$GA$26,Resultatinnlegging!K20,0) -> 0 | GH43: =IF(Resultatinnlegging!$B20=LAGSRESULTATER!$GA$26,Resultatinnlegging!L20,0) -> 0 | GI43: =IF(Resultatinnlegging!$B20=LAGSRESULTATER!$GA$26,Resultatinnlegging!M20,0) -> 0 | GJ43: =IF(Resultatinnlegging!$B20=LAGSRESULTATER!$GA$26,Resultatinnlegging!N20,0) -> 0 | GK43: =IF(Resultatinnlegging!$B20=LAGSRESULTATER!$GA$26,Resultatinnlegging!O20,0) -> 0 | GN43: 12 | GO43: =IF(Resultatinnlegging!$B20=LAGSRESULTATER!$GN$26,Resultatinnlegging!F20,0) -> 0 | GP43: =IF(Resultatinnlegging!$B20=LAGSRESULTATER!$GN$26,Resultatinnlegging!G20,0) -> 0 | GQ43: =IF(Resultatinnlegging!$B20=LAGSRESULTATER!$GN$26,Resultatinnlegging!H20,0) -> 0 | GR43: =IF(Resultatinnlegging!$B20=LAGSRESULTATER!$GN$26,Resultatinnlegging!I20,0) -> 0 | GS43: =IF(Resultatinnlegging!$B20=LAGSRESULTATER!$GN$26,Resultatinnlegging!J20,0) -> 0 | GT43: =IF(Resultatinnlegging!$B20=LAGSRESULTATER!$GN$26,Resultatinnlegging!K20,0) -> 0 | GU43: =IF(Resultatinnlegging!$B20=LAGSRESULTATER!$GN$26,Resultatinnlegging!L20,0) -> 0 | GV43: =IF(Resultatinnlegging!$B20=LAGSRESULTATER!$GN$26,Resultatinnlegging!M20,0) -> 0 | GW43: =IF(Resultatinnlegging!$B20=LAGSRESULTATER!$GN$26,Resultatinnlegging!N20,0) -> 0 | GX43: =IF(Resultatinnlegging!$B20=LAGSRESULTATER!$GN$26,Resultatinnlegging!O20,0) -> 0 | HB43: =IF(Resultatinnlegging!$B20=LAGSRESULTATER!$HA$26,Resultatinnlegging!F20,0) -> 0 | HC43: =IF(Resultatinnlegging!$B20=LAGSRESULTATER!$HA$26,Resultatinnlegging!G20,0) -> 0 | HD43: =IF(Resultatinnlegging!$B20=LAGSRESULTATER!$HA$26,Resultatinnlegging!H20,0) -> 0 | HE43: =IF(Resultatinnlegging!$B20=LAGSRESULTATER!$HA$26,Resultatinnlegging!I20,0) -> 0 | HF43: =IF(Resultatinnlegging!$B20=LAGSRESULTATER!$HA$26,Resultatinnlegging!J20,0) -> 0 | HG43: =IF(Resultatinnlegging!$B20=LAGSRESULTATER!$HA$26,Resultatinnlegging!K20,0) -> 0 | HH43: =IF(Resultatinnlegging!$B20=LAGSRESULTATER!$HA$26,Resultatinnlegging!L20,0) -> 0 | HI43: =IF(Resultatinnlegging!$B20=LAGSRESULTATER!$HA$26,Resultatinnlegging!M20,0) -> 0 | HJ43: =IF(Resultatinnlegging!$B20=LAGSRESULTATER!$HA$26,Resultatinnlegging!N20,0) -> 0 | HK43: =IF(Resultatinnlegging!$B20=LAGSRESULTATER!$HA$26,Resultatinnlegging!O20,0) -> 0 | HO43: =IF(Resultatinnlegging!$B20=LAGSRESULTATER!$HN$26,Resultatinnlegging!F20,0) -> 0 | HP43: =IF(Resultatinnlegging!$B20=LAGSRESULTATER!$HN$26,Resultatinnlegging!G20,0) -> 0 | HQ43: =IF(Resultatinnlegging!$B20=LAGSRESULTATER!$HN$26,Resultatinnlegging!H20,0) -> 0 | HR43: =IF(Resultatinnlegging!$B20=LAGSRESULTATER!$HN$26,Resultatinnlegging!I20,0) -> 0 | HS43: =IF(Resultatinnlegging!$B20=LAGSRESULTATER!$HN$26,Resultatinnlegging!J20,0) -> 0 | HT43: =IF(Resultatinnlegging!$B20=LAGSRESULTATER!$HN$26,Resultatinnlegging!K20,0) -> 0 | HU43: =IF(Resultatinnlegging!$B20=LAGSRESULTATER!$HA$26,Resultatinnlegging!L20,0) -> 0 | HV43: =IF(Resultatinnlegging!$B20=LAGSRESULTATER!$HN$26,Resultatinnlegging!M20,0) -> 0 | HW43: =IF(Resultatinnlegging!$B20=LAGSRESULTATER!$HN$26,Resultatinnlegging!N20,0) -> 0 | HX43: =IF(Resultatinnlegging!$B20=LAGSRESULTATER!$HN$26,Resultatinnlegging!O20,0) -> 0 | IB43: =IF(Resultatinnlegging!$B20=LAGSRESULTATER!$IA$26,Resultatinnlegging!F20,0) -> 0 | IC43: =IF(Resultatinnlegging!$B20=LAGSRESULTATER!$IA$26,Resultatinnlegging!G20,0) -> 0 | ID43: =IF(Resultatinnlegging!$B20=LAGSRESULTATER!$IA$26,Resultatinnlegging!H20,0) -> 0 | IE43: =IF(Resultatinnlegging!$B20=LAGSRESULTATER!$IA$26,Resultatinnlegging!I20,0) -> 0 | IF43: =IF(Resultatinnlegging!$B20=LAGSRESULTATER!$IA$26,Resultatinnlegging!J20,0) -> 0 | IG43: =IF(Resultatinnlegging!$B20=LAGSRESULTATER!$IA$26,Resultatinnlegging!K20,0) -> 0 | IH43: =IF(Resultatinnlegging!$B20=LAGSRESULTATER!$IA$26,Resultatinnlegging!L20,0) -> 0 | II43: =IF(Resultatinnlegging!$B20=LAGSRESULTATER!$IA$26,Resultatinnlegging!M20,0) -> 0 | IJ43: =IF(Resultatinnlegging!$B20=LAGSRESULTATER!$IA$26,Resultatinnlegging!N20,0) -> 0 | IK43: =IF(Resultatinnlegging!$B20=LAGSRESULTATER!$IA$26,Resultatinnlegging!O20,0) -> 0
B44: =IF(Resultatinnlegging!$B21=LAGSRESULTATER!$A$26,Resultatinnlegging!F21,0) -> 0 | C44: =IF(Resultatinnlegging!$B21=LAGSRESULTATER!$A$26,Resultatinnlegging!G21,0) -> 0 | D44: =IF(Resultatinnlegging!$B21=LAGSRESULTATER!$A$26,Resultatinnlegging!H21,0) -> 0 | E44: =IF(Resultatinnlegging!$B21=LAGSRESULTATER!$A$26,Resultatinnlegging!I21,0) -> 0 | F44: =IF(Resultatinnlegging!$B21=LAGSRESULTATER!$A$26,Resultatinnlegging!J21,0) -> 0 | G44: =IF(Resultatinnlegging!$B21=LAGSRESULTATER!$A$26,Resultatinnlegging!K21,0) -> 0 | H44: =IF(Resultatinnlegging!$B21=LAGSRESULTATER!$A$26,Resultatinnlegging!L21,0) -> 0 | I44: =IF(Resultatinnlegging!$B21=LAGSRESULTATER!$A$26,Resultatinnlegging!M21,0) -> 0 | J44: =IF(Resultatinnlegging!$B21=LAGSRESULTATER!$A$26,Resultatinnlegging!N21,0) -> 0 | K44: =IF(Resultatinnlegging!$B21=LAGSRESULTATER!$A$26,Resultatinnlegging!O21,0) -> 0 | O44: =IF(Resultatinnlegging!$B21=LAGSRESULTATER!$N$26,Resultatinnlegging!F21,0) -> 0 | P44: =IF(Resultatinnlegging!$B21=LAGSRESULTATER!$N$26,Resultatinnlegging!G21,0) -> 0 | Q44: =IF(Resultatinnlegging!$B21=LAGSRESULTATER!$N$26,Resultatinnlegging!H21,0) -> 0 | R44: =IF(Resultatinnlegging!$B21=LAGSRESULTATER!$N$26,Resultatinnlegging!I21,0) -> 0 | S44: =IF(Resultatinnlegging!$B21=LAGSRESULTATER!$N$26,Resultatinnlegging!J21,0) -> 0 | T44: =IF(Resultatinnlegging!$B21=LAGSRESULTATER!$N$26,Resultatinnlegging!K21,0) -> 0 | U44: =IF(Resultatinnlegging!$B21=LAGSRESULTATER!$N$26,Resultatinnlegging!L21,0) -> 0 | V44: =IF(Resultatinnlegging!$B21=LAGSRESULTATER!$N$26,Resultatinnlegging!M21,0) -> 0 | W44: =IF(Resultatinnlegging!$B21=LAGSRESULTATER!$N$26,Resultatinnlegging!N21,0) -> 0 | X44: =IF(Resultatinnlegging!$B21=LAGSRESULTATER!$N$26,Resultatinnlegging!O21,0) -> 0 | AB44: =IF(Resultatinnlegging!$B19=LAGSRESULTATER!$AA$26,Resultatinnlegging!F19,0) -> 0 | AC44: =IF(Resultatinnlegging!$B21=LAGSRESULTATER!$AA$26,Resultatinnlegging!G21,0) -> 0 | AD44: =IF(Resultatinnlegging!$B21=LAGSRESULTATER!$AA$26,Resultatinnlegging!H21,0) -> 0 | AE44: =IF(Resultatinnlegging!$B21=LAGSRESULTATER!$AA$26,Resultatinnlegging!I21,0) -> 0 | AF44: =IF(Resultatinnlegging!$B21=LAGSRESULTATER!$AA$26,Resultatinnlegging!J21,0) -> 0 | AG44: =IF(Resultatinnlegging!$B21=LAGSRESULTATER!$AA$26,Resultatinnlegging!K21,0) -> 0 | AH44: =IF(Resultatinnlegging!$B21=LAGSRESULTATER!$AA$26,Resultatinnlegging!L21,0) -> 0 | AI44: =IF(Resultatinnlegging!$B21=LAGSRESULTATER!$AA$26,Resultatinnlegging!M21,0) -> 0 | AJ44: =IF(Resultatinnlegging!$B21=LAGSRESULTATER!$AA$26,Resultatinnlegging!N21,0) -> 0 | AK44: =IF(Resultatinnlegging!$B21=LAGSRESULTATER!$AA$26,Resultatinnlegging!O21,0) -> 0 | AO44: =IF(Resultatinnlegging!$B14=LAGSRESULTATER!$AN$26,Resultatinnlegging!F14,0) -> 0 | AP44: =IF(Resultatinnlegging!$B21=LAGSRESULTATER!$AN$26,Resultatinnlegging!G21,0) -> 0 | AQ44: =IF(Resultatinnlegging!$B21=LAGSRESULTATER!$AN$26,Resultatinnlegging!H21,0) -> 0 | AR44: =IF(Resultatinnlegging!$B21=LAGSRESULTATER!$AN$26,Resultatinnlegging!I21,0) -> 0 | AS44: =IF(Resultatinnlegging!$B21=LAGSRESULTATER!$AN$26,Resultatinnlegging!J21,0) -> 0 | AT44: =IF(Resultatinnlegging!$B21=LAGSRESULTATER!$AN$26,Resultatinnlegging!K21,0) -> 0 | AU44: =IF(Resultatinnlegging!$B21=LAGSRESULTATER!$AN$26,Resultatinnlegging!L21,0) -> 0 | AV44: =IF(Resultatinnlegging!$B21=LAGSRESULTATER!$AN$26,Resultatinnlegging!M21,0) -> 0 | AW44: =IF(Resultatinnlegging!$B21=LAGSRESULTATER!$AN$26,Resultatinnlegging!N21,0) -> 0 | AX44: =IF(Resultatinnlegging!$B21=LAGSRESULTATER!$AN$26,Resultatinnlegging!O21,0) -> 0 | BB44: =IF(Resultatinnlegging!$B14=LAGSRESULTATER!$BA$26,Resultatinnlegging!F14,0) -> 0 | BC44: =IF(Resultatinnlegging!$B21=LAGSRESULTATER!$BA$26,Resultatinnlegging!G21,0) -> 0 | BD44: =IF(Resultatinnlegging!$B21=LAGSRESULTATER!$BA$26,Resultatinnlegging!H21,0) -> 0 | BE44: =IF(Resultatinnlegging!$B21=LAGSRESULTATER!$BA$26,Resultatinnlegging!I21,0) -> 0 | BF44: =IF(Resultatinnlegging!$B21=LAGSRESULTATER!$BA$26,Resultatinnlegging!J21,0) -> 0 | BG44: =IF(Resultatinnlegging!$B21=LAGSRESULTATER!$BA$26,Resultatinnlegging!K21,0) -> 0 | BH44: =IF(Resultatinnlegging!$B21=LAGSRESULTATER!$BA$26,Resultatinnlegging!L21,0) -> 0 | BI44: =IF(Resultatinnlegging!$B21=LAGSRESULTATER!$BA$26,Resultatinnlegging!M21,0) -> 0 | BJ44: =IF(Resultatinnlegging!$B21=LAGSRESULTATER!$BA$26,Resultatinnlegging!N21,0) -> 0 | BK44: =IF(Resultatinnlegging!$B21=LAGSRESULTATER!$BA$26,Resultatinnlegging!O21,0) -> 0 | BO44: =IF(Resultatinnlegging!$B20=LAGSRESULTATER!$BN$26,Resultatinnlegging!F20,0) -> 0 | BP44: =IF(Resultatinnlegging!$B21=LAGSRESULTATER!$BN$26,Resultatinnlegging!G21,0) -> 0 | BQ44: =IF(Resultatinnlegging!$B21=LAGSRESULTATER!$BN$26,Resultatinnlegging!H21,0) -> 0 | BR44: =IF(Resultatinnlegging!$B21=LAGSRESULTATER!$BN$26,Resultatinnlegging!I21,0) -> 0 | BS44: =IF(Resultatinnlegging!$B21=LAGSRESULTATER!$BN$26,Resultatinnlegging!J21,0) -> 0 | BT44: =IF(Resultatinnlegging!$B21=LAGSRESULTATER!$BN$26,Resultatinnlegging!K21,0) -> 0 | BU44: =IF(Resultatinnlegging!$B21=LAGSRESULTATER!$BN$26,Resultatinnlegging!L21,0) -> 0 | BV44: =IF(Resultatinnlegging!$B21=LAGSRESULTATER!$BN$26,Resultatinnlegging!M21,0) -> 0 | BW44: =IF(Resultatinnlegging!$B21=LAGSRESULTATER!$BN$26,Resultatinnlegging!N21,0) -> 0 | BX44: =IF(Resultatinnlegging!$B21=LAGSRESULTATER!$BN$26,Resultatinnlegging!O21,0) -> 0 | CB44: =IF(Resultatinnlegging!$B15=LAGSRESULTATER!$CA$26,Resultatinnlegging!F15,0) -> 0 | CC44: =IF(Resultatinnlegging!$B21=LAGSRESULTATER!$CA$26,Resultatinnlegging!G21,0) -> 0 | CD44: =IF(Resultatinnlegging!$B21=LAGSRESULTATER!$CA$26,Resultatinnlegging!H21,0) -> 0 | CE44: =IF(Resultatinnlegging!$B21=LAGSRESULTATER!$CA$26,Resultatinnlegging!I21,0) -> 0 | CF44: =IF(Resultatinnlegging!$B21=LAGSRESULTATER!$CA$26,Resultatinnlegging!J21,0) -> 0 | CG44: =IF(Resultatinnlegging!$B21=LAGSRESULTATER!$CA$26,Resultatinnlegging!K21,0) -> 0 | CH44: =IF(Resultatinnlegging!$B21=LAGSRESULTATER!$CA$26,Resultatinnlegging!L21,0) -> 0 | CI44: =IF(Resultatinnlegging!$B21=LAGSRESULTATER!$CA$26,Resultatinnlegging!M21,0) -> 0 | CJ44: =IF(Resultatinnlegging!$B21=LAGSRESULTATER!$CA$26,Resultatinnlegging!N21,0) -> 0 | CK44: =IF(Resultatinnlegging!$B21=LAGSRESULTATER!$CA$26,Resultatinnlegging!O21,0) -> 0 | CO44: =IF(Resultatinnlegging!$B19=LAGSRESULTATER!$CN$26,Resultatinnlegging!F19,0) -> 0 | CP44: =IF(Resultatinnlegging!$B21=LAGSRESULTATER!$CN$26,Resultatinnlegging!G21,0) -> 0 | CQ44: =IF(Resultatinnlegging!$B21=LAGSRESULTATER!$CN$26,Resultatinnlegging!H21,0) -> 0 | CR44: =IF(Resultatinnlegging!$B21=LAGSRESULTATER!$CN$26,Resultatinnlegging!I21,0) -> 0 | CS44: =IF(Resultatinnlegging!$B21=LAGSRESULTATER!$CN$26,Resultatinnlegging!J21,0) -> 0 | CT44: =IF(Resultatinnlegging!$B21=LAGSRESULTATER!$CN$26,Resultatinnlegging!K21,0) -> 0 | CU44: =IF(Resultatinnlegging!$B21=LAGSRESULTATER!$CN$26,Resultatinnlegging!L21,0) -> 0 | CV44: =IF(Resultatinnlegging!$B21=LAGSRESULTATER!$CN$26,Resultatinnlegging!M21,0) -> 0 | CW44: =IF(Resultatinnlegging!$B21=LAGSRESULTATER!$CN$26,Resultatinnlegging!N21,0) -> 0 | CX44: =IF(Resultatinnlegging!$B21=LAGSRESULTATER!$CN$26,Resultatinnlegging!O21,0) -> 0 | DB44: =IF(Resultatinnlegging!$B21=LAGSRESULTATER!$DA$26,Resultatinnlegging!F21,0) -> 0 | DC44: =IF(Resultatinnlegging!$B21=LAGSRESULTATER!$DA$26,Resultatinnlegging!G21,0) -> 0 | DD44: =IF(Resultatinnlegging!$B21=LAGSRESULTATER!$DA$26,Resultatinnlegging!H21,0) -> 0 | DE44: =IF(Resultatinnlegging!$B21=LAGSRESULTATER!$DA$26,Resultatinnlegging!I21,0) -> 0 | DF44: =IF(Resultatinnlegging!$B21=LAGSRESULTATER!$DA$26,Resultatinnlegging!J21,0) -> 0 | DG44: =IF(Resultatinnlegging!$B21=LAGSRESULTATER!$DA$26,Resultatinnlegging!K21,0) -> 0 | DH44: =IF(Resultatinnlegging!$B21=LAGSRESULTATER!$DA$26,Resultatinnlegging!L21,0) -> 0 | DI44: =IF(Resultatinnlegging!$B21=LAGSRESULTATER!$DA$26,Resultatinnlegging!M21,0) -> 0 | DJ44: =IF(Resultatinnlegging!$B21=LAGSRESULTATER!$DA$26,Resultatinnlegging!N21,0) -> 0 | DK44: =IF(Resultatinnlegging!$B21=LAGSRESULTATER!$DA$26,Resultatinnlegging!O21,0) -> 0 | DO44: =IF(Resultatinnlegging!$B21=LAGSRESULTATER!$DN$26,Resultatinnlegging!F21,0) -> 0 | DP44: =IF(Resultatinnlegging!$B21=LAGSRESULTATER!$DN$26,Resultatinnlegging!G21,0) -> 0 | DQ44: =IF(Resultatinnlegging!$B21=LAGSRESULTATER!$DN$26,Resultatinnlegging!H21,0) -> 0 | DR44: =IF(Resultatinnlegging!$B21=LAGSRESULTATER!$DN$26,Resultatinnlegging!I21,0) -> 0 | DS44: =IF(Resultatinnlegging!$B21=LAGSRESULTATER!$DN$26,Resultatinnlegging!J21,0) -> 0 | DT44: =IF(Resultatinnlegging!$B21=LAGSRESULTATER!$DN$26,Resultatinnlegging!K21,0) -> 0 | DU44: =IF(Resultatinnlegging!$B21=LAGSRESULTATER!$DN$26,Resultatinnlegging!L21,0) -> 0 | DV44: =IF(Resultatinnlegging!$B21=LAGSRESULTATER!$DN$26,Resultatinnlegging!M21,0) -> 0 | DW44: =IF(Resultatinnlegging!$B21=LAGSRESULTATER!$DN$26,Resultatinnlegging!N21,0) -> 0 | DX44: =IF(Resultatinnlegging!$B21=LAGSRESULTATER!$DN$26,Resultatinnlegging!O21,0) -> 0 | EB44: =IF(Resultatinnlegging!$B21=LAGSRESULTATER!$EA$26,Resultatinnlegging!F21,0) -> 0 | EC44: =IF(Resultatinnlegging!$B21=LAGSRESULTATER!$EA$26,Resultatinnlegging!G21,0) -> 0 | ED44: =IF(Resultatinnlegging!$B21=LAGSRESULTATER!$EA$26,Resultatinnlegging!H21,0) -> 0 | EE44: =IF(Resultatinnlegging!$B21=LAGSRESULTATER!$EA$26,Resultatinnlegging!I21,0) -> 0 | EF44: =IF(Resultatinnlegging!$B21=LAGSRESULTATER!$EA$26,Resultatinnlegging!J21,0) -> 0 | EG44: =IF(Resultatinnlegging!$B21=LAGSRESULTATER!$EA$26,Resultatinnlegging!K21,0) -> 0 | EH44: =IF(Resultatinnlegging!$B21=LAGSRESULTATER!$EA$26,Resultatinnlegging!L21,0) -> 0 | EI44: =IF(Resultatinnlegging!$B21=LAGSRESULTATER!$EA$26,Resultatinnlegging!M21,0) -> 0 | EJ44: =IF(Resultatinnlegging!$B21=LAGSRESULTATER!$EA$26,Resultatinnlegging!N21,0) -> 0 | EK44: =IF(Resultatinnlegging!$B21=LAGSRESULTATER!$EA$26,Resultatinnlegging!O21,0) -> 0 | EO44: =IF(Resultatinnlegging!$B21=LAGSRESULTATER!$EN$26,Resultatinnlegging!F21,0) -> 0 | EP44: =IF(Resultatinnlegging!$B21=LAGSRESULTATER!$EN$26,Resultatinnlegging!G21,0) -> 0 | EQ44: =IF(Resultatinnlegging!$B21=LAGSRESULTATER!$EN$26,Resultatinnlegging!H21,0) -> 0 | ER44: =IF(Resultatinnlegging!$B21=LAGSRESULTATER!$EN$26,Resultatinnlegging!I21,0) -> 0 | ES44: =IF(Resultatinnlegging!$B21=LAGSRESULTATER!$EN$26,Resultatinnlegging!J21,0) -> 0 | ET44: =IF(Resultatinnlegging!$B21=LAGSRESULTATER!$EN$26,Resultatinnlegging!K21,0) -> 0 | EU44: =IF(Resultatinnlegging!$B21=LAGSRESULTATER!$EN$26,Resultatinnlegging!L21,0) -> 0 | EV44: =IF(Resultatinnlegging!$B21=LAGSRESULTATER!$EN$26,Resultatinnlegging!M21,0) -> 0 | EW44: =IF(Resultatinnlegging!$B21=LAGSRESULTATER!$EN$26,Resultatinnlegging!N21,0) -> 0 | EX44: =IF(Resultatinnlegging!$B21=LAGSRESULTATER!$EN$26,Resultatinnlegging!O21,0) -> 0 | FB44: =IF(Resultatinnlegging!$B21=LAGSRESULTATER!$FA$26,Resultatinnlegging!F21,0) -> 0 | FC44: =IF(Resultatinnlegging!$B21=LAGSRESULTATER!$FA$26,Resultatinnlegging!G21,0) -> 0 | FD44: =IF(Resultatinnlegging!$B21=LAGSRESULTATER!$FA$26,Resultatinnlegging!H21,0) -> 0 | FE44: =IF(Resultatinnlegging!$B21=LAGSRESULTATER!$FA$26,Resultatinnlegging!I21,0) -> 0 | FF44: =IF(Resultatinnlegging!$B21=LAGSRESULTATER!$FA$26,Resultatinnlegging!J21,0) -> 0 | FG44: =IF(Resultatinnlegging!$B21=LAGSRESULTATER!$FA$26,Resultatinnlegging!K21,0) -> 0 | FH44: =IF(Resultatinnlegging!$B21=LAGSRESULTATER!$FA$26,Resultatinnlegging!L21,0) -> 0 | FI44: =IF(Resultatinnlegging!$B21=LAGSRESULTATER!$FA$26,Resultatinnlegging!M21,0) -> 0 | FJ44: =IF(Resultatinnlegging!$B21=LAGSRESULTATER!$FA$26,Resultatinnlegging!N21,0) -> 0 | FK44: =IF(Resultatinnlegging!$B21=LAGSRESULTATER!$FA$26,Resultatinnlegging!O21,0) -> 0 | FO44: =IF(Resultatinnlegging!$B21=LAGSRESULTATER!$FN$26,Resultatinnlegging!F21,0) -> 0 | FP44: =IF(Resultatinnlegging!$B21=LAGSRESULTATER!$FN$26,Resultatinnlegging!G21,0) -> 0 | FQ44: =IF(Resultatinnlegging!$B21=LAGSRESULTATER!$FN$26,Resultatinnlegging!H21,0) -> 0 | FR44: =IF(Resultatinnlegging!$B21=LAGSRESULTATER!$FN$26,Resultatinnlegging!I21,0) -> 0 | FS44: =IF(Resultatinnlegging!$B21=LAGSRESULTATER!$FN$26,Resultatinnlegging!J21,0) -> 0 | FT44: =IF(Resultatinnlegging!$B21=LAGSRESULTATER!$FN$26,Resultatinnlegging!K21,0) -> 0 | FU44: =IF(Resultatinnlegging!$B21=LAGSRESULTATER!$FN$26,Resultatinnlegging!L21,0) -> 0 | FV44: =IF(Resultatinnlegging!$B21=LAGSRESULTATER!$FN$26,Resultatinnlegging!M21,0) -> 0 | FW44: =IF(Resultatinnlegging!$B21=LAGSRESULTATER!$FN$26,Resultatinnlegging!N21,0) -> 0 | FX44: =IF(Resultatinnlegging!$B21=LAGSRESULTATER!$FN$26,Resultatinnlegging!O21,0) -> 0 | GA44: 15 | GB44: =IF(Resultatinnlegging!$B21=LAGSRESULTATER!$GA$26,Resultatinnlegging!F21,0) -> 0 | GC44: =IF(Resultatinnlegging!$B21=LAGSRESULTATER!$GA$26,Resultatinnlegging!G21,0) -> 0 | GD44: =IF(Resultatinnlegging!$B21=LAGSRESULTATER!$GA$26,Resultatinnlegging!H21,0) -> 0 | GE44: =IF(Resultatinnlegging!$B21=LAGSRESULTATER!$GA$26,Resultatinnlegging!I21,0) -> 0 | GF44: =IF(Resultatinnlegging!$B21=LAGSRESULTATER!$GA$26,Resultatinnlegging!J21,0) -> 0 | GG44: =IF(Resultatinnlegging!$B21=LAGSRESULTATER!$GA$26,Resultatinnlegging!K21,0) -> 0 | GH44: =IF(Resultatinnlegging!$B21=LAGSRESULTATER!$GA$26,Resultatinnlegging!L21,0) -> 0 | GI44: =IF(Resultatinnlegging!$B21=LAGSRESULTATER!$GA$26,Resultatinnlegging!M21,0) -> 0 | GJ44: =IF(Resultatinnlegging!$B21=LAGSRESULTATER!$GA$26,Resultatinnlegging!N21,0) -> 0 | GK44: =IF(Resultatinnlegging!$B21=LAGSRESULTATER!$GA$26,Resultatinnlegging!O21,0) -> 0 | GN44: 13 | GO44: =IF(Resultatinnlegging!$B21=LAGSRESULTATER!$GN$26,Resultatinnlegging!F21,0) -> 0 | GP44: =IF(Resultatinnlegging!$B21=LAGSRESULTATER!$GN$26,Resultatinnlegging!G21,0) -> 0 | GQ44: =IF(Resultatinnlegging!$B21=LAGSRESULTATER!$GN$26,Resultatinnlegging!H21,0) -> 0 | GR44: =IF(Resultatinnlegging!$B21=LAGSRESULTATER!$GN$26,Resultatinnlegging!I21,0) -> 0 | GS44: =IF(Resultatinnlegging!$B21=LAGSRESULTATER!$GN$26,Resultatinnlegging!J21,0) -> 0 | GT44: =IF(Resultatinnlegging!$B21=LAGSRESULTATER!$GN$26,Resultatinnlegging!K21,0) -> 0 | GU44: =IF(Resultatinnlegging!$B21=LAGSRESULTATER!$GN$26,Resultatinnlegging!L21,0) -> 0 | GV44: =IF(Resultatinnlegging!$B21=LAGSRESULTATER!$GN$26,Resultatinnlegging!M21,0) -> 0 | GW44: =IF(Resultatinnlegging!$B21=LAGSRESULTATER!$GN$26,Resultatinnlegging!N21,0) -> 0 | GX44: =IF(Resultatinnlegging!$B21=LAGSRESULTATER!$GN$26,Resultatinnlegging!O21,0) -> 0 | HB44: =IF(Resultatinnlegging!$B21=LAGSRESULTATER!$HA$26,Resultatinnlegging!F21,0) -> 0 | HC44: =IF(Resultatinnlegging!$B21=LAGSRESULTATER!$HA$26,Resultatinnlegging!G21,0) -> 0 | HD44: =IF(Resultatinnlegging!$B21=LAGSRESULTATER!$HA$26,Resultatinnlegging!H21,0) -> 0 | HE44: =IF(Resultatinnlegging!$B21=LAGSRESULTATER!$HA$26,Resultatinnlegging!I21,0) -> 0 | HF44: =IF(Resultatinnlegging!$B21=LAGSRESULTATER!$HA$26,Resultatinnlegging!J21,0) -> 0 | HG44: =IF(Resultatinnlegging!$B21=LAGSRESULTATER!$HA$26,Resultatinnlegging!K21,0) -> 0 | HH44: =IF(Resultatinnlegging!$B21=LAGSRESULTATER!$HA$26,Resultatinnlegging!L21,0) -> 0 | HI44: =IF(Resultatinnlegging!$B21=LAGSRESULTATER!$HA$26,Resultatinnlegging!M21,0) -> 0 | HJ44: =IF(Resultatinnlegging!$B21=LAGSRESULTATER!$HA$26,Resultatinnlegging!N21,0) -> 0 | HK44: =IF(Resultatinnlegging!$B21=LAGSRESULTATER!$HA$26,Resultatinnlegging!O21,0) -> 0 | HO44: =IF(Resultatinnlegging!$B21=LAGSRESULTATER!$HN$26,Resultatinnlegging!F21,0) -> 0 | HP44: =IF(Resultatinnlegging!$B21=LAGSRESULTATER!$HN$26,Resultatinnlegging!G21,0) -> 0 | HQ44: =IF(Resultatinnlegging!$B21=LAGSRESULTATER!$HN$26,Resultatinnlegging!H21,0) -> 0 | HR44: =IF(Resultatinnlegging!$B21=LAGSRESULTATER!$HN$26,Resultatinnlegging!I21,0) -> 0 | HS44: =IF(Resultatinnlegging!$B21=LAGSRESULTATER!$HN$26,Resultatinnlegging!J21,0) -> 0 | HT44: =IF(Resultatinnlegging!$B21=LAGSRESULTATER!$HN$26,Resultatinnlegging!K21,0) -> 0 | HU44: =IF(Resultatinnlegging!$B21=LAGSRESULTATER!$HA$26,Resultatinnlegging!L21,0) -> 0 | HV44: =IF(Resultatinnlegging!$B21=LAGSRESULTATER!$HN$26,Resultatinnlegging!M21,0) -> 0 | HW44: =IF(Resultatinnlegging!$B21=LAGSRESULTATER!$HN$26,Resultatinnlegging!N21,0) -> 0 | HX44: =IF(Resultatinnlegging!$B21=LAGSRESULTATER!$HN$26,Resultatinnlegging!O21,0) -> 0 | IB44: =IF(Resultatinnlegging!$B21=LAGSRESULTATER!$IA$26,Resultatinnlegging!F21,0) -> 0 | IC44: =IF(Resultatinnlegging!$B21=LAGSRESULTATER!$IA$26,Resultatinnlegging!G21,0) -> 0 | ID44: =IF(Resultatinnlegging!$B21=LAGSRESULTATER!$IA$26,Resultatinnlegging!H21,0) -> 0 | IE44: =IF(Resultatinnlegging!$B21=LAGSRESULTATER!$IA$26,Resultatinnlegging!I21,0) -> 0 | IF44: =IF(Resultatinnlegging!$B21=LAGSRESULTATER!$IA$26,Resultatinnlegging!J21,0) -> 0 | IG44: =IF(Resultatinnlegging!$B21=LAGSRESULTATER!$IA$26,Resultatinnlegging!K21,0) -> 0 | IH44: =IF(Resultatinnlegging!$B21=LAGSRESULTATER!$IA$26,Resultatinnlegging!L21,0) -> 0 | II44: =IF(Resultatinnlegging!$B21=LAGSRESULTATER!$IA$26,Resultatinnlegging!M21,0) -> 0 | IJ44: =IF(Resultatinnlegging!$B21=LAGSRESULTATER!$IA$26,Resultatinnlegging!N21,0) -> 0 | IK44: =IF(Resultatinnlegging!$B21=LAGSRESULTATER!$IA$26,Resultatinnlegging!O21,0) -> 0
